{"text_format":"1","workbook":"xlsx","n_sheets":5,"sheets":["Feuil1","Poules","Phase Finale","Pronostics","Classement Pronostics"],"not_rendered":{"charts":0,"images":33,"macros":1,"external_links":0,"defined_names":0,"comments":0,"pivot_tables":0},"unopened":[],"bounds":{"document_bytes":16777216,"sheet_cells":100000,"rows_first":2000,"rows_last":500,"rows_between":2000,"halvings":0,"cell_chars":16384,"cell_head_chars":4096},"cells_cut":0,"cells_raw":0,"read":"whole","date_system":"1900"}

{"sheet":"Feuil1","index":0,"n_rows":128,"n_cols":7,"rows_kept":128,"cut":false,"hidden":true,"merged":[]}
[{"$f":"IF(Poules!A4=\"\",\"\",Poules!A4)","v":"BRESIL"},{"$f":"IF(Poules!B4=\"\",\"\",Poules!B4)","v":""},{"$f":"IF(Poules!C4=\"\",\"\",Poules!C4)","v":""},{"$f":"IF(Poules!D4=\"\",\"\",Poules!D4)","v":"CROATIE"},"GROUPE A"]
[{"$f":"IF(Poules!A5=\"\",\"\",Poules!A5)","v":"MEXIQUE"},{"$f":"IF(Poules!B5=\"\",\"\",Poules!B5)","v":""},{"$f":"IF(Poules!C5=\"\",\"\",Poules!C5)","v":""},{"$f":"IF(Poules!D5=\"\",\"\",Poules!D5)","v":"CAMEROUN"},"GROUPE A"]
[{"$f":"IF(Poules!A6=\"\",\"\",Poules!A6)","v":"BRESIL"},{"$f":"IF(Poules!B6=\"\",\"\",Poules!B6)","v":""},{"$f":"IF(Poules!C6=\"\",\"\",Poules!C6)","v":""},{"$f":"IF(Poules!D6=\"\",\"\",Poules!D6)","v":"MEXIQUE"},"GROUPE A"]
[{"$f":"IF(Poules!A7=\"\",\"\",Poules!A7)","v":"CAMEROUN"},{"$f":"IF(Poules!B7=\"\",\"\",Poules!B7)","v":""},{"$f":"IF(Poules!C7=\"\",\"\",Poules!C7)","v":""},{"$f":"IF(Poules!D7=\"\",\"\",Poules!D7)","v":"CROATIE"},"GROUPE A"]
[{"$f":"IF(Poules!A8=\"\",\"\",Poules!A8)","v":"CAMEROUN"},{"$f":"IF(Poules!B8=\"\",\"\",Poules!B8)","v":""},{"$f":"IF(Poules!C8=\"\",\"\",Poules!C8)","v":""},{"$f":"IF(Poules!D8=\"\",\"\",Poules!D8)","v":"BRESIL"},"GROUPE A"]
[{"$f":"IF(Poules!A9=\"\",\"\",Poules!A9)","v":"CROATIE"},{"$f":"IF(Poules!B9=\"\",\"\",Poules!B9)","v":""},{"$f":"IF(Poules!C9=\"\",\"\",Poules!C9)","v":""},{"$f":"IF(Poules!D9=\"\",\"\",Poules!D9)","v":"MEXIQUE"},"GROUPE A"]
[{"$f":"IF(Poules!A13=\"\",\"\",Poules!A13)","v":"ESPAGNE"},{"$f":"IF(Poules!B13=\"\",\"\",Poules!B13)","v":""},{"$f":"IF(Poules!C13=\"\",\"\",Poules!C13)","v":""},{"$f":"IF(Poules!D13=\"\",\"\",Poules!D13)","v":"PAYS - BAS"},"GROUPE B"]
[{"$f":"IF(Poules!A14=\"\",\"\",Poules!A14)","v":"CHILI"},{"$f":"IF(Poules!B14=\"\",\"\",Poules!B14)","v":""},{"$f":"IF(Poules!C14=\"\",\"\",Poules!C14)","v":""},{"$f":"IF(Poules!D14=\"\",\"\",Poules!D14)","v":"AUSTRALIE"},"GROUPE B"]
[{"$f":"IF(Poules!A15=\"\",\"\",Poules!A15)","v":"ESPAGNE"},{"$f":"IF(Poules!B15=\"\",\"\",Poules!B15)","v":""},{"$f":"IF(Poules!C15=\"\",\"\",Poules!C15)","v":""},{"$f":"IF(Poules!D15=\"\",\"\",Poules!D15)","v":"CHILI"},"GROUPE B"]
[{"$f":"IF(Poules!A16=\"\",\"\",Poules!A16)","v":"AUSTRALIE"},{"$f":"IF(Poules!B16=\"\",\"\",Poules!B16)","v":""},{"$f":"IF(Poules!C16=\"\",\"\",Poules!C16)","v":""},{"$f":"IF(Poules!D16=\"\",\"\",Poules!D16)","v":"PAYS - BAS"},"GROUPE B"]
[{"$f":"IF(Poules!A17=\"\",\"\",Poules!A17)","v":"AUSTRALIE"},{"$f":"IF(Poules!B17=\"\",\"\",Poules!B17)","v":""},{"$f":"IF(Poules!C17=\"\",\"\",Poules!C17)","v":""},{"$f":"IF(Poules!D17=\"\",\"\",Poules!D17)","v":"ESPAGNE"},"GROUPE B"]
[{"$f":"IF(Poules!A18=\"\",\"\",Poules!A18)","v":"PAYS - BAS"},{"$f":"IF(Poules!B18=\"\",\"\",Poules!B18)","v":""},{"$f":"IF(Poules!C18=\"\",\"\",Poules!C18)","v":""},{"$f":"IF(Poules!D18=\"\",\"\",Poules!D18)","v":"CHILI"},"GROUPE B"]
[{"$f":"IF(Poules!A22=\"\",\"\",Poules!A22)","v":"COLOMBIE"},{"$f":"IF(Poules!B22=\"\",\"\",Poules!B22)","v":""},{"$f":"IF(Poules!C22=\"\",\"\",Poules!C22)","v":""},{"$f":"IF(Poules!D22=\"\",\"\",Poules!D22)","v":"GRECE"},"GROUPE C"]
[{"$f":"IF(Poules!A23=\"\",\"\",Poules!A23)","v":"CÔTE D'IVOIRE"},{"$f":"IF(Poules!B23=\"\",\"\",Poules!B23)","v":""},{"$f":"IF(Poules!C23=\"\",\"\",Poules!C23)","v":""},{"$f":"IF(Poules!D23=\"\",\"\",Poules!D23)","v":"JAPON"},"GROUPE C"]
[{"$f":"IF(Poules!A24=\"\",\"\",Poules!A24)","v":"COLOMBIE"},{"$f":"IF(Poules!B24=\"\",\"\",Poules!B24)","v":""},{"$f":"IF(Poules!C24=\"\",\"\",Poules!C24)","v":""},{"$f":"IF(Poules!D24=\"\",\"\",Poules!D24)","v":"CÔTE D'IVOIRE"},"GROUPE C"]
[{"$f":"IF(Poules!A25=\"\",\"\",Poules!A25)","v":"JAPON"},{"$f":"IF(Poules!B25=\"\",\"\",Poules!B25)","v":""},{"$f":"IF(Poules!C25=\"\",\"\",Poules!C25)","v":""},{"$f":"IF(Poules!D25=\"\",\"\",Poules!D25)","v":"GRECE"},"GROUPE C"]
[{"$f":"IF(Poules!A26=\"\",\"\",Poules!A26)","v":"JAPON"},{"$f":"IF(Poules!B26=\"\",\"\",Poules!B26)","v":""},{"$f":"IF(Poules!C26=\"\",\"\",Poules!C26)","v":""},{"$f":"IF(Poules!D26=\"\",\"\",Poules!D26)","v":"COLOMBIE"},"GROUPE C"]
[{"$f":"IF(Poules!A27=\"\",\"\",Poules!A27)","v":"GRECE"},{"$f":"IF(Poules!B27=\"\",\"\",Poules!B27)","v":""},{"$f":"IF(Poules!C27=\"\",\"\",Poules!C27)","v":""},{"$f":"IF(Poules!D27=\"\",\"\",Poules!D27)","v":"CÔTE D'IVOIRE"},"GROUPE C"]
[{"$f":"IF(Poules!A31=\"\",\"\",Poules!A31)","v":"URUGUAY"},{"$f":"IF(Poules!B31=\"\",\"\",Poules!B31)","v":""},{"$f":"IF(Poules!C31=\"\",\"\",Poules!C31)","v":""},{"$f":"IF(Poules!D31=\"\",\"\",Poules!D31)","v":"COSTA RICA"},"GROUPE D"]
[{"$f":"IF(Poules!A32=\"\",\"\",Poules!A32)","v":"ANGLETERRE"},{"$f":"IF(Poules!B32=\"\",\"\",Poules!B32)","v":""},{"$f":"IF(Poules!C32=\"\",\"\",Poules!C32)","v":""},{"$f":"IF(Poules!D32=\"\",\"\",Poules!D32)","v":"ITALIE"},"GROUPE D"]
[{"$f":"IF(Poules!A33=\"\",\"\",Poules!A33)","v":"URUGUAY"},{"$f":"IF(Poules!B33=\"\",\"\",Poules!B33)","v":""},{"$f":"IF(Poules!C33=\"\",\"\",Poules!C33)","v":""},{"$f":"IF(Poules!D33=\"\",\"\",Poules!D33)","v":"ANGLETERRE"},"GROUPE D"]
[{"$f":"IF(Poules!A34=\"\",\"\",Poules!A34)","v":"ITALIE"},{"$f":"IF(Poules!B34=\"\",\"\",Poules!B34)","v":""},{"$f":"IF(Poules!C34=\"\",\"\",Poules!C34)","v":""},{"$f":"IF(Poules!D34=\"\",\"\",Poules!D34)","v":"COSTA RICA"},"GROUPE D"]
[{"$f":"IF(Poules!A35=\"\",\"\",Poules!A35)","v":"ITALIE"},{"$f":"IF(Poules!B35=\"\",\"\",Poules!B35)","v":""},{"$f":"IF(Poules!C35=\"\",\"\",Poules!C35)","v":""},{"$f":"IF(Poules!D35=\"\",\"\",Poules!D35)","v":"URUGUAY"},"GROUPE D"]
[{"$f":"IF(Poules!A36=\"\",\"\",Poules!A36)","v":"COSTA RICA"},{"$f":"IF(Poules!B36=\"\",\"\",Poules!B36)","v":""},{"$f":"IF(Poules!C36=\"\",\"\",Poules!C36)","v":""},{"$f":"IF(Poules!D36=\"\",\"\",Poules!D36)","v":"ANGLETERRE"},"GROUPE D"]
[{"$f":"IF(Poules!A40=\"\",\"\",Poules!A40)","v":"SUISSE"},{"$f":"IF(Poules!B40=\"\",\"\",Poules!B40)","v":""},{"$f":"IF(Poules!C40=\"\",\"\",Poules!C40)","v":""},{"$f":"IF(Poules!D40=\"\",\"\",Poules!D40)","v":"EQUATEUR"},"GROUPE E"]
[{"$f":"IF(Poules!A41=\"\",\"\",Poules!A41)","v":"FRANCE"},{"$f":"IF(Poules!B41=\"\",\"\",Poules!B41)","v":""},{"$f":"IF(Poules!C41=\"\",\"\",Poules!C41)","v":""},{"$f":"IF(Poules!D41=\"\",\"\",Poules!D41)","v":"HONDURAS"},"GROUPE E"]
[{"$f":"IF(Poules!A42=\"\",\"\",Poules!A42)","v":"SUISSE"},{"$f":"IF(Poules!B42=\"\",\"\",Poules!B42)","v":""},{"$f":"IF(Poules!C42=\"\",\"\",Poules!C42)","v":""},{"$f":"IF(Poules!D42=\"\",\"\",Poules!D42)","v":"FRANCE"},"GROUPE E"]
[{"$f":"IF(Poules!A43=\"\",\"\",Poules!A43)","v":"HONDURAS"},{"$f":"IF(Poules!B43=\"\",\"\",Poules!B43)","v":""},{"$f":"IF(Poules!C43=\"\",\"\",Poules!C43)","v":""},{"$f":"IF(Poules!D43=\"\",\"\",Poules!D43)","v":"EQUATEUR"},"GROUPE E"]
[{"$f":"IF(Poules!A44=\"\",\"\",Poules!A44)","v":"HONDURAS"},{"$f":"IF(Poules!B44=\"\",\"\",Poules!B44)","v":""},{"$f":"IF(Poules!C44=\"\",\"\",Poules!C44)","v":""},{"$f":"IF(Poules!D44=\"\",\"\",Poules!D44)","v":"SUISSE"},"GROUPE E"]
[{"$f":"IF(Poules!A45=\"\",\"\",Poules!A45)","v":"EQUATEUR"},{"$f":"IF(Poules!B45=\"\",\"\",Poules!B45)","v":""},{"$f":"IF(Poules!C45=\"\",\"\",Poules!C45)","v":""},{"$f":"IF(Poules!D45=\"\",\"\",Poules!D45)","v":"FRANCE"},"GROUPE E"]
[{"$f":"IF(Poules!A49=\"\",\"\",Poules!A49)","v":"ARGENTINE"},{"$f":"IF(Poules!B49=\"\",\"\",Poules!B49)","v":""},{"$f":"IF(Poules!C49=\"\",\"\",Poules!C49)","v":""},{"$f":"IF(Poules!D49=\"\",\"\",Poules!D49)","v":"BOSNIE - HERZEGOVINE"},"GROUPE F"]
[{"$f":"IF(Poules!A50=\"\",\"\",Poules!A50)","v":"IRAN"},{"$f":"IF(Poules!B50=\"\",\"\",Poules!B50)","v":""},{"$f":"IF(Poules!C50=\"\",\"\",Poules!C50)","v":""},{"$f":"IF(Poules!D50=\"\",\"\",Poules!D50)","v":"NIGERIA"},"GROUPE F"]
[{"$f":"IF(Poules!A51=\"\",\"\",Poules!A51)","v":"ARGENTINE"},{"$f":"IF(Poules!B51=\"\",\"\",Poules!B51)","v":""},{"$f":"IF(Poules!C51=\"\",\"\",Poules!C51)","v":""},{"$f":"IF(Poules!D51=\"\",\"\",Poules!D51)","v":"IRAN"},"GROUPE F"]
[{"$f":"IF(Poules!A52=\"\",\"\",Poules!A52)","v":"NIGERIA"},{"$f":"IF(Poules!B52=\"\",\"\",Poules!B52)","v":""},{"$f":"IF(Poules!C52=\"\",\"\",Poules!C52)","v":""},{"$f":"IF(Poules!D52=\"\",\"\",Poules!D52)","v":"BOSNIE - HERZEGOVINE"},"GROUPE F"]
[{"$f":"IF(Poules!A53=\"\",\"\",Poules!A53)","v":"NIGERIA"},{"$f":"IF(Poules!B53=\"\",\"\",Poules!B53)","v":""},{"$f":"IF(Poules!C53=\"\",\"\",Poules!C53)","v":""},{"$f":"IF(Poules!D53=\"\",\"\",Poules!D53)","v":"ARGENTINE"},"GROUPE F"]
[{"$f":"IF(Poules!A54=\"\",\"\",Poules!A54)","v":"BOSNIE - HERZEGOVINE"},{"$f":"IF(Poules!B54=\"\",\"\",Poules!B54)","v":""},{"$f":"IF(Poules!C54=\"\",\"\",Poules!C54)","v":""},{"$f":"IF(Poules!D54=\"\",\"\",Poules!D54)","v":"IRAN"},"GROUPE F"]
[{"$f":"IF(Poules!A58=\"\",\"\",Poules!A58)","v":"ALLEMAGNE"},{"$f":"IF(Poules!B58=\"\",\"\",Poules!B58)","v":""},{"$f":"IF(Poules!C58=\"\",\"\",Poules!C58)","v":""},{"$f":"IF(Poules!D58=\"\",\"\",Poules!D58)","v":"PORTUGAL"},"GROUPE G"]
[{"$f":"IF(Poules!A59=\"\",\"\",Poules!A59)","v":"GHANA"},{"$f":"IF(Poules!B59=\"\",\"\",Poules!B59)","v":""},{"$f":"IF(Poules!C59=\"\",\"\",Poules!C59)","v":""},{"$f":"IF(Poules!D59=\"\",\"\",Poules!D59)","v":"U.S.A"},"GROUPE G"]
[{"$f":"IF(Poules!A60=\"\",\"\",Poules!A60)","v":"ALLEMAGNE"},{"$f":"IF(Poules!B60=\"\",\"\",Poules!B60)","v":""},{"$f":"IF(Poules!C60=\"\",\"\",Poules!C60)","v":""},{"$f":"IF(Poules!D60=\"\",\"\",Poules!D60)","v":"GHANA"},"GROUPE G"]
[{"$f":"IF(Poules!A61=\"\",\"\",Poules!A61)","v":"U.S.A"},{"$f":"IF(Poules!B61=\"\",\"\",Poules!B61)","v":""},{"$f":"IF(Poules!C61=\"\",\"\",Poules!C61)","v":""},{"$f":"IF(Poules!D61=\"\",\"\",Poules!D61)","v":"PORTUGAL"},"GROUPE G"]
[{"$f":"IF(Poules!A62=\"\",\"\",Poules!A62)","v":"U.S.A"},{"$f":"IF(Poules!B62=\"\",\"\",Poules!B62)","v":""},{"$f":"IF(Poules!C62=\"\",\"\",Poules!C62)","v":""},{"$f":"IF(Poules!D62=\"\",\"\",Poules!D62)","v":"ALLEMAGNE"},"GROUPE G"]
[{"$f":"IF(Poules!A63=\"\",\"\",Poules!A63)","v":"PORTUGAL"},{"$f":"IF(Poules!B63=\"\",\"\",Poules!B63)","v":""},{"$f":"IF(Poules!C63=\"\",\"\",Poules!C63)","v":""},{"$f":"IF(Poules!D63=\"\",\"\",Poules!D63)","v":"GHANA"},"GROUPE G"]
[{"$f":"IF(Poules!A67=\"\",\"\",Poules!A67)","v":"BELGIQUE"},{"$f":"IF(Poules!B67=\"\",\"\",Poules!B67)","v":""},{"$f":"IF(Poules!C67=\"\",\"\",Poules!C67)","v":""},{"$f":"IF(Poules!D67=\"\",\"\",Poules!D67)","v":"ALGERIE"},"GROUPE H"]
[{"$f":"IF(Poules!A68=\"\",\"\",Poules!A68)","v":"RUSSIE"},{"$f":"IF(Poules!B68=\"\",\"\",Poules!B68)","v":""},{"$f":"IF(Poules!C68=\"\",\"\",Poules!C68)","v":""},{"$f":"IF(Poules!D68=\"\",\"\",Poules!D68)","v":"REPUBLIQUE DE COREE"},"GROUPE H"]
[{"$f":"IF(Poules!A69=\"\",\"\",Poules!A69)","v":"BELGIQUE"},{"$f":"IF(Poules!B69=\"\",\"\",Poules!B69)","v":""},{"$f":"IF(Poules!C69=\"\",\"\",Poules!C69)","v":""},{"$f":"IF(Poules!D69=\"\",\"\",Poules!D69)","v":"RUSSIE"},"GROUPE H"]
[{"$f":"IF(Poules!A70=\"\",\"\",Poules!A70)","v":"REPUBLIQUE DE COREE"},{"$f":"IF(Poules!B70=\"\",\"\",Poules!B70)","v":""},{"$f":"IF(Poules!C70=\"\",\"\",Poules!C70)","v":""},{"$f":"IF(Poules!D70=\"\",\"\",Poules!D70)","v":"ALGERIE"},"GROUPE H"]
[{"$f":"IF(Poules!A71=\"\",\"\",Poules!A71)","v":"REPUBLIQUE DE COREE"},{"$f":"IF(Poules!B71=\"\",\"\",Poules!B71)","v":""},{"$f":"IF(Poules!C71=\"\",\"\",Poules!C71)","v":""},{"$f":"IF(Poules!D71=\"\",\"\",Poules!D71)","v":"BELGIQUE"},"GROUPE H"]
[{"$f":"IF(Poules!A72=\"\",\"\",Poules!A72)","v":"ALGERIE"},{"$f":"IF(Poules!B72=\"\",\"\",Poules!B72)","v":""},{"$f":"IF(Poules!C72=\"\",\"\",Poules!C72)","v":""},{"$f":"IF(Poules!D72=\"\",\"\",Poules!D72)","v":"RUSSIE"},"GROUPE H"]
[{"$f":"D1","v":"CROATIE"},{"$f":"C1","v":""},{"$f":"B1","v":""},{"$f":"A1","v":"BRESIL"},{"$f":"E1","v":"GROUPE A"},{"$f":"IF(G1=\"\",\"\",G1)","v":""},{"$f":"IF(F1=\"\",\"\",F1)","v":""}]
[{"$f":"D2","v":"CAMEROUN"},{"$f":"C2","v":""},{"$f":"B2","v":""},{"$f":"A2","v":"MEXIQUE"},{"$f":"E2","v":"GROUPE A"},{"$f":"IF(G2=\"\",\"\",G2)","v":""},{"$f":"IF(F2=\"\",\"\",F2)","v":""}]
["MEXIQUE","","","BRESIL","GROUPE A","",""]
["CROATIE","","","CAMEROUN","GROUPE A","",""]
["BRESIL","","","CAMEROUN","GROUPE A","",""]
["MEXIQUE","","","CROATIE","GROUPE A","",""]
["PAYS - BAS","","","ESPAGNE","GROUPE B","",""]
["AUSTRALIE","","","CHILI","GROUPE B","",""]
["CHILI","","","ESPAGNE","GROUPE B","",""]
["PAYS - BAS","","","AUSTRALIE","GROUPE B","",""]
["ESPAGNE","","","AUSTRALIE","GROUPE B","",""]
["CHILI","","","PAYS - BAS","GROUPE B","",""]
["GRECE","","","COLOMBIE","GROUPE C","",""]
["JAPON","","","CÔTE D'IVOIRE","GROUPE C","",""]
["CÔTE D'IVOIRE","","","COLOMBIE","GROUPE C","",""]
["GRECE","","","JAPON","GROUPE C","",""]
["COLOMBIE","","","JAPON","GROUPE C","",""]
["CÔTE D'IVOIRE","","","GRECE","GROUPE C","",""]
["COSTA RICA","","","URUGUAY","GROUPE D","",""]
["ITALIE","","","ANGLETERRE","GROUPE D","",""]
["ANGLETERRE","","","URUGUAY","GROUPE D","",""]
["COSTA RICA","","","ITALIE","GROUPE D","",""]
["URUGUAY","","","ITALIE","GROUPE D","",""]
["ANGLETERRE","","","COSTA RICA","GROUPE D","",""]
["EQUATEUR","","","SUISSE","GROUPE E","",""]
["HONDURAS","","","FRANCE","GROUPE E","",""]
["FRANCE","","","SUISSE","GROUPE E","",""]
["EQUATEUR","","","HONDURAS","GROUPE E","",""]
["SUISSE","","","HONDURAS","GROUPE E","",""]
["FRANCE","","","EQUATEUR","GROUPE E","",""]
["BOSNIE - HERZEGOVINE","","","ARGENTINE","GROUPE F","",""]
["NIGERIA","","","IRAN","GROUPE F","",""]
["IRAN","","","ARGENTINE","GROUPE F","",""]
["BOSNIE - HERZEGOVINE","","","NIGERIA","GROUPE F","",""]
["ARGENTINE","","","NIGERIA","GROUPE F","",""]
["IRAN","","","BOSNIE - HERZEGOVINE","GROUPE F","",""]
["PORTUGAL","","","ALLEMAGNE","GROUPE G","",""]
["U.S.A","","","GHANA","GROUPE G","",""]
["GHANA","","","ALLEMAGNE","GROUPE G","",""]
["PORTUGAL","","","U.S.A","GROUPE G","",""]
["ALLEMAGNE","","","U.S.A","GROUPE G","",""]
["GHANA","","","PORTUGAL","GROUPE G","",""]
["ALGERIE","","","BELGIQUE","GROUPE H","",""]
["REPUBLIQUE DE COREE","","","RUSSIE","GROUPE H","",""]
["RUSSIE","","","BELGIQUE","GROUPE H","",""]
["ALGERIE","","","REPUBLIQUE DE COREE","GROUPE H","",""]
["BELGIQUE","","","REPUBLIQUE DE COREE","GROUPE H","",""]
["RUSSIE","","","ALGERIE","GROUPE H","",""]
[{"$f":"'Phase Finale'!A4:G4","v":"BRESIL"},{"$f":"IF('Phase Finale'!B3:C3=\"\",\"\",'Phase Finale'!B3:C3)","v":""},{"$f":"IF('Phase Finale'!B6:C6=\"\",\"\",'Phase Finale'!B6:C6)","v":""},{"$f":"'Phase Finale'!A5:G5","v":"PAYS - BAS"},"1/8 ème DE FINALE",{"$f":"IF('Phase Finale'!F3:G3=\"\",\"\",'Phase Finale'!F3:G3)","v":""},{"$f":"IF('Phase Finale'!F6:G6=\"\",\"\",'Phase Finale'!F6:G6)","v":""}]
[{"$f":"'Phase Finale'!A10:G10","v":"COLOMBIE"},{"$f":"IF('Phase Finale'!B9:C9=\"\",\"\",'Phase Finale'!B9:C9)","v":""},{"$f":"IF('Phase Finale'!B12:C12=\"\",\"\",'Phase Finale'!B12:C12)","v":""},{"$f":"'Phase Finale'!A11:G11","v":"COSTA RICA"},"1/8 ème DE FINALE",{"$f":"IF('Phase Finale'!F9:G9=\"\",\"\",'Phase Finale'!F9:G9)","v":""},{"$f":"IF('Phase Finale'!F12:G12=\"\",\"\",'Phase Finale'!F12:G12)","v":""}]
[{"$f":"'Phase Finale'!A16:G16","v":"SUISSE"},{"$f":"IF('Phase Finale'!B15:C15=\"\",\"\",'Phase Finale'!B15:C15)","v":""},{"$f":"IF('Phase Finale'!B18:C18=\"\",\"\",'Phase Finale'!B18:C18)","v":""},{"$f":"'Phase Finale'!A17:G17","v":"BOSNIE - HERZEGOVINE"},"1/8 ème DE FINALE",{"$f":"IF('Phase Finale'!F15:G15=\"\",\"\",'Phase Finale'!F15:G15)","v":""},{"$f":"IF('Phase Finale'!F18:G18=\"\",\"\",'Phase Finale'!F18:G18)","v":""}]
[{"$f":"'Phase Finale'!A22:G22","v":"ALLEMAGNE"},{"$f":"IF('Phase Finale'!B21:C21=\"\",\"\",'Phase Finale'!B21:C21)","v":""},{"$f":"IF('Phase Finale'!B24:C24=\"\",\"\",'Phase Finale'!B24:C24)","v":""},{"$f":"'Phase Finale'!A23:G23","v":"ALGERIE"},"1/8 ème DE FINALE",{"$f":"IF('Phase Finale'!F21:G21=\"\",\"\",'Phase Finale'!F21:G21)","v":""},{"$f":"IF('Phase Finale'!F24:G24=\"\",\"\",'Phase Finale'!F24:G24)","v":""}]
[{"$f":"'Phase Finale'!AH4:AN4","v":"ESPAGNE"},{"$f":"IF('Phase Finale'!AI3:AJ3=\"\",\"\",'Phase Finale'!AI3:AJ3)","v":""},{"$f":"IF('Phase Finale'!AI6:AJ6=\"\",\"\",'Phase Finale'!AI6:AJ6)","v":""},{"$f":"'Phase Finale'!AH5:AN5","v":"CROATIE"},"1/8 ème DE FINALE",{"$f":"IF('Phase Finale'!AM3:AN3=\"\",\"\",'Phase Finale'!AM3:AN3)","v":""},{"$f":"IF('Phase Finale'!AM6:AN6=\"\",\"\",'Phase Finale'!AM6:AN6)","v":""}]
[{"$f":"'Phase Finale'!AH10:AN10","v":"URUGUAY"},{"$f":"IF('Phase Finale'!AI9:AJ9=\"\",\"\",'Phase Finale'!AI9:AJ9)","v":""},{"$f":"IF('Phase Finale'!AI12:AJ12=\"\",\"\",'Phase Finale'!AI12:AJ12)","v":""},{"$f":"'Phase Finale'!AH11:AN11","v":"GRECE"},"1/8 ème DE FINALE",{"$f":"IF('Phase Finale'!AM9:AN9=\"\",\"\",'Phase Finale'!AM9:AN9)","v":""},{"$f":"IF('Phase Finale'!AM12:AN12=\"\",\"\",'Phase Finale'!AM12:AN12)","v":""}]
[{"$f":"'Phase Finale'!AH16:AN16","v":"ARGENTINE"},{"$f":"IF('Phase Finale'!AI15:AJ15=\"\",\"\",'Phase Finale'!AI15:AJ15)","v":""},{"$f":"IF('Phase Finale'!AI18:AJ18=\"\",\"\",'Phase Finale'!AI18:AJ18)","v":""},{"$f":"'Phase Finale'!AH17:AN17","v":"EQUATEUR"},"1/8 ème DE FINALE",{"$f":"IF('Phase Finale'!AM15:AN15=\"\",\"\",'Phase Finale'!AM15:AN15)","v":""},{"$f":"IF('Phase Finale'!AM18:AN18=\"\",\"\",'Phase Finale'!AM18:AN18)","v":""}]
[{"$f":"'Phase Finale'!AH22:AN22","v":"BELGIQUE"},{"$f":"IF('Phase Finale'!AI21:AJ21=\"\",\"\",'Phase Finale'!AI21:AJ21)","v":""},{"$f":"IF('Phase Finale'!AI24:AJ24=\"\",\"\",'Phase Finale'!AI24:AJ24)","v":""},{"$f":"'Phase Finale'!AH23:AN23","v":"PORTUGAL"},"1/8 ème DE FINALE",{"$f":"IF('Phase Finale'!AM21:AN21=\"\",\"\",'Phase Finale'!AM21:AN21)","v":""},{"$f":"IF('Phase Finale'!AM24:AN24=\"\",\"\",'Phase Finale'!AM24:AN24)","v":""}]
[{"$f":"D97","v":"PAYS - BAS"},{"$f":"C97","v":""},{"$f":"B97","v":""},{"$f":"A97","v":"BRESIL"},{"$f":"E97","v":"1/8 ème DE FINALE"},{"$f":"G97","v":""},{"$f":"F97","v":""}]
[{"$f":"D98","v":"COSTA RICA"},{"$f":"C98","v":""},{"$f":"B98","v":""},{"$f":"A98","v":"COLOMBIE"},{"$f":"E98","v":"1/8 ème DE FINALE"},{"$f":"G98","v":""},{"$f":"F98","v":""}]
["BOSNIE - HERZEGOVINE",{"$f":"C99","v":""},{"$f":"B99","v":""},"SUISSE","1/8 ème DE FINALE",{"$f":"G99","v":""},{"$f":"F99","v":""}]
["ALGERIE",{"$f":"C100","v":""},{"$f":"B100","v":""},"ALLEMAGNE","1/8 ème DE FINALE",{"$f":"G100","v":""},{"$f":"F100","v":""}]
["CROATIE",{"$f":"C101","v":""},{"$f":"B101","v":""},"ESPAGNE","1/8 ème DE FINALE",{"$f":"G101","v":""},{"$f":"F101","v":""}]
["GRECE",{"$f":"C102","v":""},{"$f":"B102","v":""},"URUGUAY","1/8 ème DE FINALE",{"$f":"G102","v":""},{"$f":"F102","v":""}]
["EQUATEUR",{"$f":"C103","v":""},{"$f":"B103","v":""},"ARGENTINE","1/8 ème DE FINALE",{"$f":"G103","v":""},{"$f":"F103","v":""}]
["PORTUGAL",{"$f":"C104","v":""},{"$f":"B104","v":""},"BELGIQUE","1/8 ème DE FINALE",{"$f":"G104","v":""},{"$f":"F104","v":""}]
[{"$f":"'Phase Finale'!I7:O7","v":""},{"$f":"IF('Phase Finale'!J6:K6=\"\",\"\",'Phase Finale'!J6:K6)","v":""},{"$f":"IF('Phase Finale'!J9:K9=\"\",\"\",'Phase Finale'!J9:K9)","v":""},{"$f":"'Phase Finale'!I8:O8","v":""},"1/4 DE FINALE",{"$f":"IF('Phase Finale'!N6:O6=\"\",\"\",'Phase Finale'!N6:O6)","v":""},{"$f":"IF('Phase Finale'!N9:O9=\"\",\"\",'Phase Finale'!N9:O9)","v":""}]
[{"$f":"'Phase Finale'!I19:O19","v":""},{"$f":"IF('Phase Finale'!J18:K18=\"\",\"\",'Phase Finale'!J18:K18)","v":""},{"$f":"IF('Phase Finale'!J21:K21=\"\",\"\",'Phase Finale'!J21:K21)","v":""},{"$f":"'Phase Finale'!I20:O20","v":""},"1/4 DE FINALE",{"$f":"IF('Phase Finale'!N18:O18=\"\",\"\",'Phase Finale'!N18:O18)","v":""},{"$f":"IF('Phase Finale'!N21:O21=\"\",\"\",'Phase Finale'!N21:O21)","v":""}]
[{"$f":"'Phase Finale'!Z7:AF7","v":""},{"$f":"IF('Phase Finale'!AA6:AB6=\"\",\"\",'Phase Finale'!AA6:AB6)","v":""},{"$f":"IF('Phase Finale'!AA9:AB9=\"\",\"\",'Phase Finale'!AA9:AB9)","v":""},{"$f":"'Phase Finale'!Z8:AF8","v":""},"1/4 DE FINALE",{"$f":"IF('Phase Finale'!AE6:AF6=\"\",\"\",'Phase Finale'!AE6:AF6)","v":""},{"$f":"IF('Phase Finale'!AE9:AF9=\"\",\"\",'Phase Finale'!AE9:AF9)","v":""}]
[{"$f":"'Phase Finale'!Z19:AF19","v":""},{"$f":"IF('Phase Finale'!AA18:AB18=\"\",\"\",'Phase Finale'!AA18:AB18)","v":""},{"$f":"IF('Phase Finale'!AA21:AB21=\"\",\"\",'Phase Finale'!AA21:AB21)","v":""},{"$f":"'Phase Finale'!Z20:AF20","v":""},"1/4 DE FINALE",{"$f":"IF('Phase Finale'!AE18:AF18=\"\",\"\",'Phase Finale'!AE18:AF18)","v":""},{"$f":"IF('Phase Finale'!AE21:AF21=\"\",\"\",'Phase Finale'!AE21:AF21)","v":""}]
[{"$f":"D113","v":""},{"$f":"C113","v":""},{"$f":"B113","v":""},{"$f":"A113","v":""},{"$f":"E113","v":"1/4 DE FINALE"},{"$f":"G113","v":""},{"$f":"F113","v":""}]
[{"$f":"D114","v":""},{"$f":"C114","v":""},{"$f":"B114","v":""},{"$f":"A114","v":""},{"$f":"E114","v":"1/4 DE FINALE"},{"$f":"G114","v":""},{"$f":"F114","v":""}]
[{"$f":"D115","v":""},{"$f":"C115","v":""},{"$f":"B115","v":""},{"$f":"A115","v":""},{"$f":"E115","v":"1/4 DE FINALE"},{"$f":"G115","v":""},{"$f":"F115","v":""}]
[{"$f":"D116","v":""},{"$f":"C116","v":""},{"$f":"B116","v":""},{"$f":"A116","v":""},{"$f":"E116","v":"1/4 DE FINALE"},{"$f":"G116","v":""},{"$f":"F116","v":""}]
[{"$f":"'Phase Finale'!L13:R13","v":""},{"$f":"IF('Phase Finale'!M12:N12=\"\",\"\",'Phase Finale'!M12:N12)","v":""},{"$f":"IF('Phase Finale'!M15:N15=\"\",\"\",'Phase Finale'!M15:N15)","v":""},{"$f":"'Phase Finale'!L14:R14","v":""},"1/2 FINALE",{"$f":"IF('Phase Finale'!Q12:R12=\"\",\"\",'Phase Finale'!Q12:R12)","v":""},{"$f":"IF('Phase Finale'!Q15:R15=\"\",\"\",'Phase Finale'!Q15:R15)","v":""}]
[{"$f":"'Phase Finale'!W13:AC13","v":""},{"$f":"IF('Phase Finale'!X12:Y12=\"\",\"\",'Phase Finale'!X12:Y12)","v":""},{"$f":"IF('Phase Finale'!X15:Y15=\"\",\"\",'Phase Finale'!X15:Y15)","v":""},{"$f":"'Phase Finale'!W14:AC14","v":""},"1/2 FINALE",{"$f":"IF('Phase Finale'!AB12:AC12=\"\",\"\",'Phase Finale'!AB12:AC12)","v":""},{"$f":"IF('Phase Finale'!AB15:AC15=\"\",\"\",'Phase Finale'!AB15:AC15)","v":""}]
[{"$f":"D121","v":""},{"$f":"C121","v":""},{"$f":"B121","v":""},{"$f":"A121","v":""},{"$f":"E121","v":"1/2 FINALE"},{"$f":"G121","v":""},{"$f":"F121","v":""}]
[{"$f":"D122","v":""},{"$f":"C122","v":""},{"$f":"B122","v":""},{"$f":"A122","v":""},{"$f":"E122","v":"1/2 FINALE"},{"$f":"G122","v":""},{"$f":"F122","v":""}]
[{"$f":"'Phase Finale'!Q3:X3","v":""},{"$f":"IF('Phase Finale'!R2:S2=\"\",\"\",'Phase Finale'!R2:S2)","v":""},{"$f":"IF('Phase Finale'!R5:S5=\"\",\"\",'Phase Finale'!R5:S5)","v":""},{"$f":"'Phase Finale'!Q4:X4","v":""},"FINALE 3ème PLACE",{"$f":"IF('Phase Finale'!W2:X2=\"\",\"\",'Phase Finale'!W2:X2)","v":""},{"$f":"IF('Phase Finale'!W5:X5=\"\",\"\",'Phase Finale'!W5:X5)","v":""}]
[{"$f":"D125","v":""},{"$f":"C125","v":""},{"$f":"B125","v":""},{"$f":"A125","v":""},{"$f":"E125","v":"FINALE 3ème PLACE"},{"$f":"G125","v":""},{"$f":"F125","v":""}]
[{"$f":"'Phase Finale'!Q23:X23","v":""},{"$f":"IF('Phase Finale'!R22:S22=\"\",\"\",'Phase Finale'!R22:S22)","v":""},{"$f":"IF('Phase Finale'!R25:S25=\"\",\"\",'Phase Finale'!R25:S25)","v":""},{"$f":"'Phase Finale'!Q24:X24","v":""},"FINALE",{"$f":"IF('Phase Finale'!W22:X22=\"\",\"\",'Phase Finale'!W22:X22)","v":""},{"$f":"IF('Phase Finale'!W25:X25=\"\",\"\",'Phase Finale'!W25:X25)","v":""}]
[{"$f":"D127","v":""},{"$f":"C127","v":""},{"$f":"B127","v":""},{"$f":"A127","v":""},{"$f":"E127","v":"FINALE"},{"$f":"G127","v":""},{"$f":"F127","v":""}]

{"sheet":"Poules","index":1,"n_rows":72,"n_cols":47,"rows_kept":72,"cut":false,"hidden":false,"merged":[[63,0,64,3],[63,6,64,15],[63,18,64,27],[70,6,71,6],[70,7,71,10],[70,11,71,11],[70,12,71,15],[63,4,65,5],[66,4,68,4],[66,5,68,5],[69,4,71,4],[69,5,71,5],[54,0,55,3],[54,6,55,15],[54,18,55,27],[61,6,62,6],[61,7,62,10],[61,11,62,11],[61,12,62,15],[60,4,62,4],[60,5,62,5],[57,5,59,5],[54,4,56,5],[57,4,59,4],[45,0,46,3],[45,6,46,15],[45,18,46,27],[52,6,53,6],[52,7,53,10],[52,11,53,11],[52,12,53,15],[45,4,47,5],[48,4,50,4],[48,5,50,5],[51,4,53,4],[51,5,53,5],[36,0,37,3],[36,6,37,15],[36,18,37,27],[43,6,44,6],[43,7,44,10],[43,11,44,11],[43,12,44,15],[42,4,44,4],[42,5,44,5],[36,4,38,5],[39,4,41,4],[39,5,41,5],[27,0,28,3],[27,6,28,15],[27,18,28,27],[34,6,35,6],[34,7,35,10],[34,11,35,11],[34,12,35,15],[27,4,29,5],[30,4,32,4],[30,5,32,5],[33,4,35,4],[33,5,35,5],[18,0,19,3],[18,6,19,15],[18,18,19,27],[25,6,26,6],[25,7,26,10],[25,11,26,11],[25,12,26,15],[24,4,26,4],[24,5,26,5],[18,4,20,5],[21,4,23,4],[21,5,23,5],[9,0,10,3],[9,6,10,15],[9,18,10,27],[16,6,17,6],[16,7,17,10],[16,11,17,11],[16,12,17,15],[15,4,17,4],[15,5,17,5],[9,4,11,5],[12,4,14,4],[12,5,14,5],[0,18,1,27],[0,0,1,3],[0,6,1,15],[7,6,8,6],[7,7,8,10],[7,12,8,15],[7,11,8,11],[3,4,5,4],[3,5,5,5],[6,4,8,4],[0,4,2,5],[6,5,8,5]]}
["POULE  A",null,null,null,null,null,"CLASSEMENT",null,null,null,null,null,null,null,null,null,null,null,"CLASSEMENT"]
[]
["Equipes","Buts","Buts","Equipes",null,null,"Equipes","Rang","Pts","J","G","N","P","B +","B -","Diff",null,"R","Equipes","Rang","Pts","J","G","N","P","B +","B -","Diff","%","%","Pts","Pts","J","J","G","G","N","N","P","P","B +","B +","B -","B -","Equipes","%","R"]
[{"$f":"S4","v":"BRESIL"},null,null,{"$f":"S5","v":"CROATIE"},null,null,{"$f":"VLOOKUP(Q4,R4:S7,2,0)","v":"BRESIL"},1,{"$f":"VLOOKUP(G4,S4:AB7,3,0)","v":0},{"$f":"VLOOKUP(G4,S4:AB7,4,0)","v":0},{"$f":"VLOOKUP(G4,S4:AB7,5,0)","v":0},{"$f":"VLOOKUP(G4,S4:AB7,6,0)","v":0},{"$f":"VLOOKUP(G4,S4:AB7,7,0)","v":0},{"$f":"VLOOKUP(G4,S4:AB7,8,0)","v":0},{"$f":"VLOOKUP(G4,S4:AB7,9,0)","v":0},{"$f":"VLOOKUP(G4,S4:AB7,10,0)","v":0},1,{"$f":"RANK(AD4,AD4:AD7)","v":1},"BRESIL",null,{"$f":"SUMPRODUCT((A4:A9=S4)*(AE4:AE9))+SUMPRODUCT((D4:D9=S4)*(AF4:AF9))","v":0},{"$f":"SUMPRODUCT((A4:A9=S4)*(AG4:AG9))+SUMPRODUCT((D4:D9=S4)*(AH4:AH9))","v":0},{"$f":"SUMPRODUCT((A4:A9=S4)*(AI4:AI9))+SUMPRODUCT((D4:D9=S4)*(AJ4:AJ9))","v":0},{"$f":"SUMPRODUCT((A4:A9=S4)*(AK4:AK9))+SUMPRODUCT((D4:D9=S4)*(AL4:AL9))","v":0},{"$f":"SUMPRODUCT((A4:A9=S4)*(AM4:AM9))+SUMPRODUCT((D4:D9=S4)*(AN4:AN9))","v":0},{"$f":"SUMPRODUCT((A4:A9=S4)*(AO4:AO9))+SUMPRODUCT((D4:D9=S4)*(AP4:AP9))","v":0},{"$f":"SUMPRODUCT((A4:A9=S4)*(AQ4:AQ9))+SUMPRODUCT((D4:D9=S4)*(AR4:AR9))","v":0},{"$f":"Z4-AA4","v":0},{"$f":"SUM(U4*1000+(AB4)/10+(Z4)/100)","v":0},{"$f":"AC4+0.0000004","v":3.9999999999999998E-7},{"$f":"IF(B4=\"\",0,IF(B4>C4,3,IF(B4=C4,1,IF(B4<C4,0))))","v":0},{"$f":"IF(C4=\"\",0,IF(C4>B4,3,IF(C4=B4,1,IF(C4<B4,0))))","v":0},{"$f":"IF(B4=\"\",0,1)","v":0},0,{"$f":"IF(B4<>\"\",IF(B4>C4,1))","v":false},{"$f":"IF(C4<>\"\",IF(C4>B4,1))","v":false},{"$f":"IF(B4<>\"\",IF(B4=C4,1))","v":false},{"$f":"IF(C4<>\"\",IF(C4=B4,1))","v":false},{"$f":"IF(B4<>\"\",IF(B4<C4,1))","v":false},{"$f":"IF(C4<>\"\",IF(C4<B4,1))","v":false},{"$f":"B4","v":0},0,{"$f":"C4","v":0},{"$f":"B4","v":0},{"$f":"VLOOKUP(Q4,R4:S7,2,0)","v":"BRESIL"},{"$f":"VLOOKUP(AS4,S4:AC7,11,0)","v":0},{"$f":"RANK(AT4,AT4:AT7)","v":1}]
[{"$f":"S6","v":"MEXIQUE"},null,null,{"$f":"S7","v":"CAMEROUN"},null,null,{"$f":"VLOOKUP(Q5,R4:S7,2,0)","v":"CROATIE"},{"$f":"IF(AT5=AT4,AU4,AU5)","v":1},{"$f":"VLOOKUP(G5,S4:AB7,3,0)","v":0},{"$f":"VLOOKUP(G5,S4:AB7,4,0)","v":0},{"$f":"VLOOKUP(G5,S4:AB7,5,0)","v":0},{"$f":"VLOOKUP(G5,S4:AB7,6,0)","v":0},{"$f":"VLOOKUP(G5,S4:AB7,7,0)","v":0},{"$f":"VLOOKUP(G5,S4:AB7,8,0)","v":0},{"$f":"VLOOKUP(G5,S4:AB7,9,0)","v":0},{"$f":"VLOOKUP(G5,S4:AB7,10,0)","v":0},2,{"$f":"RANK(AD5,AD4:AD7)","v":2},"CROATIE",null,{"$f":"SUMPRODUCT((A4:A9=S5)*(AE4:AE9))+SUMPRODUCT((D4:D9=S5)*(AF4:AF9))","v":0},{"$f":"SUMPRODUCT((A4:A9=S5)*(AG4:AG9))+SUMPRODUCT((D4:D9=S5)*(AH4:AH9))","v":0},{"$f":"SUMPRODUCT((A4:A9=S5)*(AI4:AI9))+SUMPRODUCT((D4:D9=S5)*(AJ4:AJ9))","v":0},{"$f":"SUMPRODUCT((A4:A9=S5)*(AK4:AK9))+SUMPRODUCT((D4:D9=S5)*(AL4:AL9))","v":0},{"$f":"SUMPRODUCT((A4:A9=S5)*(AM4:AM9))+SUMPRODUCT((D4:D9=S5)*(AN4:AN9))","v":0},{"$f":"SUMPRODUCT((A4:A9=S5)*(AO4:AO9))+SUMPRODUCT((D4:D9=S5)*(AP4:AP9))","v":0},{"$f":"SUMPRODUCT((A4:A9=S5)*(AQ4:AQ9))+SUMPRODUCT((D4:D9=S5)*(AR4:AR9))","v":0},{"$f":"Z5-AA5","v":0},{"$f":"SUM(U5*1000+(AB5)/10+(Z5)/100)","v":0},{"$f":"AC5+0.0000003","v":2.9999999999999999E-7},0,0,0,0,false,false,false,false,false,false,0,0,0,0,{"$f":"VLOOKUP(Q5,R4:S7,2,0)","v":"CROATIE"},{"$f":"VLOOKUP(AS5,S4:AC7,11,0)","v":0},{"$f":"RANK(AT5,AT4:AT7)","v":1}]
[{"$f":"S4","v":"BRESIL"},null,null,{"$f":"S6","v":"MEXIQUE"},null,null,{"$f":"VLOOKUP(Q6,R4:S7,2,0)","v":"MEXIQUE"},{"$f":"IF(AT6=AT5,AU5,AU6)","v":1},{"$f":"VLOOKUP(G6,S4:AB7,3,0)","v":0},{"$f":"VLOOKUP(G6,S4:AB7,4,0)","v":0},{"$f":"VLOOKUP(G6,S4:AB7,5,0)","v":0},{"$f":"VLOOKUP(G6,S4:AB7,6,0)","v":0},{"$f":"VLOOKUP(G6,S4:AB7,7,0)","v":0},{"$f":"VLOOKUP(G6,S4:AB7,8,0)","v":0},{"$f":"VLOOKUP(G6,S4:AB7,9,0)","v":0},{"$f":"VLOOKUP(G6,S4:AB7,10,0)","v":0},3,{"$f":"RANK(AD6,AD4:AD7)","v":3},"MEXIQUE",null,{"$f":"SUMPRODUCT((A4:A9=S6)*(AE4:AE9))+SUMPRODUCT((D4:D9=S6)*(AF4:AF9))","v":0},{"$f":"SUMPRODUCT((A4:A9=S6)*(AG4:AG9))+SUMPRODUCT((D4:D9=S6)*(AH4:AH9))","v":0},{"$f":"SUMPRODUCT((A4:A9=S6)*(AI4:AI9))+SUMPRODUCT((D4:D9=S6)*(AJ4:AJ9))","v":0},{"$f":"SUMPRODUCT((A4:A9=S6)*(AK4:AK9))+SUMPRODUCT((D4:D9=S6)*(AL4:AL9))","v":0},{"$f":"SUMPRODUCT((A4:A9=S6)*(AM4:AM9))+SUMPRODUCT((D4:D9=S6)*(AN4:AN9))","v":0},{"$f":"SUMPRODUCT((A4:A9=S6)*(AO4:AO9))+SUMPRODUCT((D4:D9=S6)*(AP4:AP9))","v":0},{"$f":"SUMPRODUCT((A4:A9=S6)*(AQ4:AQ9))+SUMPRODUCT((D4:D9=S6)*(AR4:AR9))","v":0},{"$f":"Z6-AA6","v":0},{"$f":"SUM(U6*1000+(AB6)/10+(Z6)/100)","v":0},{"$f":"AC6+0.0000002","v":1.9999999999999999E-7},0,0,0,0,false,false,false,false,false,false,0,0,0,0,{"$f":"VLOOKUP(Q6,R4:S7,2,0)","v":"MEXIQUE"},{"$f":"VLOOKUP(AS6,S4:AC7,11,0)","v":0},{"$f":"RANK(AT6,AT4:AT7)","v":1}]
[{"$f":"S7","v":"CAMEROUN"},null,null,{"$f":"S5","v":"CROATIE"},null,null,{"$f":"VLOOKUP(Q7,R4:S7,2,0)","v":"CAMEROUN"},{"$f":"IF(AT7=AT6,AU6,AU7)","v":1},{"$f":"VLOOKUP(G7,S4:AB7,3,0)","v":0},{"$f":"VLOOKUP(G7,S4:AB7,4,0)","v":0},{"$f":"VLOOKUP(G7,S4:AB7,5,0)","v":0},{"$f":"VLOOKUP(G7,S4:AB7,6,0)","v":0},{"$f":"VLOOKUP(G7,S4:AB7,7,0)","v":0},{"$f":"VLOOKUP(G7,S4:AB7,8,0)","v":0},{"$f":"VLOOKUP(G7,S4:AB7,9,0)","v":0},{"$f":"VLOOKUP(G7,S4:AB7,10,0)","v":0},4,{"$f":"RANK(AD7,AD4:AD7)","v":4},"CAMEROUN",null,{"$f":"SUMPRODUCT((A4:A9=S7)*(AE4:AE9))+SUMPRODUCT((D4:D9=S7)*(AF4:AF9))","v":0},{"$f":"SUMPRODUCT((A4:A9=S7)*(AG4:AG9))+SUMPRODUCT((D4:D9=S7)*(AH4:AH9))","v":0},{"$f":"SUMPRODUCT((A4:A9=S7)*(AI4:AI9))+SUMPRODUCT((D4:D9=S7)*(AJ4:AJ9))","v":0},{"$f":"SUMPRODUCT((A4:A9=S7)*(AK4:AK9))+SUMPRODUCT((D4:D9=S7)*(AL4:AL9))","v":0},{"$f":"SUMPRODUCT((A4:A9=S7)*(AM4:AM9))+SUMPRODUCT((D4:D9=S7)*(AN4:AN9))","v":0},{"$f":"SUMPRODUCT((A4:A9=S7)*(AO4:AO9))+SUMPRODUCT((D4:D9=S7)*(AP4:AP9))","v":0},{"$f":"SUMPRODUCT((A4:A9=S7)*(AQ4:AQ9))+SUMPRODUCT((D4:D9=S7)*(AR4:AR9))","v":0},{"$f":"Z7-AA7","v":0},{"$f":"SUM(U7*1000+(AB7)/10+(Z7)/100)","v":0},{"$f":"AC7+0.0000001","v":9.9999999999999995E-8},0,0,0,0,false,false,false,false,false,false,0,0,0,0,{"$f":"VLOOKUP(Q7,R4:S7,2,0)","v":"CAMEROUN"},{"$f":"VLOOKUP(AS7,S4:AC7,11,0)","v":0},{"$f":"RANK(AT7,AT4:AT7)","v":1}]
[{"$f":"S7","v":"CAMEROUN"},null,null,{"$f":"S4","v":"BRESIL"},null,null,"EQUIPES QUALIFIEES",{"$f":"G4","v":"BRESIL"},null,null,null,null,{"$f":"G5","v":"CROATIE"},null,null,null,null,null,null,null,null,null,null,null,null,null,null,null,null,null,0,0,0,0,false,false,false,false,false,false,0,0,0,0]
[{"$f":"S5","v":"CROATIE"},null,null,{"$f":"S6","v":"MEXIQUE"},null,null,null,null,null,null,null,null,null,null,null,null,null,null,null,null,null,null,null,null,null,null,null,null,null,null,0,0,0,0,false,false,false,false,false,false,0,0,0,0]
["POULE  B",null,null,null,null,null,"CLASSEMENT",null,null,null,null,null,null,null,null,null,null,null,"CLASSEMENT"]
[]
["Equipes","Buts","Buts","Equipes",null,null,"Equipes","Rang","Pts","J","G","N","P","B +","B -","Diff",null,"R","Equipes","Rang","Pts","J","G","N","P","B +","B -","Diff","%","%","Pts","Pts","J","J","G","G","N","N","P","P","B +","B +","B -","B -","Equipes","%","R"]
[{"$f":"S13","v":"ESPAGNE"},null,null,{"$f":"S14","v":"PAYS - BAS"},null,null,{"$f":"VLOOKUP(Q13,R13:S16,2,0)","v":"ESPAGNE"},1,{"$f":"VLOOKUP(G13,S13:AB16,3,0)","v":0},{"$f":"VLOOKUP(G13,S13:AB16,4,0)","v":0},{"$f":"VLOOKUP(G13,S13:AB16,5,0)","v":0},{"$f":"VLOOKUP(G13,S13:AB16,6,0)","v":0},{"$f":"VLOOKUP(G13,S13:AB16,7,0)","v":0},{"$f":"VLOOKUP(G13,S13:AB16,8,0)","v":0},{"$f":"VLOOKUP(G13,S13:AB16,9,0)","v":0},{"$f":"VLOOKUP(G13,S13:AB16,10,0)","v":0},1,{"$f":"RANK(AD13,AD13:AD16)","v":1},"ESPAGNE",null,{"$f":"SUMPRODUCT((A13:A18=S13)*(AE13:AE18))+SUMPRODUCT((D13:D18=S13)*(AF13:AF18))","v":0},{"$f":"SUMPRODUCT((A13:A18=S13)*(AG13:AG18))+SUMPRODUCT((D13:D18=S13)*(AH13:AH18))","v":0},{"$f":"SUMPRODUCT((A13:A18=S13)*(AI13:AI18))+SUMPRODUCT((D13:D18=S13)*(AJ13:AJ18))","v":0},{"$f":"SUMPRODUCT((A13:A18=S13)*(AK13:AK18))+SUMPRODUCT((D13:D18=S13)*(AL13:AL18))","v":0},{"$f":"SUMPRODUCT((A13:A18=S13)*(AM13:AM18))+SUMPRODUCT((D13:D18=S13)*(AN13:AN18))","v":0},{"$f":"SUMPRODUCT((A13:A18=S13)*(AO13:AO18))+SUMPRODUCT((D13:D18=S13)*(AP13:AP18))","v":0},{"$f":"SUMPRODUCT((A13:A18=S13)*(AQ13:AQ18))+SUMPRODUCT((D13:D18=S13)*(AR13:AR18))","v":0},{"$f":"Z13-AA13","v":0},{"$f":"SUM(U13*1000+(AB13)/10+(Z13)/100)","v":0},{"$f":"AC13+0.0000004","v":3.9999999999999998E-7},{"$f":"IF(B13=\"\",0,IF(B13>C13,3,IF(B13=C13,1,IF(B13<C13,0))))","v":0},{"$f":"IF(C13=\"\",0,IF(C13>B13,3,IF(C13=B13,1,IF(C13<B13,0))))","v":0},{"$f":"IF(B13=\"\",0,1)","v":0},0,{"$f":"IF(B13<>\"\",IF(B13>C13,1))","v":false},{"$f":"IF(C13<>\"\",IF(C13>B13,1))","v":false},{"$f":"IF(B13<>\"\",IF(B13=C13,1))","v":false},{"$f":"IF(C13<>\"\",IF(C13=B13,1))","v":false},{"$f":"IF(B13<>\"\",IF(B13<C13,1))","v":false},{"$f":"IF(C13<>\"\",IF(C13<B13,1))","v":false},{"$f":"B13","v":0},0,{"$f":"C13","v":0},{"$f":"B13","v":0},{"$f":"VLOOKUP(Q13,R13:S16,2,0)","v":"ESPAGNE"},{"$f":"VLOOKUP(AS13,S13:AC16,11,0)","v":0},{"$f":"RANK(AT13,AT13:AT16)","v":1}]
[{"$f":"S15","v":"CHILI"},null,null,{"$f":"S16","v":"AUSTRALIE"},null,null,{"$f":"VLOOKUP(Q14,R13:S16,2,0)","v":"PAYS - BAS"},{"$f":"IF(AT14=AT13,AU13,AU14)","v":1},{"$f":"VLOOKUP(G14,S13:AB16,3,0)","v":0},{"$f":"VLOOKUP(G14,S13:AB16,4,0)","v":0},{"$f":"VLOOKUP(G14,S13:AB16,5,0)","v":0},{"$f":"VLOOKUP(G14,S13:AB16,6,0)","v":0},{"$f":"VLOOKUP(G14,S13:AB16,7,0)","v":0},{"$f":"VLOOKUP(G14,S13:AB16,8,0)","v":0},{"$f":"VLOOKUP(G14,S13:AB16,9,0)","v":0},{"$f":"VLOOKUP(G14,S13:AB16,10,0)","v":0},2,{"$f":"RANK(AD14,AD13:AD16)","v":2},"PAYS - BAS",null,{"$f":"SUMPRODUCT((A13:A18=S14)*(AE13:AE18))+SUMPRODUCT((D13:D18=S14)*(AF13:AF18))","v":0},{"$f":"SUMPRODUCT((A13:A18=S14)*(AG13:AG18))+SUMPRODUCT((D13:D18=S14)*(AH13:AH18))","v":0},{"$f":"SUMPRODUCT((A13:A18=S14)*(AI13:AI18))+SUMPRODUCT((D13:D18=S14)*(AJ13:AJ18))","v":0},{"$f":"SUMPRODUCT((A13:A18=S14)*(AK13:AK18))+SUMPRODUCT((D13:D18=S14)*(AL13:AL18))","v":0},{"$f":"SUMPRODUCT((A13:A18=S14)*(AM13:AM18))+SUMPRODUCT((D13:D18=S14)*(AN13:AN18))","v":0},{"$f":"SUMPRODUCT((A13:A18=S14)*(AO13:AO18))+SUMPRODUCT((D13:D18=S14)*(AP13:AP18))","v":0},{"$f":"SUMPRODUCT((A13:A18=S14)*(AQ13:AQ18))+SUMPRODUCT((D13:D18=S14)*(AR13:AR18))","v":0},{"$f":"Z14-AA14","v":0},{"$f":"SUM(U14*1000+(AB14)/10+(Z14)/100)","v":0},{"$f":"AC14+0.0000003","v":2.9999999999999999E-7},0,0,0,0,false,false,false,false,false,false,0,0,0,0,{"$f":"VLOOKUP(Q14,R13:S16,2,0)","v":"PAYS - BAS"},{"$f":"VLOOKUP(AS14,S13:AC16,11,0)","v":0},{"$f":"RANK(AT14,AT13:AT16)","v":1}]
[{"$f":"S13","v":"ESPAGNE"},null,null,{"$f":"S15","v":"CHILI"},null,null,{"$f":"VLOOKUP(Q15,R13:S16,2,0)","v":"CHILI"},{"$f":"IF(AT15=AT14,AU14,AU15)","v":1},{"$f":"VLOOKUP(G15,S13:AB16,3,0)","v":0},{"$f":"VLOOKUP(G15,S13:AB16,4,0)","v":0},{"$f":"VLOOKUP(G15,S13:AB16,5,0)","v":0},{"$f":"VLOOKUP(G15,S13:AB16,6,0)","v":0},{"$f":"VLOOKUP(G15,S13:AB16,7,0)","v":0},{"$f":"VLOOKUP(G15,S13:AB16,8,0)","v":0},{"$f":"VLOOKUP(G15,S13:AB16,9,0)","v":0},{"$f":"VLOOKUP(G15,S13:AB16,10,0)","v":0},3,{"$f":"RANK(AD15,AD13:AD16)","v":3},"CHILI",null,{"$f":"SUMPRODUCT((A13:A18=S15)*(AE13:AE18))+SUMPRODUCT((D13:D18=S15)*(AF13:AF18))","v":0},{"$f":"SUMPRODUCT((A13:A18=S15)*(AG13:AG18))+SUMPRODUCT((D13:D18=S15)*(AH13:AH18))","v":0},{"$f":"SUMPRODUCT((A13:A18=S15)*(AI13:AI18))+SUMPRODUCT((D13:D18=S15)*(AJ13:AJ18))","v":0},{"$f":"SUMPRODUCT((A13:A18=S15)*(AK13:AK18))+SUMPRODUCT((D13:D18=S15)*(AL13:AL18))","v":0},{"$f":"SUMPRODUCT((A13:A18=S15)*(AM13:AM18))+SUMPRODUCT((D13:D18=S15)*(AN13:AN18))","v":0},{"$f":"SUMPRODUCT((A13:A18=S15)*(AO13:AO18))+SUMPRODUCT((D13:D18=S15)*(AP13:AP18))","v":0},{"$f":"SUMPRODUCT((A13:A18=S15)*(AQ13:AQ18))+SUMPRODUCT((D13:D18=S15)*(AR13:AR18))","v":0},{"$f":"Z15-AA15","v":0},{"$f":"SUM(U15*1000+(AB15)/10+(Z15)/100)","v":0},{"$f":"AC15+0.0000002","v":1.9999999999999999E-7},0,0,0,0,false,false,false,false,false,false,0,0,0,0,{"$f":"VLOOKUP(Q15,R13:S16,2,0)","v":"CHILI"},{"$f":"VLOOKUP(AS15,S13:AC16,11,0)","v":0},{"$f":"RANK(AT15,AT13:AT16)","v":1}]
[{"$f":"S16","v":"AUSTRALIE"},null,null,{"$f":"S14","v":"PAYS - BAS"},null,null,{"$f":"VLOOKUP(Q16,R13:S16,2,0)","v":"AUSTRALIE"},{"$f":"IF(AT16=AT15,AU15,AU16)","v":1},{"$f":"VLOOKUP(G16,S13:AB16,3,0)","v":0},{"$f":"VLOOKUP(G16,S13:AB16,4,0)","v":0},{"$f":"VLOOKUP(G16,S13:AB16,5,0)","v":0},{"$f":"VLOOKUP(G16,S13:AB16,6,0)","v":0},{"$f":"VLOOKUP(G16,S13:AB16,7,0)","v":0},{"$f":"VLOOKUP(G16,S13:AB16,8,0)","v":0},{"$f":"VLOOKUP(G16,S13:AB16,9,0)","v":0},{"$f":"VLOOKUP(G16,S13:AB16,10,0)","v":0},4,{"$f":"RANK(AD16,AD13:AD16)","v":4},"AUSTRALIE",null,{"$f":"SUMPRODUCT((A13:A18=S16)*(AE13:AE18))+SUMPRODUCT((D13:D18=S16)*(AF13:AF18))","v":0},{"$f":"SUMPRODUCT((A13:A18=S16)*(AG13:AG18))+SUMPRODUCT((D13:D18=S16)*(AH13:AH18))","v":0},{"$f":"SUMPRODUCT((A13:A18=S16)*(AI13:AI18))+SUMPRODUCT((D13:D18=S16)*(AJ13:AJ18))","v":0},{"$f":"SUMPRODUCT((A13:A18=S16)*(AK13:AK18))+SUMPRODUCT((D13:D18=S16)*(AL13:AL18))","v":0},{"$f":"SUMPRODUCT((A13:A18=S16)*(AM13:AM18))+SUMPRODUCT((D13:D18=S16)*(AN13:AN18))","v":0},{"$f":"SUMPRODUCT((A13:A18=S16)*(AO13:AO18))+SUMPRODUCT((D13:D18=S16)*(AP13:AP18))","v":0},{"$f":"SUMPRODUCT((A13:A18=S16)*(AQ13:AQ18))+SUMPRODUCT((D13:D18=S16)*(AR13:AR18))","v":0},{"$f":"Z16-AA16","v":0},{"$f":"SUM(U16*1000+(AB16)/10+(Z16)/100)","v":0},{"$f":"AC16+0.0000001","v":9.9999999999999995E-8},0,0,0,0,false,false,false,false,false,false,0,0,0,0,{"$f":"VLOOKUP(Q16,R13:S16,2,0)","v":"AUSTRALIE"},{"$f":"VLOOKUP(AS16,S13:AC16,11,0)","v":0},{"$f":"RANK(AT16,AT13:AT16)","v":1}]
[{"$f":"S16","v":"AUSTRALIE"},null,null,{"$f":"S13","v":"ESPAGNE"},null,null,"EQUIPES QUALIFIEES",{"$f":"G13","v":"ESPAGNE"},null,null,null,null,{"$f":"G14","v":"PAYS - BAS"},null,null,null,null,null,null,null,null,null,null,null,null,null,null,null,null,null,0,0,0,0,false,false,false,false,false,false,0,0,0,0]
[{"$f":"S14","v":"PAYS - BAS"},null,null,{"$f":"S15","v":"CHILI"},null,null,null,null,null,null,null,null,null,null,null,null,null,null,null,null,null,null,null,null,null,null,null,null,null,null,0,0,0,0,false,false,false,false,false,false,0,0,0,0]
["POULE  C",null,null,null,null,null,"CLASSEMENT",null,null,null,null,null,null,null,null,null,null,null,"CLASSEMENT"]
[]
["Equipes","Buts","Buts","Equipes",null,null,"Equipes","Rang","Pts","J","G","N","P","B +","B -","Diff",null,"R","Equipes","Rang","Pts","J","G","N","P","B +","B -","Diff","%","%","Pts","Pts","J","J","G","G","N","N","P","P","B +","B +","B -","B -","Equipes","%","R"]
[{"$f":"S22","v":"COLOMBIE"},null,null,{"$f":"S23","v":"GRECE"},null,null,{"$f":"VLOOKUP(Q22,R22:S25,2,0)","v":"COLOMBIE"},1,{"$f":"VLOOKUP(G22,S22:AB25,3,0)","v":0},{"$f":"VLOOKUP(G22,S22:AB25,4,0)","v":0},{"$f":"VLOOKUP(G22,S22:AB25,5,0)","v":0},{"$f":"VLOOKUP(G22,S22:AB25,6,0)","v":0},{"$f":"VLOOKUP(G22,S22:AB25,7,0)","v":0},{"$f":"VLOOKUP(G22,S22:AB25,8,0)","v":0},{"$f":"VLOOKUP(G22,S22:AB25,9,0)","v":0},{"$f":"VLOOKUP(G22,S22:AB25,10,0)","v":0},1,{"$f":"RANK(AD22,AD22:AD25)","v":1},"COLOMBIE",null,{"$f":"SUMPRODUCT((A22:A27=S22)*(AE22:AE27))+SUMPRODUCT((D22:D27=S22)*(AF22:AF27))","v":0},{"$f":"SUMPRODUCT((A22:A27=S22)*(AG22:AG27))+SUMPRODUCT((D22:D27=S22)*(AH22:AH27))","v":0},{"$f":"SUMPRODUCT((A22:A27=S22)*(AI22:AI27))+SUMPRODUCT((D22:D27=S22)*(AJ22:AJ27))","v":0},{"$f":"SUMPRODUCT((A22:A27=S22)*(AK22:AK27))+SUMPRODUCT((D22:D27=S22)*(AL22:AL27))","v":0},{"$f":"SUMPRODUCT((A22:A27=S22)*(AM22:AM27))+SUMPRODUCT((D22:D27=S22)*(AN22:AN27))","v":0},{"$f":"SUMPRODUCT((A22:A27=S22)*(AO22:AO27))+SUMPRODUCT((D22:D27=S22)*(AP22:AP27))","v":0},{"$f":"SUMPRODUCT((A22:A27=S22)*(AQ22:AQ27))+SUMPRODUCT((D22:D27=S22)*(AR22:AR27))","v":0},{"$f":"Z22-AA22","v":0},{"$f":"SUM(U22*1000+(AB22)/10+(Z22)/100)","v":0},{"$f":"AC22+0.0000004","v":3.9999999999999998E-7},{"$f":"IF(B22=\"\",0,IF(B22>C22,3,IF(B22=C22,1,IF(B22<C22,0))))","v":0},{"$f":"IF(C22=\"\",0,IF(C22>B22,3,IF(C22=B22,1,IF(C22<B22,0))))","v":0},{"$f":"IF(B22=\"\",0,1)","v":0},0,{"$f":"IF(B22<>\"\",IF(B22>C22,1))","v":false},{"$f":"IF(C22<>\"\",IF(C22>B22,1))","v":false},{"$f":"IF(B22<>\"\",IF(B22=C22,1))","v":false},{"$f":"IF(C22<>\"\",IF(C22=B22,1))","v":false},{"$f":"IF(B22<>\"\",IF(B22<C22,1))","v":false},{"$f":"IF(C22<>\"\",IF(C22<B22,1))","v":false},{"$f":"B22","v":0},0,{"$f":"C22","v":0},{"$f":"B22","v":0},{"$f":"VLOOKUP(Q22,R22:S25,2,0)","v":"COLOMBIE"},{"$f":"VLOOKUP(AS22,S22:AC25,11,0)","v":0},{"$f":"RANK(AT22,AT22:AT25)","v":1}]
[{"$f":"S24","v":"CÔTE D'IVOIRE"},null,null,{"$f":"S25","v":"JAPON"},null,null,{"$f":"VLOOKUP(Q23,R22:S25,2,0)","v":"GRECE"},{"$f":"IF(AT23=AT22,AU22,AU23)","v":1},{"$f":"VLOOKUP(G23,S22:AB25,3,0)","v":0},{"$f":"VLOOKUP(G23,S22:AB25,4,0)","v":0},{"$f":"VLOOKUP(G23,S22:AB25,5,0)","v":0},{"$f":"VLOOKUP(G23,S22:AB25,6,0)","v":0},{"$f":"VLOOKUP(G23,S22:AB25,7,0)","v":0},{"$f":"VLOOKUP(G23,S22:AB25,8,0)","v":0},{"$f":"VLOOKUP(G23,S22:AB25,9,0)","v":0},{"$f":"VLOOKUP(G23,S22:AB25,10,0)","v":0},2,{"$f":"RANK(AD23,AD22:AD25)","v":2},"GRECE",null,{"$f":"SUMPRODUCT((A22:A27=S23)*(AE22:AE27))+SUMPRODUCT((D22:D27=S23)*(AF22:AF27))","v":0},{"$f":"SUMPRODUCT((A22:A27=S23)*(AG22:AG27))+SUMPRODUCT((D22:D27=S23)*(AH22:AH27))","v":0},{"$f":"SUMPRODUCT((A22:A27=S23)*(AI22:AI27))+SUMPRODUCT((D22:D27=S23)*(AJ22:AJ27))","v":0},{"$f":"SUMPRODUCT((A22:A27=S23)*(AK22:AK27))+SUMPRODUCT((D22:D27=S23)*(AL22:AL27))","v":0},{"$f":"SUMPRODUCT((A22:A27=S23)*(AM22:AM27))+SUMPRODUCT((D22:D27=S23)*(AN22:AN27))","v":0},{"$f":"SUMPRODUCT((A22:A27=S23)*(AO22:AO27))+SUMPRODUCT((D22:D27=S23)*(AP22:AP27))","v":0},{"$f":"SUMPRODUCT((A22:A27=S23)*(AQ22:AQ27))+SUMPRODUCT((D22:D27=S23)*(AR22:AR27))","v":0},{"$f":"Z23-AA23","v":0},{"$f":"SUM(U23*1000+(AB23)/10+(Z23)/100)","v":0},{"$f":"AC23+0.0000003","v":2.9999999999999999E-7},0,0,0,0,false,false,false,false,false,false,0,0,0,0,{"$f":"VLOOKUP(Q23,R22:S25,2,0)","v":"GRECE"},{"$f":"VLOOKUP(AS23,S22:AC25,11,0)","v":0},{"$f":"RANK(AT23,AT22:AT25)","v":1}]
[{"$f":"S22","v":"COLOMBIE"},null,null,{"$f":"S24","v":"CÔTE D'IVOIRE"},null,null,{"$f":"VLOOKUP(Q24,R22:S25,2,0)","v":"CÔTE D'IVOIRE"},{"$f":"IF(AT24=AT23,AU23,AU24)","v":1},{"$f":"VLOOKUP(G24,S22:AB25,3,0)","v":0},{"$f":"VLOOKUP(G24,S22:AB25,4,0)","v":0},{"$f":"VLOOKUP(G24,S22:AB25,5,0)","v":0},{"$f":"VLOOKUP(G24,S22:AB25,6,0)","v":0},{"$f":"VLOOKUP(G24,S22:AB25,7,0)","v":0},{"$f":"VLOOKUP(G24,S22:AB25,8,0)","v":0},{"$f":"VLOOKUP(G24,S22:AB25,9,0)","v":0},{"$f":"VLOOKUP(G24,S22:AB25,10,0)","v":0},3,{"$f":"RANK(AD24,AD22:AD25)","v":3},"CÔTE D'IVOIRE",null,{"$f":"SUMPRODUCT((A22:A27=S24)*(AE22:AE27))+SUMPRODUCT((D22:D27=S24)*(AF22:AF27))","v":0},{"$f":"SUMPRODUCT((A22:A27=S24)*(AG22:AG27))+SUMPRODUCT((D22:D27=S24)*(AH22:AH27))","v":0},{"$f":"SUMPRODUCT((A22:A27=S24)*(AI22:AI27))+SUMPRODUCT((D22:D27=S24)*(AJ22:AJ27))","v":0},{"$f":"SUMPRODUCT((A22:A27=S24)*(AK22:AK27))+SUMPRODUCT((D22:D27=S24)*(AL22:AL27))","v":0},{"$f":"SUMPRODUCT((A22:A27=S24)*(AM22:AM27))+SUMPRODUCT((D22:D27=S24)*(AN22:AN27))","v":0},{"$f":"SUMPRODUCT((A22:A27=S24)*(AO22:AO27))+SUMPRODUCT((D22:D27=S24)*(AP22:AP27))","v":0},{"$f":"SUMPRODUCT((A22:A27=S24)*(AQ22:AQ27))+SUMPRODUCT((D22:D27=S24)*(AR22:AR27))","v":0},{"$f":"Z24-AA24","v":0},{"$f":"SUM(U24*1000+(AB24)/10+(Z24)/100)","v":0},{"$f":"AC24+0.0000002","v":1.9999999999999999E-7},0,0,0,0,false,false,false,false,false,false,0,0,0,0,{"$f":"VLOOKUP(Q24,R22:S25,2,0)","v":"CÔTE D'IVOIRE"},{"$f":"VLOOKUP(AS24,S22:AC25,11,0)","v":0},{"$f":"RANK(AT24,AT22:AT25)","v":1}]
[{"$f":"S25","v":"JAPON"},null,null,{"$f":"S23","v":"GRECE"},null,null,{"$f":"VLOOKUP(Q25,R22:S25,2,0)","v":"JAPON"},{"$f":"IF(AT25=AT24,AU24,AU25)","v":1},{"$f":"VLOOKUP(G25,S22:AB25,3,0)","v":0},{"$f":"VLOOKUP(G25,S22:AB25,4,0)","v":0},{"$f":"VLOOKUP(G25,S22:AB25,5,0)","v":0},{"$f":"VLOOKUP(G25,S22:AB25,6,0)","v":0},{"$f":"VLOOKUP(G25,S22:AB25,7,0)","v":0},{"$f":"VLOOKUP(G25,S22:AB25,8,0)","v":0},{"$f":"VLOOKUP(G25,S22:AB25,9,0)","v":0},{"$f":"VLOOKUP(G25,S22:AB25,10,0)","v":0},4,{"$f":"RANK(AD25,AD22:AD25)","v":4},"JAPON",null,{"$f":"SUMPRODUCT((A22:A27=S25)*(AE22:AE27))+SUMPRODUCT((D22:D27=S25)*(AF22:AF27))","v":0},{"$f":"SUMPRODUCT((A22:A27=S25)*(AG22:AG27))+SUMPRODUCT((D22:D27=S25)*(AH22:AH27))","v":0},{"$f":"SUMPRODUCT((A22:A27=S25)*(AI22:AI27))+SUMPRODUCT((D22:D27=S25)*(AJ22:AJ27))","v":0},{"$f":"SUMPRODUCT((A22:A27=S25)*(AK22:AK27))+SUMPRODUCT((D22:D27=S25)*(AL22:AL27))","v":0},{"$f":"SUMPRODUCT((A22:A27=S25)*(AM22:AM27))+SUMPRODUCT((D22:D27=S25)*(AN22:AN27))","v":0},{"$f":"SUMPRODUCT((A22:A27=S25)*(AO22:AO27))+SUMPRODUCT((D22:D27=S25)*(AP22:AP27))","v":0},{"$f":"SUMPRODUCT((A22:A27=S25)*(AQ22:AQ27))+SUMPRODUCT((D22:D27=S25)*(AR22:AR27))","v":0},{"$f":"Z25-AA25","v":0},{"$f":"SUM(U25*1000+(AB25)/10+(Z25)/100)","v":0},{"$f":"AC25+0.0000001","v":9.9999999999999995E-8},0,0,0,0,false,false,false,false,false,false,0,0,0,0,{"$f":"VLOOKUP(Q25,R22:S25,2,0)","v":"JAPON"},{"$f":"VLOOKUP(AS25,S22:AC25,11,0)","v":0},{"$f":"RANK(AT25,AT22:AT25)","v":1}]
[{"$f":"S25","v":"JAPON"},null,null,{"$f":"S22","v":"COLOMBIE"},null,null,"EQUIPES QUALIFIEES",{"$f":"G22","v":"COLOMBIE"},null,null,null,null,{"$f":"G23","v":"GRECE"},null,null,null,null,null,null,null,null,null,null,null,null,null,null,null,null,null,0,0,0,0,false,false,false,false,false,false,0,0,0,0]
[{"$f":"S23","v":"GRECE"},null,null,{"$f":"S24","v":"CÔTE D'IVOIRE"},null,null,null,null,null,null,null,null,null,null,null,null,null,null,null,null,null,null,null,null,null,null,null,null,null,null,0,0,0,0,false,false,false,false,false,false,0,0,0,0]
["POULE  D",null,null,null,null,null,"CLASSEMENT",null,null,null,null,null,null,null,null,null,null,null,"CLASSEMENT"]
[]
["Equipes","Buts","Buts","Equipes",null,null,"Equipes","Rang","Pts","J","G","N","P","B +","B -","Diff",null,"R","Equipes","Rang","Pts","J","G","N","P","B +","B -","Diff","%","%","Pts","Pts","J","J","G","G","N","N","P","P","B +","B +","B -","B -","Equipes","%","R"]
[{"$f":"S31","v":"URUGUAY"},null,null,{"$f":"S32","v":"COSTA RICA"},null,null,{"$f":"VLOOKUP(Q31,R31:S34,2,0)","v":"URUGUAY"},1,{"$f":"VLOOKUP(G31,S31:AB34,3,0)","v":0},{"$f":"VLOOKUP(G31,S31:AB34,4,0)","v":0},{"$f":"VLOOKUP(G31,S31:AB34,5,0)","v":0},{"$f":"VLOOKUP(G31,S31:AB34,6,0)","v":0},{"$f":"VLOOKUP(G31,S31:AB34,7,0)","v":0},{"$f":"VLOOKUP(G31,S31:AB34,8,0)","v":0},{"$f":"VLOOKUP(G31,S31:AB34,9,0)","v":0},{"$f":"VLOOKUP(G31,S31:AB34,10,0)","v":0},1,{"$f":"RANK(AD31,AD31:AD34)","v":1},"URUGUAY",null,{"$f":"SUMPRODUCT((A31:A36=S31)*(AE31:AE36))+SUMPRODUCT((D31:D36=S31)*(AF31:AF36))","v":0},{"$f":"SUMPRODUCT((A31:A36=S31)*(AG31:AG36))+SUMPRODUCT((D31:D36=S31)*(AH31:AH36))","v":0},{"$f":"SUMPRODUCT((A31:A36=S31)*(AI31:AI36))+SUMPRODUCT((D31:D36=S31)*(AJ31:AJ36))","v":0},{"$f":"SUMPRODUCT((A31:A36=S31)*(AK31:AK36))+SUMPRODUCT((D31:D36=S31)*(AL31:AL36))","v":0},{"$f":"SUMPRODUCT((A31:A36=S31)*(AM31:AM36))+SUMPRODUCT((D31:D36=S31)*(AN31:AN36))","v":0},{"$f":"SUMPRODUCT((A31:A36=S31)*(AO31:AO36))+SUMPRODUCT((D31:D36=S31)*(AP31:AP36))","v":0},{"$f":"SUMPRODUCT((A31:A36=S31)*(AQ31:AQ36))+SUMPRODUCT((D31:D36=S31)*(AR31:AR36))","v":0},{"$f":"Z31-AA31","v":0},{"$f":"SUM(U31*1000+(AB31)/10+(Z31)/100)","v":0},{"$f":"AC31+0.0000004","v":3.9999999999999998E-7},{"$f":"IF(B31=\"\",0,IF(B31>C31,3,IF(B31=C31,1,IF(B31<C31,0))))","v":0},{"$f":"IF(C31=\"\",0,IF(C31>B31,3,IF(C31=B31,1,IF(C31<B31,0))))","v":0},{"$f":"IF(B31=\"\",0,1)","v":0},0,{"$f":"IF(B31<>\"\",IF(B31>C31,1))","v":false},{"$f":"IF(C31<>\"\",IF(C31>B31,1))","v":false},{"$f":"IF(B31<>\"\",IF(B31=C31,1))","v":false},{"$f":"IF(C31<>\"\",IF(C31=B31,1))","v":false},{"$f":"IF(B31<>\"\",IF(B31<C31,1))","v":false},{"$f":"IF(C31<>\"\",IF(C31<B31,1))","v":false},{"$f":"B31","v":0},0,{"$f":"C31","v":0},{"$f":"B31","v":0},{"$f":"VLOOKUP(Q31,R31:S34,2,0)","v":"URUGUAY"},{"$f":"VLOOKUP(AS31,S31:AC34,11,0)","v":0},{"$f":"RANK(AT31,AT31:AT34)","v":1}]
[{"$f":"S33","v":"ANGLETERRE"},null,null,{"$f":"S34","v":"ITALIE"},null,null,{"$f":"VLOOKUP(Q32,R31:S34,2,0)","v":"COSTA RICA"},{"$f":"IF(AT32=AT31,AU31,AU32)","v":1},{"$f":"VLOOKUP(G32,S31:AB34,3,0)","v":0},{"$f":"VLOOKUP(G32,S31:AB34,4,0)","v":0},{"$f":"VLOOKUP(G32,S31:AB34,5,0)","v":0},{"$f":"VLOOKUP(G32,S31:AB34,6,0)","v":0},{"$f":"VLOOKUP(G32,S31:AB34,7,0)","v":0},{"$f":"VLOOKUP(G32,S31:AB34,8,0)","v":0},{"$f":"VLOOKUP(G32,S31:AB34,9,0)","v":0},{"$f":"VLOOKUP(G32,S31:AB34,10,0)","v":0},2,{"$f":"RANK(AD32,AD31:AD34)","v":2},"COSTA RICA",null,{"$f":"SUMPRODUCT((A31:A36=S32)*(AE31:AE36))+SUMPRODUCT((D31:D36=S32)*(AF31:AF36))","v":0},{"$f":"SUMPRODUCT((A31:A36=S32)*(AG31:AG36))+SUMPRODUCT((D31:D36=S32)*(AH31:AH36))","v":0},{"$f":"SUMPRODUCT((A31:A36=S32)*(AI31:AI36))+SUMPRODUCT((D31:D36=S32)*(AJ31:AJ36))","v":0},{"$f":"SUMPRODUCT((A31:A36=S32)*(AK31:AK36))+SUMPRODUCT((D31:D36=S32)*(AL31:AL36))","v":0},{"$f":"SUMPRODUCT((A31:A36=S32)*(AM31:AM36))+SUMPRODUCT((D31:D36=S32)*(AN31:AN36))","v":0},{"$f":"SUMPRODUCT((A31:A36=S32)*(AO31:AO36))+SUMPRODUCT((D31:D36=S32)*(AP31:AP36))","v":0},{"$f":"SUMPRODUCT((A31:A36=S32)*(AQ31:AQ36))+SUMPRODUCT((D31:D36=S32)*(AR31:AR36))","v":0},{"$f":"Z32-AA32","v":0},{"$f":"SUM(U32*1000+(AB32)/10+(Z32)/100)","v":0},{"$f":"AC32+0.0000003","v":2.9999999999999999E-7},0,0,0,0,false,false,false,false,false,false,0,0,0,0,{"$f":"VLOOKUP(Q32,R31:S34,2,0)","v":"COSTA RICA"},{"$f":"VLOOKUP(AS32,S31:AC34,11,0)","v":0},{"$f":"RANK(AT32,AT31:AT34)","v":1}]
[{"$f":"S31","v":"URUGUAY"},null,null,{"$f":"S33","v":"ANGLETERRE"},null,null,{"$f":"VLOOKUP(Q33,R31:S34,2,0)","v":"ANGLETERRE"},{"$f":"IF(AT33=AT32,AU32,AU33)","v":1},{"$f":"VLOOKUP(G33,S31:AB34,3,0)","v":0},{"$f":"VLOOKUP(G33,S31:AB34,4,0)","v":0},{"$f":"VLOOKUP(G33,S31:AB34,5,0)","v":0},{"$f":"VLOOKUP(G33,S31:AB34,6,0)","v":0},{"$f":"VLOOKUP(G33,S31:AB34,7,0)","v":0},{"$f":"VLOOKUP(G33,S31:AB34,8,0)","v":0},{"$f":"VLOOKUP(G33,S31:AB34,9,0)","v":0},{"$f":"VLOOKUP(G33,S31:AB34,10,0)","v":0},3,{"$f":"RANK(AD33,AD31:AD34)","v":3},"ANGLETERRE",null,{"$f":"SUMPRODUCT((A31:A36=S33)*(AE31:AE36))+SUMPRODUCT((D31:D36=S33)*(AF31:AF36))","v":0},{"$f":"SUMPRODUCT((A31:A36=S33)*(AG31:AG36))+SUMPRODUCT((D31:D36=S33)*(AH31:AH36))","v":0},{"$f":"SUMPRODUCT((A31:A36=S33)*(AI31:AI36))+SUMPRODUCT((D31:D36=S33)*(AJ31:AJ36))","v":0},{"$f":"SUMPRODUCT((A31:A36=S33)*(AK31:AK36))+SUMPRODUCT((D31:D36=S33)*(AL31:AL36))","v":0},{"$f":"SUMPRODUCT((A31:A36=S33)*(AM31:AM36))+SUMPRODUCT((D31:D36=S33)*(AN31:AN36))","v":0},{"$f":"SUMPRODUCT((A31:A36=S33)*(AO31:AO36))+SUMPRODUCT((D31:D36=S33)*(AP31:AP36))","v":0},{"$f":"SUMPRODUCT((A31:A36=S33)*(AQ31:AQ36))+SUMPRODUCT((D31:D36=S33)*(AR31:AR36))","v":0},{"$f":"Z33-AA33","v":0},{"$f":"SUM(U33*1000+(AB33)/10+(Z33)/100)","v":0},{"$f":"AC33+0.0000002","v":1.9999999999999999E-7},0,0,0,0,false,false,false,false,false,false,0,0,0,0,{"$f":"VLOOKUP(Q33,R31:S34,2,0)","v":"ANGLETERRE"},{"$f":"VLOOKUP(AS33,S31:AC34,11,0)","v":0},{"$f":"RANK(AT33,AT31:AT34)","v":1}]
[{"$f":"S34","v":"ITALIE"},null,null,{"$f":"S32","v":"COSTA RICA"},null,null,{"$f":"VLOOKUP(Q34,R31:S34,2,0)","v":"ITALIE"},{"$f":"IF(AT34=AT33,AU33,AU34)","v":1},{"$f":"VLOOKUP(G34,S31:AB34,3,0)","v":0},{"$f":"VLOOKUP(G34,S31:AB34,4,0)","v":0},{"$f":"VLOOKUP(G34,S31:AB34,5,0)","v":0},{"$f":"VLOOKUP(G34,S31:AB34,6,0)","v":0},{"$f":"VLOOKUP(G34,S31:AB34,7,0)","v":0},{"$f":"VLOOKUP(G34,S31:AB34,8,0)","v":0},{"$f":"VLOOKUP(G34,S31:AB34,9,0)","v":0},{"$f":"VLOOKUP(G34,S31:AB34,10,0)","v":0},4,{"$f":"RANK(AD34,AD31:AD34)","v":4},"ITALIE",null,{"$f":"SUMPRODUCT((A31:A36=S34)*(AE31:AE36))+SUMPRODUCT((D31:D36=S34)*(AF31:AF36))","v":0},{"$f":"SUMPRODUCT((A31:A36=S34)*(AG31:AG36))+SUMPRODUCT((D31:D36=S34)*(AH31:AH36))","v":0},{"$f":"SUMPRODUCT((A31:A36=S34)*(AI31:AI36))+SUMPRODUCT((D31:D36=S34)*(AJ31:AJ36))","v":0},{"$f":"SUMPRODUCT((A31:A36=S34)*(AK31:AK36))+SUMPRODUCT((D31:D36=S34)*(AL31:AL36))","v":0},{"$f":"SUMPRODUCT((A31:A36=S34)*(AM31:AM36))+SUMPRODUCT((D31:D36=S34)*(AN31:AN36))","v":0},{"$f":"SUMPRODUCT((A31:A36=S34)*(AO31:AO36))+SUMPRODUCT((D31:D36=S34)*(AP31:AP36))","v":0},{"$f":"SUMPRODUCT((A31:A36=S34)*(AQ31:AQ36))+SUMPRODUCT((D31:D36=S34)*(AR31:AR36))","v":0},{"$f":"Z34-AA34","v":0},{"$f":"SUM(U34*1000+(AB34)/10+(Z34)/100)","v":0},{"$f":"AC34+0.0000001","v":9.9999999999999995E-8},0,0,0,0,false,false,false,false,false,false,0,0,0,0,{"$f":"VLOOKUP(Q34,R31:S34,2,0)","v":"ITALIE"},{"$f":"VLOOKUP(AS34,S31:AC34,11,0)","v":0},{"$f":"RANK(AT34,AT31:AT34)","v":1}]
[{"$f":"S34","v":"ITALIE"},null,null,{"$f":"S31","v":"URUGUAY"},null,null,"EQUIPES QUALIFIEES",{"$f":"G31","v":"URUGUAY"},null,null,null,null,{"$f":"G32","v":"COSTA RICA"},null,null,null,null,null,null,null,null,null,null,null,null,null,null,null,null,null,0,0,0,0,false,false,false,false,false,false,0,0,0,0]
[{"$f":"S32","v":"COSTA RICA"},null,null,{"$f":"S33","v":"ANGLETERRE"},null,null,null,null,null,null,null,null,null,null,null,null,null,null,null,null,null,null,null,null,null,null,null,null,null,null,0,0,0,0,false,false,false,false,false,false,0,0,0,0]
["POULE  E",null,null,null,null,null,"CLASSEMENT",null,null,null,null,null,null,null,null,null,null,null,"CLASSEMENT"]
[]
["Equipes","Buts","Buts","Equipes",null,null,"Equipes","Rang","Pts","J","G","N","P","B +","B -","Diff",null,"R","Equipes","Rang","Pts","J","G","N","P","B +","B -","Diff","%","%","Pts","Pts","J","J","G","G","N","N","P","P","B +","B +","B -","B -","Equipes","%","R"]
[{"$f":"S40","v":"SUISSE"},null,null,{"$f":"S41","v":"EQUATEUR"},null,null,{"$f":"VLOOKUP(Q40,R40:S43,2,0)","v":"SUISSE"},1,{"$f":"VLOOKUP(G40,S40:AB43,3,0)","v":0},{"$f":"VLOOKUP(G40,S40:AB43,4,0)","v":0},{"$f":"VLOOKUP(G40,S40:AB43,5,0)","v":0},{"$f":"VLOOKUP(G40,S40:AB43,6,0)","v":0},{"$f":"VLOOKUP(G40,S40:AB43,7,0)","v":0},{"$f":"VLOOKUP(G40,S40:AB43,8,0)","v":0},{"$f":"VLOOKUP(G40,S40:AB43,9,0)","v":0},{"$f":"VLOOKUP(G40,S40:AB43,10,0)","v":0},1,{"$f":"RANK(AD40,AD40:AD43)","v":1},"SUISSE",null,{"$f":"SUMPRODUCT((A40:A45=S40)*(AE40:AE45))+SUMPRODUCT((D40:D45=S40)*(AF40:AF45))","v":0},{"$f":"SUMPRODUCT((A40:A45=S40)*(AG40:AG45))+SUMPRODUCT((D40:D45=S40)*(AH40:AH45))","v":0},{"$f":"SUMPRODUCT((A40:A45=S40)*(AI40:AI45))+SUMPRODUCT((D40:D45=S40)*(AJ40:AJ45))","v":0},{"$f":"SUMPRODUCT((A40:A45=S40)*(AK40:AK45))+SUMPRODUCT((D40:D45=S40)*(AL40:AL45))","v":0},{"$f":"SUMPRODUCT((A40:A45=S40)*(AM40:AM45))+SUMPRODUCT((D40:D45=S40)*(AN40:AN45))","v":0},{"$f":"SUMPRODUCT((A40:A45=S40)*(AO40:AO45))+SUMPRODUCT((D40:D45=S40)*(AP40:AP45))","v":0},{"$f":"SUMPRODUCT((A40:A45=S40)*(AQ40:AQ45))+SUMPRODUCT((D40:D45=S40)*(AR40:AR45))","v":0},{"$f":"Z40-AA40","v":0},{"$f":"SUM(U40*1000+(AB40)/10+(Z40)/100)","v":0},{"$f":"AC40+0.0000004","v":3.9999999999999998E-7},{"$f":"IF(B40=\"\",0,IF(B40>C40,3,IF(B40=C40,1,IF(B40<C40,0))))","v":0},{"$f":"IF(C40=\"\",0,IF(C40>B40,3,IF(C40=B40,1,IF(C40<B40,0))))","v":0},{"$f":"IF(B40=\"\",0,1)","v":0},0,{"$f":"IF(B40<>\"\",IF(B40>C40,1))","v":false},{"$f":"IF(C40<>\"\",IF(C40>B40,1))","v":false},{"$f":"IF(B40<>\"\",IF(B40=C40,1))","v":false},{"$f":"IF(C40<>\"\",IF(C40=B40,1))","v":false},{"$f":"IF(B40<>\"\",IF(B40<C40,1))","v":false},{"$f":"IF(C40<>\"\",IF(C40<B40,1))","v":false},{"$f":"B40","v":0},0,{"$f":"C40","v":0},{"$f":"B40","v":0},{"$f":"VLOOKUP(Q40,R40:S43,2,0)","v":"SUISSE"},{"$f":"VLOOKUP(AS40,S40:AC43,11,0)","v":0},{"$f":"RANK(AT40,AT40:AT43)","v":1}]
[{"$f":"S42","v":"FRANCE"},null,null,{"$f":"S43","v":"HONDURAS"},null,null,{"$f":"VLOOKUP(Q41,R40:S43,2,0)","v":"EQUATEUR"},{"$f":"IF(AT41=AT40,AU40,AU41)","v":1},{"$f":"VLOOKUP(G41,S40:AB43,3,0)","v":0},{"$f":"VLOOKUP(G41,S40:AB43,4,0)","v":0},{"$f":"VLOOKUP(G41,S40:AB43,5,0)","v":0},{"$f":"VLOOKUP(G41,S40:AB43,6,0)","v":0},{"$f":"VLOOKUP(G41,S40:AB43,7,0)","v":0},{"$f":"VLOOKUP(G41,S40:AB43,8,0)","v":0},{"$f":"VLOOKUP(G41,S40:AB43,9,0)","v":0},{"$f":"VLOOKUP(G41,S40:AB43,10,0)","v":0},2,{"$f":"RANK(AD41,AD40:AD43)","v":2},"EQUATEUR",null,{"$f":"SUMPRODUCT((A40:A45=S41)*(AE40:AE45))+SUMPRODUCT((D40:D45=S41)*(AF40:AF45))","v":0},{"$f":"SUMPRODUCT((A40:A45=S41)*(AG40:AG45))+SUMPRODUCT((D40:D45=S41)*(AH40:AH45))","v":0},{"$f":"SUMPRODUCT((A40:A45=S41)*(AI40:AI45))+SUMPRODUCT((D40:D45=S41)*(AJ40:AJ45))","v":0},{"$f":"SUMPRODUCT((A40:A45=S41)*(AK40:AK45))+SUMPRODUCT((D40:D45=S41)*(AL40:AL45))","v":0},{"$f":"SUMPRODUCT((A40:A45=S41)*(AM40:AM45))+SUMPRODUCT((D40:D45=S41)*(AN40:AN45))","v":0},{"$f":"SUMPRODUCT((A40:A45=S41)*(AO40:AO45))+SUMPRODUCT((D40:D45=S41)*(AP40:AP45))","v":0},{"$f":"SUMPRODUCT((A40:A45=S41)*(AQ40:AQ45))+SUMPRODUCT((D40:D45=S41)*(AR40:AR45))","v":0},{"$f":"Z41-AA41","v":0},{"$f":"SUM(U41*1000+(AB41)/10+(Z41)/100)","v":0},{"$f":"AC41+0.0000003","v":2.9999999999999999E-7},0,0,0,0,false,false,false,false,false,false,0,0,0,0,{"$f":"VLOOKUP(Q41,R40:S43,2,0)","v":"EQUATEUR"},{"$f":"VLOOKUP(AS41,S40:AC43,11,0)","v":0},{"$f":"RANK(AT41,AT40:AT43)","v":1}]
[{"$f":"S40","v":"SUISSE"},null,null,{"$f":"S42","v":"FRANCE"},null,null,{"$f":"VLOOKUP(Q42,R40:S43,2,0)","v":"FRANCE"},{"$f":"IF(AT42=AT41,AU41,AU42)","v":1},{"$f":"VLOOKUP(G42,S40:AB43,3,0)","v":0},{"$f":"VLOOKUP(G42,S40:AB43,4,0)","v":0},{"$f":"VLOOKUP(G42,S40:AB43,5,0)","v":0},{"$f":"VLOOKUP(G42,S40:AB43,6,0)","v":0},{"$f":"VLOOKUP(G42,S40:AB43,7,0)","v":0},{"$f":"VLOOKUP(G42,S40:AB43,8,0)","v":0},{"$f":"VLOOKUP(G42,S40:AB43,9,0)","v":0},{"$f":"VLOOKUP(G42,S40:AB43,10,0)","v":0},3,{"$f":"RANK(AD42,AD40:AD43)","v":3},"FRANCE",null,{"$f":"SUMPRODUCT((A40:A45=S42)*(AE40:AE45))+SUMPRODUCT((D40:D45=S42)*(AF40:AF45))","v":0},{"$f":"SUMPRODUCT((A40:A45=S42)*(AG40:AG45))+SUMPRODUCT((D40:D45=S42)*(AH40:AH45))","v":0},{"$f":"SUMPRODUCT((A40:A45=S42)*(AI40:AI45))+SUMPRODUCT((D40:D45=S42)*(AJ40:AJ45))","v":0},{"$f":"SUMPRODUCT((A40:A45=S42)*(AK40:AK45))+SUMPRODUCT((D40:D45=S42)*(AL40:AL45))","v":0},{"$f":"SUMPRODUCT((A40:A45=S42)*(AM40:AM45))+SUMPRODUCT((D40:D45=S42)*(AN40:AN45))","v":0},{"$f":"SUMPRODUCT((A40:A45=S42)*(AO40:AO45))+SUMPRODUCT((D40:D45=S42)*(AP40:AP45))","v":0},{"$f":"SUMPRODUCT((A40:A45=S42)*(AQ40:AQ45))+SUMPRODUCT((D40:D45=S42)*(AR40:AR45))","v":0},{"$f":"Z42-AA42","v":0},{"$f":"SUM(U42*1000+(AB42)/10+(Z42)/100)","v":0},{"$f":"AC42+0.0000002","v":1.9999999999999999E-7},0,0,0,0,false,false,false,false,false,false,0,0,0,0,{"$f":"VLOOKUP(Q42,R40:S43,2,0)","v":"FRANCE"},{"$f":"VLOOKUP(AS42,S40:AC43,11,0)","v":0},{"$f":"RANK(AT42,AT40:AT43)","v":1}]
[{"$f":"S43","v":"HONDURAS"},null,null,{"$f":"S41","v":"EQUATEUR"},null,null,{"$f":"VLOOKUP(Q43,R40:S43,2,0)","v":"HONDURAS"},{"$f":"IF(AT43=AT42,AU42,AU43)","v":1},{"$f":"VLOOKUP(G43,S40:AB43,3,0)","v":0},{"$f":"VLOOKUP(G43,S40:AB43,4,0)","v":0},{"$f":"VLOOKUP(G43,S40:AB43,5,0)","v":0},{"$f":"VLOOKUP(G43,S40:AB43,6,0)","v":0},{"$f":"VLOOKUP(G43,S40:AB43,7,0)","v":0},{"$f":"VLOOKUP(G43,S40:AB43,8,0)","v":0},{"$f":"VLOOKUP(G43,S40:AB43,9,0)","v":0},{"$f":"VLOOKUP(G43,S40:AB43,10,0)","v":0},4,{"$f":"RANK(AD43,AD40:AD43)","v":4},"HONDURAS",null,{"$f":"SUMPRODUCT((A40:A45=S43)*(AE40:AE45))+SUMPRODUCT((D40:D45=S43)*(AF40:AF45))","v":0},{"$f":"SUMPRODUCT((A40:A45=S43)*(AG40:AG45))+SUMPRODUCT((D40:D45=S43)*(AH40:AH45))","v":0},{"$f":"SUMPRODUCT((A40:A45=S43)*(AI40:AI45))+SUMPRODUCT((D40:D45=S43)*(AJ40:AJ45))","v":0},{"$f":"SUMPRODUCT((A40:A45=S43)*(AK40:AK45))+SUMPRODUCT((D40:D45=S43)*(AL40:AL45))","v":0},{"$f":"SUMPRODUCT((A40:A45=S43)*(AM40:AM45))+SUMPRODUCT((D40:D45=S43)*(AN40:AN45))","v":0},{"$f":"SUMPRODUCT((A40:A45=S43)*(AO40:AO45))+SUMPRODUCT((D40:D45=S43)*(AP40:AP45))","v":0},{"$f":"SUMPRODUCT((A40:A45=S43)*(AQ40:AQ45))+SUMPRODUCT((D40:D45=S43)*(AR40:AR45))","v":0},{"$f":"Z43-AA43","v":0},{"$f":"SUM(U43*1000+(AB43)/10+(Z43)/100)","v":0},{"$f":"AC43+0.0000001","v":9.9999999999999995E-8},0,0,0,0,false,false,false,false,false,false,0,0,0,0,{"$f":"VLOOKUP(Q43,R40:S43,2,0)","v":"HONDURAS"},{"$f":"VLOOKUP(AS43,S40:AC43,11,0)","v":0},{"$f":"RANK(AT43,AT40:AT43)","v":1}]
[{"$f":"S43","v":"HONDURAS"},null,null,{"$f":"S40","v":"SUISSE"},null,null,"EQUIPES QUALIFIEES",{"$f":"G40","v":"SUISSE"},null,null,null,null,{"$f":"G41","v":"EQUATEUR"},null,null,null,null,null,null,null,null,null,null,null,null,null,null,null,null,null,0,0,0,0,false,false,false,false,false,false,0,0,0,0]
[{"$f":"S41","v":"EQUATEUR"},null,null,{"$f":"S42","v":"FRANCE"},null,null,null,null,null,null,null,null,null,null,null,null,null,null,null,null,null,null,null,null,null,null,null,null,null,null,0,0,0,0,false,false,false,false,false,false,0,0,0,0]
["POULE  F",null,null,null,null,null,"CLASSEMENT",null,null,null,null,null,null,null,null,null,null,null,"CLASSEMENT"]
[]
["Equipes","Buts","Buts","Equipes",null,null,"Equipes","Rang","Pts","J","G","N","P","B +","B -","Diff",null,"R","Equipes","Rang","Pts","J","G","N","P","B +","B -","Diff","%","%","Pts","Pts","J","J","G","G","N","N","P","P","B +","B +","B -","B -","Equipes","%","R"]
[{"$f":"S49","v":"ARGENTINE"},null,null,{"$f":"S50","v":"BOSNIE - HERZEGOVINE"},null,null,{"$f":"VLOOKUP(Q49,R49:S52,2,0)","v":"ARGENTINE"},1,{"$f":"VLOOKUP(G49,S49:AB52,3,0)","v":0},{"$f":"VLOOKUP(G49,S49:AB52,4,0)","v":0},{"$f":"VLOOKUP(G49,S49:AB52,5,0)","v":0},{"$f":"VLOOKUP(G49,S49:AB52,6,0)","v":0},{"$f":"VLOOKUP(G49,S49:AB52,7,0)","v":0},{"$f":"VLOOKUP(G49,S49:AB52,8,0)","v":0},{"$f":"VLOOKUP(G49,S49:AB52,9,0)","v":0},{"$f":"VLOOKUP(G49,S49:AB52,10,0)","v":0},1,{"$f":"RANK(AD49,AD49:AD52)","v":1},"ARGENTINE",null,{"$f":"SUMPRODUCT((A49:A54=S49)*(AE49:AE54))+SUMPRODUCT((D49:D54=S49)*(AF49:AF54))","v":0},{"$f":"SUMPRODUCT((A49:A54=S49)*(AG49:AG54))+SUMPRODUCT((D49:D54=S49)*(AH49:AH54))","v":0},{"$f":"SUMPRODUCT((A49:A54=S49)*(AI49:AI54))+SUMPRODUCT((D49:D54=S49)*(AJ49:AJ54))","v":0},{"$f":"SUMPRODUCT((A49:A54=S49)*(AK49:AK54))+SUMPRODUCT((D49:D54=S49)*(AL49:AL54))","v":0},{"$f":"SUMPRODUCT((A49:A54=S49)*(AM49:AM54))+SUMPRODUCT((D49:D54=S49)*(AN49:AN54))","v":0},{"$f":"SUMPRODUCT((A49:A54=S49)*(AO49:AO54))+SUMPRODUCT((D49:D54=S49)*(AP49:AP54))","v":0},{"$f":"SUMPRODUCT((A49:A54=S49)*(AQ49:AQ54))+SUMPRODUCT((D49:D54=S49)*(AR49:AR54))","v":0},{"$f":"Z49-AA49","v":0},{"$f":"SUM(U49*1000+(AB49)/10+(Z49)/100)","v":0},{"$f":"AC49+0.0000004","v":3.9999999999999998E-7},{"$f":"IF(B49=\"\",0,IF(B49>C49,3,IF(B49=C49,1,IF(B49<C49,0))))","v":0},{"$f":"IF(C49=\"\",0,IF(C49>B49,3,IF(C49=B49,1,IF(C49<B49,0))))","v":0},{"$f":"IF(B49=\"\",0,1)","v":0},0,{"$f":"IF(B49<>\"\",IF(B49>C49,1))","v":false},{"$f":"IF(C49<>\"\",IF(C49>B49,1))","v":false},{"$f":"IF(B49<>\"\",IF(B49=C49,1))","v":false},{"$f":"IF(C49<>\"\",IF(C49=B49,1))","v":false},{"$f":"IF(B49<>\"\",IF(B49<C49,1))","v":false},{"$f":"IF(C49<>\"\",IF(C49<B49,1))","v":false},{"$f":"B49","v":0},0,{"$f":"C49","v":0},{"$f":"B49","v":0},{"$f":"VLOOKUP(Q49,R49:S52,2,0)","v":"ARGENTINE"},{"$f":"VLOOKUP(AS49,S49:AC52,11,0)","v":0},{"$f":"RANK(AT49,AT49:AT52)","v":1}]
[{"$f":"S51","v":"IRAN"},null,null,{"$f":"S52","v":"NIGERIA"},null,null,{"$f":"VLOOKUP(Q50,R49:S52,2,0)","v":"BOSNIE - HERZEGOVINE"},{"$f":"IF(AT50=AT49,AU49,AU50)","v":1},{"$f":"VLOOKUP(G50,S49:AB52,3,0)","v":0},{"$f":"VLOOKUP(G50,S49:AB52,4,0)","v":0},{"$f":"VLOOKUP(G50,S49:AB52,5,0)","v":0},{"$f":"VLOOKUP(G50,S49:AB52,6,0)","v":0},{"$f":"VLOOKUP(G50,S49:AB52,7,0)","v":0},{"$f":"VLOOKUP(G50,S49:AB52,8,0)","v":0},{"$f":"VLOOKUP(G50,S49:AB52,9,0)","v":0},{"$f":"VLOOKUP(G50,S49:AB52,10,0)","v":0},2,{"$f":"RANK(AD50,AD49:AD52)","v":2},"BOSNIE - HERZEGOVINE",null,{"$f":"SUMPRODUCT((A49:A54=S50)*(AE49:AE54))+SUMPRODUCT((D49:D54=S50)*(AF49:AF54))","v":0},{"$f":"SUMPRODUCT((A49:A54=S50)*(AG49:AG54))+SUMPRODUCT((D49:D54=S50)*(AH49:AH54))","v":0},{"$f":"SUMPRODUCT((A49:A54=S50)*(AI49:AI54))+SUMPRODUCT((D49:D54=S50)*(AJ49:AJ54))","v":0},{"$f":"SUMPRODUCT((A49:A54=S50)*(AK49:AK54))+SUMPRODUCT((D49:D54=S50)*(AL49:AL54))","v":0},{"$f":"SUMPRODUCT((A49:A54=S50)*(AM49:AM54))+SUMPRODUCT((D49:D54=S50)*(AN49:AN54))","v":0},{"$f":"SUMPRODUCT((A49:A54=S50)*(AO49:AO54))+SUMPRODUCT((D49:D54=S50)*(AP49:AP54))","v":0},{"$f":"SUMPRODUCT((A49:A54=S50)*(AQ49:AQ54))+SUMPRODUCT((D49:D54=S50)*(AR49:AR54))","v":0},{"$f":"Z50-AA50","v":0},{"$f":"SUM(U50*1000+(AB50)/10+(Z50)/100)","v":0},{"$f":"AC50+0.0000003","v":2.9999999999999999E-7},0,0,0,0,false,false,false,false,false,false,0,0,0,0,{"$f":"VLOOKUP(Q50,R49:S52,2,0)","v":"BOSNIE - HERZEGOVINE"},{"$f":"VLOOKUP(AS50,S49:AC52,11,0)","v":0},{"$f":"RANK(AT50,AT49:AT52)","v":1}]
[{"$f":"S49","v":"ARGENTINE"},null,null,{"$f":"S51","v":"IRAN"},null,null,{"$f":"VLOOKUP(Q51,R49:S52,2,0)","v":"IRAN"},{"$f":"IF(AT51=AT50,AU50,AU51)","v":1},{"$f":"VLOOKUP(G51,S49:AB52,3,0)","v":0},{"$f":"VLOOKUP(G51,S49:AB52,4,0)","v":0},{"$f":"VLOOKUP(G51,S49:AB52,5,0)","v":0},{"$f":"VLOOKUP(G51,S49:AB52,6,0)","v":0},{"$f":"VLOOKUP(G51,S49:AB52,7,0)","v":0},{"$f":"VLOOKUP(G51,S49:AB52,8,0)","v":0},{"$f":"VLOOKUP(G51,S49:AB52,9,0)","v":0},{"$f":"VLOOKUP(G51,S49:AB52,10,0)","v":0},3,{"$f":"RANK(AD51,AD49:AD52)","v":3},"IRAN",null,{"$f":"SUMPRODUCT((A49:A54=S51)*(AE49:AE54))+SUMPRODUCT((D49:D54=S51)*(AF49:AF54))","v":0},{"$f":"SUMPRODUCT((A49:A54=S51)*(AG49:AG54))+SUMPRODUCT((D49:D54=S51)*(AH49:AH54))","v":0},{"$f":"SUMPRODUCT((A49:A54=S51)*(AI49:AI54))+SUMPRODUCT((D49:D54=S51)*(AJ49:AJ54))","v":0},{"$f":"SUMPRODUCT((A49:A54=S51)*(AK49:AK54))+SUMPRODUCT((D49:D54=S51)*(AL49:AL54))","v":0},{"$f":"SUMPRODUCT((A49:A54=S51)*(AM49:AM54))+SUMPRODUCT((D49:D54=S51)*(AN49:AN54))","v":0},{"$f":"SUMPRODUCT((A49:A54=S51)*(AO49:AO54))+SUMPRODUCT((D49:D54=S51)*(AP49:AP54))","v":0},{"$f":"SUMPRODUCT((A49:A54=S51)*(AQ49:AQ54))+SUMPRODUCT((D49:D54=S51)*(AR49:AR54))","v":0},{"$f":"Z51-AA51","v":0},{"$f":"SUM(U51*1000+(AB51)/10+(Z51)/100)","v":0},{"$f":"AC51+0.0000002","v":1.9999999999999999E-7},0,0,0,0,false,false,false,false,false,false,0,0,0,0,{"$f":"VLOOKUP(Q51,R49:S52,2,0)","v":"IRAN"},{"$f":"VLOOKUP(AS51,S49:AC52,11,0)","v":0},{"$f":"RANK(AT51,AT49:AT52)","v":1}]
[{"$f":"S52","v":"NIGERIA"},null,null,{"$f":"S50","v":"BOSNIE - HERZEGOVINE"},null,null,{"$f":"VLOOKUP(Q52,R49:S52,2,0)","v":"NIGERIA"},{"$f":"IF(AT52=AT51,AU51,AU52)","v":1},{"$f":"VLOOKUP(G52,S49:AB52,3,0)","v":0},{"$f":"VLOOKUP(G52,S49:AB52,4,0)","v":0},{"$f":"VLOOKUP(G52,S49:AB52,5,0)","v":0},{"$f":"VLOOKUP(G52,S49:AB52,6,0)","v":0},{"$f":"VLOOKUP(G52,S49:AB52,7,0)","v":0},{"$f":"VLOOKUP(G52,S49:AB52,8,0)","v":0},{"$f":"VLOOKUP(G52,S49:AB52,9,0)","v":0},{"$f":"VLOOKUP(G52,S49:AB52,10,0)","v":0},4,{"$f":"RANK(AD52,AD49:AD52)","v":4},"NIGERIA",null,{"$f":"SUMPRODUCT((A49:A54=S52)*(AE49:AE54))+SUMPRODUCT((D49:D54=S52)*(AF49:AF54))","v":0},{"$f":"SUMPRODUCT((A49:A54=S52)*(AG49:AG54))+SUMPRODUCT((D49:D54=S52)*(AH49:AH54))","v":0},{"$f":"SUMPRODUCT((A49:A54=S52)*(AI49:AI54))+SUMPRODUCT((D49:D54=S52)*(AJ49:AJ54))","v":0},{"$f":"SUMPRODUCT((A49:A54=S52)*(AK49:AK54))+SUMPRODUCT((D49:D54=S52)*(AL49:AL54))","v":0},{"$f":"SUMPRODUCT((A49:A54=S52)*(AM49:AM54))+SUMPRODUCT((D49:D54=S52)*(AN49:AN54))","v":0},{"$f":"SUMPRODUCT((A49:A54=S52)*(AO49:AO54))+SUMPRODUCT((D49:D54=S52)*(AP49:AP54))","v":0},{"$f":"SUMPRODUCT((A49:A54=S52)*(AQ49:AQ54))+SUMPRODUCT((D49:D54=S52)*(AR49:AR54))","v":0},{"$f":"Z52-AA52","v":0},{"$f":"SUM(U52*1000+(AB52)/10+(Z52)/100)","v":0},{"$f":"AC52+0.0000001","v":9.9999999999999995E-8},0,0,0,0,false,false,false,false,false,false,0,0,0,0,{"$f":"VLOOKUP(Q52,R49:S52,2,0)","v":"NIGERIA"},{"$f":"VLOOKUP(AS52,S49:AC52,11,0)","v":0},{"$f":"RANK(AT52,AT49:AT52)","v":1}]
[{"$f":"S52","v":"NIGERIA"},null,null,{"$f":"S49","v":"ARGENTINE"},null,null,"EQUIPES QUALIFIEES",{"$f":"G49","v":"ARGENTINE"},null,null,null,null,{"$f":"G50","v":"BOSNIE - HERZEGOVINE"},null,null,null,null,null,null,null,null,null,null,null,null,null,null,null,null,null,0,0,0,0,false,false,false,false,false,false,0,0,0,0]
[{"$f":"S50","v":"BOSNIE - HERZEGOVINE"},null,null,{"$f":"S51","v":"IRAN"},null,null,null,null,null,null,null,null,null,null,null,null,null,null,null,null,null,null,null,null,null,null,null,null,null,null,0,0,0,0,false,false,false,false,false,false,0,0,0,0]
["POULE  G",null,null,null,null,null,"CLASSEMENT",null,null,null,null,null,null,null,null,null,null,null,"CLASSEMENT"]
[]
["Equipes","Buts","Buts","Equipes",null,null,"Equipes","Rang","Pts","J","G","N","P","B +","B -","Diff",null,"R","Equipes","Rang","Pts","J","G","N","P","B +","B -","Diff","%","%","Pts","Pts","J","J","G","G","N","N","P","P","B +","B +","B -","B -","Equipes","%","R"]
[{"$f":"S58","v":"ALLEMAGNE"},null,null,{"$f":"S59","v":"PORTUGAL"},null,null,{"$f":"VLOOKUP(Q58,R58:S61,2,0)","v":"ALLEMAGNE"},1,{"$f":"VLOOKUP(G58,S58:AB61,3,0)","v":0},{"$f":"VLOOKUP(G58,S58:AB61,4,0)","v":0},{"$f":"VLOOKUP(G58,S58:AB61,5,0)","v":0},{"$f":"VLOOKUP(G58,S58:AB61,6,0)","v":0},{"$f":"VLOOKUP(G58,S58:AB61,7,0)","v":0},{"$f":"VLOOKUP(G58,S58:AB61,8,0)","v":0},{"$f":"VLOOKUP(G58,S58:AB61,9,0)","v":0},{"$f":"VLOOKUP(G58,S58:AB61,10,0)","v":0},1,{"$f":"RANK(AD58,AD58:AD61)","v":1},"ALLEMAGNE",null,{"$f":"SUMPRODUCT((A58:A63=S58)*(AE58:AE63))+SUMPRODUCT((D58:D63=S58)*(AF58:AF63))","v":0},{"$f":"SUMPRODUCT((A58:A63=S58)*(AG58:AG63))+SUMPRODUCT((D58:D63=S58)*(AH58:AH63))","v":0},{"$f":"SUMPRODUCT((A58:A63=S58)*(AI58:AI63))+SUMPRODUCT((D58:D63=S58)*(AJ58:AJ63))","v":0},{"$f":"SUMPRODUCT((A58:A63=S58)*(AK58:AK63))+SUMPRODUCT((D58:D63=S58)*(AL58:AL63))","v":0},{"$f":"SUMPRODUCT((A58:A63=S58)*(AM58:AM63))+SUMPRODUCT((D58:D63=S58)*(AN58:AN63))","v":0},{"$f":"SUMPRODUCT((A58:A63=S58)*(AO58:AO63))+SUMPRODUCT((D58:D63=S58)*(AP58:AP63))","v":0},{"$f":"SUMPRODUCT((A58:A63=S58)*(AQ58:AQ63))+SUMPRODUCT((D58:D63=S58)*(AR58:AR63))","v":0},{"$f":"Z58-AA58","v":0},{"$f":"SUM(U58*1000+(AB58)/10+(Z58)/100)","v":0},{"$f":"AC58+0.0000004","v":3.9999999999999998E-7},{"$f":"IF(B58=\"\",0,IF(B58>C58,3,IF(B58=C58,1,IF(B58<C58,0))))","v":0},{"$f":"IF(C58=\"\",0,IF(C58>B58,3,IF(C58=B58,1,IF(C58<B58,0))))","v":0},{"$f":"IF(B58=\"\",0,1)","v":0},0,{"$f":"IF(B58<>\"\",IF(B58>C58,1))","v":false},{"$f":"IF(C58<>\"\",IF(C58>B58,1))","v":false},{"$f":"IF(B58<>\"\",IF(B58=C58,1))","v":false},{"$f":"IF(C58<>\"\",IF(C58=B58,1))","v":false},{"$f":"IF(B58<>\"\",IF(B58<C58,1))","v":false},{"$f":"IF(C58<>\"\",IF(C58<B58,1))","v":false},{"$f":"B58","v":0},0,{"$f":"C58","v":0},{"$f":"B58","v":0},{"$f":"VLOOKUP(Q58,R58:S61,2,0)","v":"ALLEMAGNE"},{"$f":"VLOOKUP(AS58,S58:AC61,11,0)","v":0},{"$f":"RANK(AT58,AT58:AT61)","v":1}]
[{"$f":"S60","v":"GHANA"},null,null,{"$f":"S61","v":"U.S.A"},null,null,{"$f":"VLOOKUP(Q59,R58:S61,2,0)","v":"PORTUGAL"},{"$f":"IF(AT59=AT58,AU58,AU59)","v":1},{"$f":"VLOOKUP(G59,S58:AB61,3,0)","v":0},{"$f":"VLOOKUP(G59,S58:AB61,4,0)","v":0},{"$f":"VLOOKUP(G59,S58:AB61,5,0)","v":0},{"$f":"VLOOKUP(G59,S58:AB61,6,0)","v":0},{"$f":"VLOOKUP(G59,S58:AB61,7,0)","v":0},{"$f":"VLOOKUP(G59,S58:AB61,8,0)","v":0},{"$f":"VLOOKUP(G59,S58:AB61,9,0)","v":0},{"$f":"VLOOKUP(G59,S58:AB61,10,0)","v":0},2,{"$f":"RANK(AD59,AD58:AD61)","v":2},"PORTUGAL",null,{"$f":"SUMPRODUCT((A58:A63=S59)*(AE58:AE63))+SUMPRODUCT((D58:D63=S59)*(AF58:AF63))","v":0},{"$f":"SUMPRODUCT((A58:A63=S59)*(AG58:AG63))+SUMPRODUCT((D58:D63=S59)*(AH58:AH63))","v":0},{"$f":"SUMPRODUCT((A58:A63=S59)*(AI58:AI63))+SUMPRODUCT((D58:D63=S59)*(AJ58:AJ63))","v":0},{"$f":"SUMPRODUCT((A58:A63=S59)*(AK58:AK63))+SUMPRODUCT((D58:D63=S59)*(AL58:AL63))","v":0},{"$f":"SUMPRODUCT((A58:A63=S59)*(AM58:AM63))+SUMPRODUCT((D58:D63=S59)*(AN58:AN63))","v":0},{"$f":"SUMPRODUCT((A58:A63=S59)*(AO58:AO63))+SUMPRODUCT((D58:D63=S59)*(AP58:AP63))","v":0},{"$f":"SUMPRODUCT((A58:A63=S59)*(AQ58:AQ63))+SUMPRODUCT((D58:D63=S59)*(AR58:AR63))","v":0},{"$f":"Z59-AA59","v":0},{"$f":"SUM(U59*1000+(AB59)/10+(Z59)/100)","v":0},{"$f":"AC59+0.0000003","v":2.9999999999999999E-7},0,0,0,0,false,false,false,false,false,false,0,0,0,0,{"$f":"VLOOKUP(Q59,R58:S61,2,0)","v":"PORTUGAL"},{"$f":"VLOOKUP(AS59,S58:AC61,11,0)","v":0},{"$f":"RANK(AT59,AT58:AT61)","v":1}]
[{"$f":"S58","v":"ALLEMAGNE"},null,null,{"$f":"S60","v":"GHANA"},null,null,{"$f":"VLOOKUP(Q60,R58:S61,2,0)","v":"GHANA"},{"$f":"IF(AT60=AT59,AU59,AU60)","v":1},{"$f":"VLOOKUP(G60,S58:AB61,3,0)","v":0},{"$f":"VLOOKUP(G60,S58:AB61,4,0)","v":0},{"$f":"VLOOKUP(G60,S58:AB61,5,0)","v":0},{"$f":"VLOOKUP(G60,S58:AB61,6,0)","v":0},{"$f":"VLOOKUP(G60,S58:AB61,7,0)","v":0},{"$f":"VLOOKUP(G60,S58:AB61,8,0)","v":0},{"$f":"VLOOKUP(G60,S58:AB61,9,0)","v":0},{"$f":"VLOOKUP(G60,S58:AB61,10,0)","v":0},3,{"$f":"RANK(AD60,AD58:AD61)","v":3},"GHANA",null,{"$f":"SUMPRODUCT((A58:A63=S60)*(AE58:AE63))+SUMPRODUCT((D58:D63=S60)*(AF58:AF63))","v":0},{"$f":"SUMPRODUCT((A58:A63=S60)*(AG58:AG63))+SUMPRODUCT((D58:D63=S60)*(AH58:AH63))","v":0},{"$f":"SUMPRODUCT((A58:A63=S60)*(AI58:AI63))+SUMPRODUCT((D58:D63=S60)*(AJ58:AJ63))","v":0},{"$f":"SUMPRODUCT((A58:A63=S60)*(AK58:AK63))+SUMPRODUCT((D58:D63=S60)*(AL58:AL63))","v":0},{"$f":"SUMPRODUCT((A58:A63=S60)*(AM58:AM63))+SUMPRODUCT((D58:D63=S60)*(AN58:AN63))","v":0},{"$f":"SUMPRODUCT((A58:A63=S60)*(AO58:AO63))+SUMPRODUCT((D58:D63=S60)*(AP58:AP63))","v":0},{"$f":"SUMPRODUCT((A58:A63=S60)*(AQ58:AQ63))+SUMPRODUCT((D58:D63=S60)*(AR58:AR63))","v":0},{"$f":"Z60-AA60","v":0},{"$f":"SUM(U60*1000+(AB60)/10+(Z60)/100)","v":0},{"$f":"AC60+0.0000002","v":1.9999999999999999E-7},0,0,0,0,false,false,false,false,false,false,0,0,0,0,{"$f":"VLOOKUP(Q60,R58:S61,2,0)","v":"GHANA"},{"$f":"VLOOKUP(AS60,S58:AC61,11,0)","v":0},{"$f":"RANK(AT60,AT58:AT61)","v":1}]
[{"$f":"S61","v":"U.S.A"},null,null,{"$f":"S59","v":"PORTUGAL"},null,null,{"$f":"VLOOKUP(Q61,R58:S61,2,0)","v":"U.S.A"},{"$f":"IF(AT61=AT60,AU60,AU61)","v":1},{"$f":"VLOOKUP(G61,S58:AB61,3,0)","v":0},{"$f":"VLOOKUP(G61,S58:AB61,4,0)","v":0},{"$f":"VLOOKUP(G61,S58:AB61,5,0)","v":0},{"$f":"VLOOKUP(G61,S58:AB61,6,0)","v":0},{"$f":"VLOOKUP(G61,S58:AB61,7,0)","v":0},{"$f":"VLOOKUP(G61,S58:AB61,8,0)","v":0},{"$f":"VLOOKUP(G61,S58:AB61,9,0)","v":0},{"$f":"VLOOKUP(G61,S58:AB61,10,0)","v":0},4,{"$f":"RANK(AD61,AD58:AD61)","v":4},"U.S.A",null,{"$f":"SUMPRODUCT((A58:A63=S61)*(AE58:AE63))+SUMPRODUCT((D58:D63=S61)*(AF58:AF63))","v":0},{"$f":"SUMPRODUCT((A58:A63=S61)*(AG58:AG63))+SUMPRODUCT((D58:D63=S61)*(AH58:AH63))","v":0},{"$f":"SUMPRODUCT((A58:A63=S61)*(AI58:AI63))+SUMPRODUCT((D58:D63=S61)*(AJ58:AJ63))","v":0},{"$f":"SUMPRODUCT((A58:A63=S61)*(AK58:AK63))+SUMPRODUCT((D58:D63=S61)*(AL58:AL63))","v":0},{"$f":"SUMPRODUCT((A58:A63=S61)*(AM58:AM63))+SUMPRODUCT((D58:D63=S61)*(AN58:AN63))","v":0},{"$f":"SUMPRODUCT((A58:A63=S61)*(AO58:AO63))+SUMPRODUCT((D58:D63=S61)*(AP58:AP63))","v":0},{"$f":"SUMPRODUCT((A58:A63=S61)*(AQ58:AQ63))+SUMPRODUCT((D58:D63=S61)*(AR58:AR63))","v":0},{"$f":"Z61-AA61","v":0},{"$f":"SUM(U61*1000+(AB61)/10+(Z61)/100)","v":0},{"$f":"AC61+0.0000001","v":9.9999999999999995E-8},0,0,0,0,false,false,false,false,false,false,0,0,0,0,{"$f":"VLOOKUP(Q61,R58:S61,2,0)","v":"U.S.A"},{"$f":"VLOOKUP(AS61,S58:AC61,11,0)","v":0},{"$f":"RANK(AT61,AT58:AT61)","v":1}]
[{"$f":"S61","v":"U.S.A"},null,null,{"$f":"S58","v":"ALLEMAGNE"},null,null,"EQUIPES QUALIFIEES",{"$f":"G58","v":"ALLEMAGNE"},null,null,null,null,{"$f":"G59","v":"PORTUGAL"},null,null,null,null,null,null,null,null,null,null,null,null,null,null,null,null,null,0,0,0,0,false,false,false,false,false,false,0,0,0,0]
[{"$f":"S59","v":"PORTUGAL"},null,null,{"$f":"S60","v":"GHANA"},null,null,null,null,null,null,null,null,null,null,null,null,null,null,null,null,null,null,null,null,null,null,null,null,null,null,0,0,0,0,false,false,false,false,false,false,0,0,0,0]
["POULE  H",null,null,null,null,null,"CLASSEMENT",null,null,null,null,null,null,null,null,null,null,null,"CLASSEMENT"]
[]
["Equipes","Buts","Buts","Equipes",null,null,"Equipes","Rang","Pts","J","G","N","P","B +","B -","Diff",null,"R","Equipes","Rang","Pts","J","G","N","P","B +","B -","Diff","%","%","Pts","Pts","J","J","G","G","N","N","P","P","B +","B +","B -","B -","Equipes","%","R"]
[{"$f":"S67","v":"BELGIQUE"},null,null,{"$f":"S68","v":"ALGERIE"},null,null,{"$f":"VLOOKUP(Q67,R67:S70,2,0)","v":"BELGIQUE"},1,{"$f":"VLOOKUP(G67,S67:AB70,3,0)","v":0},{"$f":"VLOOKUP(G67,S67:AB70,4,0)","v":0},{"$f":"VLOOKUP(G67,S67:AB70,5,0)","v":0},{"$f":"VLOOKUP(G67,S67:AB70,6,0)","v":0},{"$f":"VLOOKUP(G67,S67:AB70,7,0)","v":0},{"$f":"VLOOKUP(G67,S67:AB70,8,0)","v":0},{"$f":"VLOOKUP(G67,S67:AB70,9,0)","v":0},{"$f":"VLOOKUP(G67,S67:AB70,10,0)","v":0},1,{"$f":"RANK(AD67,AD67:AD70)","v":1},"BELGIQUE",null,{"$f":"SUMPRODUCT((A67:A72=S67)*(AE67:AE72))+SUMPRODUCT((D67:D72=S67)*(AF67:AF72))","v":0},{"$f":"SUMPRODUCT((A67:A72=S67)*(AG67:AG72))+SUMPRODUCT((D67:D72=S67)*(AH67:AH72))","v":0},{"$f":"SUMPRODUCT((A67:A72=S67)*(AI67:AI72))+SUMPRODUCT((D67:D72=S67)*(AJ67:AJ72))","v":0},{"$f":"SUMPRODUCT((A67:A72=S67)*(AK67:AK72))+SUMPRODUCT((D67:D72=S67)*(AL67:AL72))","v":0},{"$f":"SUMPRODUCT((A67:A72=S67)*(AM67:AM72))+SUMPRODUCT((D67:D72=S67)*(AN67:AN72))","v":0},{"$f":"SUMPRODUCT((A67:A72=S67)*(AO67:AO72))+SUMPRODUCT((D67:D72=S67)*(AP67:AP72))","v":0},{"$f":"SUMPRODUCT((A67:A72=S67)*(AQ67:AQ72))+SUMPRODUCT((D67:D72=S67)*(AR67:AR72))","v":0},{"$f":"Z67-AA67","v":0},{"$f":"SUM(U67*1000+(AB67)/10+(Z67)/100)","v":0},{"$f":"AC67+0.0000004","v":3.9999999999999998E-7},{"$f":"IF(B67=\"\",0,IF(B67>C67,3,IF(B67=C67,1,IF(B67<C67,0))))","v":0},{"$f":"IF(C67=\"\",0,IF(C67>B67,3,IF(C67=B67,1,IF(C67<B67,0))))","v":0},{"$f":"IF(B67=\"\",0,1)","v":0},{"$f":"IF(C67=\"\",0,1)","v":0},{"$f":"IF(B67<>\"\",IF(B67>C67,1))","v":false},{"$f":"IF(C67<>\"\",IF(C67>B67,1))","v":false},{"$f":"IF(B67<>\"\",IF(B67=C67,1))","v":false},{"$f":"IF(C67<>\"\",IF(C67=B67,1))","v":false},{"$f":"IF(B67<>\"\",IF(B67<C67,1))","v":false},{"$f":"IF(C67<>\"\",IF(C67<B67,1))","v":false},{"$f":"B67","v":0},{"$f":"C67","v":0},{"$f":"C67","v":0},{"$f":"B67","v":0},{"$f":"VLOOKUP(Q67,R67:S70,2,0)","v":"BELGIQUE"},{"$f":"VLOOKUP(AS67,S67:AC70,11,0)","v":0},{"$f":"RANK(AT67,AT67:AT70)","v":1}]
[{"$f":"S69","v":"RUSSIE"},null,null,{"$f":"S70","v":"REPUBLIQUE DE COREE"},null,null,{"$f":"VLOOKUP(Q68,R67:S70,2,0)","v":"ALGERIE"},{"$f":"IF(AT68=AT67,AU67,AU68)","v":1},{"$f":"VLOOKUP(G68,S67:AB70,3,0)","v":0},{"$f":"VLOOKUP(G68,S67:AB70,4,0)","v":0},{"$f":"VLOOKUP(G68,S67:AB70,5,0)","v":0},{"$f":"VLOOKUP(G68,S67:AB70,6,0)","v":0},{"$f":"VLOOKUP(G68,S67:AB70,7,0)","v":0},{"$f":"VLOOKUP(G68,S67:AB70,8,0)","v":0},{"$f":"VLOOKUP(G68,S67:AB70,9,0)","v":0},{"$f":"VLOOKUP(G68,S67:AB70,10,0)","v":0},2,{"$f":"RANK(AD68,AD67:AD70)","v":2},"ALGERIE",null,{"$f":"SUMPRODUCT((A67:A72=S68)*(AE67:AE72))+SUMPRODUCT((D67:D72=S68)*(AF67:AF72))","v":0},{"$f":"SUMPRODUCT((A67:A72=S68)*(AG67:AG72))+SUMPRODUCT((D67:D72=S68)*(AH67:AH72))","v":0},{"$f":"SUMPRODUCT((A67:A72=S68)*(AI67:AI72))+SUMPRODUCT((D67:D72=S68)*(AJ67:AJ72))","v":0},{"$f":"SUMPRODUCT((A67:A72=S68)*(AK67:AK72))+SUMPRODUCT((D67:D72=S68)*(AL67:AL72))","v":0},{"$f":"SUMPRODUCT((A67:A72=S68)*(AM67:AM72))+SUMPRODUCT((D67:D72=S68)*(AN67:AN72))","v":0},{"$f":"SUMPRODUCT((A67:A72=S68)*(AO67:AO72))+SUMPRODUCT((D67:D72=S68)*(AP67:AP72))","v":0},{"$f":"SUMPRODUCT((A67:A72=S68)*(AQ67:AQ72))+SUMPRODUCT((D67:D72=S68)*(AR67:AR72))","v":0},{"$f":"Z68-AA68","v":0},{"$f":"SUM(U68*1000+(AB68)/10+(Z68)/100)","v":0},{"$f":"AC68+0.0000003","v":2.9999999999999999E-7},0,0,0,0,false,false,false,false,false,false,0,0,0,0,{"$f":"VLOOKUP(Q68,R67:S70,2,0)","v":"ALGERIE"},{"$f":"VLOOKUP(AS68,S67:AC70,11,0)","v":0},{"$f":"RANK(AT68,AT67:AT70)","v":1}]
[{"$f":"S67","v":"BELGIQUE"},null,null,{"$f":"S69","v":"RUSSIE"},null,null,{"$f":"VLOOKUP(Q69,R67:S70,2,0)","v":"RUSSIE"},{"$f":"IF(AT69=AT68,AU68,AU69)","v":1},{"$f":"VLOOKUP(G69,S67:AB70,3,0)","v":0},{"$f":"VLOOKUP(G69,S67:AB70,4,0)","v":0},{"$f":"VLOOKUP(G69,S67:AB70,5,0)","v":0},{"$f":"VLOOKUP(G69,S67:AB70,6,0)","v":0},{"$f":"VLOOKUP(G69,S67:AB70,7,0)","v":0},{"$f":"VLOOKUP(G69,S67:AB70,8,0)","v":0},{"$f":"VLOOKUP(G69,S67:AB70,9,0)","v":0},{"$f":"VLOOKUP(G69,S67:AB70,10,0)","v":0},3,{"$f":"RANK(AD69,AD67:AD70)","v":3},"RUSSIE",null,{"$f":"SUMPRODUCT((A67:A72=S69)*(AE67:AE72))+SUMPRODUCT((D67:D72=S69)*(AF67:AF72))","v":0},{"$f":"SUMPRODUCT((A67:A72=S69)*(AG67:AG72))+SUMPRODUCT((D67:D72=S69)*(AH67:AH72))","v":0},{"$f":"SUMPRODUCT((A67:A72=S69)*(AI67:AI72))+SUMPRODUCT((D67:D72=S69)*(AJ67:AJ72))","v":0},{"$f":"SUMPRODUCT((A67:A72=S69)*(AK67:AK72))+SUMPRODUCT((D67:D72=S69)*(AL67:AL72))","v":0},{"$f":"SUMPRODUCT((A67:A72=S69)*(AM67:AM72))+SUMPRODUCT((D67:D72=S69)*(AN67:AN72))","v":0},{"$f":"SUMPRODUCT((A67:A72=S69)*(AO67:AO72))+SUMPRODUCT((D67:D72=S69)*(AP67:AP72))","v":0},{"$f":"SUMPRODUCT((A67:A72=S69)*(AQ67:AQ72))+SUMPRODUCT((D67:D72=S69)*(AR67:AR72))","v":0},{"$f":"Z69-AA69","v":0},{"$f":"SUM(U69*1000+(AB69)/10+(Z69)/100)","v":0},{"$f":"AC69+0.0000002","v":1.9999999999999999E-7},0,0,0,0,false,false,false,false,false,false,0,0,0,0,{"$f":"VLOOKUP(Q69,R67:S70,2,0)","v":"RUSSIE"},{"$f":"VLOOKUP(AS69,S67:AC70,11,0)","v":0},{"$f":"RANK(AT69,AT67:AT70)","v":1}]
[{"$f":"S70","v":"REPUBLIQUE DE COREE"},null,null,{"$f":"S68","v":"ALGERIE"},null,null,{"$f":"VLOOKUP(Q70,R67:S70,2,0)","v":"REPUBLIQUE DE COREE"},{"$f":"IF(AT70=AT69,AU69,AU70)","v":1},{"$f":"VLOOKUP(G70,S67:AB70,3,0)","v":0},{"$f":"VLOOKUP(G70,S67:AB70,4,0)","v":0},{"$f":"VLOOKUP(G70,S67:AB70,5,0)","v":0},{"$f":"VLOOKUP(G70,S67:AB70,6,0)","v":0},{"$f":"VLOOKUP(G70,S67:AB70,7,0)","v":0},{"$f":"VLOOKUP(G70,S67:AB70,8,0)","v":0},{"$f":"VLOOKUP(G70,S67:AB70,9,0)","v":0},{"$f":"VLOOKUP(G70,S67:AB70,10,0)","v":0},4,{"$f":"RANK(AD70,AD67:AD70)","v":4},"REPUBLIQUE DE COREE",null,{"$f":"SUMPRODUCT((A67:A72=S70)*(AE67:AE72))+SUMPRODUCT((D67:D72=S70)*(AF67:AF72))","v":0},{"$f":"SUMPRODUCT((A67:A72=S70)*(AG67:AG72))+SUMPRODUCT((D67:D72=S70)*(AH67:AH72))","v":0},{"$f":"SUMPRODUCT((A67:A72=S70)*(AI67:AI72))+SUMPRODUCT((D67:D72=S70)*(AJ67:AJ72))","v":0},{"$f":"SUMPRODUCT((A67:A72=S70)*(AK67:AK72))+SUMPRODUCT((D67:D72=S70)*(AL67:AL72))","v":0},{"$f":"SUMPRODUCT((A67:A72=S70)*(AM67:AM72))+SUMPRODUCT((D67:D72=S70)*(AN67:AN72))","v":0},{"$f":"SUMPRODUCT((A67:A72=S70)*(AO67:AO72))+SUMPRODUCT((D67:D72=S70)*(AP67:AP72))","v":0},{"$f":"SUMPRODUCT((A67:A72=S70)*(AQ67:AQ72))+SUMPRODUCT((D67:D72=S70)*(AR67:AR72))","v":0},{"$f":"Z70-AA70","v":0},{"$f":"SUM(U70*1000+(AB70)/10+(Z70)/100)","v":0},{"$f":"AC70+0.0000001","v":9.9999999999999995E-8},0,0,0,0,false,false,false,false,false,false,0,0,0,0,{"$f":"VLOOKUP(Q70,R67:S70,2,0)","v":"REPUBLIQUE DE COREE"},{"$f":"VLOOKUP(AS70,S67:AC70,11,0)","v":0},{"$f":"RANK(AT70,AT67:AT70)","v":1}]
[{"$f":"S70","v":"REPUBLIQUE DE COREE"},null,null,{"$f":"S67","v":"BELGIQUE"},null,null,"EQUIPES QUALIFIEES",{"$f":"G67","v":"BELGIQUE"},null,null,null,null,{"$f":"G68","v":"ALGERIE"},null,null,null,null,null,null,null,null,null,null,null,null,null,null,null,null,null,0,0,0,0,false,false,false,false,false,false,0,0,0,0]
[{"$f":"S68","v":"ALGERIE"},null,null,{"$f":"S69","v":"RUSSIE"},null,null,null,null,null,null,null,null,null,null,null,null,null,null,null,null,null,null,null,null,null,null,null,null,null,null,0,0,0,0,false,false,false,false,false,false,0,0,0,0]

{"sheet":"Phase Finale","index":2,"n_rows":25,"n_cols":46,"rows_kept":25,"cut":false,"hidden":false,"merged":[[3,0,3,6],[4,0,4,6],[2,1,2,2],[2,5,2,6],[5,1,5,2],[5,5,5,6],[8,1,8,2],[8,5,8,6],[9,0,9,6],[10,0,10,6],[11,1,11,2],[11,5,11,6],[14,1,14,2],[14,5,14,6],[15,0,15,6],[16,0,16,6],[17,1,17,2],[17,5,17,6],[20,1,20,2],[20,5,20,6],[21,0,21,6],[22,0,22,6],[23,1,23,2],[23,5,23,6],[2,34,2,35],[2,38,2,39],[3,33,3,39],[4,33,4,39],[5,34,5,35],[5,38,5,39],[8,34,8,35],[8,38,8,39],[9,33,9,39],[10,33,10,39],[11,34,11,35],[11,38,11,39],[14,34,14,35],[14,38,14,39],[15,33,15,39],[16,33,16,39],[17,34,17,35],[17,38,17,39],[20,34,20,35],[20,38,20,39],[21,33,21,39],[22,33,22,39],[23,34,23,35],[23,38,23,39],[20,9,20,10],[20,13,20,14],[8,9,8,10],[8,13,8,14],[17,9,17,10],[17,13,17,14],[14,12,14,13],[18,8,18,14],[19,8,19,14],[5,26,5,27],[5,30,5,31],[6,25,6,31],[7,25,7,31],[5,9,5,10],[5,13,5,14],[6,8,6,14],[7,8,7,14],[20,26,20,27],[20,30,20,31],[8,26,8,27],[8,30,8,31],[17,26,17,27],[17,30,17,31],[12,22,12,28],[13,22,13,28],[14,23,14,24],[14,27,14,28],[19,25,19,31],[11,27,11,28],[11,16,11,17],[14,16,14,17],[18,25,18,31],[12,11,12,17],[11,23,11,24],[11,12,11,13],[13,11,13,17],[1,17,1,18],[1,22,1,23],[4,17,4,18],[4,22,4,23],[2,16,2,23],[3,16,3,23],[24,17,24,18],[24,22,24,23],[21,17,21,18],[21,22,21,23],[22,16,22,23],[23,16,23,23]]}
[]
[null,null,null,null,null,null,null,null,null,null,null,null,null,null,null,null,"Bts",null,null,null,null,"Pen",null,null,null,null,null,null,null,null,null,null,null,null,null,null,null,null,null,null,null,null,null,null,null,{"$f":"IF(R22=\"\",\"\",IF(R22>R25,Q23,IF(R25>R22,Q24,IF(R22=R25,IF(W22>W25,Q23,IF(R25=R22,IF(W25>W22,Q24)))))))","v":""}]
["Bts",null,null,null,"Pen",null,null,null,null,null,null,null,null,null,null,null,{"$f":"IF(Q23=L13,L14,L13)","v":""},null,null,null,null,null,null,null,null,null,null,null,null,null,null,null,null,"Bts",null,null,null,"Pen"]
[{"$f":"Poules!H8","v":"BRESIL"},null,null,null,null,null,null,null,null,null,null,null,null,null,null,null,{"$f":"IF(Q24=W13,W14,W13)","v":""},null,null,null,null,null,null,null,null,null,null,null,null,null,null,null,null,{"$f":"Poules!H17","v":"ESPAGNE"},null,null,null,null,null,null,null,null,null,null,null,{"$f":"IF(AT2=\"\",\"\",\"CHAMPION DU MONDE\" & \"    \" &  AT2)","v":""}]
[{"$f":"Poules!M17","v":"PAYS - BAS"},null,null,null,null,null,null,null,null,null,null,null,null,null,null,null,"Bts",null,null,null,null,"Pen",null,null,null,null,null,null,null,null,null,null,null,{"$f":"Poules!M8","v":"CROATIE"}]
["Bts",null,null,null,"Pen",null,null,null,"Bts",null,null,null,"Pen",null,null,null,null,null,null,null,null,null,null,null,null,"Bts",null,null,null,"Pen",null,null,null,"Bts",null,null,null,"Pen"]
[null,null,null,null,null,null,null,null,{"$f":"IF(B3=\"\",\"\",IF(B3>B6,A4,IF(B6>B3,A5,IF(B3=B6,IF(F3>F6,A4,IF(B6=B3,IF(F6>F3,A5)))))))","v":""},null,null,null,null,null,null,null,null,null,null,null,null,null,null,null,null,{"$f":"IF(AI3=\"\",\"\",IF(AI3>AI6,AH4,IF(AI6>AI3,AH5,IF(AI3=AI6,IF(AM3>AM6,AH4,IF(AI6=AI3,IF(AM6>AM3,AH5)))))))","v":""}]
[null,null,null,null,null,null,null,null,{"$f":"IF(B9=\"\",\"\",IF(B9>B12,A10,IF(B12>B9,A11,IF(B9=B12,IF(F9>F12,A10,IF(B12=B9,IF(F12>F9,A11)))))))","v":""},null,null,null,null,null,null,null,null,null,null,null,null,null,null,null,null,{"$f":"IF(AI9=\"\",\"\",IF(AI9>AI12,AH10,IF(AI12>AI9,AH11,IF(AI9=AI12,IF(AM9>AM12,AH10,IF(AI12=AI9,IF(AM12>AM9,AH11)))))))","v":""}]
["Bts",null,null,null,"Pen",null,null,null,"Bts",null,null,null,"Pen",null,null,null,null,null,null,null,null,null,null,null,null,"Bts",null,null,null,"Pen",null,null,null,"Bts",null,null,null,"Pen"]
[{"$f":"Poules!H26","v":"COLOMBIE"},null,null,null,null,null,null,null,null,null,null,null,null,null,null,null,null,null,null,null,null,null,null,null,null,null,null,null,null,null,null,null,null,{"$f":"Poules!H35","v":"URUGUAY"}]
[{"$f":"Poules!M35","v":"COSTA RICA"},null,null,null,null,null,null,null,null,null,null,null,null,null,null,null,null,null,null,null,null,null,null,null,null,null,null,null,null,null,null,null,null,{"$f":"Poules!M26","v":"GRECE"}]
["Bts",null,null,null,"Pen",null,null,null,null,null,null,"Bts",null,null,null,"Pen",null,null,null,null,null,null,"Bts",null,null,null,"Pen",null,null,null,null,null,null,"Bts",null,null,null,"Pen"]
[null,null,null,null,null,null,null,null,null,null,null,{"$f":"IF(J6=\"\",\"\",IF(J6>J9,I7,IF(J9>J6,I8,IF(J6=J9,IF(N6>N9,I7,IF(J9=J6,IF(N9>N6,I8)))))))","v":""},null,null,null,null,null,null,null,null,null,null,{"$f":"IF(AA6=\"\",\"\",IF(AA6>AA9,Z7,IF(AA9>AA6,Z8,IF(AA6=AA9,IF(AE6>AE9,Z7,IF(AA9=AA6,IF(AE9>AE6,Z8)))))))","v":""}]
[null,null,null,null,null,null,null,null,null,null,null,{"$f":"IF(J18=\"\",\"\",IF(J18>J21,I19,IF(J21>J18,I20,IF(J18=J21,IF(N18>N21,I19,IF(J21=J18,IF(N21>N18,I20)))))))","v":""},null,null,null,null,null,null,null,null,null,null,{"$f":"IF(AA18=\"\",\"\",IF(AA18>AA21,Z19,IF(AA21>AA18,Z20,IF(AA18=AA21,IF(AE18>AE21,Z19,IF(AA21=AA18,IF(AE21>AE18,Z20)))))))","v":""}]
["Bts",null,null,null,"Pen",null,null,null,null,null,null,"Bts",null,null,null,"Pen",null,null,null,null,null,null,"Bts",null,null,null,"Pen",null,null,null,null,null,null,"Bts",null,null,null,"Pen"]
[{"$f":"Poules!H44","v":"SUISSE"},null,null,null,null,null,null,null,null,null,null,null,null,null,null,null,null,null,null,null,null,null,null,null,null,null,null,null,null,null,null,null,null,{"$f":"Poules!H53","v":"ARGENTINE"}]
[{"$f":"Poules!M53","v":"BOSNIE - HERZEGOVINE"},null,null,null,null,null,null,null,null,null,null,null,null,null,null,null,null,null,null,null,null,null,null,null,null,null,null,null,null,null,null,null,null,{"$f":"Poules!M44","v":"EQUATEUR"}]
["Bts",null,null,null,"Pen",null,null,null,"Bts",null,null,null,"Pen",null,null,null,null,null,null,null,null,null,null,null,null,"Bts",null,null,null,"Pen",null,null,null,"Bts",null,null,null,"Pen"]
[null,null,null,null,null,null,null,null,{"$f":"IF(B15=\"\",\"\",IF(B15>B18,A16,IF(B18>B15,A17,IF(B15=B18,IF(F15>F18,A16,IF(B18=B15,IF(F18>F15,A17)))))))","v":""},null,null,null,null,null,null,null,null,null,null,null,null,null,null,null,null,{"$f":"IF(AI15=\"\",\"\",IF(AI15>AI18,AH16,IF(AI18>AI15,AH17,IF(AI15=AI18,IF(AM15>AM18,AH16,IF(AI18=AI15,IF(AM18>AM15,AH17)))))))","v":""}]
[null,null,null,null,null,null,null,null,{"$f":"IF(B21=\"\",\"\",IF(B21>B24,A22,IF(B24>B21,A23,IF(B21=B24,IF(F21>F24,A22,IF(B24=B21,IF(F24>F21,A23)))))))","v":""},null,null,null,null,null,null,null,null,null,null,null,null,null,null,null,null,{"$f":"IF(AI21=\"\",\"\",IF(AI21>AI24,AH22,IF(AI24>AI21,AH23,IF(AI21=AI24,IF(AM21>AM24,AH22,IF(AI24=AI21,IF(AM24>AM21,AH23)))))))","v":""}]
["Bts",null,null,null,"Pen",null,null,null,"Bts",null,null,null,"Pen",null,null,null,null,null,null,null,null,null,null,null,null,"Bts",null,null,null,"Pen",null,null,null,"Bts",null,null,null,"Pen"]
[{"$f":"Poules!H62","v":"ALLEMAGNE"},null,null,null,null,null,null,null,null,null,null,null,null,null,null,null,"Bts",null,null,null,null,"Pen",null,null,null,null,null,null,null,null,null,null,null,{"$f":"Poules!H71","v":"BELGIQUE"}]
[{"$f":"Poules!M71","v":"ALGERIE"},null,null,null,null,null,null,null,null,null,null,null,null,null,null,null,{"$f":"IF(M12=\"\",\"\",IF(M12>M15,L13,IF(M15>M12,L14,IF(M12=M15,IF(Q12>Q15,L13,IF(M15=M12,IF(Q15>Q12,L14)))))))","v":""},null,null,null,null,null,null,null,null,null,null,null,null,null,null,null,null,{"$f":"Poules!M62","v":"PORTUGAL"}]
["Bts",null,null,null,"Pen",null,null,null,null,null,null,null,null,null,null,null,{"$f":"IF(X12=\"\",\"\",IF(X12>X15,W13,IF(X15>X12,W14,IF(X12=X15,IF(AB12>AB15,W13,IF(X15=X12,IF(AB15>AB12,W14)))))))","v":""},null,null,null,null,null,null,null,null,null,null,null,null,null,null,null,null,"Bts",null,null,null,"Pen"]
[null,null,null,null,null,null,null,null,null,null,null,null,null,null,null,null,"Bts",null,null,null,null,"Pen"]

{"sheet":"Pronostics","index":3,"n_rows":68,"n_cols":634,"rows_kept":68,"cut":false,"hidden":false,"merged":[[2,616,3,616],[2,620,2,622],[2,623,3,623],[2,627,2,629],[2,630,3,630],[2,599,2,601],[2,602,3,602],[2,606,2,608],[2,609,3,609],[2,613,2,615],[2,581,3,581],[2,585,2,587],[2,588,3,588],[2,592,2,594],[2,595,3,595],[2,564,2,566],[2,567,3,567],[2,571,2,573],[2,574,3,574],[2,578,2,580],[2,546,3,546],[2,550,2,552],[2,553,3,553],[2,557,2,559],[2,560,3,560],[2,529,2,531],[2,532,3,532],[2,536,2,538],[2,539,3,539],[2,543,2,545],[2,511,3,511],[2,515,2,517],[2,518,3,518],[2,522,2,524],[2,525,3,525],[2,494,2,496],[2,497,3,497],[2,501,2,503],[2,504,3,504],[2,508,2,510],[2,476,3,476],[2,480,2,482],[2,483,3,483],[2,487,2,489],[2,490,3,490],[2,459,2,461],[2,462,3,462],[2,466,2,468],[2,469,3,469],[2,473,2,475],[2,441,3,441],[2,445,2,447],[2,448,3,448],[2,452,2,454],[2,455,3,455],[2,424,2,426],[2,427,3,427],[2,431,2,433],[2,434,3,434],[2,438,2,440],[0,599,1,602],[0,606,1,609],[0,613,1,616],[0,620,1,623],[0,627,1,630],[0,564,1,567],[0,571,1,574],[0,578,1,581],[0,585,1,588],[0,592,1,595],[0,529,1,532],[0,536,1,539],[0,543,1,546],[0,550,1,553],[0,557,1,560],[0,494,1,497],[0,501,1,504],[0,508,1,511],[0,515,1,518],[0,522,1,525],[0,459,1,462],[0,466,1,469],[0,473,1,476],[0,480,1,483],[0,487,1,490],[0,424,1,427],[0,431,1,434],[0,438,1,441],[0,445,1,448],[0,452,1,455],[2,406,3,406],[2,410,2,412],[2,413,3,413],[2,417,2,419],[2,420,3,420],[2,389,2,391],[2,392,3,392],[2,396,2,398],[2,399,3,399],[2,403,2,405],[2,371,3,371],[2,375,2,377],[2,378,3,378],[2,382,2,384],[2,385,3,385],[2,354,2,356],[2,357,3,357],[2,361,2,363],[2,364,3,364],[2,368,2,370],[2,336,3,336],[2,340,2,342],[2,343,3,343],[2,347,2,349],[2,350,3,350],[2,319,2,321],[2,322,3,322],[2,326,2,328],[2,329,3,329],[2,333,2,335],[2,301,3,301],[2,305,2,307],[2,308,3,308],[2,312,2,314],[2,315,3,315],[2,284,2,286],[2,287,3,287],[2,291,2,293],[2,294,3,294],[2,298,2,300],[2,266,3,266],[2,270,2,272],[2,273,3,273],[2,277,2,279],[2,280,3,280],[0,417,1,420],[2,214,2,216],[2,217,3,217],[2,221,2,223],[2,224,3,224],[2,228,2,230],[2,231,3,231],[2,235,2,237],[2,238,3,238],[2,242,2,244],[2,245,3,245],[2,249,2,251],[2,252,3,252],[2,256,2,258],[2,259,3,259],[2,263,2,265],[0,382,1,385],[0,389,1,392],[0,396,1,399],[0,403,1,406],[0,410,1,413],[0,347,1,350],[0,354,1,357],[0,361,1,364],[0,368,1,371],[0,375,1,378],[0,312,1,315],[0,319,1,322],[0,326,1,329],[0,333,1,336],[0,340,1,343],[0,277,1,280],[0,284,1,287],[0,291,1,294],[0,298,1,301],[0,305,1,308],[0,242,1,245],[0,249,1,252],[0,256,1,259],[0,263,1,266],[0,270,1,273],[2,210,3,210],[0,214,1,217],[0,221,1,224],[0,228,1,231],[0,235,1,238],[2,193,2,195],[2,196,3,196],[2,200,2,202],[2,203,3,203],[2,207,2,209],[0,200,1,203],[0,207,1,210],[0,193,1,196],[2,175,3,175],[2,179,2,181],[2,182,3,182],[2,186,2,188],[2,189,3,189],[0,165,1,168],[0,172,1,175],[0,179,1,182],[0,186,1,189],[2,165,2,167],[2,168,3,168],[2,172,2,174],[2,137,2,139],[2,140,3,140],[0,144,1,147],[0,151,1,154],[0,158,1,161],[2,119,3,119],[2,123,2,125],[2,126,3,126],[2,130,2,132],[2,133,3,133],[0,123,1,126],[0,130,1,133],[0,137,1,140],[2,144,2,146],[2,147,3,147],[2,151,2,153],[2,154,3,154],[2,158,2,160],[2,161,3,161],[2,105,3,105],[2,109,2,111],[2,112,3,112],[2,116,2,118],[0,88,1,91],[0,95,1,98],[0,102,1,105],[0,109,1,112],[0,116,1,119],[2,88,2,90],[2,91,3,91],[2,95,2,97],[2,98,3,98],[2,102,2,104],[0,67,1,70],[2,67,2,69],[2,70,3,70],[0,74,1,77],[0,81,1,84],[0,53,1,56],[2,53,2,55],[2,56,3,56],[0,60,1,63],[2,60,2,62],[2,63,3,63],[2,74,2,76],[2,77,3,77],[2,81,2,83],[2,84,3,84],[0,39,1,42],[2,39,2,41],[2,42,3,42],[0,46,1,49],[2,46,2,48],[2,49,3,49],[0,25,1,28],[2,25,2,27],[2,28,3,28],[0,32,1,35],[2,32,2,34],[2,35,3,35],[0,11,1,14],[2,11,2,13],[2,14,3,14],[0,18,1,21],[2,18,2,20],[2,21,3,21],[0,0,2,3],[0,4,1,7],[2,4,2,6],[2,7,3,7],[3,0,3,3]]}
[null,null,null,null,"VIDE 1",null,null,null,null,null,null,"VIDE 2",null,null,null,null,null,null,"VIDE 3",null,null,null,null,null,null,"VIDE 4",null,null,null,null,null,null,"VIDE 5",null,null,null,null,null,null,"VIDE 6",null,null,null,null,null,null,"VIDE 7",null,null,null,null,null,null,"VIDE 8",null,null,null,null,null,null,"VIDE 9",null,null,null,null,null,null,"VIDE 10",null,null,null,null,null,null,"VIDE 11",null,null,null,null,null,null,"VIDE 12",null,null,null,null,null,null,"VIDE 13",null,null,null,null,null,null,"VIDE 14",null,null,null,null,null,null,"VIDE 15",null,null,null,null,null,null,"VIDE 16",null,null,null,null,null,null,"VIDE 17",null,null,null,null,null,null,"VIDE 18",null,null,null,null,null,null,"VIDE 19",null,null,null,null,null,null,"VIDE 20",null,null,null,null,null,null,"VIDE 21",null,null,null,null,null,null,"VIDE 22",null,null,null,null,null,null,"VIDE 23",null,null,null,null,null,null,"VIDE 24",null,null,null,null,null,null,"VIDE 25",null,null,null,null,null,null,"VIDE 26",null,null,null,null,null,null,"VIDE 27",null,null,null,null,null,null,"VIDE 28",null,null,null,null,null,null,"VIDE 29",null,null,null,null,null,null,"VIDE 30",null,null,null,null,null,null,"VIDE 31",null,null,null,null,null,null,"VIDE 32",null,null,null,null,null,null,"VIDE 33",null,null,null,null,null,null,"VIDE 34",null,null,null,null,null,null,"VIDE 35",null,null,null,null,null,null,"VIDE 36",null,null,null,null,null,null,"VIDE 37",null,null,null,null,null,null,"VIDE 38",null,null,null,null,null,null,"VIDE 39",null,null,null,null,null,null,"VIDE 40",null,null,null,null,null,null,"VIDE 41",null,null,null,null,null,null,"VIDE 42",null,null,null,null,null,null,"VIDE 43",null,null,null,null,null,null,"VIDE 44",null,null,null,null,null,null,"VIDE 45",null,null,null,null,null,null,"VIDE 46",null,null,null,null,null,null,"VIDE 47",null,null,null,null,null,null,"VIDE 48",null,null,null,null,null,null,"VIDE 49",null,null,null,null,null,null,"VIDE 50",null,null,null,null,null,null,"VIDE 51",null,null,null,null,null,null,"VIDE 52",null,null,null,null,null,null,"VIDE 53",null,null,null,null,null,null,"VIDE 54",null,null,null,null,null,null,"VIDE 55",null,null,null,null,null,null,"VIDE 56",null,null,null,null,null,null,"VIDE 57",null,null,null,null,null,null,"VIDE 58",null,null,null,null,null,null,"VIDE 59",null,null,null,null,null,null,"VIDE 60",null,null,null,null,null,null,"VIDE 61",null,null,null,null,null,null,"VIDE 62",null,null,null,null,null,null,"VIDE 63",null,null,null,null,null,null,"VIDE 64",null,null,null,null,null,null,"VIDE 65",null,null,null,null,null,null,"VIDE 66",null,null,null,null,null,null,"VIDE 67",null,null,null,null,null,null,"VIDE 68",null,null,null,null,null,null,"VIDE 69",null,null,null,null,null,null,"VIDE 70",null,null,null,null,null,null,"VIDE 71",null,null,null,null,null,null,"VIDE 72",null,null,null,null,null,null,"VIDE 73",null,null,null,null,null,null,"VIDE 74",null,null,null,null,null,null,"VIDE 75",null,null,null,null,null,null,"VIDE 76",null,null,null,null,null,null,"VIDE 77",null,null,null,null,null,null,"VIDE 78",null,null,null,null,null,null,"VIDE 79",null,null,null,null,null,null,"VIDE 80",null,null,null,null,null,null,"VIDE 81",null,null,null,null,null,null,"VIDE 82",null,null,null,null,null,null,"VIDE 83",null,null,null,null,null,null,"VIDE 84",null,null,null,null,null,null,"VIDE 85",null,null,null,null,null,null,"VIDE 86",null,null,null,null,null,null,"VIDE 87",null,null,null,null,null,null,"VIDE 88",null,null,null,null,null,null,"VIDE 89",null,null,null,null,null,null,"VIDE 90"]
[]
[null,null,null,null,"Pronostics",null,null,{"$f":"SUM(H5:H68)","v":0},null,null,null,"Pronostics",null,null,{"$f":"SUM(O5:O68)","v":0},null,null,null,"Pronostics",null,null,{"$f":"SUM(V5:V68)","v":0},null,null,null,"Pronostics",null,null,{"$f":"SUM(AC5:AC68)","v":0},null,null,null,"Pronostics",null,null,{"$f":"SUM(AJ5:AJ68)","v":0},null,null,null,"Pronostics",null,null,{"$f":"SUM(AQ5:AQ68)","v":0},null,null,null,"Pronostics",null,null,{"$f":"SUM(AX5:AX68)","v":0},null,null,null,"Pronostics",null,null,{"$f":"SUM(BE5:BE68)","v":0},null,null,null,"Pronostics",null,null,{"$f":"SUM(BL5:BL68)","v":0},null,null,null,"Pronostics",null,null,{"$f":"SUM(BS5:BS68)","v":0},null,null,null,"Pronostics",null,null,{"$f":"SUM(BZ5:BZ68)","v":0},null,null,null,"Pronostics",null,null,{"$f":"SUM(CG5:CG68)","v":0},null,null,null,"Pronostics",null,null,{"$f":"SUM(CN5:CN68)","v":0},null,null,null,"Pronostics",null,null,{"$f":"SUM(CU5:CU68)","v":0},null,null,null,"Pronostics",null,null,{"$f":"SUM(DB5:DB68)","v":0},null,null,null,"Pronostics",null,null,{"$f":"SUM(DI5:DI68)","v":0},null,null,null,"Pronostics",null,null,{"$f":"SUM(DP5:DP68)","v":0},null,null,null,"Pronostics",null,null,{"$f":"SUM(DW5:DW68)","v":0},null,null,null,"Pronostics",null,null,{"$f":"SUM(ED5:ED68)","v":0},null,null,null,"Pronostics",null,null,{"$f":"SUM(EK5:EK68)","v":0},null,null,null,"Pronostics",null,null,{"$f":"SUM(ER5:ER68)","v":0},null,null,null,"Pronostics",null,null,{"$f":"SUM(EY5:EY68)","v":0},null,null,null,"Pronostics",null,null,{"$f":"SUM(FF5:FF68)","v":0},null,null,null,"Pronostics",null,null,{"$f":"SUM(FM5:FM68)","v":0},null,null,null,"Pronostics",null,null,{"$f":"SUM(FT5:FT68)","v":0},null,null,null,"Pronostics",null,null,{"$f":"SUM(GA5:GA68)","v":0},null,null,null,"Pronostics",null,null,{"$f":"SUM(GH5:GH68)","v":0},null,null,null,"Pronostics",null,null,{"$f":"SUM(GO5:GO68)","v":0},null,null,null,"Pronostics",null,null,{"$f":"SUM(GV5:GV68)","v":0},null,null,null,"Pronostics",null,null,{"$f":"SUM(HC5:HC68)","v":0},null,null,null,"Pronostics",null,null,{"$f":"SUM(HJ5:HJ68)","v":0},null,null,null,"Pronostics",null,null,{"$f":"SUM(HQ5:HQ68)","v":0},null,null,null,"Pronostics",null,null,{"$f":"SUM(HX5:HX68)","v":0},null,null,null,"Pronostics",null,null,{"$f":"SUM(IE5:IE68)","v":0},null,null,null,"Pronostics",null,null,{"$f":"SUM(IL5:IL68)","v":0},null,null,null,"Pronostics",null,null,{"$f":"SUM(IS5:IS68)","v":0},null,null,null,"Pronostics",null,null,{"$f":"SUM(IZ5:IZ68)","v":0},null,null,null,"Pronostics",null,null,{"$f":"SUM(JG5:JG68)","v":0},null,null,null,"Pronostics",null,null,{"$f":"SUM(JN5:JN68)","v":0},null,null,null,"Pronostics",null,null,{"$f":"SUM(JU5:JU68)","v":0},null,null,null,"Pronostics",null,null,{"$f":"SUM(KB5:KB68)","v":0},null,null,null,"Pronostics",null,null,{"$f":"SUM(KI5:KI68)","v":0},null,null,null,"Pronostics",null,null,{"$f":"SUM(KP5:KP68)","v":0},null,null,null,"Pronostics",null,null,{"$f":"SUM(KW5:KW68)","v":0},null,null,null,"Pronostics",null,null,{"$f":"SUM(LD5:LD68)","v":0},null,null,null,"Pronostics",null,null,{"$f":"SUM(LK5:LK68)","v":0},null,null,null,"Pronostics",null,null,{"$f":"SUM(LR5:LR68)","v":0},null,null,null,"Pronostics",null,null,{"$f":"SUM(LY5:LY68)","v":0},null,null,null,"Pronostics",null,null,{"$f":"SUM(MF5:MF68)","v":0},null,null,null,"Pronostics",null,null,{"$f":"SUM(MM5:MM68)","v":0},null,null,null,"Pronostics",null,null,{"$f":"SUM(MT5:MT68)","v":0},null,null,null,"Pronostics",null,null,{"$f":"SUM(NA5:NA68)","v":0},null,null,null,"Pronostics",null,null,{"$f":"SUM(NH5:NH68)","v":0},null,null,null,"Pronostics",null,null,{"$f":"SUM(NO5:NO68)","v":0},null,null,null,"Pronostics",null,null,{"$f":"SUM(NV5:NV68)","v":0},null,null,null,"Pronostics",null,null,{"$f":"SUM(OC5:OC68)","v":0},null,null,null,"Pronostics",null,null,{"$f":"SUM(OJ5:OJ68)","v":0},null,null,null,"Pronostics",null,null,{"$f":"SUM(OQ5:OQ68)","v":0},null,null,null,"Pronostics",null,null,{"$f":"SUM(OX5:OX68)","v":0},null,null,null,"Pronostics",null,null,{"$f":"SUM(PE5:PE68)","v":0},null,null,null,"Pronostics",null,null,{"$f":"SUM(PL5:PL68)","v":0},null,null,null,"Pronostics",null,null,{"$f":"SUM(PS5:PS68)","v":0},null,null,null,"Pronostics",null,null,{"$f":"SUM(PZ5:PZ68)","v":0},null,null,null,"Pronostics",null,null,{"$f":"SUM(QG5:QG68)","v":0},null,null,null,"Pronostics",null,null,{"$f":"SUM(QN5:QN68)","v":0},null,null,null,"Pronostics",null,null,{"$f":"SUM(QU5:QU68)","v":0},null,null,null,"Pronostics",null,null,{"$f":"SUM(RB5:RB68)","v":0},null,null,null,"Pronostics",null,null,{"$f":"SUM(RI5:RI68)","v":0},null,null,null,"Pronostics",null,null,{"$f":"SUM(RP5:RP68)","v":0},null,null,null,"Pronostics",null,null,{"$f":"SUM(RW5:RW68)","v":0},null,null,null,"Pronostics",null,null,{"$f":"SUM(SD5:SD68)","v":0},null,null,null,"Pronostics",null,null,{"$f":"SUM(SK5:SK68)","v":0},null,null,null,"Pronostics",null,null,{"$f":"SUM(SR5:SR68)","v":0},null,null,null,"Pronostics",null,null,{"$f":"SUM(SY5:SY68)","v":0},null,null,null,"Pronostics",null,null,{"$f":"SUM(TF5:TF68)","v":0},null,null,null,"Pronostics",null,null,{"$f":"SUM(TM5:TM68)","v":0},null,null,null,"Pronostics",null,null,{"$f":"SUM(TT5:TT68)","v":0},null,null,null,"Pronostics",null,null,{"$f":"SUM(UA5:UA68)","v":0},null,null,null,"Pronostics",null,null,{"$f":"SUM(UH5:UH68)","v":0},null,null,null,"Pronostics",null,null,{"$f":"SUM(UO5:UO68)","v":0},null,null,null,"Pronostics",null,null,{"$f":"SUM(UV5:UV68)","v":0},null,null,null,"Pronostics",null,null,{"$f":"SUM(VC5:VC68)","v":0},null,null,null,"Pronostics",null,null,{"$f":"SUM(VJ5:VJ68)","v":0},null,null,null,"Pronostics",null,null,{"$f":"SUM(VQ5:VQ68)","v":0},null,null,null,"Pronostics",null,null,{"$f":"SUM(VX5:VX68)","v":0},null,null,null,"Pronostics",null,null,{"$f":"SUM(WE5:WE68)","v":0},null,null,null,"Pronostics",null,null,{"$f":"SUM(WL5:WL68)","v":0},null,null,null,"Pronostics",null,null,{"$f":"SUM(WS5:WS68)","v":0},null,null,null,"Pronostics",null,null,{"$f":"SUM(WZ5:WZ68)","v":0},null,null,null,"Pronostics",null,null,{"$f":"SUM(XG5:XG68)","v":0}]
[null,null,null,null,1,"N",2,null,null,null,null,1,"N",2,null,null,null,null,1,"N",2,null,null,null,null,1,"N",2,null,null,null,null,1,"N",2,null,null,null,null,1,"N",2,null,null,null,null,1,"N",2,null,null,null,null,1,"N",2,null,null,null,null,1,"N",2,null,null,null,null,1,"N",2,null,null,null,null,1,"N",2,null,null,null,null,1,"N",2,null,null,null,null,1,"N",2,null,null,null,null,1,"N",2,null,null,null,null,1,"N",2,null,null,null,null,1,"N",2,null,null,null,null,1,"N",2,null,null,null,null,1,"N",2,null,null,null,null,1,"N",2,null,null,null,null,1,"N",2,null,null,null,null,1,"N",2,null,null,null,null,1,"N",2,null,null,null,null,1,"N",2,null,null,null,null,1,"N",2,null,null,null,null,1,"N",2,null,null,null,null,1,"N",2,null,null,null,null,1,"N",2,null,null,null,null,1,"N",2,null,null,null,null,1,"N",2,null,null,null,null,1,"N",2,null,null,null,null,1,"N",2,null,null,null,null,1,"N",2,null,null,null,null,1,"N",2,null,null,null,null,1,"N",2,null,null,null,null,1,"N",2,null,null,null,null,1,"N",2,null,null,null,null,1,"N",2,null,null,null,null,1,"N",2,null,null,null,null,1,"N",2,null,null,null,null,1,"N",2,null,null,null,null,1,"N",2,null,null,null,null,1,"N",2,null,null,null,null,1,"N",2,null,null,null,null,1,"N",2,null,null,null,null,1,"N",2,null,null,null,null,1,"N",2,null,null,null,null,1,"N",2,null,null,null,null,1,"N",2,null,null,null,null,1,"N",2,null,null,null,null,1,"N",2,null,null,null,null,1,"N",2,null,null,null,null,1,"N",2,null,null,null,null,1,"N",2,null,null,null,null,1,"N",2,null,null,null,null,1,"N",2,null,null,null,null,1,"N",2,null,null,null,null,1,"N",2,null,null,null,null,1,"N",2,null,null,null,null,1,"N",2,null,null,null,null,1,"N",2,null,null,null,null,1,"N",2,null,null,null,null,1,"N",2,null,null,null,null,1,"N",2,null,null,null,null,1,"N",2,null,null,null,null,1,"N",2,null,null,null,null,1,"N",2,null,null,null,null,1,"N",2,null,null,null,null,1,"N",2,null,null,null,null,1,"N",2,null,null,null,null,1,"N",2,null,null,null,null,1,"N",2,null,null,null,null,1,"N",2,null,null,null,null,1,"N",2,null,null,null,null,1,"N",2,null,null,null,null,1,"N",2,null,null,null,null,1,"N",2,null,null,null,null,1,"N",2,null,null,null,null,1,"N",2,null,null,null,null,1,"N",2,null,null,null,null,1,"N",2,null,null,null,null,1,"N",2,null,null,null,null,1,"N",2,null,null,null,null,1,"N",2,null,null,null,null,1,"N",2,null,null,null,null,1,"N",2,null,null,null,null,1,"N",2,null,null,null,null,1,"N",2,null,null,null,null,1,"N",2,null,null,null,null,1,"N",2,null,null,null,null,1,"N",2]
[{"$f":"Poules!S4","v":"BRESIL"},{"$f":"IF(Poules!B4=\"\",\"\",Poules!B4)","v":""},{"$f":"IF(Poules!C4=\"\",\"\",Poules!C4)","v":""},{"$f":"Poules!S5","v":"CROATIE"},null,null,null,{"$f":"SUM(I5:K5)","v":0},{"$f":"IF($B5<>\"\",IF(E5=\"x\",IF($B5>$C5,3)))","v":false},{"$f":"IF($B5<>\"\",IF(F5=\"x\",IF($B5=$C5,3)))","v":false},{"$f":"IF($B5<>\"\",IF(G5=\"x\",IF($C5>$B5,3)))","v":false},null,null,null,{"$f":"SUM(P5:R5)","v":0},{"$f":"IF($B5<>\"\",IF(L5=\"x\",IF($B5>$C5,3)))","v":false},{"$f":"IF($B5<>\"\",IF(M5=\"x\",IF($B5=$C5,3)))","v":false},{"$f":"IF($B5<>\"\",IF(N5=\"x\",IF($C5>$B5,3)))","v":false},null,null,null,{"$f":"SUM(W5:Y5)","v":0},{"$f":"IF($B5<>\"\",IF(S5=\"x\",IF($B5>$C5,3)))","v":false},{"$f":"IF($B5<>\"\",IF(T5=\"x\",IF($B5=$C5,3)))","v":false},{"$f":"IF($B5<>\"\",IF(U5=\"x\",IF($C5>$B5,3)))","v":false},null,null,null,{"$f":"SUM(AD5:AF5)","v":0},{"$f":"IF($B5<>\"\",IF(Z5=\"x\",IF($B5>$C5,3)))","v":false},{"$f":"IF($B5<>\"\",IF(AA5=\"x\",IF($B5=$C5,3)))","v":false},{"$f":"IF($B5<>\"\",IF(AB5=\"x\",IF($C5>$B5,3)))","v":false},null,null,null,{"$f":"SUM(AK5:AM5)","v":0},{"$f":"IF($B5<>\"\",IF(AG5=\"x\",IF($B5>$C5,3)))","v":false},{"$f":"IF($B5<>\"\",IF(AH5=\"x\",IF($B5=$C5,3)))","v":false},{"$f":"IF($B5<>\"\",IF(AI5=\"x\",IF($C5>$B5,3)))","v":false},null,null,null,{"$f":"SUM(AR5:AT5)","v":0},{"$f":"IF($B5<>\"\",IF(AN5=\"x\",IF($B5>$C5,3)))","v":false},{"$f":"IF($B5<>\"\",IF(AO5=\"x\",IF($B5=$C5,3)))","v":false},{"$f":"IF($B5<>\"\",IF(AP5=\"x\",IF($C5>$B5,3)))","v":false},null,null,null,{"$f":"SUM(AY5:BA5)","v":0},{"$f":"IF($B5<>\"\",IF(AU5=\"x\",IF($B5>$C5,3)))","v":false},{"$f":"IF($B5<>\"\",IF(AV5=\"x\",IF($B5=$C5,3)))","v":false},{"$f":"IF($B5<>\"\",IF(AW5=\"x\",IF($C5>$B5,3)))","v":false},null,null,null,{"$f":"SUM(BF5:BH5)","v":0},{"$f":"IF($B5<>\"\",IF(BB5=\"x\",IF($B5>$C5,3)))","v":false},{"$f":"IF($B5<>\"\",IF(BC5=\"x\",IF($B5=$C5,3)))","v":false},{"$f":"IF($B5<>\"\",IF(BD5=\"x\",IF($C5>$B5,3)))","v":false},null,null,null,{"$f":"SUM(BM5:BO5)","v":0},{"$f":"IF($B5<>\"\",IF(BI5=\"x\",IF($B5>$C5,3)))","v":false},{"$f":"IF($B5<>\"\",IF(BJ5=\"x\",IF($B5=$C5,3)))","v":false},{"$f":"IF($B5<>\"\",IF(BK5=\"x\",IF($C5>$B5,3)))","v":false},null,null,null,{"$f":"SUM(BT5:BV5)","v":0},{"$f":"IF($B5<>\"\",IF(BP5=\"x\",IF($B5>$C5,3)))","v":false},{"$f":"IF($B5<>\"\",IF(BQ5=\"x\",IF($B5=$C5,3)))","v":false},{"$f":"IF($B5<>\"\",IF(BR5=\"x\",IF($C5>$B5,3)))","v":false},null,null,null,{"$f":"SUM(CA5:CC5)","v":0},{"$f":"IF($B5<>\"\",IF(BW5=\"x\",IF($B5>$C5,3)))","v":false},{"$f":"IF($B5<>\"\",IF(BX5=\"x\",IF($B5=$C5,3)))","v":false},{"$f":"IF($B5<>\"\",IF(BY5=\"x\",IF($C5>$B5,3)))","v":false},null,null,null,{"$f":"SUM(CH5:CJ5)","v":0},{"$f":"IF($B5<>\"\",IF(CD5=\"x\",IF($B5>$C5,3)))","v":false},{"$f":"IF($B5<>\"\",IF(CE5=\"x\",IF($B5=$C5,3)))","v":false},{"$f":"IF($B5<>\"\",IF(CF5=\"x\",IF($C5>$B5,3)))","v":false},null,null,null,{"$f":"SUM(CO5:CQ5)","v":0},{"$f":"IF($B5<>\"\",IF(CK5=\"x\",IF($B5>$C5,3)))","v":false},{"$f":"IF($B5<>\"\",IF(CL5=\"x\",IF($B5=$C5,3)))","v":false},{"$f":"IF($B5<>\"\",IF(CM5=\"x\",IF($C5>$B5,3)))","v":false},null,null,null,{"$f":"SUM(CV5:CX5)","v":0},{"$f":"IF($B5<>\"\",IF(CR5=\"x\",IF($B5>$C5,3)))","v":false},{"$f":"IF($B5<>\"\",IF(CS5=\"x\",IF($B5=$C5,3)))","v":false},{"$f":"IF($B5<>\"\",IF(CT5=\"x\",IF($C5>$B5,3)))","v":false},null,null,null,{"$f":"SUM(DC5:DE5)","v":0},{"$f":"IF($B5<>\"\",IF(CY5=\"x\",IF($B5>$C5,3)))","v":false},{"$f":"IF($B5<>\"\",IF(CZ5=\"x\",IF($B5=$C5,3)))","v":false},{"$f":"IF($B5<>\"\",IF(DA5=\"x\",IF($C5>$B5,3)))","v":false},null,null,null,{"$f":"SUM(DJ5:DL5)","v":0},{"$f":"IF($B5<>\"\",IF(DF5=\"x\",IF($B5>$C5,3)))","v":false},{"$f":"IF($B5<>\"\",IF(DG5=\"x\",IF($B5=$C5,3)))","v":false},{"$f":"IF($B5<>\"\",IF(DH5=\"x\",IF($C5>$B5,3)))","v":false},null,null,null,{"$f":"SUM(DQ5:DS5)","v":0},{"$f":"IF($B5<>\"\",IF(DM5=\"x\",IF($B5>$C5,3)))","v":false},{"$f":"IF($B5<>\"\",IF(DN5=\"x\",IF($B5=$C5,3)))","v":false},{"$f":"IF($B5<>\"\",IF(DO5=\"x\",IF($C5>$B5,3)))","v":false},null,null,null,{"$f":"SUM(DX5:DZ5)","v":0},{"$f":"IF($B5<>\"\",IF(DT5=\"x\",IF($B5>$C5,3)))","v":false},{"$f":"IF($B5<>\"\",IF(DU5=\"x\",IF($B5=$C5,3)))","v":false},{"$f":"IF($B5<>\"\",IF(DV5=\"x\",IF($C5>$B5,3)))","v":false},null,null,null,{"$f":"SUM(EE5:EG5)","v":0},{"$f":"IF($B5<>\"\",IF(EA5=\"x\",IF($B5>$C5,3)))","v":false},{"$f":"IF($B5<>\"\",IF(EB5=\"x\",IF($B5=$C5,3)))","v":false},{"$f":"IF($B5<>\"\",IF(EC5=\"x\",IF($C5>$B5,3)))","v":false},null,null,null,{"$f":"SUM(EL5:EN5)","v":0},{"$f":"IF($B5<>\"\",IF(EH5=\"x\",IF($B5>$C5,3)))","v":false},{"$f":"IF($B5<>\"\",IF(EI5=\"x\",IF($B5=$C5,3)))","v":false},{"$f":"IF($B5<>\"\",IF(EJ5=\"x\",IF($C5>$B5,3)))","v":false},null,null,null,{"$f":"SUM(ES5:EU5)","v":0},{"$f":"IF($B5<>\"\",IF(EO5=\"x\",IF($B5>$C5,3)))","v":false},{"$f":"IF($B5<>\"\",IF(EP5=\"x\",IF($B5=$C5,3)))","v":false},{"$f":"IF($B5<>\"\",IF(EQ5=\"x\",IF($C5>$B5,3)))","v":false},null,null,null,{"$f":"SUM(EZ5:FB5)","v":0},{"$f":"IF($B5<>\"\",IF(EV5=\"x\",IF($B5>$C5,3)))","v":false},{"$f":"IF($B5<>\"\",IF(EW5=\"x\",IF($B5=$C5,3)))","v":false},{"$f":"IF($B5<>\"\",IF(EX5=\"x\",IF($C5>$B5,3)))","v":false},null,null,null,{"$f":"SUM(FG5:FI5)","v":0},{"$f":"IF($B5<>\"\",IF(FC5=\"x\",IF($B5>$C5,3)))","v":false},{"$f":"IF($B5<>\"\",IF(FD5=\"x\",IF($B5=$C5,3)))","v":false},{"$f":"IF($B5<>\"\",IF(FE5=\"x\",IF($C5>$B5,3)))","v":false},null,null,null,{"$f":"SUM(FN5:FP5)","v":0},{"$f":"IF($B5<>\"\",IF(FJ5=\"x\",IF($B5>$C5,3)))","v":false},{"$f":"IF($B5<>\"\",IF(FK5=\"x\",IF($B5=$C5,3)))","v":false},{"$f":"IF($B5<>\"\",IF(FL5=\"x\",IF($C5>$B5,3)))","v":false},null,null,null,{"$f":"SUM(FU5:FW5)","v":0},{"$f":"IF($B5<>\"\",IF(FQ5=\"x\",IF($B5>$C5,3)))","v":false},{"$f":"IF($B5<>\"\",IF(FR5=\"x\",IF($B5=$C5,3)))","v":false},{"$f":"IF($B5<>\"\",IF(FS5=\"x\",IF($C5>$B5,3)))","v":false},null,null,null,{"$f":"SUM(GB5:GD5)","v":0},{"$f":"IF($B5<>\"\",IF(FX5=\"x\",IF($B5>$C5,3)))","v":false},{"$f":"IF($B5<>\"\",IF(FY5=\"x\",IF($B5=$C5,3)))","v":false},{"$f":"IF($B5<>\"\",IF(FZ5=\"x\",IF($C5>$B5,3)))","v":false},null,null,null,{"$f":"SUM(GI5:GK5)","v":0},{"$f":"IF($B5<>\"\",IF(GE5=\"x\",IF($B5>$C5,3)))","v":false},{"$f":"IF($B5<>\"\",IF(GF5=\"x\",IF($B5=$C5,3)))","v":false},{"$f":"IF($B5<>\"\",IF(GG5=\"x\",IF($C5>$B5,3)))","v":false},null,null,null,{"$f":"SUM(GP5:GR5)","v":0},{"$f":"IF($B5<>\"\",IF(GL5=\"x\",IF($B5>$C5,3)))","v":false},{"$f":"IF($B5<>\"\",IF(GM5=\"x\",IF($B5=$C5,3)))","v":false},{"$f":"IF($B5<>\"\",IF(GN5=\"x\",IF($C5>$B5,3)))","v":false},null,null,null,{"$f":"SUM(GW5:GY5)","v":0},{"$f":"IF($B5<>\"\",IF(GS5=\"x\",IF($B5>$C5,3)))","v":false},{"$f":"IF($B5<>\"\",IF(GT5=\"x\",IF($B5=$C5,3)))","v":false},{"$f":"IF($B5<>\"\",IF(GU5=\"x\",IF($C5>$B5,3)))","v":false},null,null,null,{"$f":"SUM(HD5:HF5)","v":0},{"$f":"IF($B5<>\"\",IF(GZ5=\"x\",IF($B5>$C5,3)))","v":false},{"$f":"IF($B5<>\"\",IF(HA5=\"x\",IF($B5=$C5,3)))","v":false},{"$f":"IF($B5<>\"\",IF(HB5=\"x\",IF($C5>$B5,3)))","v":false},null,null,null,{"$f":"SUM(HK5:HM5)","v":0},{"$f":"IF($B5<>\"\",IF(HG5=\"x\",IF($B5>$C5,3)))","v":false},{"$f":"IF($B5<>\"\",IF(HH5=\"x\",IF($B5=$C5,3)))","v":false},{"$f":"IF($B5<>\"\",IF(HI5=\"x\",IF($C5>$B5,3)))","v":false},null,null,null,{"$f":"SUM(HR5:HT5)","v":0},{"$f":"IF($B5<>\"\",IF(HN5=\"x\",IF($B5>$C5,3)))","v":false},{"$f":"IF($B5<>\"\",IF(HO5=\"x\",IF($B5=$C5,3)))","v":false},{"$f":"IF($B5<>\"\",IF(HP5=\"x\",IF($C5>$B5,3)))","v":false},null,null,null,{"$f":"SUM(HY5:IA5)","v":0},{"$f":"IF($B5<>\"\",IF(HU5=\"x\",IF($B5>$C5,3)))","v":false},{"$f":"IF($B5<>\"\",IF(HV5=\"x\",IF($B5=$C5,3)))","v":false},{"$f":"IF($B5<>\"\",IF(HW5=\"x\",IF($C5>$B5,3)))","v":false},null,null,null,{"$f":"SUM(IF5:IH5)","v":0},{"$f":"IF($B5<>\"\",IF(IB5=\"x\",IF($B5>$C5,3)))","v":false},{"$f":"IF($B5<>\"\",IF(IC5=\"x\",IF($B5=$C5,3)))","v":false},{"$f":"IF($B5<>\"\",IF(ID5=\"x\",IF($C5>$B5,3)))","v":false},null,null,null,{"$f":"SUM(IM5:IO5)","v":0},{"$f":"IF($B5<>\"\",IF(II5=\"x\",IF($B5>$C5,3)))","v":false},{"$f":"IF($B5<>\"\",IF(IJ5=\"x\",IF($B5=$C5,3)))","v":false},{"$f":"IF($B5<>\"\",IF(IK5=\"x\",IF($C5>$B5,3)))","v":false},null,null,null,{"$f":"SUM(IT5:IV5)","v":0},{"$f":"IF($B5<>\"\",IF(IP5=\"x\",IF($B5>$C5,3)))","v":false},{"$f":"IF($B5<>\"\",IF(IQ5=\"x\",IF($B5=$C5,3)))","v":false},{"$f":"IF($B5<>\"\",IF(IR5=\"x\",IF($C5>$B5,3)))","v":false},null,null,null,{"$f":"SUM(JA5:JC5)","v":0},{"$f":"IF($B5<>\"\",IF(IW5=\"x\",IF($B5>$C5,3)))","v":false},{"$f":"IF($B5<>\"\",IF(IX5=\"x\",IF($B5=$C5,3)))","v":false},{"$f":"IF($B5<>\"\",IF(IY5=\"x\",IF($C5>$B5,3)))","v":false},null,null,null,{"$f":"SUM(JH5:JJ5)","v":0},{"$f":"IF($B5<>\"\",IF(JD5=\"x\",IF($B5>$C5,3)))","v":false},{"$f":"IF($B5<>\"\",IF(JE5=\"x\",IF($B5=$C5,3)))","v":false},{"$f":"IF($B5<>\"\",IF(JF5=\"x\",IF($C5>$B5,3)))","v":false},null,null,null,{"$f":"SUM(JO5:JQ5)","v":0},{"$f":"IF($B5<>\"\",IF(JK5=\"x\",IF($B5>$C5,3)))","v":false},{"$f":"IF($B5<>\"\",IF(JL5=\"x\",IF($B5=$C5,3)))","v":false},{"$f":"IF($B5<>\"\",IF(JM5=\"x\",IF($C5>$B5,3)))","v":false},null,null,null,{"$f":"SUM(JV5:JX5)","v":0},{"$f":"IF($B5<>\"\",IF(JR5=\"x\",IF($B5>$C5,3)))","v":false},{"$f":"IF($B5<>\"\",IF(JS5=\"x\",IF($B5=$C5,3)))","v":false},{"$f":"IF($B5<>\"\",IF(JT5=\"x\",IF($C5>$B5,3)))","v":false},null,null,null,{"$f":"SUM(KC5:KE5)","v":0},{"$f":"IF($B5<>\"\",IF(JY5=\"x\",IF($B5>$C5,3)))","v":false},{"$f":"IF($B5<>\"\",IF(JZ5=\"x\",IF($B5=$C5,3)))","v":false},{"$f":"IF($B5<>\"\",IF(KA5=\"x\",IF($C5>$B5,3)))","v":false},null,null,null,{"$f":"SUM(KJ5:KL5)","v":0},{"$f":"IF($B5<>\"\",IF(KF5=\"x\",IF($B5>$C5,3)))","v":false},{"$f":"IF($B5<>\"\",IF(KG5=\"x\",IF($B5=$C5,3)))","v":false},{"$f":"IF($B5<>\"\",IF(KH5=\"x\",IF($C5>$B5,3)))","v":false},null,null,null,{"$f":"SUM(KQ5:KS5)","v":0},{"$f":"IF($B5<>\"\",IF(KM5=\"x\",IF($B5>$C5,3)))","v":false},{"$f":"IF($B5<>\"\",IF(KN5=\"x\",IF($B5=$C5,3)))","v":false},{"$f":"IF($B5<>\"\",IF(KO5=\"x\",IF($C5>$B5,3)))","v":false},null,null,null,{"$f":"SUM(KX5:KZ5)","v":0},{"$f":"IF($B5<>\"\",IF(KT5=\"x\",IF($B5>$C5,3)))","v":false},{"$f":"IF($B5<>\"\",IF(KU5=\"x\",IF($B5=$C5,3)))","v":false},{"$f":"IF($B5<>\"\",IF(KV5=\"x\",IF($C5>$B5,3)))","v":false},null,null,null,{"$f":"SUM(LE5:LG5)","v":0},{"$f":"IF($B5<>\"\",IF(LA5=\"x\",IF($B5>$C5,3)))","v":false},{"$f":"IF($B5<>\"\",IF(LB5=\"x\",IF($B5=$C5,3)))","v":false},{"$f":"IF($B5<>\"\",IF(LC5=\"x\",IF($C5>$B5,3)))","v":false},null,null,null,{"$f":"SUM(LL5:LN5)","v":0},{"$f":"IF($B5<>\"\",IF(LH5=\"x\",IF($B5>$C5,3)))","v":false},{"$f":"IF($B5<>\"\",IF(LI5=\"x\",IF($B5=$C5,3)))","v":false},{"$f":"IF($B5<>\"\",IF(LJ5=\"x\",IF($C5>$B5,3)))","v":false},null,null,null,{"$f":"SUM(LS5:LU5)","v":0},{"$f":"IF($B5<>\"\",IF(LO5=\"x\",IF($B5>$C5,3)))","v":false},{"$f":"IF($B5<>\"\",IF(LP5=\"x\",IF($B5=$C5,3)))","v":false},{"$f":"IF($B5<>\"\",IF(LQ5=\"x\",IF($C5>$B5,3)))","v":false},null,null,null,{"$f":"SUM(LZ5:MB5)","v":0},{"$f":"IF($B5<>\"\",IF(LV5=\"x\",IF($B5>$C5,3)))","v":false},{"$f":"IF($B5<>\"\",IF(LW5=\"x\",IF($B5=$C5,3)))","v":false},{"$f":"IF($B5<>\"\",IF(LX5=\"x\",IF($C5>$B5,3)))","v":false},null,null,null,{"$f":"SUM(MG5:MI5)","v":0},{"$f":"IF($B5<>\"\",IF(MC5=\"x\",IF($B5>$C5,3)))","v":false},{"$f":"IF($B5<>\"\",IF(MD5=\"x\",IF($B5=$C5,3)))","v":false},{"$f":"IF($B5<>\"\",IF(ME5=\"x\",IF($C5>$B5,3)))","v":false},null,null,null,{"$f":"SUM(MN5:MP5)","v":0},{"$f":"IF($B5<>\"\",IF(MJ5=\"x\",IF($B5>$C5,3)))","v":false},{"$f":"IF($B5<>\"\",IF(MK5=\"x\",IF($B5=$C5,3)))","v":false},{"$f":"IF($B5<>\"\",IF(ML5=\"x\",IF($C5>$B5,3)))","v":false},null,null,null,{"$f":"SUM(MU5:MW5)","v":0},{"$f":"IF($B5<>\"\",IF(MQ5=\"x\",IF($B5>$C5,3)))","v":false},{"$f":"IF($B5<>\"\",IF(MR5=\"x\",IF($B5=$C5,3)))","v":false},{"$f":"IF($B5<>\"\",IF(MS5=\"x\",IF($C5>$B5,3)))","v":false},null,null,null,{"$f":"SUM(NB5:ND5)","v":0},{"$f":"IF($B5<>\"\",IF(MX5=\"x\",IF($B5>$C5,3)))","v":false},{"$f":"IF($B5<>\"\",IF(MY5=\"x\",IF($B5=$C5,3)))","v":false},{"$f":"IF($B5<>\"\",IF(MZ5=\"x\",IF($C5>$B5,3)))","v":false},null,null,null,{"$f":"SUM(NI5:NK5)","v":0},{"$f":"IF($B5<>\"\",IF(NE5=\"x\",IF($B5>$C5,3)))","v":false},{"$f":"IF($B5<>\"\",IF(NF5=\"x\",IF($B5=$C5,3)))","v":false},{"$f":"IF($B5<>\"\",IF(NG5=\"x\",IF($C5>$B5,3)))","v":false},null,null,null,{"$f":"SUM(NP5:NR5)","v":0},{"$f":"IF($B5<>\"\",IF(NL5=\"x\",IF($B5>$C5,3)))","v":false},{"$f":"IF($B5<>\"\",IF(NM5=\"x\",IF($B5=$C5,3)))","v":false},{"$f":"IF($B5<>\"\",IF(NN5=\"x\",IF($C5>$B5,3)))","v":false},null,null,null,{"$f":"SUM(NW5:NY5)","v":0},{"$f":"IF($B5<>\"\",IF(NS5=\"x\",IF($B5>$C5,3)))","v":false},{"$f":"IF($B5<>\"\",IF(NT5=\"x\",IF($B5=$C5,3)))","v":false},{"$f":"IF($B5<>\"\",IF(NU5=\"x\",IF($C5>$B5,3)))","v":false},null,null,null,{"$f":"SUM(OD5:OF5)","v":0},{"$f":"IF($B5<>\"\",IF(NZ5=\"x\",IF($B5>$C5,3)))","v":false},{"$f":"IF($B5<>\"\",IF(OA5=\"x\",IF($B5=$C5,3)))","v":false},{"$f":"IF($B5<>\"\",IF(OB5=\"x\",IF($C5>$B5,3)))","v":false},null,null,null,{"$f":"SUM(OK5:OM5)","v":0},{"$f":"IF($B5<>\"\",IF(OG5=\"x\",IF($B5>$C5,3)))","v":false},{"$f":"IF($B5<>\"\",IF(OH5=\"x\",IF($B5=$C5,3)))","v":false},{"$f":"IF($B5<>\"\",IF(OI5=\"x\",IF($C5>$B5,3)))","v":false},null,null,null,{"$f":"SUM(OR5:OT5)","v":0},{"$f":"IF($B5<>\"\",IF(ON5=\"x\",IF($B5>$C5,3)))","v":false},{"$f":"IF($B5<>\"\",IF(OO5=\"x\",IF($B5=$C5,3)))","v":false},{"$f":"IF($B5<>\"\",IF(OP5=\"x\",IF($C5>$B5,3)))","v":false},null,null,null,{"$f":"SUM(OY5:PA5)","v":0},{"$f":"IF($B5<>\"\",IF(OU5=\"x\",IF($B5>$C5,3)))","v":false},{"$f":"IF($B5<>\"\",IF(OV5=\"x\",IF($B5=$C5,3)))","v":false},{"$f":"IF($B5<>\"\",IF(OW5=\"x\",IF($C5>$B5,3)))","v":false},null,null,null,{"$f":"SUM(PF5:PH5)","v":0},{"$f":"IF($B5<>\"\",IF(PB5=\"x\",IF($B5>$C5,3)))","v":false},{"$f":"IF($B5<>\"\",IF(PC5=\"x\",IF($B5=$C5,3)))","v":false},{"$f":"IF($B5<>\"\",IF(PD5=\"x\",IF($C5>$B5,3)))","v":false},null,null,null,{"$f":"SUM(PM5:PO5)","v":0},{"$f":"IF($B5<>\"\",IF(PI5=\"x\",IF($B5>$C5,3)))","v":false},{"$f":"IF($B5<>\"\",IF(PJ5=\"x\",IF($B5=$C5,3)))","v":false},{"$f":"IF($B5<>\"\",IF(PK5=\"x\",IF($C5>$B5,3)))","v":false},null,null,null,{"$f":"SUM(PT5:PV5)","v":0},{"$f":"IF($B5<>\"\",IF(PP5=\"x\",IF($B5>$C5,3)))","v":false},{"$f":"IF($B5<>\"\",IF(PQ5=\"x\",IF($B5=$C5,3)))","v":false},{"$f":"IF($B5<>\"\",IF(PR5=\"x\",IF($C5>$B5,3)))","v":false},null,null,null,{"$f":"SUM(QA5:QC5)","v":0},{"$f":"IF($B5<>\"\",IF(PW5=\"x\",IF($B5>$C5,3)))","v":false},{"$f":"IF($B5<>\"\",IF(PX5=\"x\",IF($B5=$C5,3)))","v":false},{"$f":"IF($B5<>\"\",IF(PY5=\"x\",IF($C5>$B5,3)))","v":false},null,null,null,{"$f":"SUM(QH5:QJ5)","v":0},{"$f":"IF($B5<>\"\",IF(QD5=\"x\",IF($B5>$C5,3)))","v":false},{"$f":"IF($B5<>\"\",IF(QE5=\"x\",IF($B5=$C5,3)))","v":false},{"$f":"IF($B5<>\"\",IF(QF5=\"x\",IF($C5>$B5,3)))","v":false},null,null,null,{"$f":"SUM(QO5:QQ5)","v":0},{"$f":"IF($B5<>\"\",IF(QK5=\"x\",IF($B5>$C5,3)))","v":false},{"$f":"IF($B5<>\"\",IF(QL5=\"x\",IF($B5=$C5,3)))","v":false},{"$f":"IF($B5<>\"\",IF(QM5=\"x\",IF($C5>$B5,3)))","v":false},null,null,null,{"$f":"SUM(QV5:QX5)","v":0},{"$f":"IF($B5<>\"\",IF(QR5=\"x\",IF($B5>$C5,3)))","v":false},{"$f":"IF($B5<>\"\",IF(QS5=\"x\",IF($B5=$C5,3)))","v":false},{"$f":"IF($B5<>\"\",IF(QT5=\"x\",IF($C5>$B5,3)))","v":false},null,null,null,{"$f":"SUM(RC5:RE5)","v":0},{"$f":"IF($B5<>\"\",IF(QY5=\"x\",IF($B5>$C5,3)))","v":false},{"$f":"IF($B5<>\"\",IF(QZ5=\"x\",IF($B5=$C5,3)))","v":false},{"$f":"IF($B5<>\"\",IF(RA5=\"x\",IF($C5>$B5,3)))","v":false},null,null,null,{"$f":"SUM(RJ5:RL5)","v":0},{"$f":"IF($B5<>\"\",IF(RF5=\"x\",IF($B5>$C5,3)))","v":false},{"$f":"IF($B5<>\"\",IF(RG5=\"x\",IF($B5=$C5,3)))","v":false},{"$f":"IF($B5<>\"\",IF(RH5=\"x\",IF($C5>$B5,3)))","v":false},null,null,null,{"$f":"SUM(RQ5:RS5)","v":0},{"$f":"IF($B5<>\"\",IF(RM5=\"x\",IF($B5>$C5,3)))","v":false},{"$f":"IF($B5<>\"\",IF(RN5=\"x\",IF($B5=$C5,3)))","v":false},{"$f":"IF($B5<>\"\",IF(RO5=\"x\",IF($C5>$B5,3)))","v":false},null,null,null,{"$f":"SUM(RX5:RZ5)","v":0},{"$f":"IF($B5<>\"\",IF(RT5=\"x\",IF($B5>$C5,3)))","v":false},{"$f":"IF($B5<>\"\",IF(RU5=\"x\",IF($B5=$C5,3)))","v":false},{"$f":"IF($B5<>\"\",IF(RV5=\"x\",IF($C5>$B5,3)))","v":false},null,null,null,{"$f":"SUM(SE5:SG5)","v":0},{"$f":"IF($B5<>\"\",IF(SA5=\"x\",IF($B5>$C5,3)))","v":false},{"$f":"IF($B5<>\"\",IF(SB5=\"x\",IF($B5=$C5,3)))","v":false},{"$f":"IF($B5<>\"\",IF(SC5=\"x\",IF($C5>$B5,3)))","v":false},null,null,null,{"$f":"SUM(SL5:SN5)","v":0},{"$f":"IF($B5<>\"\",IF(SH5=\"x\",IF($B5>$C5,3)))","v":false},{"$f":"IF($B5<>\"\",IF(SI5=\"x\",IF($B5=$C5,3)))","v":false},{"$f":"IF($B5<>\"\",IF(SJ5=\"x\",IF($C5>$B5,3)))","v":false},null,null,null,{"$f":"SUM(SS5:SU5)","v":0},{"$f":"IF($B5<>\"\",IF(SO5=\"x\",IF($B5>$C5,3)))","v":false},{"$f":"IF($B5<>\"\",IF(SP5=\"x\",IF($B5=$C5,3)))","v":false},{"$f":"IF($B5<>\"\",IF(SQ5=\"x\",IF($C5>$B5,3)))","v":false},null,null,null,{"$f":"SUM(SZ5:TB5)","v":0},{"$f":"IF($B5<>\"\",IF(SV5=\"x\",IF($B5>$C5,3)))","v":false},{"$f":"IF($B5<>\"\",IF(SW5=\"x\",IF($B5=$C5,3)))","v":false},{"$f":"IF($B5<>\"\",IF(SX5=\"x\",IF($C5>$B5,3)))","v":false},null,null,null,{"$f":"SUM(TG5:TI5)","v":0},{"$f":"IF($B5<>\"\",IF(TC5=\"x\",IF($B5>$C5,3)))","v":false},{"$f":"IF($B5<>\"\",IF(TD5=\"x\",IF($B5=$C5,3)))","v":false},{"$f":"IF($B5<>\"\",IF(TE5=\"x\",IF($C5>$B5,3)))","v":false},null,null,null,{"$f":"SUM(TN5:TP5)","v":0},{"$f":"IF($B5<>\"\",IF(TJ5=\"x\",IF($B5>$C5,3)))","v":false},{"$f":"IF($B5<>\"\",IF(TK5=\"x\",IF($B5=$C5,3)))","v":false},{"$f":"IF($B5<>\"\",IF(TL5=\"x\",IF($C5>$B5,3)))","v":false},null,null,null,{"$f":"SUM(TU5:TW5)","v":0},{"$f":"IF($B5<>\"\",IF(TQ5=\"x\",IF($B5>$C5,3)))","v":false},{"$f":"IF($B5<>\"\",IF(TR5=\"x\",IF($B5=$C5,3)))","v":false},{"$f":"IF($B5<>\"\",IF(TS5=\"x\",IF($C5>$B5,3)))","v":false},null,null,null,{"$f":"SUM(UB5:UD5)","v":0},{"$f":"IF($B5<>\"\",IF(TX5=\"x\",IF($B5>$C5,3)))","v":false},{"$f":"IF($B5<>\"\",IF(TY5=\"x\",IF($B5=$C5,3)))","v":false},{"$f":"IF($B5<>\"\",IF(TZ5=\"x\",IF($C5>$B5,3)))","v":false},null,null,null,{"$f":"SUM(UI5:UK5)","v":0},{"$f":"IF($B5<>\"\",IF(UE5=\"x\",IF($B5>$C5,3)))","v":false},{"$f":"IF($B5<>\"\",IF(UF5=\"x\",IF($B5=$C5,3)))","v":false},{"$f":"IF($B5<>\"\",IF(UG5=\"x\",IF($C5>$B5,3)))","v":false},null,null,null,{"$f":"SUM(UP5:UR5)","v":0},{"$f":"IF($B5<>\"\",IF(UL5=\"x\",IF($B5>$C5,3)))","v":false},{"$f":"IF($B5<>\"\",IF(UM5=\"x\",IF($B5=$C5,3)))","v":false},{"$f":"IF($B5<>\"\",IF(UN5=\"x\",IF($C5>$B5,3)))","v":false},null,null,null,{"$f":"SUM(UW5:UY5)","v":0},{"$f":"IF($B5<>\"\",IF(US5=\"x\",IF($B5>$C5,3)))","v":false},{"$f":"IF($B5<>\"\",IF(UT5=\"x\",IF($B5=$C5,3)))","v":false},{"$f":"IF($B5<>\"\",IF(UU5=\"x\",IF($C5>$B5,3)))","v":false},null,null,null,{"$f":"SUM(VD5:VF5)","v":0},{"$f":"IF($B5<>\"\",IF(UZ5=\"x\",IF($B5>$C5,3)))","v":false},{"$f":"IF($B5<>\"\",IF(VA5=\"x\",IF($B5=$C5,3)))","v":false},{"$f":"IF($B5<>\"\",IF(VB5=\"x\",IF($C5>$B5,3)))","v":false},null,null,null,{"$f":"SUM(VK5:VM5)","v":0},{"$f":"IF($B5<>\"\",IF(VG5=\"x\",IF($B5>$C5,3)))","v":false},{"$f":"IF($B5<>\"\",IF(VH5=\"x\",IF($B5=$C5,3)))","v":false},{"$f":"IF($B5<>\"\",IF(VI5=\"x\",IF($C5>$B5,3)))","v":false},null,null,null,{"$f":"SUM(VR5:VT5)","v":0},{"$f":"IF($B5<>\"\",IF(VN5=\"x\",IF($B5>$C5,3)))","v":false},{"$f":"IF($B5<>\"\",IF(VO5=\"x\",IF($B5=$C5,3)))","v":false},{"$f":"IF($B5<>\"\",IF(VP5=\"x\",IF($C5>$B5,3)))","v":false},null,null,null,{"$f":"SUM(VY5:WA5)","v":0},{"$f":"IF($B5<>\"\",IF(VU5=\"x\",IF($B5>$C5,3)))","v":false},{"$f":"IF($B5<>\"\",IF(VV5=\"x\",IF($B5=$C5,3)))","v":false},{"$f":"IF($B5<>\"\",IF(VW5=\"x\",IF($C5>$B5,3)))","v":false},null,null,null,{"$f":"SUM(WF5:WH5)","v":0},{"$f":"IF($B5<>\"\",IF(WB5=\"x\",IF($B5>$C5,3)))","v":false},{"$f":"IF($B5<>\"\",IF(WC5=\"x\",IF($B5=$C5,3)))","v":false},{"$f":"IF($B5<>\"\",IF(WD5=\"x\",IF($C5>$B5,3)))","v":false},null,null,null,{"$f":"SUM(WM5:WO5)","v":0},{"$f":"IF($B5<>\"\",IF(WI5=\"x\",IF($B5>$C5,3)))","v":false},{"$f":"IF($B5<>\"\",IF(WJ5=\"x\",IF($B5=$C5,3)))","v":false},{"$f":"IF($B5<>\"\",IF(WK5=\"x\",IF($C5>$B5,3)))","v":false},null,null,null,{"$f":"SUM(WT5:WV5)","v":0},{"$f":"IF($B5<>\"\",IF(WP5=\"x\",IF($B5>$C5,3)))","v":false},{"$f":"IF($B5<>\"\",IF(WQ5=\"x\",IF($B5=$C5,3)))","v":false},{"$f":"IF($B5<>\"\",IF(WR5=\"x\",IF($C5>$B5,3)))","v":false},null,null,null,{"$f":"SUM(XA5:XC5)","v":0},{"$f":"IF($B5<>\"\",IF(WW5=\"x\",IF($B5>$C5,3)))","v":false},{"$f":"IF($B5<>\"\",IF(WX5=\"x\",IF($B5=$C5,3)))","v":false},{"$f":"IF($B5<>\"\",IF(WY5=\"x\",IF($C5>$B5,3)))","v":false},null,null,null,{"$f":"SUM(XH5:XJ5)","v":0},{"$f":"IF($B5<>\"\",IF(XD5=\"x\",IF($B5>$C5,3)))","v":false},{"$f":"IF($B5<>\"\",IF(XE5=\"x\",IF($B5=$C5,3)))","v":false},{"$f":"IF($B5<>\"\",IF(XF5=\"x\",IF($C5>$B5,3)))","v":false}]
[{"$f":"Poules!S6","v":"MEXIQUE"},{"$f":"IF(Poules!B5=\"\",\"\",Poules!B5)","v":""},{"$f":"IF(Poules!C5=\"\",\"\",Poules!C5)","v":""},{"$f":"Poules!S7","v":"CAMEROUN"},null,null,null,{"$f":"SUM(I6:K6)","v":0},{"$f":"IF($B6<>\"\",IF(E6=\"x\",IF($B6>$C6,3)))","v":false},{"$f":"IF($B6<>\"\",IF(F6=\"x\",IF($B6=$C6,3)))","v":false},{"$f":"IF($B6<>\"\",IF(G6=\"x\",IF($C6>$B6,3)))","v":false},null,null,null,0,false,false,false,null,null,null,0,false,false,false,null,null,null,0,false,false,false,null,null,null,0,false,false,false,null,null,null,0,false,false,false,null,null,null,0,false,false,false,null,null,null,0,false,false,false,null,null,null,0,false,false,false,null,null,null,0,false,false,false,null,null,null,0,false,false,false,null,null,null,0,false,false,false,null,null,null,0,false,false,false,null,null,null,0,false,false,false,null,null,null,0,false,false,false,null,null,null,0,false,false,false,null,null,null,0,false,false,false,null,null,null,0,false,false,false,null,null,null,0,false,false,false,null,null,null,0,false,false,false,null,null,null,0,false,false,false,null,null,null,0,false,false,false,null,null,null,0,false,false,false,null,null,null,0,false,false,false,null,null,null,0,false,false,false,null,null,null,0,false,false,false,null,null,null,0,false,false,false,null,null,null,0,false,false,false,null,null,null,0,false,false,false,null,null,null,0,false,false,false,null,null,null,0,false,false,false,null,null,null,0,false,false,false,null,null,null,0,false,false,false,null,null,null,0,false,false,false,null,null,null,0,false,false,false,null,null,null,0,false,false,false,null,null,null,0,false,false,false,null,null,null,0,false,false,false,null,null,null,0,false,false,false,null,null,null,0,false,false,false,null,null,null,0,false,false,false,null,null,null,0,false,false,false,null,null,null,0,false,false,false,null,null,null,0,false,false,false,null,null,null,0,false,false,false,null,null,null,0,false,false,false,null,null,null,0,false,false,false,null,null,null,0,false,false,false,null,null,null,0,false,false,false,null,null,null,0,false,false,false,null,null,null,0,false,false,false,null,null,null,0,false,false,false,null,null,null,0,false,false,false,null,null,null,0,false,false,false,null,null,null,0,false,false,false,null,null,null,0,false,false,false,null,null,null,0,false,false,false,null,null,null,0,false,false,false,null,null,null,0,false,false,false,null,null,null,0,false,false,false,null,null,null,0,false,false,false,null,null,null,0,false,false,false,null,null,null,0,false,false,false,null,null,null,0,false,false,false,null,null,null,0,false,false,false,null,null,null,0,false,false,false,null,null,null,0,false,false,false,null,null,null,0,false,false,false,null,null,null,0,false,false,false,null,null,null,0,false,false,false,null,null,null,0,false,false,false,null,null,null,0,false,false,false,null,null,null,0,false,false,false,null,null,null,0,false,false,false,null,null,null,0,false,false,false,null,null,null,0,false,false,false,null,null,null,0,false,false,false,null,null,null,0,false,false,false,null,null,null,0,false,false,false,null,null,null,0,false,false,false,null,null,null,0,false,false,false,null,null,null,0,false,false,false,null,null,null,0,false,false,false,null,null,null,0,false,false,false,null,null,null,0,false,false,false,null,null,null,0,false,false,false,null,null,null,0,false,false,false,null,null,null,0,false,false,false,null,null,null,0,false,false,false,null,null,null,0,false,false,false]
[{"$f":"Poules!S13","v":"ESPAGNE"},{"$f":"IF(Poules!B13=\"\",\"\",Poules!B13)","v":""},{"$f":"IF(Poules!C13=\"\",\"\",Poules!C13)","v":""},{"$f":"Poules!S14","v":"PAYS - BAS"},null,null,null,0,false,false,false,null,null,null,0,false,false,false,null,null,null,0,false,false,false,null,null,null,0,false,false,false,null,null,null,0,false,false,false,null,null,null,0,false,false,false,null,null,null,0,false,false,false,null,null,null,0,false,false,false,null,null,null,0,false,false,false,null,null,null,0,false,false,false,null,null,null,0,false,false,false,null,null,null,0,false,false,false,null,null,null,0,false,false,false,null,null,null,0,false,false,false,null,null,null,0,false,false,false,null,null,null,0,false,false,false,null,null,null,0,false,false,false,null,null,null,0,false,false,false,null,null,null,0,false,false,false,null,null,null,0,false,false,false,null,null,null,0,false,false,false,null,null,null,0,false,false,false,null,null,null,0,false,false,false,null,null,null,0,false,false,false,null,null,null,0,false,false,false,null,null,null,0,false,false,false,null,null,null,0,false,false,false,null,null,null,0,false,false,false,null,null,null,0,false,false,false,null,null,null,0,false,false,false,null,null,null,0,false,false,false,null,null,null,0,false,false,false,null,null,null,0,false,false,false,null,null,null,0,false,false,false,null,null,null,0,false,false,false,null,null,null,0,false,false,false,null,null,null,0,false,false,false,null,null,null,0,false,false,false,null,null,null,0,false,false,false,null,null,null,0,false,false,false,null,null,null,0,false,false,false,null,null,null,0,false,false,false,null,null,null,0,false,false,false,null,null,null,0,false,false,false,null,null,null,0,false,false,false,null,null,null,0,false,false,false,null,null,null,0,false,false,false,null,null,null,0,false,false,false,null,null,null,0,false,false,false,null,null,null,0,false,false,false,null,null,null,0,false,false,false,null,null,null,0,false,false,false,null,null,null,0,false,false,false,null,null,null,0,false,false,false,null,null,null,0,false,false,false,null,null,null,0,false,false,false,null,null,null,0,false,false,false,null,null,null,0,false,false,false,null,null,null,0,false,false,false,null,null,null,0,false,false,false,null,null,null,0,false,false,false,null,null,null,0,false,false,false,null,null,null,0,false,false,false,null,null,null,0,false,false,false,null,null,null,0,false,false,false,null,null,null,0,false,false,false,null,null,null,0,false,false,false,null,null,null,0,false,false,false,null,null,null,0,false,false,false,null,null,null,0,false,false,false,null,null,null,0,false,false,false,null,null,null,0,false,false,false,null,null,null,0,false,false,false,null,null,null,0,false,false,false,null,null,null,0,false,false,false,null,null,null,0,false,false,false,null,null,null,0,false,false,false,null,null,null,0,false,false,false,null,null,null,0,false,false,false,null,null,null,0,false,false,false,null,null,null,0,false,false,false,null,null,null,0,false,false,false,null,null,null,0,false,false,false,null,null,null,0,false,false,false,null,null,null,0,false,false,false,null,null,null,0,false,false,false,null,null,null,0,false,false,false,null,null,null,0,false,false,false,null,null,null,0,false,false,false,null,null,null,0,false,false,false]
[{"$f":"Poules!S15","v":"CHILI"},{"$f":"IF(Poules!B14=\"\",\"\",Poules!B14)","v":""},{"$f":"IF(Poules!C14=\"\",\"\",Poules!C14)","v":""},{"$f":"Poules!S16","v":"AUSTRALIE"},null,null,null,0,false,false,false,null,null,null,0,false,false,false,null,null,null,0,false,false,false,null,null,null,0,false,false,false,null,null,null,0,false,false,false,null,null,null,0,false,false,false,null,null,null,0,false,false,false,null,null,null,0,false,false,false,null,null,null,0,false,false,false,null,null,null,0,false,false,false,null,null,null,0,false,false,false,null,null,null,0,false,false,false,null,null,null,0,false,false,false,null,null,null,0,false,false,false,null,null,null,0,false,false,false,null,null,null,0,false,false,false,null,null,null,0,false,false,false,null,null,null,0,false,false,false,null,null,null,0,false,false,false,null,null,null,0,false,false,false,null,null,null,0,false,false,false,null,null,null,0,false,false,false,null,null,null,0,false,false,false,null,null,null,0,false,false,false,null,null,null,0,false,false,false,null,null,null,0,false,false,false,null,null,null,0,false,false,false,null,null,null,0,false,false,false,null,null,null,0,false,false,false,null,null,null,0,false,false,false,null,null,null,0,false,false,false,null,null,null,0,false,false,false,null,null,null,0,false,false,false,null,null,null,0,false,false,false,null,null,null,0,false,false,false,null,null,null,0,false,false,false,null,null,null,0,false,false,false,null,null,null,0,false,false,false,null,null,null,0,false,false,false,null,null,null,0,false,false,false,null,null,null,0,false,false,false,null,null,null,0,false,false,false,null,null,null,0,false,false,false,null,null,null,0,false,false,false,null,null,null,0,false,false,false,null,null,null,0,false,false,false,null,null,null,0,false,false,false,null,null,null,0,false,false,false,null,null,null,0,false,false,false,null,null,null,0,false,false,false,null,null,null,0,false,false,false,null,null,null,0,false,false,false,null,null,null,0,false,false,false,null,null,null,0,false,false,false,null,null,null,0,false,false,false,null,null,null,0,false,false,false,null,null,null,0,false,false,false,null,null,null,0,false,false,false,null,null,null,0,false,false,false,null,null,null,0,false,false,false,null,null,null,0,false,false,false,null,null,null,0,false,false,false,null,null,null,0,false,false,false,null,null,null,0,false,false,false,null,null,null,0,false,false,false,null,null,null,0,false,false,false,null,null,null,0,false,false,false,null,null,null,0,false,false,false,null,null,null,0,false,false,false,null,null,null,0,false,false,false,null,null,null,0,false,false,false,null,null,null,0,false,false,false,null,null,null,0,false,false,false,null,null,null,0,false,false,false,null,null,null,0,false,false,false,null,null,null,0,false,false,false,null,null,null,0,false,false,false,null,null,null,0,false,false,false,null,null,null,0,false,false,false,null,null,null,0,false,false,false,null,null,null,0,false,false,false,null,null,null,0,false,false,false,null,null,null,0,false,false,false,null,null,null,0,false,false,false,null,null,null,0,false,false,false,null,null,null,0,false,false,false,null,null,null,0,false,false,false,null,null,null,0,false,false,false,null,null,null,0,false,false,false,null,null,null,0,false,false,false]
[{"$f":"Poules!S22","v":"COLOMBIE"},{"$f":"IF(Poules!B22=\"\",\"\",Poules!B22)","v":""},{"$f":"IF(Poules!C22=\"\",\"\",Poules!C22)","v":""},{"$f":"Poules!S23","v":"GRECE"},null,null,null,0,false,false,false,null,null,null,0,false,false,false,null,null,null,0,false,false,false,null,null,null,0,false,false,false,null,null,null,0,false,false,false,null,null,null,0,false,false,false,null,null,null,0,false,false,false,null,null,null,0,false,false,false,null,null,null,0,false,false,false,null,null,null,0,false,false,false,null,null,null,0,false,false,false,null,null,null,0,false,false,false,null,null,null,0,false,false,false,null,null,null,0,false,false,false,null,null,null,0,false,false,false,null,null,null,0,false,false,false,null,null,null,0,false,false,false,null,null,null,0,false,false,false,null,null,null,0,false,false,false,null,null,null,0,false,false,false,null,null,null,0,false,false,false,null,null,null,0,false,false,false,null,null,null,0,false,false,false,null,null,null,0,false,false,false,null,null,null,0,false,false,false,null,null,null,0,false,false,false,null,null,null,0,false,false,false,null,null,null,0,false,false,false,null,null,null,0,false,false,false,null,null,null,0,false,false,false,null,null,null,0,false,false,false,null,null,null,0,false,false,false,null,null,null,0,false,false,false,null,null,null,0,false,false,false,null,null,null,0,false,false,false,null,null,null,0,false,false,false,null,null,null,0,false,false,false,null,null,null,0,false,false,false,null,null,null,0,false,false,false,null,null,null,0,false,false,false,null,null,null,0,false,false,false,null,null,null,0,false,false,false,null,null,null,0,false,false,false,null,null,null,0,false,false,false,null,null,null,0,false,false,false,null,null,null,0,false,false,false,null,null,null,0,false,false,false,null,null,null,0,false,false,false,null,null,null,0,false,false,false,null,null,null,0,false,false,false,null,null,null,0,false,false,false,null,null,null,0,false,false,false,null,null,null,0,false,false,false,null,null,null,0,false,false,false,null,null,null,0,false,false,false,null,null,null,0,false,false,false,null,null,null,0,false,false,false,null,null,null,0,false,false,false,null,null,null,0,false,false,false,null,null,null,0,false,false,false,null,null,null,0,false,false,false,null,null,null,0,false,false,false,null,null,null,0,false,false,false,null,null,null,0,false,false,false,null,null,null,0,false,false,false,null,null,null,0,false,false,false,null,null,null,0,false,false,false,null,null,null,0,false,false,false,null,null,null,0,false,false,false,null,null,null,0,false,false,false,null,null,null,0,false,false,false,null,null,null,0,false,false,false,null,null,null,0,false,false,false,null,null,null,0,false,false,false,null,null,null,0,false,false,false,null,null,null,0,false,false,false,null,null,null,0,false,false,false,null,null,null,0,false,false,false,null,null,null,0,false,false,false,null,null,null,0,false,false,false,null,null,null,0,false,false,false,null,null,null,0,false,false,false,null,null,null,0,false,false,false,null,null,null,0,false,false,false,null,null,null,0,false,false,false,null,null,null,0,false,false,false,null,null,null,0,false,false,false,null,null,null,0,false,false,false,null,null,null,0,false,false,false,null,null,null,0,false,false,false]
[{"$f":"Poules!S31","v":"URUGUAY"},{"$f":"IF(Poules!B31=\"\",\"\",Poules!B31)","v":""},{"$f":"IF(Poules!C31=\"\",\"\",Poules!C31)","v":""},{"$f":"Poules!S32","v":"COSTA RICA"},null,null,null,0,false,false,false,null,null,null,0,false,false,false,null,null,null,0,false,false,false,null,null,null,0,false,false,false,null,null,null,0,false,false,false,null,null,null,0,false,false,false,null,null,null,0,false,false,false,null,null,null,0,false,false,false,null,null,null,0,false,false,false,null,null,null,0,false,false,false,null,null,null,0,false,false,false,null,null,null,0,false,false,false,null,null,null,0,false,false,false,null,null,null,0,false,false,false,null,null,null,0,false,false,false,null,null,null,0,false,false,false,null,null,null,0,false,false,false,null,null,null,0,false,false,false,null,null,null,0,false,false,false,null,null,null,0,false,false,false,null,null,null,0,false,false,false,null,null,null,0,false,false,false,null,null,null,0,false,false,false,null,null,null,0,false,false,false,null,null,null,0,false,false,false,null,null,null,0,false,false,false,null,null,null,0,false,false,false,null,null,null,0,false,false,false,null,null,null,0,false,false,false,null,null,null,0,false,false,false,null,null,null,0,false,false,false,null,null,null,0,false,false,false,null,null,null,0,false,false,false,null,null,null,0,false,false,false,null,null,null,0,false,false,false,null,null,null,0,false,false,false,null,null,null,0,false,false,false,null,null,null,0,false,false,false,null,null,null,0,false,false,false,null,null,null,0,false,false,false,null,null,null,0,false,false,false,null,null,null,0,false,false,false,null,null,null,0,false,false,false,null,null,null,0,false,false,false,null,null,null,0,false,false,false,null,null,null,0,false,false,false,null,null,null,0,false,false,false,null,null,null,0,false,false,false,null,null,null,0,false,false,false,null,null,null,0,false,false,false,null,null,null,0,false,false,false,null,null,null,0,false,false,false,null,null,null,0,false,false,false,null,null,null,0,false,false,false,null,null,null,0,false,false,false,null,null,null,0,false,false,false,null,null,null,0,false,false,false,null,null,null,0,false,false,false,null,null,null,0,false,false,false,null,null,null,0,false,false,false,null,null,null,0,false,false,false,null,null,null,0,false,false,false,null,null,null,0,false,false,false,null,null,null,0,false,false,false,null,null,null,0,false,false,false,null,null,null,0,false,false,false,null,null,null,0,false,false,false,null,null,null,0,false,false,false,null,null,null,0,false,false,false,null,null,null,0,false,false,false,null,null,null,0,false,false,false,null,null,null,0,false,false,false,null,null,null,0,false,false,false,null,null,null,0,false,false,false,null,null,null,0,false,false,false,null,null,null,0,false,false,false,null,null,null,0,false,false,false,null,null,null,0,false,false,false,null,null,null,0,false,false,false,null,null,null,0,false,false,false,null,null,null,0,false,false,false,null,null,null,0,false,false,false,null,null,null,0,false,false,false,null,null,null,0,false,false,false,null,null,null,0,false,false,false,null,null,null,0,false,false,false,null,null,null,0,false,false,false,null,null,null,0,false,false,false,null,null,null,0,false,false,false,null,null,null,0,false,false,false]
[{"$f":"Poules!S33","v":"ANGLETERRE"},{"$f":"IF(Poules!B32=\"\",\"\",Poules!B32)","v":""},{"$f":"IF(Poules!C32=\"\",\"\",Poules!C32)","v":""},{"$f":"Poules!S34","v":"ITALIE"},null,null,null,0,false,false,false,null,null,null,0,false,false,false,null,null,null,0,false,false,false,null,null,null,0,false,false,false,null,null,null,0,false,false,false,null,null,null,0,false,false,false,null,null,null,0,false,false,false,null,null,null,0,false,false,false,null,null,null,0,false,false,false,null,null,null,0,false,false,false,null,null,null,0,false,false,false,null,null,null,0,false,false,false,null,null,null,0,false,false,false,null,null,null,0,false,false,false,null,null,null,0,false,false,false,null,null,null,0,false,false,false,null,null,null,0,false,false,false,null,null,null,0,false,false,false,null,null,null,0,false,false,false,null,null,null,0,false,false,false,null,null,null,0,false,false,false,null,null,null,0,false,false,false,null,null,null,0,false,false,false,null,null,null,0,false,false,false,null,null,null,0,false,false,false,null,null,null,0,false,false,false,null,null,null,0,false,false,false,null,null,null,0,false,false,false,null,null,null,0,false,false,false,null,null,null,0,false,false,false,null,null,null,0,false,false,false,null,null,null,0,false,false,false,null,null,null,0,false,false,false,null,null,null,0,false,false,false,null,null,null,0,false,false,false,null,null,null,0,false,false,false,null,null,null,0,false,false,false,null,null,null,0,false,false,false,null,null,null,0,false,false,false,null,null,null,0,false,false,false,null,null,null,0,false,false,false,null,null,null,0,false,false,false,null,null,null,0,false,false,false,null,null,null,0,false,false,false,null,null,null,0,false,false,false,null,null,null,0,false,false,false,null,null,null,0,false,false,false,null,null,null,0,false,false,false,null,null,null,0,false,false,false,null,null,null,0,false,false,false,null,null,null,0,false,false,false,null,null,null,0,false,false,false,null,null,null,0,false,false,false,null,null,null,0,false,false,false,null,null,null,0,false,false,false,null,null,null,0,false,false,false,null,null,null,0,false,false,false,null,null,null,0,false,false,false,null,null,null,0,false,false,false,null,null,null,0,false,false,false,null,null,null,0,false,false,false,null,null,null,0,false,false,false,null,null,null,0,false,false,false,null,null,null,0,false,false,false,null,null,null,0,false,false,false,null,null,null,0,false,false,false,null,null,null,0,false,false,false,null,null,null,0,false,false,false,null,null,null,0,false,false,false,null,null,null,0,false,false,false,null,null,null,0,false,false,false,null,null,null,0,false,false,false,null,null,null,0,false,false,false,null,null,null,0,false,false,false,null,null,null,0,false,false,false,null,null,null,0,false,false,false,null,null,null,0,false,false,false,null,null,null,0,false,false,false,null,null,null,0,false,false,false,null,null,null,0,false,false,false,null,null,null,0,false,false,false,null,null,null,0,false,false,false,null,null,null,0,false,false,false,null,null,null,0,false,false,false,null,null,null,0,false,false,false,null,null,null,0,false,false,false,null,null,null,0,false,false,false,null,null,null,0,false,false,false,null,null,null,0,false,false,false,null,null,null,0,false,false,false]
[{"$f":"Poules!S24","v":"CÔTE D'IVOIRE"},{"$f":"IF(Poules!B23=\"\",\"\",Poules!B23)","v":""},{"$f":"IF(Poules!C23=\"\",\"\",Poules!C23)","v":""},{"$f":"Poules!S25","v":"JAPON"},null,null,null,0,false,false,false,null,null,null,0,false,false,false,null,null,null,0,false,false,false,null,null,null,0,false,false,false,null,null,null,0,false,false,false,null,null,null,0,false,false,false,null,null,null,0,false,false,false,null,null,null,0,false,false,false,null,null,null,0,false,false,false,null,null,null,0,false,false,false,null,null,null,0,false,false,false,null,null,null,0,false,false,false,null,null,null,0,false,false,false,null,null,null,0,false,false,false,null,null,null,0,false,false,false,null,null,null,0,false,false,false,null,null,null,0,false,false,false,null,null,null,0,false,false,false,null,null,null,0,false,false,false,null,null,null,0,false,false,false,null,null,null,0,false,false,false,null,null,null,0,false,false,false,null,null,null,0,false,false,false,null,null,null,0,false,false,false,null,null,null,0,false,false,false,null,null,null,0,false,false,false,null,null,null,0,false,false,false,null,null,null,0,false,false,false,null,null,null,0,false,false,false,null,null,null,0,false,false,false,null,null,null,0,false,false,false,null,null,null,0,false,false,false,null,null,null,0,false,false,false,null,null,null,0,false,false,false,null,null,null,0,false,false,false,null,null,null,0,false,false,false,null,null,null,0,false,false,false,null,null,null,0,false,false,false,null,null,null,0,false,false,false,null,null,null,0,false,false,false,null,null,null,0,false,false,false,null,null,null,0,false,false,false,null,null,null,0,false,false,false,null,null,null,0,false,false,false,null,null,null,0,false,false,false,null,null,null,0,false,false,false,null,null,null,0,false,false,false,null,null,null,0,false,false,false,null,null,null,0,false,false,false,null,null,null,0,false,false,false,null,null,null,0,false,false,false,null,null,null,0,false,false,false,null,null,null,0,false,false,false,null,null,null,0,false,false,false,null,null,null,0,false,false,false,null,null,null,0,false,false,false,null,null,null,0,false,false,false,null,null,null,0,false,false,false,null,null,null,0,false,false,false,null,null,null,0,false,false,false,null,null,null,0,false,false,false,null,null,null,0,false,false,false,null,null,null,0,false,false,false,null,null,null,0,false,false,false,null,null,null,0,false,false,false,null,null,null,0,false,false,false,null,null,null,0,false,false,false,null,null,null,0,false,false,false,null,null,null,0,false,false,false,null,null,null,0,false,false,false,null,null,null,0,false,false,false,null,null,null,0,false,false,false,null,null,null,0,false,false,false,null,null,null,0,false,false,false,null,null,null,0,false,false,false,null,null,null,0,false,false,false,null,null,null,0,false,false,false,null,null,null,0,false,false,false,null,null,null,0,false,false,false,null,null,null,0,false,false,false,null,null,null,0,false,false,false,null,null,null,0,false,false,false,null,null,null,0,false,false,false,null,null,null,0,false,false,false,null,null,null,0,false,false,false,null,null,null,0,false,false,false,null,null,null,0,false,false,false,null,null,null,0,false,false,false,null,null,null,0,false,false,false,null,null,null,0,false,false,false]
[{"$f":"Poules!S40","v":"SUISSE"},{"$f":"IF(Poules!B40=\"\",\"\",Poules!B40)","v":""},{"$f":"IF(Poules!C40=\"\",\"\",Poules!C40)","v":""},{"$f":"Poules!S41","v":"EQUATEUR"},null,null,null,0,false,false,false,null,null,null,0,false,false,false,null,null,null,0,false,false,false,null,null,null,0,false,false,false,null,null,null,0,false,false,false,null,null,null,0,false,false,false,null,null,null,0,false,false,false,null,null,null,0,false,false,false,null,null,null,0,false,false,false,null,null,null,0,false,false,false,null,null,null,0,false,false,false,null,null,null,0,false,false,false,null,null,null,0,false,false,false,null,null,null,0,false,false,false,null,null,null,0,false,false,false,null,null,null,0,false,false,false,null,null,null,0,false,false,false,null,null,null,0,false,false,false,null,null,null,0,false,false,false,null,null,null,0,false,false,false,null,null,null,0,false,false,false,null,null,null,0,false,false,false,null,null,null,0,false,false,false,null,null,null,0,false,false,false,null,null,null,0,false,false,false,null,null,null,0,false,false,false,null,null,null,0,false,false,false,null,null,null,0,false,false,false,null,null,null,0,false,false,false,null,null,null,0,false,false,false,null,null,null,0,false,false,false,null,null,null,0,false,false,false,null,null,null,0,false,false,false,null,null,null,0,false,false,false,null,null,null,0,false,false,false,null,null,null,0,false,false,false,null,null,null,0,false,false,false,null,null,null,0,false,false,false,null,null,null,0,false,false,false,null,null,null,0,false,false,false,null,null,null,0,false,false,false,null,null,null,0,false,false,false,null,null,null,0,false,false,false,null,null,null,0,false,false,false,null,null,null,0,false,false,false,null,null,null,0,false,false,false,null,null,null,0,false,false,false,null,null,null,0,false,false,false,null,null,null,0,false,false,false,null,null,null,0,false,false,false,null,null,null,0,false,false,false,null,null,null,0,false,false,false,null,null,null,0,false,false,false,null,null,null,0,false,false,false,null,null,null,0,false,false,false,null,null,null,0,false,false,false,null,null,null,0,false,false,false,null,null,null,0,false,false,false,null,null,null,0,false,false,false,null,null,null,0,false,false,false,null,null,null,0,false,false,false,null,null,null,0,false,false,false,null,null,null,0,false,false,false,null,null,null,0,false,false,false,null,null,null,0,false,false,false,null,null,null,0,false,false,false,null,null,null,0,false,false,false,null,null,null,0,false,false,false,null,null,null,0,false,false,false,null,null,null,0,false,false,false,null,null,null,0,false,false,false,null,null,null,0,false,false,false,null,null,null,0,false,false,false,null,null,null,0,false,false,false,null,null,null,0,false,false,false,null,null,null,0,false,false,false,null,null,null,0,false,false,false,null,null,null,0,false,false,false,null,null,null,0,false,false,false,null,null,null,0,false,false,false,null,null,null,0,false,false,false,null,null,null,0,false,false,false,null,null,null,0,false,false,false,null,null,null,0,false,false,false,null,null,null,0,false,false,false,null,null,null,0,false,false,false,null,null,null,0,false,false,false,null,null,null,0,false,false,false,null,null,null,0,false,false,false,null,null,null,0,false,false,false]
[{"$f":"Poules!S42","v":"FRANCE"},{"$f":"IF(Poules!B41=\"\",\"\",Poules!B41)","v":""},{"$f":"IF(Poules!C41=\"\",\"\",Poules!C41)","v":""},{"$f":"Poules!S43","v":"HONDURAS"},null,null,null,0,false,false,false,null,null,null,0,false,false,false,null,null,null,0,false,false,false,null,null,null,0,false,false,false,null,null,null,0,false,false,false,null,null,null,0,false,false,false,null,null,null,0,false,false,false,null,null,null,0,false,false,false,null,null,null,0,false,false,false,null,null,null,0,false,false,false,null,null,null,0,false,false,false,null,null,null,0,false,false,false,null,null,null,0,false,false,false,null,null,null,0,false,false,false,null,null,null,0,false,false,false,null,null,null,0,false,false,false,null,null,null,0,false,false,false,null,null,null,0,false,false,false,null,null,null,0,false,false,false,null,null,null,0,false,false,false,null,null,null,0,false,false,false,null,null,null,0,false,false,false,null,null,null,0,false,false,false,null,null,null,0,false,false,false,null,null,null,0,false,false,false,null,null,null,0,false,false,false,null,null,null,0,false,false,false,null,null,null,0,false,false,false,null,null,null,0,false,false,false,null,null,null,0,false,false,false,null,null,null,0,false,false,false,null,null,null,0,false,false,false,null,null,null,0,false,false,false,null,null,null,0,false,false,false,null,null,null,0,false,false,false,null,null,null,0,false,false,false,null,null,null,0,false,false,false,null,null,null,0,false,false,false,null,null,null,0,false,false,false,null,null,null,0,false,false,false,null,null,null,0,false,false,false,null,null,null,0,false,false,false,null,null,null,0,false,false,false,null,null,null,0,false,false,false,null,null,null,0,false,false,false,null,null,null,0,false,false,false,null,null,null,0,false,false,false,null,null,null,0,false,false,false,null,null,null,0,false,false,false,null,null,null,0,false,false,false,null,null,null,0,false,false,false,null,null,null,0,false,false,false,null,null,null,0,false,false,false,null,null,null,0,false,false,false,null,null,null,0,false,false,false,null,null,null,0,false,false,false,null,null,null,0,false,false,false,null,null,null,0,false,false,false,null,null,null,0,false,false,false,null,null,null,0,false,false,false,null,null,null,0,false,false,false,null,null,null,0,false,false,false,null,null,null,0,false,false,false,null,null,null,0,false,false,false,null,null,null,0,false,false,false,null,null,null,0,false,false,false,null,null,null,0,false,false,false,null,null,null,0,false,false,false,null,null,null,0,false,false,false,null,null,null,0,false,false,false,null,null,null,0,false,false,false,null,null,null,0,false,false,false,null,null,null,0,false,false,false,null,null,null,0,false,false,false,null,null,null,0,false,false,false,null,null,null,0,false,false,false,null,null,null,0,false,false,false,null,null,null,0,false,false,false,null,null,null,0,false,false,false,null,null,null,0,false,false,false,null,null,null,0,false,false,false,null,null,null,0,false,false,false,null,null,null,0,false,false,false,null,null,null,0,false,false,false,null,null,null,0,false,false,false,null,null,null,0,false,false,false,null,null,null,0,false,false,false,null,null,null,0,false,false,false,null,null,null,0,false,false,false,null,null,null,0,false,false,false]
[{"$f":"Poules!S49","v":"ARGENTINE"},{"$f":"IF(Poules!B49=\"\",\"\",Poules!B49)","v":""},{"$f":"IF(Poules!C49=\"\",\"\",Poules!C49)","v":""},{"$f":"Poules!S50","v":"BOSNIE - HERZEGOVINE"},null,null,null,0,false,false,false,null,null,null,0,false,false,false,null,null,null,0,false,false,false,null,null,null,0,false,false,false,null,null,null,0,false,false,false,null,null,null,0,false,false,false,null,null,null,0,false,false,false,null,null,null,0,false,false,false,null,null,null,0,false,false,false,null,null,null,0,false,false,false,null,null,null,0,false,false,false,null,null,null,0,false,false,false,null,null,null,0,false,false,false,null,null,null,0,false,false,false,null,null,null,0,false,false,false,null,null,null,0,false,false,false,null,null,null,0,false,false,false,null,null,null,0,false,false,false,null,null,null,0,false,false,false,null,null,null,0,false,false,false,null,null,null,0,false,false,false,null,null,null,0,false,false,false,null,null,null,0,false,false,false,null,null,null,0,false,false,false,null,null,null,0,false,false,false,null,null,null,0,false,false,false,null,null,null,0,false,false,false,null,null,null,0,false,false,false,null,null,null,0,false,false,false,null,null,null,0,false,false,false,null,null,null,0,false,false,false,null,null,null,0,false,false,false,null,null,null,0,false,false,false,null,null,null,0,false,false,false,null,null,null,0,false,false,false,null,null,null,0,false,false,false,null,null,null,0,false,false,false,null,null,null,0,false,false,false,null,null,null,0,false,false,false,null,null,null,0,false,false,false,null,null,null,0,false,false,false,null,null,null,0,false,false,false,null,null,null,0,false,false,false,null,null,null,0,false,false,false,null,null,null,0,false,false,false,null,null,null,0,false,false,false,null,null,null,0,false,false,false,null,null,null,0,false,false,false,null,null,null,0,false,false,false,null,null,null,0,false,false,false,null,null,null,0,false,false,false,null,null,null,0,false,false,false,null,null,null,0,false,false,false,null,null,null,0,false,false,false,null,null,null,0,false,false,false,null,null,null,0,false,false,false,null,null,null,0,false,false,false,null,null,null,0,false,false,false,null,null,null,0,false,false,false,null,null,null,0,false,false,false,null,null,null,0,false,false,false,null,null,null,0,false,false,false,null,null,null,0,false,false,false,null,null,null,0,false,false,false,null,null,null,0,false,false,false,null,null,null,0,false,false,false,null,null,null,0,false,false,false,null,null,null,0,false,false,false,null,null,null,0,false,false,false,null,null,null,0,false,false,false,null,null,null,0,false,false,false,null,null,null,0,false,false,false,null,null,null,0,false,false,false,null,null,null,0,false,false,false,null,null,null,0,false,false,false,null,null,null,0,false,false,false,null,null,null,0,false,false,false,null,null,null,0,false,false,false,null,null,null,0,false,false,false,null,null,null,0,false,false,false,null,null,null,0,false,false,false,null,null,null,0,false,false,false,null,null,null,0,false,false,false,null,null,null,0,false,false,false,null,null,null,0,false,false,false,null,null,null,0,false,false,false,null,null,null,0,false,false,false,null,null,null,0,false,false,false,null,null,null,0,false,false,false,null,null,null,0,false,false,false]
[{"$f":"Poules!S58","v":"ALLEMAGNE"},{"$f":"IF(Poules!B58=\"\",\"\",Poules!B58)","v":""},{"$f":"IF(Poules!C58=\"\",\"\",Poules!C58)","v":""},{"$f":"Poules!S59","v":"PORTUGAL"},null,null,null,0,false,false,false,null,null,null,0,false,false,false,null,null,null,0,false,false,false,null,null,null,0,false,false,false,null,null,null,0,false,false,false,null,null,null,0,false,false,false,null,null,null,0,false,false,false,null,null,null,0,false,false,false,null,null,null,0,false,false,false,null,null,null,0,false,false,false,null,null,null,0,false,false,false,null,null,null,0,false,false,false,null,null,null,0,false,false,false,null,null,null,0,false,false,false,null,null,null,0,false,false,false,null,null,null,0,false,false,false,null,null,null,0,false,false,false,null,null,null,0,false,false,false,null,null,null,0,false,false,false,null,null,null,0,false,false,false,null,null,null,0,false,false,false,null,null,null,0,false,false,false,null,null,null,0,false,false,false,null,null,null,0,false,false,false,null,null,null,0,false,false,false,null,null,null,0,false,false,false,null,null,null,0,false,false,false,null,null,null,0,false,false,false,null,null,null,0,false,false,false,null,null,null,0,false,false,false,null,null,null,0,false,false,false,null,null,null,0,false,false,false,null,null,null,0,false,false,false,null,null,null,0,false,false,false,null,null,null,0,false,false,false,null,null,null,0,false,false,false,null,null,null,0,false,false,false,null,null,null,0,false,false,false,null,null,null,0,false,false,false,null,null,null,0,false,false,false,null,null,null,0,false,false,false,null,null,null,0,false,false,false,null,null,null,0,false,false,false,null,null,null,0,false,false,false,null,null,null,0,false,false,false,null,null,null,0,false,false,false,null,null,null,0,false,false,false,null,null,null,0,false,false,false,null,null,null,0,false,false,false,null,null,null,0,false,false,false,null,null,null,0,false,false,false,null,null,null,0,false,false,false,null,null,null,0,false,false,false,null,null,null,0,false,false,false,null,null,null,0,false,false,false,null,null,null,0,false,false,false,null,null,null,0,false,false,false,null,null,null,0,false,false,false,null,null,null,0,false,false,false,null,null,null,0,false,false,false,null,null,null,0,false,false,false,null,null,null,0,false,false,false,null,null,null,0,false,false,false,null,null,null,0,false,false,false,null,null,null,0,false,false,false,null,null,null,0,false,false,false,null,null,null,0,false,false,false,null,null,null,0,false,false,false,null,null,null,0,false,false,false,null,null,null,0,false,false,false,null,null,null,0,false,false,false,null,null,null,0,false,false,false,null,null,null,0,false,false,false,null,null,null,0,false,false,false,null,null,null,0,false,false,false,null,null,null,0,false,false,false,null,null,null,0,false,false,false,null,null,null,0,false,false,false,null,null,null,0,false,false,false,null,null,null,0,false,false,false,null,null,null,0,false,false,false,null,null,null,0,false,false,false,null,null,null,0,false,false,false,null,null,null,0,false,false,false,null,null,null,0,false,false,false,null,null,null,0,false,false,false,null,null,null,0,false,false,false,null,null,null,0,false,false,false,null,null,null,0,false,false,false,null,null,null,0,false,false,false]
[{"$f":"Poules!S51","v":"IRAN"},{"$f":"IF(Poules!B50=\"\",\"\",Poules!B50)","v":""},{"$f":"IF(Poules!C50=\"\",\"\",Poules!C50)","v":""},{"$f":"Poules!S52","v":"NIGERIA"},null,null,null,0,false,false,false,null,null,null,0,false,false,false,null,null,null,0,false,false,false,null,null,null,0,false,false,false,null,null,null,0,false,false,false,null,null,null,0,false,false,false,null,null,null,0,false,false,false,null,null,null,0,false,false,false,null,null,null,0,false,false,false,null,null,null,0,false,false,false,null,null,null,0,false,false,false,null,null,null,0,false,false,false,null,null,null,0,false,false,false,null,null,null,0,false,false,false,null,null,null,0,false,false,false,null,null,null,0,false,false,false,null,null,null,0,false,false,false,null,null,null,0,false,false,false,null,null,null,0,false,false,false,null,null,null,0,false,false,false,null,null,null,0,false,false,false,null,null,null,0,false,false,false,null,null,null,0,false,false,false,null,null,null,0,false,false,false,null,null,null,0,false,false,false,null,null,null,0,false,false,false,null,null,null,0,false,false,false,null,null,null,0,false,false,false,null,null,null,0,false,false,false,null,null,null,0,false,false,false,null,null,null,0,false,false,false,null,null,null,0,false,false,false,null,null,null,0,false,false,false,null,null,null,0,false,false,false,null,null,null,0,false,false,false,null,null,null,0,false,false,false,null,null,null,0,false,false,false,null,null,null,0,false,false,false,null,null,null,0,false,false,false,null,null,null,0,false,false,false,null,null,null,0,false,false,false,null,null,null,0,false,false,false,null,null,null,0,false,false,false,null,null,null,0,false,false,false,null,null,null,0,false,false,false,null,null,null,0,false,false,false,null,null,null,0,false,false,false,null,null,null,0,false,false,false,null,null,null,0,false,false,false,null,null,null,0,false,false,false,null,null,null,0,false,false,false,null,null,null,0,false,false,false,null,null,null,0,false,false,false,null,null,null,0,false,false,false,null,null,null,0,false,false,false,null,null,null,0,false,false,false,null,null,null,0,false,false,false,null,null,null,0,false,false,false,null,null,null,0,false,false,false,null,null,null,0,false,false,false,null,null,null,0,false,false,false,null,null,null,0,false,false,false,null,null,null,0,false,false,false,null,null,null,0,false,false,false,null,null,null,0,false,false,false,null,null,null,0,false,false,false,null,null,null,0,false,false,false,null,null,null,0,false,false,false,null,null,null,0,false,false,false,null,null,null,0,false,false,false,null,null,null,0,false,false,false,null,null,null,0,false,false,false,null,null,null,0,false,false,false,null,null,null,0,false,false,false,null,null,null,0,false,false,false,null,null,null,0,false,false,false,null,null,null,0,false,false,false,null,null,null,0,false,false,false,null,null,null,0,false,false,false,null,null,null,0,false,false,false,null,null,null,0,false,false,false,null,null,null,0,false,false,false,null,null,null,0,false,false,false,null,null,null,0,false,false,false,null,null,null,0,false,false,false,null,null,null,0,false,false,false,null,null,null,0,false,false,false,null,null,null,0,false,false,false,null,null,null,0,false,false,false,null,null,null,0,false,false,false]
[{"$f":"Poules!S60","v":"GHANA"},{"$f":"IF(Poules!B59=\"\",\"\",Poules!B59)","v":""},{"$f":"IF(Poules!C59=\"\",\"\",Poules!C59)","v":""},{"$f":"Poules!S61","v":"U.S.A"},null,null,null,0,false,false,false,null,null,null,0,false,false,false,null,null,null,0,false,false,false,null,null,null,0,false,false,false,null,null,null,0,false,false,false,null,null,null,0,false,false,false,null,null,null,0,false,false,false,null,null,null,0,false,false,false,null,null,null,0,false,false,false,null,null,null,0,false,false,false,null,null,null,0,false,false,false,null,null,null,0,false,false,false,null,null,null,0,false,false,false,null,null,null,0,false,false,false,null,null,null,0,false,false,false,null,null,null,0,false,false,false,null,null,null,0,false,false,false,null,null,null,0,false,false,false,null,null,null,0,false,false,false,null,null,null,0,false,false,false,null,null,null,0,false,false,false,null,null,null,0,false,false,false,null,null,null,0,false,false,false,null,null,null,0,false,false,false,null,null,null,0,false,false,false,null,null,null,0,false,false,false,null,null,null,0,false,false,false,null,null,null,0,false,false,false,null,null,null,0,false,false,false,null,null,null,0,false,false,false,null,null,null,0,false,false,false,null,null,null,0,false,false,false,null,null,null,0,false,false,false,null,null,null,0,false,false,false,null,null,null,0,false,false,false,null,null,null,0,false,false,false,null,null,null,0,false,false,false,null,null,null,0,false,false,false,null,null,null,0,false,false,false,null,null,null,0,false,false,false,null,null,null,0,false,false,false,null,null,null,0,false,false,false,null,null,null,0,false,false,false,null,null,null,0,false,false,false,null,null,null,0,false,false,false,null,null,null,0,false,false,false,null,null,null,0,false,false,false,null,null,null,0,false,false,false,null,null,null,0,false,false,false,null,null,null,0,false,false,false,null,null,null,0,false,false,false,null,null,null,0,false,false,false,null,null,null,0,false,false,false,null,null,null,0,false,false,false,null,null,null,0,false,false,false,null,null,null,0,false,false,false,null,null,null,0,false,false,false,null,null,null,0,false,false,false,null,null,null,0,false,false,false,null,null,null,0,false,false,false,null,null,null,0,false,false,false,null,null,null,0,false,false,false,null,null,null,0,false,false,false,null,null,null,0,false,false,false,null,null,null,0,false,false,false,null,null,null,0,false,false,false,null,null,null,0,false,false,false,null,null,null,0,false,false,false,null,null,null,0,false,false,false,null,null,null,0,false,false,false,null,null,null,0,false,false,false,null,null,null,0,false,false,false,null,null,null,0,false,false,false,null,null,null,0,false,false,false,null,null,null,0,false,false,false,null,null,null,0,false,false,false,null,null,null,0,false,false,false,null,null,null,0,false,false,false,null,null,null,0,false,false,false,null,null,null,0,false,false,false,null,null,null,0,false,false,false,null,null,null,0,false,false,false,null,null,null,0,false,false,false,null,null,null,0,false,false,false,null,null,null,0,false,false,false,null,null,null,0,false,false,false,null,null,null,0,false,false,false,null,null,null,0,false,false,false,null,null,null,0,false,false,false,null,null,null,0,false,false,false]
[{"$f":"Poules!S67","v":"BELGIQUE"},{"$f":"IF(Poules!B67=\"\",\"\",Poules!B67)","v":""},{"$f":"IF(Poules!C67=\"\",\"\",Poules!C67)","v":""},{"$f":"Poules!S68","v":"ALGERIE"},null,null,null,0,false,false,false,null,null,null,0,false,false,false,null,null,null,0,false,false,false,null,null,null,0,false,false,false,null,null,null,0,false,false,false,null,null,null,0,false,false,false,null,null,null,0,false,false,false,null,null,null,0,false,false,false,null,null,null,0,false,false,false,null,null,null,0,false,false,false,null,null,null,0,false,false,false,null,null,null,0,false,false,false,null,null,null,0,false,false,false,null,null,null,0,false,false,false,null,null,null,0,false,false,false,null,null,null,0,false,false,false,null,null,null,0,false,false,false,null,null,null,0,false,false,false,null,null,null,0,false,false,false,null,null,null,0,false,false,false,null,null,null,0,false,false,false,null,null,null,0,false,false,false,null,null,null,0,false,false,false,null,null,null,0,false,false,false,null,null,null,0,false,false,false,null,null,null,0,false,false,false,null,null,null,0,false,false,false,null,null,null,0,false,false,false,null,null,null,0,false,false,false,null,null,null,0,false,false,false,null,null,null,0,false,false,false,null,null,null,0,false,false,false,null,null,null,0,false,false,false,null,null,null,0,false,false,false,null,null,null,0,false,false,false,null,null,null,0,false,false,false,null,null,null,0,false,false,false,null,null,null,0,false,false,false,null,null,null,0,false,false,false,null,null,null,0,false,false,false,null,null,null,0,false,false,false,null,null,null,0,false,false,false,null,null,null,0,false,false,false,null,null,null,0,false,false,false,null,null,null,0,false,false,false,null,null,null,0,false,false,false,null,null,null,0,false,false,false,null,null,null,0,false,false,false,null,null,null,0,false,false,false,null,null,null,0,false,false,false,null,null,null,0,false,false,false,null,null,null,0,false,false,false,null,null,null,0,false,false,false,null,null,null,0,false,false,false,null,null,null,0,false,false,false,null,null,null,0,false,false,false,null,null,null,0,false,false,false,null,null,null,0,false,false,false,null,null,null,0,false,false,false,null,null,null,0,false,false,false,null,null,null,0,false,false,false,null,null,null,0,false,false,false,null,null,null,0,false,false,false,null,null,null,0,false,false,false,null,null,null,0,false,false,false,null,null,null,0,false,false,false,null,null,null,0,false,false,false,null,null,null,0,false,false,false,null,null,null,0,false,false,false,null,null,null,0,false,false,false,null,null,null,0,false,false,false,null,null,null,0,false,false,false,null,null,null,0,false,false,false,null,null,null,0,false,false,false,null,null,null,0,false,false,false,null,null,null,0,false,false,false,null,null,null,0,false,false,false,null,null,null,0,false,false,false,null,null,null,0,false,false,false,null,null,null,0,false,false,false,null,null,null,0,false,false,false,null,null,null,0,false,false,false,null,null,null,0,false,false,false,null,null,null,0,false,false,false,null,null,null,0,false,false,false,null,null,null,0,false,false,false,null,null,null,0,false,false,false,null,null,null,0,false,false,false,null,null,null,0,false,false,false,null,null,null,0,false,false,false]
[{"$f":"Poules!S4","v":"BRESIL"},{"$f":"IF(Poules!B6=\"\",\"\",Poules!B6)","v":""},{"$f":"IF(Poules!C6=\"\",\"\",Poules!C6)","v":""},{"$f":"Poules!S6","v":"MEXIQUE"},null,null,null,0,false,false,false,null,null,null,0,false,false,false,null,null,null,0,false,false,false,null,null,null,0,false,false,false,null,null,null,0,false,false,false,null,null,null,0,false,false,false,null,null,null,0,false,false,false,null,null,null,0,false,false,false,null,null,null,0,false,false,false,null,null,null,0,false,false,false,null,null,null,0,false,false,false,null,null,null,0,false,false,false,null,null,null,0,false,false,false,null,null,null,0,false,false,false,null,null,null,0,false,false,false,null,null,null,0,false,false,false,null,null,null,0,false,false,false,null,null,null,0,false,false,false,null,null,null,0,false,false,false,null,null,null,0,false,false,false,null,null,null,0,false,false,false,null,null,null,0,false,false,false,null,null,null,0,false,false,false,null,null,null,0,false,false,false,null,null,null,0,false,false,false,null,null,null,0,false,false,false,null,null,null,0,false,false,false,null,null,null,0,false,false,false,null,null,null,0,false,false,false,null,null,null,0,false,false,false,null,null,null,0,false,false,false,null,null,null,0,false,false,false,null,null,null,0,false,false,false,null,null,null,0,false,false,false,null,null,null,0,false,false,false,null,null,null,0,false,false,false,null,null,null,0,false,false,false,null,null,null,0,false,false,false,null,null,null,0,false,false,false,null,null,null,0,false,false,false,null,null,null,0,false,false,false,null,null,null,0,false,false,false,null,null,null,0,false,false,false,null,null,null,0,false,false,false,null,null,null,0,false,false,false,null,null,null,0,false,false,false,null,null,null,0,false,false,false,null,null,null,0,false,false,false,null,null,null,0,false,false,false,null,null,null,0,false,false,false,null,null,null,0,false,false,false,null,null,null,0,false,false,false,null,null,null,0,false,false,false,null,null,null,0,false,false,false,null,null,null,0,false,false,false,null,null,null,0,false,false,false,null,null,null,0,false,false,false,null,null,null,0,false,false,false,null,null,null,0,false,false,false,null,null,null,0,false,false,false,null,null,null,0,false,false,false,null,null,null,0,false,false,false,null,null,null,0,false,false,false,null,null,null,0,false,false,false,null,null,null,0,false,false,false,null,null,null,0,false,false,false,null,null,null,0,false,false,false,null,null,null,0,false,false,false,null,null,null,0,false,false,false,null,null,null,0,false,false,false,null,null,null,0,false,false,false,null,null,null,0,false,false,false,null,null,null,0,false,false,false,null,null,null,0,false,false,false,null,null,null,0,false,false,false,null,null,null,0,false,false,false,null,null,null,0,false,false,false,null,null,null,0,false,false,false,null,null,null,0,false,false,false,null,null,null,0,false,false,false,null,null,null,0,false,false,false,null,null,null,0,false,false,false,null,null,null,0,false,false,false,null,null,null,0,false,false,false,null,null,null,0,false,false,false,null,null,null,0,false,false,false,null,null,null,0,false,false,false,null,null,null,0,false,false,false,null,null,null,0,false,false,false,null,null,null,0,false,false,false]
[{"$f":"Poules!S69","v":"RUSSIE"},{"$f":"IF(Poules!B68=\"\",\"\",Poules!B68)","v":""},{"$f":"IF(Poules!C68=\"\",\"\",Poules!C68)","v":""},{"$f":"Poules!S70","v":"REPUBLIQUE DE COREE"},null,null,null,0,false,false,false,null,null,null,0,false,false,false,null,null,null,0,false,false,false,null,null,null,0,false,false,false,null,null,null,0,false,false,false,null,null,null,0,false,false,false,null,null,null,0,false,false,false,null,null,null,0,false,false,false,null,null,null,0,false,false,false,null,null,null,0,false,false,false,null,null,null,0,false,false,false,null,null,null,0,false,false,false,null,null,null,0,false,false,false,null,null,null,0,false,false,false,null,null,null,0,false,false,false,null,null,null,0,false,false,false,null,null,null,0,false,false,false,null,null,null,0,false,false,false,null,null,null,0,false,false,false,null,null,null,0,false,false,false,null,null,null,0,false,false,false,null,null,null,0,false,false,false,null,null,null,0,false,false,false,null,null,null,0,false,false,false,null,null,null,0,false,false,false,null,null,null,0,false,false,false,null,null,null,0,false,false,false,null,null,null,0,false,false,false,null,null,null,0,false,false,false,null,null,null,0,false,false,false,null,null,null,0,false,false,false,null,null,null,0,false,false,false,null,null,null,0,false,false,false,null,null,null,0,false,false,false,null,null,null,0,false,false,false,null,null,null,0,false,false,false,null,null,null,0,false,false,false,null,null,null,0,false,false,false,null,null,null,0,false,false,false,null,null,null,0,false,false,false,null,null,null,0,false,false,false,null,null,null,0,false,false,false,null,null,null,0,false,false,false,null,null,null,0,false,false,false,null,null,null,0,false,false,false,null,null,null,0,false,false,false,null,null,null,0,false,false,false,null,null,null,0,false,false,false,null,null,null,0,false,false,false,null,null,null,0,false,false,false,null,null,null,0,false,false,false,null,null,null,0,false,false,false,null,null,null,0,false,false,false,null,null,null,0,false,false,false,null,null,null,0,false,false,false,null,null,null,0,false,false,false,null,null,null,0,false,false,false,null,null,null,0,false,false,false,null,null,null,0,false,false,false,null,null,null,0,false,false,false,null,null,null,0,false,false,false,null,null,null,0,false,false,false,null,null,null,0,false,false,false,null,null,null,0,false,false,false,null,null,null,0,false,false,false,null,null,null,0,false,false,false,null,null,null,0,false,false,false,null,null,null,0,false,false,false,null,null,null,0,false,false,false,null,null,null,0,false,false,false,null,null,null,0,false,false,false,null,null,null,0,false,false,false,null,null,null,0,false,false,false,null,null,null,0,false,false,false,null,null,null,0,false,false,false,null,null,null,0,false,false,false,null,null,null,0,false,false,false,null,null,null,0,false,false,false,null,null,null,0,false,false,false,null,null,null,0,false,false,false,null,null,null,0,false,false,false,null,null,null,0,false,false,false,null,null,null,0,false,false,false,null,null,null,0,false,false,false,null,null,null,0,false,false,false,null,null,null,0,false,false,false,null,null,null,0,false,false,false,null,null,null,0,false,false,false,null,null,null,0,false,false,false,null,null,null,0,false,false,false]
[{"$f":"Poules!S16","v":"AUSTRALIE"},{"$f":"IF(Poules!B16=\"\",\"\",Poules!B16)","v":""},{"$f":"IF(Poules!C16=\"\",\"\",Poules!C16)","v":""},{"$f":"Poules!S14","v":"PAYS - BAS"},null,null,null,0,false,false,false,null,null,null,0,false,false,false,null,null,null,0,false,false,false,null,null,null,0,false,false,false,null,null,null,0,false,false,false,null,null,null,0,false,false,false,null,null,null,0,false,false,false,null,null,null,0,false,false,false,null,null,null,0,false,false,false,null,null,null,0,false,false,false,null,null,null,0,false,false,false,null,null,null,0,false,false,false,null,null,null,0,false,false,false,null,null,null,0,false,false,false,null,null,null,0,false,false,false,null,null,null,0,false,false,false,null,null,null,0,false,false,false,null,null,null,0,false,false,false,null,null,null,0,false,false,false,null,null,null,0,false,false,false,null,null,null,0,false,false,false,null,null,null,0,false,false,false,null,null,null,0,false,false,false,null,null,null,0,false,false,false,null,null,null,0,false,false,false,null,null,null,0,false,false,false,null,null,null,0,false,false,false,null,null,null,0,false,false,false,null,null,null,0,false,false,false,null,null,null,0,false,false,false,null,null,null,0,false,false,false,null,null,null,0,false,false,false,null,null,null,0,false,false,false,null,null,null,0,false,false,false,null,null,null,0,false,false,false,null,null,null,0,false,false,false,null,null,null,0,false,false,false,null,null,null,0,false,false,false,null,null,null,0,false,false,false,null,null,null,0,false,false,false,null,null,null,0,false,false,false,null,null,null,0,false,false,false,null,null,null,0,false,false,false,null,null,null,0,false,false,false,null,null,null,0,false,false,false,null,null,null,0,false,false,false,null,null,null,0,false,false,false,null,null,null,0,false,false,false,null,null,null,0,false,false,false,null,null,null,0,false,false,false,null,null,null,0,false,false,false,null,null,null,0,false,false,false,null,null,null,0,false,false,false,null,null,null,0,false,false,false,null,null,null,0,false,false,false,null,null,null,0,false,false,false,null,null,null,0,false,false,false,null,null,null,0,false,false,false,null,null,null,0,false,false,false,null,null,null,0,false,false,false,null,null,null,0,false,false,false,null,null,null,0,false,false,false,null,null,null,0,false,false,false,null,null,null,0,false,false,false,null,null,null,0,false,false,false,null,null,null,0,false,false,false,null,null,null,0,false,false,false,null,null,null,0,false,false,false,null,null,null,0,false,false,false,null,null,null,0,false,false,false,null,null,null,0,false,false,false,null,null,null,0,false,false,false,null,null,null,0,false,false,false,null,null,null,0,false,false,false,null,null,null,0,false,false,false,null,null,null,0,false,false,false,null,null,null,0,false,false,false,null,null,null,0,false,false,false,null,null,null,0,false,false,false,null,null,null,0,false,false,false,null,null,null,0,false,false,false,null,null,null,0,false,false,false,null,null,null,0,false,false,false,null,null,null,0,false,false,false,null,null,null,0,false,false,false,null,null,null,0,false,false,false,null,null,null,0,false,false,false,null,null,null,0,false,false,false,null,null,null,0,false,false,false,null,null,null,0,false,false,false]
[{"$f":"Poules!S13","v":"ESPAGNE"},{"$f":"IF(Poules!B15=\"\",\"\",Poules!B15)","v":""},{"$f":"IF(Poules!C15=\"\",\"\",Poules!C15)","v":""},{"$f":"Poules!S15","v":"CHILI"},null,null,null,0,false,false,false,null,null,null,0,false,false,false,null,null,null,0,false,false,false,null,null,null,0,false,false,false,null,null,null,0,false,false,false,null,null,null,0,false,false,false,null,null,null,0,false,false,false,null,null,null,0,false,false,false,null,null,null,0,false,false,false,null,null,null,0,false,false,false,null,null,null,0,false,false,false,null,null,null,0,false,false,false,null,null,null,0,false,false,false,null,null,null,0,false,false,false,null,null,null,0,false,false,false,null,null,null,0,false,false,false,null,null,null,0,false,false,false,null,null,null,0,false,false,false,null,null,null,0,false,false,false,null,null,null,0,false,false,false,null,null,null,0,false,false,false,null,null,null,0,false,false,false,null,null,null,0,false,false,false,null,null,null,0,false,false,false,null,null,null,0,false,false,false,null,null,null,0,false,false,false,null,null,null,0,false,false,false,null,null,null,0,false,false,false,null,null,null,0,false,false,false,null,null,null,0,false,false,false,null,null,null,0,false,false,false,null,null,null,0,false,false,false,null,null,null,0,false,false,false,null,null,null,0,false,false,false,null,null,null,0,false,false,false,null,null,null,0,false,false,false,null,null,null,0,false,false,false,null,null,null,0,false,false,false,null,null,null,0,false,false,false,null,null,null,0,false,false,false,null,null,null,0,false,false,false,null,null,null,0,false,false,false,null,null,null,0,false,false,false,null,null,null,0,false,false,false,null,null,null,0,false,false,false,null,null,null,0,false,false,false,null,null,null,0,false,false,false,null,null,null,0,false,false,false,null,null,null,0,false,false,false,null,null,null,0,false,false,false,null,null,null,0,false,false,false,null,null,null,0,false,false,false,null,null,null,0,false,false,false,null,null,null,0,false,false,false,null,null,null,0,false,false,false,null,null,null,0,false,false,false,null,null,null,0,false,false,false,null,null,null,0,false,false,false,null,null,null,0,false,false,false,null,null,null,0,false,false,false,null,null,null,0,false,false,false,null,null,null,0,false,false,false,null,null,null,0,false,false,false,null,null,null,0,false,false,false,null,null,null,0,false,false,false,null,null,null,0,false,false,false,null,null,null,0,false,false,false,null,null,null,0,false,false,false,null,null,null,0,false,false,false,null,null,null,0,false,false,false,null,null,null,0,false,false,false,null,null,null,0,false,false,false,null,null,null,0,false,false,false,null,null,null,0,false,false,false,null,null,null,0,false,false,false,null,null,null,0,false,false,false,null,null,null,0,false,false,false,null,null,null,0,false,false,false,null,null,null,0,false,false,false,null,null,null,0,false,false,false,null,null,null,0,false,false,false,null,null,null,0,false,false,false,null,null,null,0,false,false,false,null,null,null,0,false,false,false,null,null,null,0,false,false,false,null,null,null,0,false,false,false,null,null,null,0,false,false,false,null,null,null,0,false,false,false,null,null,null,0,false,false,false,null,null,null,0,false,false,false]
[{"$f":"Poules!S7","v":"CAMEROUN"},{"$f":"IF(Poules!B7=\"\",\"\",Poules!B7)","v":""},{"$f":"IF(Poules!C7=\"\",\"\",Poules!C7)","v":""},{"$f":"Poules!S5","v":"CROATIE"},null,null,null,0,false,false,false,null,null,null,0,false,false,false,null,null,null,0,false,false,false,null,null,null,0,false,false,false,null,null,null,0,false,false,false,null,null,null,0,false,false,false,null,null,null,0,false,false,false,null,null,null,0,false,false,false,null,null,null,0,false,false,false,null,null,null,0,false,false,false,null,null,null,0,false,false,false,null,null,null,0,false,false,false,null,null,null,0,false,false,false,null,null,null,0,false,false,false,null,null,null,0,false,false,false,null,null,null,0,false,false,false,null,null,null,0,false,false,false,null,null,null,0,false,false,false,null,null,null,0,false,false,false,null,null,null,0,false,false,false,null,null,null,0,false,false,false,null,null,null,0,false,false,false,null,null,null,0,false,false,false,null,null,null,0,false,false,false,null,null,null,0,false,false,false,null,null,null,0,false,false,false,null,null,null,0,false,false,false,null,null,null,0,false,false,false,null,null,null,0,false,false,false,null,null,null,0,false,false,false,null,null,null,0,false,false,false,null,null,null,0,false,false,false,null,null,null,0,false,false,false,null,null,null,0,false,false,false,null,null,null,0,false,false,false,null,null,null,0,false,false,false,null,null,null,0,false,false,false,null,null,null,0,false,false,false,null,null,null,0,false,false,false,null,null,null,0,false,false,false,null,null,null,0,false,false,false,null,null,null,0,false,false,false,null,null,null,0,false,false,false,null,null,null,0,false,false,false,null,null,null,0,false,false,false,null,null,null,0,false,false,false,null,null,null,0,false,false,false,null,null,null,0,false,false,false,null,null,null,0,false,false,false,null,null,null,0,false,false,false,null,null,null,0,false,false,false,null,null,null,0,false,false,false,null,null,null,0,false,false,false,null,null,null,0,false,false,false,null,null,null,0,false,false,false,null,null,null,0,false,false,false,null,null,null,0,false,false,false,null,null,null,0,false,false,false,null,null,null,0,false,false,false,null,null,null,0,false,false,false,null,null,null,0,false,false,false,null,null,null,0,false,false,false,null,null,null,0,false,false,false,null,null,null,0,false,false,false,null,null,null,0,false,false,false,null,null,null,0,false,false,false,null,null,null,0,false,false,false,null,null,null,0,false,false,false,null,null,null,0,false,false,false,null,null,null,0,false,false,false,null,null,null,0,false,false,false,null,null,null,0,false,false,false,null,null,null,0,false,false,false,null,null,null,0,false,false,false,null,null,null,0,false,false,false,null,null,null,0,false,false,false,null,null,null,0,false,false,false,null,null,null,0,false,false,false,null,null,null,0,false,false,false,null,null,null,0,false,false,false,null,null,null,0,false,false,false,null,null,null,0,false,false,false,null,null,null,0,false,false,false,null,null,null,0,false,false,false,null,null,null,0,false,false,false,null,null,null,0,false,false,false,null,null,null,0,false,false,false,null,null,null,0,false,false,false,null,null,null,0,false,false,false,null,null,null,0,false,false,false]
[{"$f":"Poules!S22","v":"COLOMBIE"},{"$f":"IF(Poules!B24=\"\",\"\",Poules!B24)","v":""},{"$f":"IF(Poules!C24=\"\",\"\",Poules!C24)","v":""},{"$f":"Poules!S24","v":"CÔTE D'IVOIRE"},null,null,null,0,false,false,false,null,null,null,0,false,false,false,null,null,null,0,false,false,false,null,null,null,0,false,false,false,null,null,null,0,false,false,false,null,null,null,0,false,false,false,null,null,null,0,false,false,false,null,null,null,0,false,false,false,null,null,null,0,false,false,false,null,null,null,0,false,false,false,null,null,null,0,false,false,false,null,null,null,0,false,false,false,null,null,null,0,false,false,false,null,null,null,0,false,false,false,null,null,null,0,false,false,false,null,null,null,0,false,false,false,null,null,null,0,false,false,false,null,null,null,0,false,false,false,null,null,null,0,false,false,false,null,null,null,0,false,false,false,null,null,null,0,false,false,false,null,null,null,0,false,false,false,null,null,null,0,false,false,false,null,null,null,0,false,false,false,null,null,null,0,false,false,false,null,null,null,0,false,false,false,null,null,null,0,false,false,false,null,null,null,0,false,false,false,null,null,null,0,false,false,false,null,null,null,0,false,false,false,null,null,null,0,false,false,false,null,null,null,0,false,false,false,null,null,null,0,false,false,false,null,null,null,0,false,false,false,null,null,null,0,false,false,false,null,null,null,0,false,false,false,null,null,null,0,false,false,false,null,null,null,0,false,false,false,null,null,null,0,false,false,false,null,null,null,0,false,false,false,null,null,null,0,false,false,false,null,null,null,0,false,false,false,null,null,null,0,false,false,false,null,null,null,0,false,false,false,null,null,null,0,false,false,false,null,null,null,0,false,false,false,null,null,null,0,false,false,false,null,null,null,0,false,false,false,null,null,null,0,false,false,false,null,null,null,0,false,false,false,null,null,null,0,false,false,false,null,null,null,0,false,false,false,null,null,null,0,false,false,false,null,null,null,0,false,false,false,null,null,null,0,false,false,false,null,null,null,0,false,false,false,null,null,null,0,false,false,false,null,null,null,0,false,false,false,null,null,null,0,false,false,false,null,null,null,0,false,false,false,null,null,null,0,false,false,false,null,null,null,0,false,false,false,null,null,null,0,false,false,false,null,null,null,0,false,false,false,null,null,null,0,false,false,false,null,null,null,0,false,false,false,null,null,null,0,false,false,false,null,null,null,0,false,false,false,null,null,null,0,false,false,false,null,null,null,0,false,false,false,null,null,null,0,false,false,false,null,null,null,0,false,false,false,null,null,null,0,false,false,false,null,null,null,0,false,false,false,null,null,null,0,false,false,false,null,null,null,0,false,false,false,null,null,null,0,false,false,false,null,null,null,0,false,false,false,null,null,null,0,false,false,false,null,null,null,0,false,false,false,null,null,null,0,false,false,false,null,null,null,0,false,false,false,null,null,null,0,false,false,false,null,null,null,0,false,false,false,null,null,null,0,false,false,false,null,null,null,0,false,false,false,null,null,null,0,false,false,false,null,null,null,0,false,false,false,null,null,null,0,false,false,false,null,null,null,0,false,false,false]
[{"$f":"Poules!S31","v":"URUGUAY"},{"$f":"IF(Poules!B33=\"\",\"\",Poules!B33)","v":""},{"$f":"IF(Poules!C33=\"\",\"\",Poules!C33)","v":""},{"$f":"Poules!S33","v":"ANGLETERRE"},null,null,null,0,false,false,false,null,null,null,0,false,false,false,null,null,null,0,false,false,false,null,null,null,0,false,false,false,null,null,null,0,false,false,false,null,null,null,0,false,false,false,null,null,null,0,false,false,false,null,null,null,0,false,false,false,null,null,null,0,false,false,false,null,null,null,0,false,false,false,null,null,null,0,false,false,false,null,null,null,0,false,false,false,null,null,null,0,false,false,false,null,null,null,0,false,false,false,null,null,null,0,false,false,false,null,null,null,0,false,false,false,null,null,null,0,false,false,false,null,null,null,0,false,false,false,null,null,null,0,false,false,false,null,null,null,0,false,false,false,null,null,null,0,false,false,false,null,null,null,0,false,false,false,null,null,null,0,false,false,false,null,null,null,0,false,false,false,null,null,null,0,false,false,false,null,null,null,0,false,false,false,null,null,null,0,false,false,false,null,null,null,0,false,false,false,null,null,null,0,false,false,false,null,null,null,0,false,false,false,null,null,null,0,false,false,false,null,null,null,0,false,false,false,null,null,null,0,false,false,false,null,null,null,0,false,false,false,null,null,null,0,false,false,false,null,null,null,0,false,false,false,null,null,null,0,false,false,false,null,null,null,0,false,false,false,null,null,null,0,false,false,false,null,null,null,0,false,false,false,null,null,null,0,false,false,false,null,null,null,0,false,false,false,null,null,null,0,false,false,false,null,null,null,0,false,false,false,null,null,null,0,false,false,false,null,null,null,0,false,false,false,null,null,null,0,false,false,false,null,null,null,0,false,false,false,null,null,null,0,false,false,false,null,null,null,0,false,false,false,null,null,null,0,false,false,false,null,null,null,0,false,false,false,null,null,null,0,false,false,false,null,null,null,0,false,false,false,null,null,null,0,false,false,false,null,null,null,0,false,false,false,null,null,null,0,false,false,false,null,null,null,0,false,false,false,null,null,null,0,false,false,false,null,null,null,0,false,false,false,null,null,null,0,false,false,false,null,null,null,0,false,false,false,null,null,null,0,false,false,false,null,null,null,0,false,false,false,null,null,null,0,false,false,false,null,null,null,0,false,false,false,null,null,null,0,false,false,false,null,null,null,0,false,false,false,null,null,null,0,false,false,false,null,null,null,0,false,false,false,null,null,null,0,false,false,false,null,null,null,0,false,false,false,null,null,null,0,false,false,false,null,null,null,0,false,false,false,null,null,null,0,false,false,false,null,null,null,0,false,false,false,null,null,null,0,false,false,false,null,null,null,0,false,false,false,null,null,null,0,false,false,false,null,null,null,0,false,false,false,null,null,null,0,false,false,false,null,null,null,0,false,false,false,null,null,null,0,false,false,false,null,null,null,0,false,false,false,null,null,null,0,false,false,false,null,null,null,0,false,false,false,null,null,null,0,false,false,false,null,null,null,0,false,false,false,null,null,null,0,false,false,false,null,null,null,0,false,false,false]
[{"$f":"Poules!S25","v":"JAPON"},{"$f":"IF(Poules!B25=\"\",\"\",Poules!B25)","v":""},{"$f":"IF(Poules!C25=\"\",\"\",Poules!C25)","v":""},{"$f":"Poules!S23","v":"GRECE"},null,null,null,0,false,false,false,null,null,null,0,false,false,false,null,null,null,0,false,false,false,null,null,null,0,false,false,false,null,null,null,0,false,false,false,null,null,null,0,false,false,false,null,null,null,0,false,false,false,null,null,null,0,false,false,false,null,null,null,0,false,false,false,null,null,null,0,false,false,false,null,null,null,0,false,false,false,null,null,null,0,false,false,false,null,null,null,0,false,false,false,null,null,null,0,false,false,false,null,null,null,0,false,false,false,null,null,null,0,false,false,false,null,null,null,0,false,false,false,null,null,null,0,false,false,false,null,null,null,0,false,false,false,null,null,null,0,false,false,false,null,null,null,0,false,false,false,null,null,null,0,false,false,false,null,null,null,0,false,false,false,null,null,null,0,false,false,false,null,null,null,0,false,false,false,null,null,null,0,false,false,false,null,null,null,0,false,false,false,null,null,null,0,false,false,false,null,null,null,0,false,false,false,null,null,null,0,false,false,false,null,null,null,0,false,false,false,null,null,null,0,false,false,false,null,null,null,0,false,false,false,null,null,null,0,false,false,false,null,null,null,0,false,false,false,null,null,null,0,false,false,false,null,null,null,0,false,false,false,null,null,null,0,false,false,false,null,null,null,0,false,false,false,null,null,null,0,false,false,false,null,null,null,0,false,false,false,null,null,null,0,false,false,false,null,null,null,0,false,false,false,null,null,null,0,false,false,false,null,null,null,0,false,false,false,null,null,null,0,false,false,false,null,null,null,0,false,false,false,null,null,null,0,false,false,false,null,null,null,0,false,false,false,null,null,null,0,false,false,false,null,null,null,0,false,false,false,null,null,null,0,false,false,false,null,null,null,0,false,false,false,null,null,null,0,false,false,false,null,null,null,0,false,false,false,null,null,null,0,false,false,false,null,null,null,0,false,false,false,null,null,null,0,false,false,false,null,null,null,0,false,false,false,null,null,null,0,false,false,false,null,null,null,0,false,false,false,null,null,null,0,false,false,false,null,null,null,0,false,false,false,null,null,null,0,false,false,false,null,null,null,0,false,false,false,null,null,null,0,false,false,false,null,null,null,0,false,false,false,null,null,null,0,false,false,false,null,null,null,0,false,false,false,null,null,null,0,false,false,false,null,null,null,0,false,false,false,null,null,null,0,false,false,false,null,null,null,0,false,false,false,null,null,null,0,false,false,false,null,null,null,0,false,false,false,null,null,null,0,false,false,false,null,null,null,0,false,false,false,null,null,null,0,false,false,false,null,null,null,0,false,false,false,null,null,null,0,false,false,false,null,null,null,0,false,false,false,null,null,null,0,false,false,false,null,null,null,0,false,false,false,null,null,null,0,false,false,false,null,null,null,0,false,false,false,null,null,null,0,false,false,false,null,null,null,0,false,false,false,null,null,null,0,false,false,false,null,null,null,0,false,false,false,null,null,null,0,false,false,false]
[{"$f":"Poules!S34","v":"ITALIE"},{"$f":"IF(Poules!B34=\"\",\"\",Poules!B34)","v":""},{"$f":"IF(Poules!C34=\"\",\"\",Poules!C34)","v":""},{"$f":"Poules!S32","v":"COSTA RICA"},null,null,null,0,false,false,false,null,null,null,0,false,false,false,null,null,null,0,false,false,false,null,null,null,0,false,false,false,null,null,null,0,false,false,false,null,null,null,0,false,false,false,null,null,null,0,false,false,false,null,null,null,0,false,false,false,null,null,null,0,false,false,false,null,null,null,0,false,false,false,null,null,null,0,false,false,false,null,null,null,0,false,false,false,null,null,null,0,false,false,false,null,null,null,0,false,false,false,null,null,null,0,false,false,false,null,null,null,0,false,false,false,null,null,null,0,false,false,false,null,null,null,0,false,false,false,null,null,null,0,false,false,false,null,null,null,0,false,false,false,null,null,null,0,false,false,false,null,null,null,0,false,false,false,null,null,null,0,false,false,false,null,null,null,0,false,false,false,null,null,null,0,false,false,false,null,null,null,0,false,false,false,null,null,null,0,false,false,false,null,null,null,0,false,false,false,null,null,null,0,false,false,false,null,null,null,0,false,false,false,null,null,null,0,false,false,false,null,null,null,0,false,false,false,null,null,null,0,false,false,false,null,null,null,0,false,false,false,null,null,null,0,false,false,false,null,null,null,0,false,false,false,null,null,null,0,false,false,false,null,null,null,0,false,false,false,null,null,null,0,false,false,false,null,null,null,0,false,false,false,null,null,null,0,false,false,false,null,null,null,0,false,false,false,null,null,null,0,false,false,false,null,null,null,0,false,false,false,null,null,null,0,false,false,false,null,null,null,0,false,false,false,null,null,null,0,false,false,false,null,null,null,0,false,false,false,null,null,null,0,false,false,false,null,null,null,0,false,false,false,null,null,null,0,false,false,false,null,null,null,0,false,false,false,null,null,null,0,false,false,false,null,null,null,0,false,false,false,null,null,null,0,false,false,false,null,null,null,0,false,false,false,null,null,null,0,false,false,false,null,null,null,0,false,false,false,null,null,null,0,false,false,false,null,null,null,0,false,false,false,null,null,null,0,false,false,false,null,null,null,0,false,false,false,null,null,null,0,false,false,false,null,null,null,0,false,false,false,null,null,null,0,false,false,false,null,null,null,0,false,false,false,null,null,null,0,false,false,false,null,null,null,0,false,false,false,null,null,null,0,false,false,false,null,null,null,0,false,false,false,null,null,null,0,false,false,false,null,null,null,0,false,false,false,null,null,null,0,false,false,false,null,null,null,0,false,false,false,null,null,null,0,false,false,false,null,null,null,0,false,false,false,null,null,null,0,false,false,false,null,null,null,0,false,false,false,null,null,null,0,false,false,false,null,null,null,0,false,false,false,null,null,null,0,false,false,false,null,null,null,0,false,false,false,null,null,null,0,false,false,false,null,null,null,0,false,false,false,null,null,null,0,false,false,false,null,null,null,0,false,false,false,null,null,null,0,false,false,false,null,null,null,0,false,false,false,null,null,null,0,false,false,false,null,null,null,0,false,false,false]
[{"$f":"Poules!S40","v":"SUISSE"},{"$f":"IF(Poules!B42=\"\",\"\",Poules!B42)","v":""},{"$f":"IF(Poules!C42=\"\",\"\",Poules!C42)","v":""},{"$f":"Poules!S42","v":"FRANCE"},null,null,null,0,false,false,false,null,null,null,0,false,false,false,null,null,null,0,false,false,false,null,null,null,0,false,false,false,null,null,null,0,false,false,false,null,null,null,0,false,false,false,null,null,null,0,false,false,false,null,null,null,0,false,false,false,null,null,null,0,false,false,false,null,null,null,0,false,false,false,null,null,null,0,false,false,false,null,null,null,0,false,false,false,null,null,null,0,false,false,false,null,null,null,0,false,false,false,null,null,null,0,false,false,false,null,null,null,0,false,false,false,null,null,null,0,false,false,false,null,null,null,0,false,false,false,null,null,null,0,false,false,false,null,null,null,0,false,false,false,null,null,null,0,false,false,false,null,null,null,0,false,false,false,null,null,null,0,false,false,false,null,null,null,0,false,false,false,null,null,null,0,false,false,false,null,null,null,0,false,false,false,null,null,null,0,false,false,false,null,null,null,0,false,false,false,null,null,null,0,false,false,false,null,null,null,0,false,false,false,null,null,null,0,false,false,false,null,null,null,0,false,false,false,null,null,null,0,false,false,false,null,null,null,0,false,false,false,null,null,null,0,false,false,false,null,null,null,0,false,false,false,null,null,null,0,false,false,false,null,null,null,0,false,false,false,null,null,null,0,false,false,false,null,null,null,0,false,false,false,null,null,null,0,false,false,false,null,null,null,0,false,false,false,null,null,null,0,false,false,false,null,null,null,0,false,false,false,null,null,null,0,false,false,false,null,null,null,0,false,false,false,null,null,null,0,false,false,false,null,null,null,0,false,false,false,null,null,null,0,false,false,false,null,null,null,0,false,false,false,null,null,null,0,false,false,false,null,null,null,0,false,false,false,null,null,null,0,false,false,false,null,null,null,0,false,false,false,null,null,null,0,false,false,false,null,null,null,0,false,false,false,null,null,null,0,false,false,false,null,null,null,0,false,false,false,null,null,null,0,false,false,false,null,null,null,0,false,false,false,null,null,null,0,false,false,false,null,null,null,0,false,false,false,null,null,null,0,false,false,false,null,null,null,0,false,false,false,null,null,null,0,false,false,false,null,null,null,0,false,false,false,null,null,null,0,false,false,false,null,null,null,0,false,false,false,null,null,null,0,false,false,false,null,null,null,0,false,false,false,null,null,null,0,false,false,false,null,null,null,0,false,false,false,null,null,null,0,false,false,false,null,null,null,0,false,false,false,null,null,null,0,false,false,false,null,null,null,0,false,false,false,null,null,null,0,false,false,false,null,null,null,0,false,false,false,null,null,null,0,false,false,false,null,null,null,0,false,false,false,null,null,null,0,false,false,false,null,null,null,0,false,false,false,null,null,null,0,false,false,false,null,null,null,0,false,false,false,null,null,null,0,false,false,false,null,null,null,0,false,false,false,null,null,null,0,false,false,false,null,null,null,0,false,false,false,null,null,null,0,false,false,false,null,null,null,0,false,false,false]
[{"$f":"Poules!S43","v":"HONDURAS"},{"$f":"IF(Poules!B43=\"\",\"\",Poules!B43)","v":""},{"$f":"IF(Poules!C43=\"\",\"\",Poules!C43)","v":""},{"$f":"Poules!S41","v":"EQUATEUR"},null,null,null,0,false,false,false,null,null,null,0,false,false,false,null,null,null,0,false,false,false,null,null,null,0,false,false,false,null,null,null,0,false,false,false,null,null,null,0,false,false,false,null,null,null,0,false,false,false,null,null,null,0,false,false,false,null,null,null,0,false,false,false,null,null,null,0,false,false,false,null,null,null,0,false,false,false,null,null,null,0,false,false,false,null,null,null,0,false,false,false,null,null,null,0,false,false,false,null,null,null,0,false,false,false,null,null,null,0,false,false,false,null,null,null,0,false,false,false,null,null,null,0,false,false,false,null,null,null,0,false,false,false,null,null,null,0,false,false,false,null,null,null,0,false,false,false,null,null,null,0,false,false,false,null,null,null,0,false,false,false,null,null,null,0,false,false,false,null,null,null,0,false,false,false,null,null,null,0,false,false,false,null,null,null,0,false,false,false,null,null,null,0,false,false,false,null,null,null,0,false,false,false,null,null,null,0,false,false,false,null,null,null,0,false,false,false,null,null,null,0,false,false,false,null,null,null,0,false,false,false,null,null,null,0,false,false,false,null,null,null,0,false,false,false,null,null,null,0,false,false,false,null,null,null,0,false,false,false,null,null,null,0,false,false,false,null,null,null,0,false,false,false,null,null,null,0,false,false,false,null,null,null,0,false,false,false,null,null,null,0,false,false,false,null,null,null,0,false,false,false,null,null,null,0,false,false,false,null,null,null,0,false,false,false,null,null,null,0,false,false,false,null,null,null,0,false,false,false,null,null,null,0,false,false,false,null,null,null,0,false,false,false,null,null,null,0,false,false,false,null,null,null,0,false,false,false,null,null,null,0,false,false,false,null,null,null,0,false,false,false,null,null,null,0,false,false,false,null,null,null,0,false,false,false,null,null,null,0,false,false,false,null,null,null,0,false,false,false,null,null,null,0,false,false,false,null,null,null,0,false,false,false,null,null,null,0,false,false,false,null,null,null,0,false,false,false,null,null,null,0,false,false,false,null,null,null,0,false,false,false,null,null,null,0,false,false,false,null,null,null,0,false,false,false,null,null,null,0,false,false,false,null,null,null,0,false,false,false,null,null,null,0,false,false,false,null,null,null,0,false,false,false,null,null,null,0,false,false,false,null,null,null,0,false,false,false,null,null,null,0,false,false,false,null,null,null,0,false,false,false,null,null,null,0,false,false,false,null,null,null,0,false,false,false,null,null,null,0,false,false,false,null,null,null,0,false,false,false,null,null,null,0,false,false,false,null,null,null,0,false,false,false,null,null,null,0,false,false,false,null,null,null,0,false,false,false,null,null,null,0,false,false,false,null,null,null,0,false,false,false,null,null,null,0,false,false,false,null,null,null,0,false,false,false,null,null,null,0,false,false,false,null,null,null,0,false,false,false,null,null,null,0,false,false,false,null,null,null,0,false,false,false,null,null,null,0,false,false,false]
[{"$f":"Poules!S49","v":"ARGENTINE"},{"$f":"IF(Poules!B51=\"\",\"\",Poules!B51)","v":""},{"$f":"IF(Poules!C51=\"\",\"\",Poules!C51)","v":""},{"$f":"Poules!S51","v":"IRAN"},null,null,null,0,false,false,false,null,null,null,0,false,false,false,null,null,null,0,false,false,false,null,null,null,0,false,false,false,null,null,null,0,false,false,false,null,null,null,0,false,false,false,null,null,null,0,false,false,false,null,null,null,0,false,false,false,null,null,null,0,false,false,false,null,null,null,0,false,false,false,null,null,null,0,false,false,false,null,null,null,0,false,false,false,null,null,null,0,false,false,false,null,null,null,0,false,false,false,null,null,null,0,false,false,false,null,null,null,0,false,false,false,null,null,null,0,false,false,false,null,null,null,0,false,false,false,null,null,null,0,false,false,false,null,null,null,0,false,false,false,null,null,null,0,false,false,false,null,null,null,0,false,false,false,null,null,null,0,false,false,false,null,null,null,0,false,false,false,null,null,null,0,false,false,false,null,null,null,0,false,false,false,null,null,null,0,false,false,false,null,null,null,0,false,false,false,null,null,null,0,false,false,false,null,null,null,0,false,false,false,null,null,null,0,false,false,false,null,null,null,0,false,false,false,null,null,null,0,false,false,false,null,null,null,0,false,false,false,null,null,null,0,false,false,false,null,null,null,0,false,false,false,null,null,null,0,false,false,false,null,null,null,0,false,false,false,null,null,null,0,false,false,false,null,null,null,0,false,false,false,null,null,null,0,false,false,false,null,null,null,0,false,false,false,null,null,null,0,false,false,false,null,null,null,0,false,false,false,null,null,null,0,false,false,false,null,null,null,0,false,false,false,null,null,null,0,false,false,false,null,null,null,0,false,false,false,null,null,null,0,false,false,false,null,null,null,0,false,false,false,null,null,null,0,false,false,false,null,null,null,0,false,false,false,null,null,null,0,false,false,false,null,null,null,0,false,false,false,null,null,null,0,false,false,false,null,null,null,0,false,false,false,null,null,null,0,false,false,false,null,null,null,0,false,false,false,null,null,null,0,false,false,false,null,null,null,0,false,false,false,null,null,null,0,false,false,false,null,null,null,0,false,false,false,null,null,null,0,false,false,false,null,null,null,0,false,false,false,null,null,null,0,false,false,false,null,null,null,0,false,false,false,null,null,null,0,false,false,false,null,null,null,0,false,false,false,null,null,null,0,false,false,false,null,null,null,0,false,false,false,null,null,null,0,false,false,false,null,null,null,0,false,false,false,null,null,null,0,false,false,false,null,null,null,0,false,false,false,null,null,null,0,false,false,false,null,null,null,0,false,false,false,null,null,null,0,false,false,false,null,null,null,0,false,false,false,null,null,null,0,false,false,false,null,null,null,0,false,false,false,null,null,null,0,false,false,false,null,null,null,0,false,false,false,null,null,null,0,false,false,false,null,null,null,0,false,false,false,null,null,null,0,false,false,false,null,null,null,0,false,false,false,null,null,null,0,false,false,false,null,null,null,0,false,false,false,null,null,null,0,false,false,false,null,null,null,0,false,false,false]
[{"$f":"Poules!S58","v":"ALLEMAGNE"},{"$f":"IF(Poules!B60=\"\",\"\",Poules!B60)","v":""},{"$f":"IF(Poules!C60=\"\",\"\",Poules!C60)","v":""},{"$f":"Poules!S60","v":"GHANA"},null,null,null,0,false,false,false,null,null,null,0,false,false,false,null,null,null,0,false,false,false,null,null,null,0,false,false,false,null,null,null,0,false,false,false,null,null,null,0,false,false,false,null,null,null,0,false,false,false,null,null,null,0,false,false,false,null,null,null,0,false,false,false,null,null,null,0,false,false,false,null,null,null,0,false,false,false,null,null,null,0,false,false,false,null,null,null,0,false,false,false,null,null,null,0,false,false,false,null,null,null,0,false,false,false,null,null,null,0,false,false,false,null,null,null,0,false,false,false,null,null,null,0,false,false,false,null,null,null,0,false,false,false,null,null,null,0,false,false,false,null,null,null,0,false,false,false,null,null,null,0,false,false,false,null,null,null,0,false,false,false,null,null,null,0,false,false,false,null,null,null,0,false,false,false,null,null,null,0,false,false,false,null,null,null,0,false,false,false,null,null,null,0,false,false,false,null,null,null,0,false,false,false,null,null,null,0,false,false,false,null,null,null,0,false,false,false,null,null,null,0,false,false,false,null,null,null,0,false,false,false,null,null,null,0,false,false,false,null,null,null,0,false,false,false,null,null,null,0,false,false,false,null,null,null,0,false,false,false,null,null,null,0,false,false,false,null,null,null,0,false,false,false,null,null,null,0,false,false,false,null,null,null,0,false,false,false,null,null,null,0,false,false,false,null,null,null,0,false,false,false,null,null,null,0,false,false,false,null,null,null,0,false,false,false,null,null,null,0,false,false,false,null,null,null,0,false,false,false,null,null,null,0,false,false,false,null,null,null,0,false,false,false,null,null,null,0,false,false,false,null,null,null,0,false,false,false,null,null,null,0,false,false,false,null,null,null,0,false,false,false,null,null,null,0,false,false,false,null,null,null,0,false,false,false,null,null,null,0,false,false,false,null,null,null,0,false,false,false,null,null,null,0,false,false,false,null,null,null,0,false,false,false,null,null,null,0,false,false,false,null,null,null,0,false,false,false,null,null,null,0,false,false,false,null,null,null,0,false,false,false,null,null,null,0,false,false,false,null,null,null,0,false,false,false,null,null,null,0,false,false,false,null,null,null,0,false,false,false,null,null,null,0,false,false,false,null,null,null,0,false,false,false,null,null,null,0,false,false,false,null,null,null,0,false,false,false,null,null,null,0,false,false,false,null,null,null,0,false,false,false,null,null,null,0,false,false,false,null,null,null,0,false,false,false,null,null,null,0,false,false,false,null,null,null,0,false,false,false,null,null,null,0,false,false,false,null,null,null,0,false,false,false,null,null,null,0,false,false,false,null,null,null,0,false,false,false,null,null,null,0,false,false,false,null,null,null,0,false,false,false,null,null,null,0,false,false,false,null,null,null,0,false,false,false,null,null,null,0,false,false,false,null,null,null,0,false,false,false,null,null,null,0,false,false,false,null,null,null,0,false,false,false,null,null,null,0,false,false,false]
[{"$f":"Poules!S52","v":"NIGERIA"},{"$f":"IF(Poules!B52=\"\",\"\",Poules!B52)","v":""},{"$f":"IF(Poules!C52=\"\",\"\",Poules!C52)","v":""},{"$f":"Poules!S50","v":"BOSNIE - HERZEGOVINE"},null,null,null,0,false,false,false,null,null,null,0,false,false,false,null,null,null,0,false,false,false,null,null,null,0,false,false,false,null,null,null,0,false,false,false,null,null,null,0,false,false,false,null,null,null,0,false,false,false,null,null,null,0,false,false,false,null,null,null,0,false,false,false,null,null,null,0,false,false,false,null,null,null,0,false,false,false,null,null,null,0,false,false,false,null,null,null,0,false,false,false,null,null,null,0,false,false,false,null,null,null,0,false,false,false,null,null,null,0,false,false,false,null,null,null,0,false,false,false,null,null,null,0,false,false,false,null,null,null,0,false,false,false,null,null,null,0,false,false,false,null,null,null,0,false,false,false,null,null,null,0,false,false,false,null,null,null,0,false,false,false,null,null,null,0,false,false,false,null,null,null,0,false,false,false,null,null,null,0,false,false,false,null,null,null,0,false,false,false,null,null,null,0,false,false,false,null,null,null,0,false,false,false,null,null,null,0,false,false,false,null,null,null,0,false,false,false,null,null,null,0,false,false,false,null,null,null,0,false,false,false,null,null,null,0,false,false,false,null,null,null,0,false,false,false,null,null,null,0,false,false,false,null,null,null,0,false,false,false,null,null,null,0,false,false,false,null,null,null,0,false,false,false,null,null,null,0,false,false,false,null,null,null,0,false,false,false,null,null,null,0,false,false,false,null,null,null,0,false,false,false,null,null,null,0,false,false,false,null,null,null,0,false,false,false,null,null,null,0,false,false,false,null,null,null,0,false,false,false,null,null,null,0,false,false,false,null,null,null,0,false,false,false,null,null,null,0,false,false,false,null,null,null,0,false,false,false,null,null,null,0,false,false,false,null,null,null,0,false,false,false,null,null,null,0,false,false,false,null,null,null,0,false,false,false,null,null,null,0,false,false,false,null,null,null,0,false,false,false,null,null,null,0,false,false,false,null,null,null,0,false,false,false,null,null,null,0,false,false,false,null,null,null,0,false,false,false,null,null,null,0,false,false,false,null,null,null,0,false,false,false,null,null,null,0,false,false,false,null,null,null,0,false,false,false,null,null,null,0,false,false,false,null,null,null,0,false,false,false,null,null,null,0,false,false,false,null,null,null,0,false,false,false,null,null,null,0,false,false,false,null,null,null,0,false,false,false,null,null,null,0,false,false,false,null,null,null,0,false,false,false,null,null,null,0,false,false,false,null,null,null,0,false,false,false,null,null,null,0,false,false,false,null,null,null,0,false,false,false,null,null,null,0,false,false,false,null,null,null,0,false,false,false,null,null,null,0,false,false,false,null,null,null,0,false,false,false,null,null,null,0,false,false,false,null,null,null,0,false,false,false,null,null,null,0,false,false,false,null,null,null,0,false,false,false,null,null,null,0,false,false,false,null,null,null,0,false,false,false,null,null,null,0,false,false,false,null,null,null,0,false,false,false,null,null,null,0,false,false,false]
[{"$f":"Poules!S67","v":"BELGIQUE"},{"$f":"IF(Poules!B69=\"\",\"\",Poules!B69)","v":""},{"$f":"IF(Poules!C69=\"\",\"\",Poules!C69)","v":""},{"$f":"Poules!S69","v":"RUSSIE"},null,null,null,0,false,false,false,null,null,null,0,false,false,false,null,null,null,0,false,false,false,null,null,null,0,false,false,false,null,null,null,0,false,false,false,null,null,null,0,false,false,false,null,null,null,0,false,false,false,null,null,null,0,false,false,false,null,null,null,0,false,false,false,null,null,null,0,false,false,false,null,null,null,0,false,false,false,null,null,null,0,false,false,false,null,null,null,0,false,false,false,null,null,null,0,false,false,false,null,null,null,0,false,false,false,null,null,null,0,false,false,false,null,null,null,0,false,false,false,null,null,null,0,false,false,false,null,null,null,0,false,false,false,null,null,null,0,false,false,false,null,null,null,0,false,false,false,null,null,null,0,false,false,false,null,null,null,0,false,false,false,null,null,null,0,false,false,false,null,null,null,0,false,false,false,null,null,null,0,false,false,false,null,null,null,0,false,false,false,null,null,null,0,false,false,false,null,null,null,0,false,false,false,null,null,null,0,false,false,false,null,null,null,0,false,false,false,null,null,null,0,false,false,false,null,null,null,0,false,false,false,null,null,null,0,false,false,false,null,null,null,0,false,false,false,null,null,null,0,false,false,false,null,null,null,0,false,false,false,null,null,null,0,false,false,false,null,null,null,0,false,false,false,null,null,null,0,false,false,false,null,null,null,0,false,false,false,null,null,null,0,false,false,false,null,null,null,0,false,false,false,null,null,null,0,false,false,false,null,null,null,0,false,false,false,null,null,null,0,false,false,false,null,null,null,0,false,false,false,null,null,null,0,false,false,false,null,null,null,0,false,false,false,null,null,null,0,false,false,false,null,null,null,0,false,false,false,null,null,null,0,false,false,false,null,null,null,0,false,false,false,null,null,null,0,false,false,false,null,null,null,0,false,false,false,null,null,null,0,false,false,false,null,null,null,0,false,false,false,null,null,null,0,false,false,false,null,null,null,0,false,false,false,null,null,null,0,false,false,false,null,null,null,0,false,false,false,null,null,null,0,false,false,false,null,null,null,0,false,false,false,null,null,null,0,false,false,false,null,null,null,0,false,false,false,null,null,null,0,false,false,false,null,null,null,0,false,false,false,null,null,null,0,false,false,false,null,null,null,0,false,false,false,null,null,null,0,false,false,false,null,null,null,0,false,false,false,null,null,null,0,false,false,false,null,null,null,0,false,false,false,null,null,null,0,false,false,false,null,null,null,0,false,false,false,null,null,null,0,false,false,false,null,null,null,0,false,false,false,null,null,null,0,false,false,false,null,null,null,0,false,false,false,null,null,null,0,false,false,false,null,null,null,0,false,false,false,null,null,null,0,false,false,false,null,null,null,0,false,false,false,null,null,null,0,false,false,false,null,null,null,0,false,false,false,null,null,null,0,false,false,false,null,null,null,0,false,false,false,null,null,null,0,false,false,false,null,null,null,0,false,false,false,null,null,null,0,false,false,false]
[{"$f":"Poules!S70","v":"REPUBLIQUE DE COREE"},{"$f":"IF(Poules!B70=\"\",\"\",Poules!B70)","v":""},{"$f":"IF(Poules!C70=\"\",\"\",Poules!C70)","v":""},{"$f":"Poules!S68","v":"ALGERIE"},null,null,null,0,false,false,false,null,null,null,0,false,false,false,null,null,null,0,false,false,false,null,null,null,0,false,false,false,null,null,null,0,false,false,false,null,null,null,0,false,false,false,null,null,null,0,false,false,false,null,null,null,0,false,false,false,null,null,null,0,false,false,false,null,null,null,0,false,false,false,null,null,null,0,false,false,false,null,null,null,0,false,false,false,null,null,null,0,false,false,false,null,null,null,0,false,false,false,null,null,null,0,false,false,false,null,null,null,0,false,false,false,null,null,null,0,false,false,false,null,null,null,0,false,false,false,null,null,null,0,false,false,false,null,null,null,0,false,false,false,null,null,null,0,false,false,false,null,null,null,0,false,false,false,null,null,null,0,false,false,false,null,null,null,0,false,false,false,null,null,null,0,false,false,false,null,null,null,0,false,false,false,null,null,null,0,false,false,false,null,null,null,0,false,false,false,null,null,null,0,false,false,false,null,null,null,0,false,false,false,null,null,null,0,false,false,false,null,null,null,0,false,false,false,null,null,null,0,false,false,false,null,null,null,0,false,false,false,null,null,null,0,false,false,false,null,null,null,0,false,false,false,null,null,null,0,false,false,false,null,null,null,0,false,false,false,null,null,null,0,false,false,false,null,null,null,0,false,false,false,null,null,null,0,false,false,false,null,null,null,0,false,false,false,null,null,null,0,false,false,false,null,null,null,0,false,false,false,null,null,null,0,false,false,false,null,null,null,0,false,false,false,null,null,null,0,false,false,false,null,null,null,0,false,false,false,null,null,null,0,false,false,false,null,null,null,0,false,false,false,null,null,null,0,false,false,false,null,null,null,0,false,false,false,null,null,null,0,false,false,false,null,null,null,0,false,false,false,null,null,null,0,false,false,false,null,null,null,0,false,false,false,null,null,null,0,false,false,false,null,null,null,0,false,false,false,null,null,null,0,false,false,false,null,null,null,0,false,false,false,null,null,null,0,false,false,false,null,null,null,0,false,false,false,null,null,null,0,false,false,false,null,null,null,0,false,false,false,null,null,null,0,false,false,false,null,null,null,0,false,false,false,null,null,null,0,false,false,false,null,null,null,0,false,false,false,null,null,null,0,false,false,false,null,null,null,0,false,false,false,null,null,null,0,false,false,false,null,null,null,0,false,false,false,null,null,null,0,false,false,false,null,null,null,0,false,false,false,null,null,null,0,false,false,false,null,null,null,0,false,false,false,null,null,null,0,false,false,false,null,null,null,0,false,false,false,null,null,null,0,false,false,false,null,null,null,0,false,false,false,null,null,null,0,false,false,false,null,null,null,0,false,false,false,null,null,null,0,false,false,false,null,null,null,0,false,false,false,null,null,null,0,false,false,false,null,null,null,0,false,false,false,null,null,null,0,false,false,false,null,null,null,0,false,false,false,null,null,null,0,false,false,false,null,null,null,0,false,false,false]
[{"$f":"Poules!S61","v":"U.S.A"},{"$f":"IF(Poules!B61=\"\",\"\",Poules!B61)","v":""},{"$f":"IF(Poules!C61=\"\",\"\",Poules!C61)","v":""},{"$f":"Poules!S59","v":"PORTUGAL"},null,null,null,0,false,false,false,null,null,null,0,false,false,false,null,null,null,0,false,false,false,null,null,null,0,false,false,false,null,null,null,0,false,false,false,null,null,null,0,false,false,false,null,null,null,0,false,false,false,null,null,null,0,false,false,false,null,null,null,0,false,false,false,null,null,null,0,false,false,false,null,null,null,0,false,false,false,null,null,null,0,false,false,false,null,null,null,0,false,false,false,null,null,null,0,false,false,false,null,null,null,0,false,false,false,null,null,null,0,false,false,false,null,null,null,0,false,false,false,null,null,null,0,false,false,false,null,null,null,0,false,false,false,null,null,null,0,false,false,false,null,null,null,0,false,false,false,null,null,null,0,false,false,false,null,null,null,0,false,false,false,null,null,null,0,false,false,false,null,null,null,0,false,false,false,null,null,null,0,false,false,false,null,null,null,0,false,false,false,null,null,null,0,false,false,false,null,null,null,0,false,false,false,null,null,null,0,false,false,false,null,null,null,0,false,false,false,null,null,null,0,false,false,false,null,null,null,0,false,false,false,null,null,null,0,false,false,false,null,null,null,0,false,false,false,null,null,null,0,false,false,false,null,null,null,0,false,false,false,null,null,null,0,false,false,false,null,null,null,0,false,false,false,null,null,null,0,false,false,false,null,null,null,0,false,false,false,null,null,null,0,false,false,false,null,null,null,0,false,false,false,null,null,null,0,false,false,false,null,null,null,0,false,false,false,null,null,null,0,false,false,false,null,null,null,0,false,false,false,null,null,null,0,false,false,false,null,null,null,0,false,false,false,null,null,null,0,false,false,false,null,null,null,0,false,false,false,null,null,null,0,false,false,false,null,null,null,0,false,false,false,null,null,null,0,false,false,false,null,null,null,0,false,false,false,null,null,null,0,false,false,false,null,null,null,0,false,false,false,null,null,null,0,false,false,false,null,null,null,0,false,false,false,null,null,null,0,false,false,false,null,null,null,0,false,false,false,null,null,null,0,false,false,false,null,null,null,0,false,false,false,null,null,null,0,false,false,false,null,null,null,0,false,false,false,null,null,null,0,false,false,false,null,null,null,0,false,false,false,null,null,null,0,false,false,false,null,null,null,0,false,false,false,null,null,null,0,false,false,false,null,null,null,0,false,false,false,null,null,null,0,false,false,false,null,null,null,0,false,false,false,null,null,null,0,false,false,false,null,null,null,0,false,false,false,null,null,null,0,false,false,false,null,null,null,0,false,false,false,null,null,null,0,false,false,false,null,null,null,0,false,false,false,null,null,null,0,false,false,false,null,null,null,0,false,false,false,null,null,null,0,false,false,false,null,null,null,0,false,false,false,null,null,null,0,false,false,false,null,null,null,0,false,false,false,null,null,null,0,false,false,false,null,null,null,0,false,false,false,null,null,null,0,false,false,false,null,null,null,0,false,false,false,null,null,null,0,false,false,false]
[{"$f":"Poules!S14","v":"PAYS - BAS"},{"$f":"IF(Poules!B18=\"\",\"\",Poules!B18)","v":""},{"$f":"IF(Poules!C18=\"\",\"\",Poules!C18)","v":""},{"$f":"Poules!S15","v":"CHILI"},null,null,null,0,false,false,false,null,null,null,0,false,false,false,null,null,null,0,false,false,false,null,null,null,0,false,false,false,null,null,null,0,false,false,false,null,null,null,0,false,false,false,null,null,null,0,false,false,false,null,null,null,0,false,false,false,null,null,null,0,false,false,false,null,null,null,0,false,false,false,null,null,null,0,false,false,false,null,null,null,0,false,false,false,null,null,null,0,false,false,false,null,null,null,0,false,false,false,null,null,null,0,false,false,false,null,null,null,0,false,false,false,null,null,null,0,false,false,false,null,null,null,0,false,false,false,null,null,null,0,false,false,false,null,null,null,0,false,false,false,null,null,null,0,false,false,false,null,null,null,0,false,false,false,null,null,null,0,false,false,false,null,null,null,0,false,false,false,null,null,null,0,false,false,false,null,null,null,0,false,false,false,null,null,null,0,false,false,false,null,null,null,0,false,false,false,null,null,null,0,false,false,false,null,null,null,0,false,false,false,null,null,null,0,false,false,false,null,null,null,0,false,false,false,null,null,null,0,false,false,false,null,null,null,0,false,false,false,null,null,null,0,false,false,false,null,null,null,0,false,false,false,null,null,null,0,false,false,false,null,null,null,0,false,false,false,null,null,null,0,false,false,false,null,null,null,0,false,false,false,null,null,null,0,false,false,false,null,null,null,0,false,false,false,null,null,null,0,false,false,false,null,null,null,0,false,false,false,null,null,null,0,false,false,false,null,null,null,0,false,false,false,null,null,null,0,false,false,false,null,null,null,0,false,false,false,null,null,null,0,false,false,false,null,null,null,0,false,false,false,null,null,null,0,false,false,false,null,null,null,0,false,false,false,null,null,null,0,false,false,false,null,null,null,0,false,false,false,null,null,null,0,false,false,false,null,null,null,0,false,false,false,null,null,null,0,false,false,false,null,null,null,0,false,false,false,null,null,null,0,false,false,false,null,null,null,0,false,false,false,null,null,null,0,false,false,false,null,null,null,0,false,false,false,null,null,null,0,false,false,false,null,null,null,0,false,false,false,null,null,null,0,false,false,false,null,null,null,0,false,false,false,null,null,null,0,false,false,false,null,null,null,0,false,false,false,null,null,null,0,false,false,false,null,null,null,0,false,false,false,null,null,null,0,false,false,false,null,null,null,0,false,false,false,null,null,null,0,false,false,false,null,null,null,0,false,false,false,null,null,null,0,false,false,false,null,null,null,0,false,false,false,null,null,null,0,false,false,false,null,null,null,0,false,false,false,null,null,null,0,false,false,false,null,null,null,0,false,false,false,null,null,null,0,false,false,false,null,null,null,0,false,false,false,null,null,null,0,false,false,false,null,null,null,0,false,false,false,null,null,null,0,false,false,false,null,null,null,0,false,false,false,null,null,null,0,false,false,false,null,null,null,0,false,false,false,null,null,null,0,false,false,false,null,null,null,0,false,false,false]
[{"$f":"Poules!S16","v":"AUSTRALIE"},{"$f":"IF(Poules!B17=\"\",\"\",Poules!B17)","v":""},{"$f":"IF(Poules!C17=\"\",\"\",Poules!C17)","v":""},{"$f":"Poules!S13","v":"ESPAGNE"},null,null,null,0,false,false,false,null,null,null,0,false,false,false,null,null,null,0,false,false,false,null,null,null,0,false,false,false,null,null,null,0,false,false,false,null,null,null,0,false,false,false,null,null,null,0,false,false,false,null,null,null,0,false,false,false,null,null,null,0,false,false,false,null,null,null,0,false,false,false,null,null,null,0,false,false,false,null,null,null,0,false,false,false,null,null,null,0,false,false,false,null,null,null,0,false,false,false,null,null,null,0,false,false,false,null,null,null,0,false,false,false,null,null,null,0,false,false,false,null,null,null,0,false,false,false,null,null,null,0,false,false,false,null,null,null,0,false,false,false,null,null,null,0,false,false,false,null,null,null,0,false,false,false,null,null,null,0,false,false,false,null,null,null,0,false,false,false,null,null,null,0,false,false,false,null,null,null,0,false,false,false,null,null,null,0,false,false,false,null,null,null,0,false,false,false,null,null,null,0,false,false,false,null,null,null,0,false,false,false,null,null,null,0,false,false,false,null,null,null,0,false,false,false,null,null,null,0,false,false,false,null,null,null,0,false,false,false,null,null,null,0,false,false,false,null,null,null,0,false,false,false,null,null,null,0,false,false,false,null,null,null,0,false,false,false,null,null,null,0,false,false,false,null,null,null,0,false,false,false,null,null,null,0,false,false,false,null,null,null,0,false,false,false,null,null,null,0,false,false,false,null,null,null,0,false,false,false,null,null,null,0,false,false,false,null,null,null,0,false,false,false,null,null,null,0,false,false,false,null,null,null,0,false,false,false,null,null,null,0,false,false,false,null,null,null,0,false,false,false,null,null,null,0,false,false,false,null,null,null,0,false,false,false,null,null,null,0,false,false,false,null,null,null,0,false,false,false,null,null,null,0,false,false,false,null,null,null,0,false,false,false,null,null,null,0,false,false,false,null,null,null,0,false,false,false,null,null,null,0,false,false,false,null,null,null,0,false,false,false,null,null,null,0,false,false,false,null,null,null,0,false,false,false,null,null,null,0,false,false,false,null,null,null,0,false,false,false,null,null,null,0,false,false,false,null,null,null,0,false,false,false,null,null,null,0,false,false,false,null,null,null,0,false,false,false,null,null,null,0,false,false,false,null,null,null,0,false,false,false,null,null,null,0,false,false,false,null,null,null,0,false,false,false,null,null,null,0,false,false,false,null,null,null,0,false,false,false,null,null,null,0,false,false,false,null,null,null,0,false,false,false,null,null,null,0,false,false,false,null,null,null,0,false,false,false,null,null,null,0,false,false,false,null,null,null,0,false,false,false,null,null,null,0,false,false,false,null,null,null,0,false,false,false,null,null,null,0,false,false,false,null,null,null,0,false,false,false,null,null,null,0,false,false,false,null,null,null,0,false,false,false,null,null,null,0,false,false,false,null,null,null,0,false,false,false,null,null,null,0,false,false,false,null,null,null,0,false,false,false]
[{"$f":"Poules!S7","v":"CAMEROUN"},{"$f":"IF(Poules!B8=\"\",\"\",Poules!B8)","v":""},{"$f":"IF(Poules!C8=\"\",\"\",Poules!C8)","v":""},{"$f":"Poules!S4","v":"BRESIL"},null,null,null,0,false,false,false,null,null,null,0,false,false,false,null,null,null,0,false,false,false,null,null,null,0,false,false,false,null,null,null,0,false,false,false,null,null,null,0,false,false,false,null,null,null,0,false,false,false,null,null,null,0,false,false,false,null,null,null,0,false,false,false,null,null,null,0,false,false,false,null,null,null,0,false,false,false,null,null,null,0,false,false,false,null,null,null,0,false,false,false,null,null,null,0,false,false,false,null,null,null,0,false,false,false,null,null,null,0,false,false,false,null,null,null,0,false,false,false,null,null,null,0,false,false,false,null,null,null,0,false,false,false,null,null,null,0,false,false,false,null,null,null,0,false,false,false,null,null,null,0,false,false,false,null,null,null,0,false,false,false,null,null,null,0,false,false,false,null,null,null,0,false,false,false,null,null,null,0,false,false,false,null,null,null,0,false,false,false,null,null,null,0,false,false,false,null,null,null,0,false,false,false,null,null,null,0,false,false,false,null,null,null,0,false,false,false,null,null,null,0,false,false,false,null,null,null,0,false,false,false,null,null,null,0,false,false,false,null,null,null,0,false,false,false,null,null,null,0,false,false,false,null,null,null,0,false,false,false,null,null,null,0,false,false,false,null,null,null,0,false,false,false,null,null,null,0,false,false,false,null,null,null,0,false,false,false,null,null,null,0,false,false,false,null,null,null,0,false,false,false,null,null,null,0,false,false,false,null,null,null,0,false,false,false,null,null,null,0,false,false,false,null,null,null,0,false,false,false,null,null,null,0,false,false,false,null,null,null,0,false,false,false,null,null,null,0,false,false,false,null,null,null,0,false,false,false,null,null,null,0,false,false,false,null,null,null,0,false,false,false,null,null,null,0,false,false,false,null,null,null,0,false,false,false,null,null,null,0,false,false,false,null,null,null,0,false,false,false,null,null,null,0,false,false,false,null,null,null,0,false,false,false,null,null,null,0,false,false,false,null,null,null,0,false,false,false,null,null,null,0,false,false,false,null,null,null,0,false,false,false,null,null,null,0,false,false,false,null,null,null,0,false,false,false,null,null,null,0,false,false,false,null,null,null,0,false,false,false,null,null,null,0,false,false,false,null,null,null,0,false,false,false,null,null,null,0,false,false,false,null,null,null,0,false,false,false,null,null,null,0,false,false,false,null,null,null,0,false,false,false,null,null,null,0,false,false,false,null,null,null,0,false,false,false,null,null,null,0,false,false,false,null,null,null,0,false,false,false,null,null,null,0,false,false,false,null,null,null,0,false,false,false,null,null,null,0,false,false,false,null,null,null,0,false,false,false,null,null,null,0,false,false,false,null,null,null,0,false,false,false,null,null,null,0,false,false,false,null,null,null,0,false,false,false,null,null,null,0,false,false,false,null,null,null,0,false,false,false,null,null,null,0,false,false,false,null,null,null,0,false,false,false,null,null,null,0,false,false,false]
[{"$f":"Poules!S5","v":"CROATIE"},{"$f":"IF(Poules!B9=\"\",\"\",Poules!B9)","v":""},{"$f":"IF(Poules!C9=\"\",\"\",Poules!C9)","v":""},{"$f":"Poules!S6","v":"MEXIQUE"},null,null,null,0,false,false,false,null,null,null,0,false,false,false,null,null,null,0,false,false,false,null,null,null,0,false,false,false,null,null,null,0,false,false,false,null,null,null,0,false,false,false,null,null,null,0,false,false,false,null,null,null,0,false,false,false,null,null,null,0,false,false,false,null,null,null,0,false,false,false,null,null,null,0,false,false,false,null,null,null,0,false,false,false,null,null,null,0,false,false,false,null,null,null,0,false,false,false,null,null,null,0,false,false,false,null,null,null,0,false,false,false,null,null,null,0,false,false,false,null,null,null,0,false,false,false,null,null,null,0,false,false,false,null,null,null,0,false,false,false,null,null,null,0,false,false,false,null,null,null,0,false,false,false,null,null,null,0,false,false,false,null,null,null,0,false,false,false,null,null,null,0,false,false,false,null,null,null,0,false,false,false,null,null,null,0,false,false,false,null,null,null,0,false,false,false,null,null,null,0,false,false,false,null,null,null,0,false,false,false,null,null,null,0,false,false,false,null,null,null,0,false,false,false,null,null,null,0,false,false,false,null,null,null,0,false,false,false,null,null,null,0,false,false,false,null,null,null,0,false,false,false,null,null,null,0,false,false,false,null,null,null,0,false,false,false,null,null,null,0,false,false,false,null,null,null,0,false,false,false,null,null,null,0,false,false,false,null,null,null,0,false,false,false,null,null,null,0,false,false,false,null,null,null,0,false,false,false,null,null,null,0,false,false,false,null,null,null,0,false,false,false,null,null,null,0,false,false,false,null,null,null,0,false,false,false,null,null,null,0,false,false,false,null,null,null,0,false,false,false,null,null,null,0,false,false,false,null,null,null,0,false,false,false,null,null,null,0,false,false,false,null,null,null,0,false,false,false,null,null,null,0,false,false,false,null,null,null,0,false,false,false,null,null,null,0,false,false,false,null,null,null,0,false,false,false,null,null,null,0,false,false,false,null,null,null,0,false,false,false,null,null,null,0,false,false,false,null,null,null,0,false,false,false,null,null,null,0,false,false,false,null,null,null,0,false,false,false,null,null,null,0,false,false,false,null,null,null,0,false,false,false,null,null,null,0,false,false,false,null,null,null,0,false,false,false,null,null,null,0,false,false,false,null,null,null,0,false,false,false,null,null,null,0,false,false,false,null,null,null,0,false,false,false,null,null,null,0,false,false,false,null,null,null,0,false,false,false,null,null,null,0,false,false,false,null,null,null,0,false,false,false,null,null,null,0,false,false,false,null,null,null,0,false,false,false,null,null,null,0,false,false,false,null,null,null,0,false,false,false,null,null,null,0,false,false,false,null,null,null,0,false,false,false,null,null,null,0,false,false,false,null,null,null,0,false,false,false,null,null,null,0,false,false,false,null,null,null,0,false,false,false,null,null,null,0,false,false,false,null,null,null,0,false,false,false,null,null,null,0,false,false,false,null,null,null,0,false,false,false]
[{"$f":"Poules!S34","v":"ITALIE"},{"$f":"IF(Poules!B35=\"\",\"\",Poules!B35)","v":""},{"$f":"IF(Poules!C35=\"\",\"\",Poules!C35)","v":""},{"$f":"Poules!S31","v":"URUGUAY"},null,null,null,0,false,false,false,null,null,null,0,false,false,false,null,null,null,0,false,false,false,null,null,null,0,false,false,false,null,null,null,0,false,false,false,null,null,null,0,false,false,false,null,null,null,0,false,false,false,null,null,null,0,false,false,false,null,null,null,0,false,false,false,null,null,null,0,false,false,false,null,null,null,0,false,false,false,null,null,null,0,false,false,false,null,null,null,0,false,false,false,null,null,null,0,false,false,false,null,null,null,0,false,false,false,null,null,null,0,false,false,false,null,null,null,0,false,false,false,null,null,null,0,false,false,false,null,null,null,0,false,false,false,null,null,null,0,false,false,false,null,null,null,0,false,false,false,null,null,null,0,false,false,false,null,null,null,0,false,false,false,null,null,null,0,false,false,false,null,null,null,0,false,false,false,null,null,null,0,false,false,false,null,null,null,0,false,false,false,null,null,null,0,false,false,false,null,null,null,0,false,false,false,null,null,null,0,false,false,false,null,null,null,0,false,false,false,null,null,null,0,false,false,false,null,null,null,0,false,false,false,null,null,null,0,false,false,false,null,null,null,0,false,false,false,null,null,null,0,false,false,false,null,null,null,0,false,false,false,null,null,null,0,false,false,false,null,null,null,0,false,false,false,null,null,null,0,false,false,false,null,null,null,0,false,false,false,null,null,null,0,false,false,false,null,null,null,0,false,false,false,null,null,null,0,false,false,false,null,null,null,0,false,false,false,null,null,null,0,false,false,false,null,null,null,0,false,false,false,null,null,null,0,false,false,false,null,null,null,0,false,false,false,null,null,null,0,false,false,false,null,null,null,0,false,false,false,null,null,null,0,false,false,false,null,null,null,0,false,false,false,null,null,null,0,false,false,false,null,null,null,0,false,false,false,null,null,null,0,false,false,false,null,null,null,0,false,false,false,null,null,null,0,false,false,false,null,null,null,0,false,false,false,null,null,null,0,false,false,false,null,null,null,0,false,false,false,null,null,null,0,false,false,false,null,null,null,0,false,false,false,null,null,null,0,false,false,false,null,null,null,0,false,false,false,null,null,null,0,false,false,false,null,null,null,0,false,false,false,null,null,null,0,false,false,false,null,null,null,0,false,false,false,null,null,null,0,false,false,false,null,null,null,0,false,false,false,null,null,null,0,false,false,false,null,null,null,0,false,false,false,null,null,null,0,false,false,false,null,null,null,0,false,false,false,null,null,null,0,false,false,false,null,null,null,0,false,false,false,null,null,null,0,false,false,false,null,null,null,0,false,false,false,null,null,null,0,false,false,false,null,null,null,0,false,false,false,null,null,null,0,false,false,false,null,null,null,0,false,false,false,null,null,null,0,false,false,false,null,null,null,0,false,false,false,null,null,null,0,false,false,false,null,null,null,0,false,false,false,null,null,null,0,false,false,false,null,null,null,0,false,false,false,null,null,null,0,false,false,false]
[{"$f":"Poules!S32","v":"COSTA RICA"},{"$f":"IF(Poules!B36=\"\",\"\",Poules!B36)","v":""},{"$f":"IF(Poules!C36=\"\",\"\",Poules!C36)","v":""},{"$f":"Poules!S33","v":"ANGLETERRE"},null,null,null,0,false,false,false,null,null,null,0,false,false,false,null,null,null,0,false,false,false,null,null,null,0,false,false,false,null,null,null,0,false,false,false,null,null,null,0,false,false,false,null,null,null,0,false,false,false,null,null,null,0,false,false,false,null,null,null,0,false,false,false,null,null,null,0,false,false,false,null,null,null,0,false,false,false,null,null,null,0,false,false,false,null,null,null,0,false,false,false,null,null,null,0,false,false,false,null,null,null,0,false,false,false,null,null,null,0,false,false,false,null,null,null,0,false,false,false,null,null,null,0,false,false,false,null,null,null,0,false,false,false,null,null,null,0,false,false,false,null,null,null,0,false,false,false,null,null,null,0,false,false,false,null,null,null,0,false,false,false,null,null,null,0,false,false,false,null,null,null,0,false,false,false,null,null,null,0,false,false,false,null,null,null,0,false,false,false,null,null,null,0,false,false,false,null,null,null,0,false,false,false,null,null,null,0,false,false,false,null,null,null,0,false,false,false,null,null,null,0,false,false,false,null,null,null,0,false,false,false,null,null,null,0,false,false,false,null,null,null,0,false,false,false,null,null,null,0,false,false,false,null,null,null,0,false,false,false,null,null,null,0,false,false,false,null,null,null,0,false,false,false,null,null,null,0,false,false,false,null,null,null,0,false,false,false,null,null,null,0,false,false,false,null,null,null,0,false,false,false,null,null,null,0,false,false,false,null,null,null,0,false,false,false,null,null,null,0,false,false,false,null,null,null,0,false,false,false,null,null,null,0,false,false,false,null,null,null,0,false,false,false,null,null,null,0,false,false,false,null,null,null,0,false,false,false,null,null,null,0,false,false,false,null,null,null,0,false,false,false,null,null,null,0,false,false,false,null,null,null,0,false,false,false,null,null,null,0,false,false,false,null,null,null,0,false,false,false,null,null,null,0,false,false,false,null,null,null,0,false,false,false,null,null,null,0,false,false,false,null,null,null,0,false,false,false,null,null,null,0,false,false,false,null,null,null,0,false,false,false,null,null,null,0,false,false,false,null,null,null,0,false,false,false,null,null,null,0,false,false,false,null,null,null,0,false,false,false,null,null,null,0,false,false,false,null,null,null,0,false,false,false,null,null,null,0,false,false,false,null,null,null,0,false,false,false,null,null,null,0,false,false,false,null,null,null,0,false,false,false,null,null,null,0,false,false,false,null,null,null,0,false,false,false,null,null,null,0,false,false,false,null,null,null,0,false,false,false,null,null,null,0,false,false,false,null,null,null,0,false,false,false,null,null,null,0,false,false,false,null,null,null,0,false,false,false,null,null,null,0,false,false,false,null,null,null,0,false,false,false,null,null,null,0,false,false,false,null,null,null,0,false,false,false,null,null,null,0,false,false,false,null,null,null,0,false,false,false,null,null,null,0,false,false,false,null,null,null,0,false,false,false,null,null,null,0,false,false,false]
[{"$f":"Poules!S25","v":"JAPON"},{"$f":"IF(Poules!B26=\"\",\"\",Poules!B26)","v":""},{"$f":"IF(Poules!C26=\"\",\"\",Poules!C26)","v":""},{"$f":"Poules!S22","v":"COLOMBIE"},null,null,null,0,false,false,false,null,null,null,0,false,false,false,null,null,null,0,false,false,false,null,null,null,0,false,false,false,null,null,null,0,false,false,false,null,null,null,0,false,false,false,null,null,null,0,false,false,false,null,null,null,0,false,false,false,null,null,null,0,false,false,false,null,null,null,0,false,false,false,null,null,null,0,false,false,false,null,null,null,0,false,false,false,null,null,null,0,false,false,false,null,null,null,0,false,false,false,null,null,null,0,false,false,false,null,null,null,0,false,false,false,null,null,null,0,false,false,false,null,null,null,0,false,false,false,null,null,null,0,false,false,false,null,null,null,0,false,false,false,null,null,null,0,false,false,false,null,null,null,0,false,false,false,null,null,null,0,false,false,false,null,null,null,0,false,false,false,null,null,null,0,false,false,false,null,null,null,0,false,false,false,null,null,null,0,false,false,false,null,null,null,0,false,false,false,null,null,null,0,false,false,false,null,null,null,0,false,false,false,null,null,null,0,false,false,false,null,null,null,0,false,false,false,null,null,null,0,false,false,false,null,null,null,0,false,false,false,null,null,null,0,false,false,false,null,null,null,0,false,false,false,null,null,null,0,false,false,false,null,null,null,0,false,false,false,null,null,null,0,false,false,false,null,null,null,0,false,false,false,null,null,null,0,false,false,false,null,null,null,0,false,false,false,null,null,null,0,false,false,false,null,null,null,0,false,false,false,null,null,null,0,false,false,false,null,null,null,0,false,false,false,null,null,null,0,false,false,false,null,null,null,0,false,false,false,null,null,null,0,false,false,false,null,null,null,0,false,false,false,null,null,null,0,false,false,false,null,null,null,0,false,false,false,null,null,null,0,false,false,false,null,null,null,0,false,false,false,null,null,null,0,false,false,false,null,null,null,0,false,false,false,null,null,null,0,false,false,false,null,null,null,0,false,false,false,null,null,null,0,false,false,false,null,null,null,0,false,false,false,null,null,null,0,false,false,false,null,null,null,0,false,false,false,null,null,null,0,false,false,false,null,null,null,0,false,false,false,null,null,null,0,false,false,false,null,null,null,0,false,false,false,null,null,null,0,false,false,false,null,null,null,0,false,false,false,null,null,null,0,false,false,false,null,null,null,0,false,false,false,null,null,null,0,false,false,false,null,null,null,0,false,false,false,null,null,null,0,false,false,false,null,null,null,0,false,false,false,null,null,null,0,false,false,false,null,null,null,0,false,false,false,null,null,null,0,false,false,false,null,null,null,0,false,false,false,null,null,null,0,false,false,false,null,null,null,0,false,false,false,null,null,null,0,false,false,false,null,null,null,0,false,false,false,null,null,null,0,false,false,false,null,null,null,0,false,false,false,null,null,null,0,false,false,false,null,null,null,0,false,false,false,null,null,null,0,false,false,false,null,null,null,0,false,false,false,null,null,null,0,false,false,false,null,null,null,0,false,false,false]
[{"$f":"Poules!S23","v":"GRECE"},{"$f":"IF(Poules!B27=\"\",\"\",Poules!B27)","v":""},{"$f":"IF(Poules!C27=\"\",\"\",Poules!C27)","v":""},{"$f":"Poules!S24","v":"CÔTE D'IVOIRE"},null,null,null,0,false,false,false,null,null,null,0,false,false,false,null,null,null,0,false,false,false,null,null,null,0,false,false,false,null,null,null,0,false,false,false,null,null,null,0,false,false,false,null,null,null,0,false,false,false,null,null,null,0,false,false,false,null,null,null,0,false,false,false,null,null,null,0,false,false,false,null,null,null,0,false,false,false,null,null,null,0,false,false,false,null,null,null,0,false,false,false,null,null,null,0,false,false,false,null,null,null,0,false,false,false,null,null,null,0,false,false,false,null,null,null,0,false,false,false,null,null,null,0,false,false,false,null,null,null,0,false,false,false,null,null,null,0,false,false,false,null,null,null,0,false,false,false,null,null,null,0,false,false,false,null,null,null,0,false,false,false,null,null,null,0,false,false,false,null,null,null,0,false,false,false,null,null,null,0,false,false,false,null,null,null,0,false,false,false,null,null,null,0,false,false,false,null,null,null,0,false,false,false,null,null,null,0,false,false,false,null,null,null,0,false,false,false,null,null,null,0,false,false,false,null,null,null,0,false,false,false,null,null,null,0,false,false,false,null,null,null,0,false,false,false,null,null,null,0,false,false,false,null,null,null,0,false,false,false,null,null,null,0,false,false,false,null,null,null,0,false,false,false,null,null,null,0,false,false,false,null,null,null,0,false,false,false,null,null,null,0,false,false,false,null,null,null,0,false,false,false,null,null,null,0,false,false,false,null,null,null,0,false,false,false,null,null,null,0,false,false,false,null,null,null,0,false,false,false,null,null,null,0,false,false,false,null,null,null,0,false,false,false,null,null,null,0,false,false,false,null,null,null,0,false,false,false,null,null,null,0,false,false,false,null,null,null,0,false,false,false,null,null,null,0,false,false,false,null,null,null,0,false,false,false,null,null,null,0,false,false,false,null,null,null,0,false,false,false,null,null,null,0,false,false,false,null,null,null,0,false,false,false,null,null,null,0,false,false,false,null,null,null,0,false,false,false,null,null,null,0,false,false,false,null,null,null,0,false,false,false,null,null,null,0,false,false,false,null,null,null,0,false,false,false,null,null,null,0,false,false,false,null,null,null,0,false,false,false,null,null,null,0,false,false,false,null,null,null,0,false,false,false,null,null,null,0,false,false,false,null,null,null,0,false,false,false,null,null,null,0,false,false,false,null,null,null,0,false,false,false,null,null,null,0,false,false,false,null,null,null,0,false,false,false,null,null,null,0,false,false,false,null,null,null,0,false,false,false,null,null,null,0,false,false,false,null,null,null,0,false,false,false,null,null,null,0,false,false,false,null,null,null,0,false,false,false,null,null,null,0,false,false,false,null,null,null,0,false,false,false,null,null,null,0,false,false,false,null,null,null,0,false,false,false,null,null,null,0,false,false,false,null,null,null,0,false,false,false,null,null,null,0,false,false,false,null,null,null,0,false,false,false,null,null,null,0,false,false,false]
[{"$f":"Poules!S52","v":"NIGERIA"},{"$f":"IF(Poules!B53=\"\",\"\",Poules!B53)","v":""},{"$f":"IF(Poules!C53=\"\",\"\",Poules!C53)","v":""},{"$f":"Poules!S49","v":"ARGENTINE"},null,null,null,0,false,false,false,null,null,null,0,false,false,false,null,null,null,0,false,false,false,null,null,null,0,false,false,false,null,null,null,0,false,false,false,null,null,null,0,false,false,false,null,null,null,0,false,false,false,null,null,null,0,false,false,false,null,null,null,0,false,false,false,null,null,null,0,false,false,false,null,null,null,0,false,false,false,null,null,null,0,false,false,false,null,null,null,0,false,false,false,null,null,null,0,false,false,false,null,null,null,0,false,false,false,null,null,null,0,false,false,false,null,null,null,0,false,false,false,null,null,null,0,false,false,false,null,null,null,0,false,false,false,null,null,null,0,false,false,false,null,null,null,0,false,false,false,null,null,null,0,false,false,false,null,null,null,0,false,false,false,null,null,null,0,false,false,false,null,null,null,0,false,false,false,null,null,null,0,false,false,false,null,null,null,0,false,false,false,null,null,null,0,false,false,false,null,null,null,0,false,false,false,null,null,null,0,false,false,false,null,null,null,0,false,false,false,null,null,null,0,false,false,false,null,null,null,0,false,false,false,null,null,null,0,false,false,false,null,null,null,0,false,false,false,null,null,null,0,false,false,false,null,null,null,0,false,false,false,null,null,null,0,false,false,false,null,null,null,0,false,false,false,null,null,null,0,false,false,false,null,null,null,0,false,false,false,null,null,null,0,false,false,false,null,null,null,0,false,false,false,null,null,null,0,false,false,false,null,null,null,0,false,false,false,null,null,null,0,false,false,false,null,null,null,0,false,false,false,null,null,null,0,false,false,false,null,null,null,0,false,false,false,null,null,null,0,false,false,false,null,null,null,0,false,false,false,null,null,null,0,false,false,false,null,null,null,0,false,false,false,null,null,null,0,false,false,false,null,null,null,0,false,false,false,null,null,null,0,false,false,false,null,null,null,0,false,false,false,null,null,null,0,false,false,false,null,null,null,0,false,false,false,null,null,null,0,false,false,false,null,null,null,0,false,false,false,null,null,null,0,false,false,false,null,null,null,0,false,false,false,null,null,null,0,false,false,false,null,null,null,0,false,false,false,null,null,null,0,false,false,false,null,null,null,0,false,false,false,null,null,null,0,false,false,false,null,null,null,0,false,false,false,null,null,null,0,false,false,false,null,null,null,0,false,false,false,null,null,null,0,false,false,false,null,null,null,0,false,false,false,null,null,null,0,false,false,false,null,null,null,0,false,false,false,null,null,null,0,false,false,false,null,null,null,0,false,false,false,null,null,null,0,false,false,false,null,null,null,0,false,false,false,null,null,null,0,false,false,false,null,null,null,0,false,false,false,null,null,null,0,false,false,false,null,null,null,0,false,false,false,null,null,null,0,false,false,false,null,null,null,0,false,false,false,null,null,null,0,false,false,false,null,null,null,0,false,false,false,null,null,null,0,false,false,false,null,null,null,0,false,false,false,null,null,null,0,false,false,false]
[{"$f":"Poules!S50","v":"BOSNIE - HERZEGOVINE"},{"$f":"IF(Poules!B54=\"\",\"\",Poules!B54)","v":""},{"$f":"IF(Poules!C54=\"\",\"\",Poules!C54)","v":""},{"$f":"Poules!S51","v":"IRAN"},null,null,null,0,false,false,false,null,null,null,0,false,false,false,null,null,null,0,false,false,false,null,null,null,0,false,false,false,null,null,null,0,false,false,false,null,null,null,0,false,false,false,null,null,null,0,false,false,false,null,null,null,0,false,false,false,null,null,null,0,false,false,false,null,null,null,0,false,false,false,null,null,null,0,false,false,false,null,null,null,0,false,false,false,null,null,null,0,false,false,false,null,null,null,0,false,false,false,null,null,null,0,false,false,false,null,null,null,0,false,false,false,null,null,null,0,false,false,false,null,null,null,0,false,false,false,null,null,null,0,false,false,false,null,null,null,0,false,false,false,null,null,null,0,false,false,false,null,null,null,0,false,false,false,null,null,null,0,false,false,false,null,null,null,0,false,false,false,null,null,null,0,false,false,false,null,null,null,0,false,false,false,null,null,null,0,false,false,false,null,null,null,0,false,false,false,null,null,null,0,false,false,false,null,null,null,0,false,false,false,null,null,null,0,false,false,false,null,null,null,0,false,false,false,null,null,null,0,false,false,false,null,null,null,0,false,false,false,null,null,null,0,false,false,false,null,null,null,0,false,false,false,null,null,null,0,false,false,false,null,null,null,0,false,false,false,null,null,null,0,false,false,false,null,null,null,0,false,false,false,null,null,null,0,false,false,false,null,null,null,0,false,false,false,null,null,null,0,false,false,false,null,null,null,0,false,false,false,null,null,null,0,false,false,false,null,null,null,0,false,false,false,null,null,null,0,false,false,false,null,null,null,0,false,false,false,null,null,null,0,false,false,false,null,null,null,0,false,false,false,null,null,null,0,false,false,false,null,null,null,0,false,false,false,null,null,null,0,false,false,false,null,null,null,0,false,false,false,null,null,null,0,false,false,false,null,null,null,0,false,false,false,null,null,null,0,false,false,false,null,null,null,0,false,false,false,null,null,null,0,false,false,false,null,null,null,0,false,false,false,null,null,null,0,false,false,false,null,null,null,0,false,false,false,null,null,null,0,false,false,false,null,null,null,0,false,false,false,null,null,null,0,false,false,false,null,null,null,0,false,false,false,null,null,null,0,false,false,false,null,null,null,0,false,false,false,null,null,null,0,false,false,false,null,null,null,0,false,false,false,null,null,null,0,false,false,false,null,null,null,0,false,false,false,null,null,null,0,false,false,false,null,null,null,0,false,false,false,null,null,null,0,false,false,false,null,null,null,0,false,false,false,null,null,null,0,false,false,false,null,null,null,0,false,false,false,null,null,null,0,false,false,false,null,null,null,0,false,false,false,null,null,null,0,false,false,false,null,null,null,0,false,false,false,null,null,null,0,false,false,false,null,null,null,0,false,false,false,null,null,null,0,false,false,false,null,null,null,0,false,false,false,null,null,null,0,false,false,false,null,null,null,0,false,false,false,null,null,null,0,false,false,false,null,null,null,0,false,false,false]
[{"$f":"Poules!S43","v":"HONDURAS"},{"$f":"IF(Poules!B44=\"\",\"\",Poules!B44)","v":""},{"$f":"IF(Poules!C44=\"\",\"\",Poules!C44)","v":""},{"$f":"Poules!S40","v":"SUISSE"},null,null,null,0,false,false,false,null,null,null,0,false,false,false,null,null,null,0,false,false,false,null,null,null,0,false,false,false,null,null,null,0,false,false,false,null,null,null,0,false,false,false,null,null,null,0,false,false,false,null,null,null,0,false,false,false,null,null,null,0,false,false,false,null,null,null,0,false,false,false,null,null,null,0,false,false,false,null,null,null,0,false,false,false,null,null,null,0,false,false,false,null,null,null,0,false,false,false,null,null,null,0,false,false,false,null,null,null,0,false,false,false,null,null,null,0,false,false,false,null,null,null,0,false,false,false,null,null,null,0,false,false,false,null,null,null,0,false,false,false,null,null,null,0,false,false,false,null,null,null,0,false,false,false,null,null,null,0,false,false,false,null,null,null,0,false,false,false,null,null,null,0,false,false,false,null,null,null,0,false,false,false,null,null,null,0,false,false,false,null,null,null,0,false,false,false,null,null,null,0,false,false,false,null,null,null,0,false,false,false,null,null,null,0,false,false,false,null,null,null,0,false,false,false,null,null,null,0,false,false,false,null,null,null,0,false,false,false,null,null,null,0,false,false,false,null,null,null,0,false,false,false,null,null,null,0,false,false,false,null,null,null,0,false,false,false,null,null,null,0,false,false,false,null,null,null,0,false,false,false,null,null,null,0,false,false,false,null,null,null,0,false,false,false,null,null,null,0,false,false,false,null,null,null,0,false,false,false,null,null,null,0,false,false,false,null,null,null,0,false,false,false,null,null,null,0,false,false,false,null,null,null,0,false,false,false,null,null,null,0,false,false,false,null,null,null,0,false,false,false,null,null,null,0,false,false,false,null,null,null,0,false,false,false,null,null,null,0,false,false,false,null,null,null,0,false,false,false,null,null,null,0,false,false,false,null,null,null,0,false,false,false,null,null,null,0,false,false,false,null,null,null,0,false,false,false,null,null,null,0,false,false,false,null,null,null,0,false,false,false,null,null,null,0,false,false,false,null,null,null,0,false,false,false,null,null,null,0,false,false,false,null,null,null,0,false,false,false,null,null,null,0,false,false,false,null,null,null,0,false,false,false,null,null,null,0,false,false,false,null,null,null,0,false,false,false,null,null,null,0,false,false,false,null,null,null,0,false,false,false,null,null,null,0,false,false,false,null,null,null,0,false,false,false,null,null,null,0,false,false,false,null,null,null,0,false,false,false,null,null,null,0,false,false,false,null,null,null,0,false,false,false,null,null,null,0,false,false,false,null,null,null,0,false,false,false,null,null,null,0,false,false,false,null,null,null,0,false,false,false,null,null,null,0,false,false,false,null,null,null,0,false,false,false,null,null,null,0,false,false,false,null,null,null,0,false,false,false,null,null,null,0,false,false,false,null,null,null,0,false,false,false,null,null,null,0,false,false,false,null,null,null,0,false,false,false,null,null,null,0,false,false,false,null,null,null,0,false,false,false]
[{"$f":"Poules!S41","v":"EQUATEUR"},{"$f":"IF(Poules!B45=\"\",\"\",Poules!B45)","v":""},{"$f":"IF(Poules!C45=\"\",\"\",Poules!C45)","v":""},{"$f":"Poules!S42","v":"FRANCE"},null,null,null,0,false,false,false,null,null,null,0,false,false,false,null,null,null,0,false,false,false,null,null,null,0,false,false,false,null,null,null,0,false,false,false,null,null,null,0,false,false,false,null,null,null,0,false,false,false,null,null,null,0,false,false,false,null,null,null,0,false,false,false,null,null,null,0,false,false,false,null,null,null,0,false,false,false,null,null,null,0,false,false,false,null,null,null,0,false,false,false,null,null,null,0,false,false,false,null,null,null,0,false,false,false,null,null,null,0,false,false,false,null,null,null,0,false,false,false,null,null,null,0,false,false,false,null,null,null,0,false,false,false,null,null,null,0,false,false,false,null,null,null,0,false,false,false,null,null,null,0,false,false,false,null,null,null,0,false,false,false,null,null,null,0,false,false,false,null,null,null,0,false,false,false,null,null,null,0,false,false,false,null,null,null,0,false,false,false,null,null,null,0,false,false,false,null,null,null,0,false,false,false,null,null,null,0,false,false,false,null,null,null,0,false,false,false,null,null,null,0,false,false,false,null,null,null,0,false,false,false,null,null,null,0,false,false,false,null,null,null,0,false,false,false,null,null,null,0,false,false,false,null,null,null,0,false,false,false,null,null,null,0,false,false,false,null,null,null,0,false,false,false,null,null,null,0,false,false,false,null,null,null,0,false,false,false,null,null,null,0,false,false,false,null,null,null,0,false,false,false,null,null,null,0,false,false,false,null,null,null,0,false,false,false,null,null,null,0,false,false,false,null,null,null,0,false,false,false,null,null,null,0,false,false,false,null,null,null,0,false,false,false,null,null,null,0,false,false,false,null,null,null,0,false,false,false,null,null,null,0,false,false,false,null,null,null,0,false,false,false,null,null,null,0,false,false,false,null,null,null,0,false,false,false,null,null,null,0,false,false,false,null,null,null,0,false,false,false,null,null,null,0,false,false,false,null,null,null,0,false,false,false,null,null,null,0,false,false,false,null,null,null,0,false,false,false,null,null,null,0,false,false,false,null,null,null,0,false,false,false,null,null,null,0,false,false,false,null,null,null,0,false,false,false,null,null,null,0,false,false,false,null,null,null,0,false,false,false,null,null,null,0,false,false,false,null,null,null,0,false,false,false,null,null,null,0,false,false,false,null,null,null,0,false,false,false,null,null,null,0,false,false,false,null,null,null,0,false,false,false,null,null,null,0,false,false,false,null,null,null,0,false,false,false,null,null,null,0,false,false,false,null,null,null,0,false,false,false,null,null,null,0,false,false,false,null,null,null,0,false,false,false,null,null,null,0,false,false,false,null,null,null,0,false,false,false,null,null,null,0,false,false,false,null,null,null,0,false,false,false,null,null,null,0,false,false,false,null,null,null,0,false,false,false,null,null,null,0,false,false,false,null,null,null,0,false,false,false,null,null,null,0,false,false,false,null,null,null,0,false,false,false,null,null,null,0,false,false,false]
[{"$f":"Poules!S59","v":"PORTUGAL"},{"$f":"IF(Poules!B63=\"\",\"\",Poules!B63)","v":""},{"$f":"IF(Poules!C63=\"\",\"\",Poules!C63)","v":""},{"$f":"Poules!S60","v":"GHANA"},null,null,null,0,false,false,false,null,null,null,0,false,false,false,null,null,null,0,false,false,false,null,null,null,0,false,false,false,null,null,null,0,false,false,false,null,null,null,0,false,false,false,null,null,null,0,false,false,false,null,null,null,0,false,false,false,null,null,null,0,false,false,false,null,null,null,0,false,false,false,null,null,null,0,false,false,false,null,null,null,0,false,false,false,null,null,null,0,false,false,false,null,null,null,0,false,false,false,null,null,null,0,false,false,false,null,null,null,0,false,false,false,null,null,null,0,false,false,false,null,null,null,0,false,false,false,null,null,null,0,false,false,false,null,null,null,0,false,false,false,null,null,null,0,false,false,false,null,null,null,0,false,false,false,null,null,null,0,false,false,false,null,null,null,0,false,false,false,null,null,null,0,false,false,false,null,null,null,0,false,false,false,null,null,null,0,false,false,false,null,null,null,0,false,false,false,null,null,null,0,false,false,false,null,null,null,0,false,false,false,null,null,null,0,false,false,false,null,null,null,0,false,false,false,null,null,null,0,false,false,false,null,null,null,0,false,false,false,null,null,null,0,false,false,false,null,null,null,0,false,false,false,null,null,null,0,false,false,false,null,null,null,0,false,false,false,null,null,null,0,false,false,false,null,null,null,0,false,false,false,null,null,null,0,false,false,false,null,null,null,0,false,false,false,null,null,null,0,false,false,false,null,null,null,0,false,false,false,null,null,null,0,false,false,false,null,null,null,0,false,false,false,null,null,null,0,false,false,false,null,null,null,0,false,false,false,null,null,null,0,false,false,false,null,null,null,0,false,false,false,null,null,null,0,false,false,false,null,null,null,0,false,false,false,null,null,null,0,false,false,false,null,null,null,0,false,false,false,null,null,null,0,false,false,false,null,null,null,0,false,false,false,null,null,null,0,false,false,false,null,null,null,0,false,false,false,null,null,null,0,false,false,false,null,null,null,0,false,false,false,null,null,null,0,false,false,false,null,null,null,0,false,false,false,null,null,null,0,false,false,false,null,null,null,0,false,false,false,null,null,null,0,false,false,false,null,null,null,0,false,false,false,null,null,null,0,false,false,false,null,null,null,0,false,false,false,null,null,null,0,false,false,false,null,null,null,0,false,false,false,null,null,null,0,false,false,false,null,null,null,0,false,false,false,null,null,null,0,false,false,false,null,null,null,0,false,false,false,null,null,null,0,false,false,false,null,null,null,0,false,false,false,null,null,null,0,false,false,false,null,null,null,0,false,false,false,null,null,null,0,false,false,false,null,null,null,0,false,false,false,null,null,null,0,false,false,false,null,null,null,0,false,false,false,null,null,null,0,false,false,false,null,null,null,0,false,false,false,null,null,null,0,false,false,false,null,null,null,0,false,false,false,null,null,null,0,false,false,false,null,null,null,0,false,false,false,null,null,null,0,false,false,false,null,null,null,0,false,false,false]
[{"$f":"Poules!S61","v":"U.S.A"},{"$f":"IF(Poules!B62=\"\",\"\",Poules!B62)","v":""},{"$f":"IF(Poules!C62=\"\",\"\",Poules!C62)","v":""},{"$f":"Poules!S58","v":"ALLEMAGNE"},null,null,null,0,false,false,false,null,null,null,0,false,false,false,null,null,null,0,false,false,false,null,null,null,0,false,false,false,null,null,null,0,false,false,false,null,null,null,0,false,false,false,null,null,null,0,false,false,false,null,null,null,0,false,false,false,null,null,null,0,false,false,false,null,null,null,0,false,false,false,null,null,null,0,false,false,false,null,null,null,0,false,false,false,null,null,null,0,false,false,false,null,null,null,0,false,false,false,null,null,null,0,false,false,false,null,null,null,0,false,false,false,null,null,null,0,false,false,false,null,null,null,0,false,false,false,null,null,null,0,false,false,false,null,null,null,0,false,false,false,null,null,null,0,false,false,false,null,null,null,0,false,false,false,null,null,null,0,false,false,false,null,null,null,0,false,false,false,null,null,null,0,false,false,false,null,null,null,0,false,false,false,null,null,null,0,false,false,false,null,null,null,0,false,false,false,null,null,null,0,false,false,false,null,null,null,0,false,false,false,null,null,null,0,false,false,false,null,null,null,0,false,false,false,null,null,null,0,false,false,false,null,null,null,0,false,false,false,null,null,null,0,false,false,false,null,null,null,0,false,false,false,null,null,null,0,false,false,false,null,null,null,0,false,false,false,null,null,null,0,false,false,false,null,null,null,0,false,false,false,null,null,null,0,false,false,false,null,null,null,0,false,false,false,null,null,null,0,false,false,false,null,null,null,0,false,false,false,null,null,null,0,false,false,false,null,null,null,0,false,false,false,null,null,null,0,false,false,false,null,null,null,0,false,false,false,null,null,null,0,false,false,false,null,null,null,0,false,false,false,null,null,null,0,false,false,false,null,null,null,0,false,false,false,null,null,null,0,false,false,false,null,null,null,0,false,false,false,null,null,null,0,false,false,false,null,null,null,0,false,false,false,null,null,null,0,false,false,false,null,null,null,0,false,false,false,null,null,null,0,false,false,false,null,null,null,0,false,false,false,null,null,null,0,false,false,false,null,null,null,0,false,false,false,null,null,null,0,false,false,false,null,null,null,0,false,false,false,null,null,null,0,false,false,false,null,null,null,0,false,false,false,null,null,null,0,false,false,false,null,null,null,0,false,false,false,null,null,null,0,false,false,false,null,null,null,0,false,false,false,null,null,null,0,false,false,false,null,null,null,0,false,false,false,null,null,null,0,false,false,false,null,null,null,0,false,false,false,null,null,null,0,false,false,false,null,null,null,0,false,false,false,null,null,null,0,false,false,false,null,null,null,0,false,false,false,null,null,null,0,false,false,false,null,null,null,0,false,false,false,null,null,null,0,false,false,false,null,null,null,0,false,false,false,null,null,null,0,false,false,false,null,null,null,0,false,false,false,null,null,null,0,false,false,false,null,null,null,0,false,false,false,null,null,null,0,false,false,false,null,null,null,0,false,false,false,null,null,null,0,false,false,false,null,null,null,0,false,false,false]
[{"$f":"Poules!S70","v":"REPUBLIQUE DE COREE"},{"$f":"IF(Poules!B71=\"\",\"\",Poules!B71)","v":""},{"$f":"IF(Poules!C71=\"\",\"\",Poules!C71)","v":""},{"$f":"Poules!S67","v":"BELGIQUE"},null,null,null,0,false,false,false,null,null,null,0,false,false,false,null,null,null,0,false,false,false,null,null,null,0,false,false,false,null,null,null,0,false,false,false,null,null,null,0,false,false,false,null,null,null,0,false,false,false,null,null,null,0,false,false,false,null,null,null,0,false,false,false,null,null,null,0,false,false,false,null,null,null,0,false,false,false,null,null,null,0,false,false,false,null,null,null,0,false,false,false,null,null,null,0,false,false,false,null,null,null,0,false,false,false,null,null,null,0,false,false,false,null,null,null,0,false,false,false,null,null,null,0,false,false,false,null,null,null,0,false,false,false,null,null,null,0,false,false,false,null,null,null,0,false,false,false,null,null,null,0,false,false,false,null,null,null,0,false,false,false,null,null,null,0,false,false,false,null,null,null,0,false,false,false,null,null,null,0,false,false,false,null,null,null,0,false,false,false,null,null,null,0,false,false,false,null,null,null,0,false,false,false,null,null,null,0,false,false,false,null,null,null,0,false,false,false,null,null,null,0,false,false,false,null,null,null,0,false,false,false,null,null,null,0,false,false,false,null,null,null,0,false,false,false,null,null,null,0,false,false,false,null,null,null,0,false,false,false,null,null,null,0,false,false,false,null,null,null,0,false,false,false,null,null,null,0,false,false,false,null,null,null,0,false,false,false,null,null,null,0,false,false,false,null,null,null,0,false,false,false,null,null,null,0,false,false,false,null,null,null,0,false,false,false,null,null,null,0,false,false,false,null,null,null,0,false,false,false,null,null,null,0,false,false,false,null,null,null,0,false,false,false,null,null,null,0,false,false,false,null,null,null,0,false,false,false,null,null,null,0,false,false,false,null,null,null,0,false,false,false,null,null,null,0,false,false,false,null,null,null,0,false,false,false,null,null,null,0,false,false,false,null,null,null,0,false,false,false,null,null,null,0,false,false,false,null,null,null,0,false,false,false,null,null,null,0,false,false,false,null,null,null,0,false,false,false,null,null,null,0,false,false,false,null,null,null,0,false,false,false,null,null,null,0,false,false,false,null,null,null,0,false,false,false,null,null,null,0,false,false,false,null,null,null,0,false,false,false,null,null,null,0,false,false,false,null,null,null,0,false,false,false,null,null,null,0,false,false,false,null,null,null,0,false,false,false,null,null,null,0,false,false,false,null,null,null,0,false,false,false,null,null,null,0,false,false,false,null,null,null,0,false,false,false,null,null,null,0,false,false,false,null,null,null,0,false,false,false,null,null,null,0,false,false,false,null,null,null,0,false,false,false,null,null,null,0,false,false,false,null,null,null,0,false,false,false,null,null,null,0,false,false,false,null,null,null,0,false,false,false,null,null,null,0,false,false,false,null,null,null,0,false,false,false,null,null,null,0,false,false,false,null,null,null,0,false,false,false,null,null,null,0,false,false,false,null,null,null,0,false,false,false,null,null,null,0,false,false,false]
[{"$f":"Poules!S68","v":"ALGERIE"},{"$f":"IF(Poules!B72=\"\",\"\",Poules!B72)","v":""},{"$f":"IF(Poules!C72=\"\",\"\",Poules!C72)","v":""},{"$f":"Poules!S69","v":"RUSSIE"},null,null,null,0,false,false,false,null,null,null,0,false,false,false,null,null,null,0,false,false,false,null,null,null,0,false,false,false,null,null,null,0,false,false,false,null,null,null,0,false,false,false,null,null,null,0,false,false,false,null,null,null,0,false,false,false,null,null,null,0,false,false,false,null,null,null,0,false,false,false,null,null,null,0,false,false,false,null,null,null,0,false,false,false,null,null,null,0,false,false,false,null,null,null,0,false,false,false,null,null,null,0,false,false,false,null,null,null,0,false,false,false,null,null,null,0,false,false,false,null,null,null,0,false,false,false,null,null,null,0,false,false,false,null,null,null,0,false,false,false,null,null,null,0,false,false,false,null,null,null,0,false,false,false,null,null,null,0,false,false,false,null,null,null,0,false,false,false,null,null,null,0,false,false,false,null,null,null,0,false,false,false,null,null,null,0,false,false,false,null,null,null,0,false,false,false,null,null,null,0,false,false,false,null,null,null,0,false,false,false,null,null,null,0,false,false,false,null,null,null,0,false,false,false,null,null,null,0,false,false,false,null,null,null,0,false,false,false,null,null,null,0,false,false,false,null,null,null,0,false,false,false,null,null,null,0,false,false,false,null,null,null,0,false,false,false,null,null,null,0,false,false,false,null,null,null,0,false,false,false,null,null,null,0,false,false,false,null,null,null,0,false,false,false,null,null,null,0,false,false,false,null,null,null,0,false,false,false,null,null,null,0,false,false,false,null,null,null,0,false,false,false,null,null,null,0,false,false,false,null,null,null,0,false,false,false,null,null,null,0,false,false,false,null,null,null,0,false,false,false,null,null,null,0,false,false,false,null,null,null,0,false,false,false,null,null,null,0,false,false,false,null,null,null,0,false,false,false,null,null,null,0,false,false,false,null,null,null,0,false,false,false,null,null,null,0,false,false,false,null,null,null,0,false,false,false,null,null,null,0,false,false,false,null,null,null,0,false,false,false,null,null,null,0,false,false,false,null,null,null,0,false,false,false,null,null,null,0,false,false,false,null,null,null,0,false,false,false,null,null,null,0,false,false,false,null,null,null,0,false,false,false,null,null,null,0,false,false,false,null,null,null,0,false,false,false,null,null,null,0,false,false,false,null,null,null,0,false,false,false,null,null,null,0,false,false,false,null,null,null,0,false,false,false,null,null,null,0,false,false,false,null,null,null,0,false,false,false,null,null,null,0,false,false,false,null,null,null,0,false,false,false,null,null,null,0,false,false,false,null,null,null,0,false,false,false,null,null,null,0,false,false,false,null,null,null,0,false,false,false,null,null,null,0,false,false,false,null,null,null,0,false,false,false,null,null,null,0,false,false,false,null,null,null,0,false,false,false,null,null,null,0,false,false,false,null,null,null,0,false,false,false,null,null,null,0,false,false,false,null,null,null,0,false,false,false,null,null,null,0,false,false,false,null,null,null,0,false,false,false]
[{"$f":"'Phase Finale'!A4:G4","v":"BRESIL"},{"$f":"IF('Phase Finale'!B3:C3=\"\",\"\",'Phase Finale'!B3:C3)","v":""},{"$f":"IF('Phase Finale'!B6:C6=\"\",\"\",'Phase Finale'!B6:C6)","v":""},{"$f":"'Phase Finale'!A5:G5","v":"PAYS - BAS"},null,null,null,0,false,false,false,null,null,null,0,false,false,false,null,null,null,0,false,false,false,null,null,null,0,false,false,false,null,null,null,0,false,false,false,null,null,null,0,false,false,false,null,null,null,0,false,false,false,null,null,null,0,false,false,false,null,null,null,0,false,false,false,null,null,null,0,false,false,false,null,null,null,0,false,false,false,null,null,null,0,false,false,false,null,null,null,0,false,false,false,null,null,null,0,false,false,false,null,null,null,0,false,false,false,null,null,null,0,false,false,false,null,null,null,0,false,false,false,null,null,null,0,false,false,false,null,null,null,0,false,false,false,null,null,null,0,false,false,false,null,null,null,0,false,false,false,null,null,null,0,false,false,false,null,null,null,0,false,false,false,null,null,null,0,false,false,false,null,null,null,0,false,false,false,null,null,null,0,false,false,false,null,null,null,0,false,false,false,null,null,null,0,false,false,false,null,null,null,0,false,false,false,null,null,null,0,false,false,false,null,null,null,0,false,false,false,null,null,null,0,false,false,false,null,null,null,0,false,false,false,null,null,null,0,false,false,false,null,null,null,0,false,false,false,null,null,null,0,false,false,false,null,null,null,0,false,false,false,null,null,null,0,false,false,false,null,null,null,0,false,false,false,null,null,null,0,false,false,false,null,null,null,0,false,false,false,null,null,null,0,false,false,false,null,null,null,0,false,false,false,null,null,null,0,false,false,false,null,null,null,0,false,false,false,null,null,null,0,false,false,false,null,null,null,0,false,false,false,null,null,null,0,false,false,false,null,null,null,0,false,false,false,null,null,null,0,false,false,false,null,null,null,0,false,false,false,null,null,null,0,false,false,false,null,null,null,0,false,false,false,null,null,null,0,false,false,false,null,null,null,0,false,false,false,null,null,null,0,false,false,false,null,null,null,0,false,false,false,null,null,null,0,false,false,false,null,null,null,0,false,false,false,null,null,null,0,false,false,false,null,null,null,0,false,false,false,null,null,null,0,false,false,false,null,null,null,0,false,false,false,null,null,null,0,false,false,false,null,null,null,0,false,false,false,null,null,null,0,false,false,false,null,null,null,0,false,false,false,null,null,null,0,false,false,false,null,null,null,0,false,false,false,null,null,null,0,false,false,false,null,null,null,0,false,false,false,null,null,null,0,false,false,false,null,null,null,0,false,false,false,null,null,null,0,false,false,false,null,null,null,0,false,false,false,null,null,null,0,false,false,false,null,null,null,0,false,false,false,null,null,null,0,false,false,false,null,null,null,0,false,false,false,null,null,null,0,false,false,false,null,null,null,0,false,false,false,null,null,null,0,false,false,false,null,null,null,0,false,false,false,null,null,null,0,false,false,false,null,null,null,0,false,false,false,null,null,null,0,false,false,false,null,null,null,0,false,false,false,null,null,null,0,false,false,false,null,null,null,0,false,false,false,null,null,null,0,false,false,false]
[{"$f":"'Phase Finale'!A10:G10","v":"COLOMBIE"},{"$f":"IF('Phase Finale'!B9:C9=\"\",\"\",'Phase Finale'!B9:C9)","v":""},{"$f":"IF('Phase Finale'!B12:C12=\"\",\"\",'Phase Finale'!B12:C12)","v":""},{"$f":"'Phase Finale'!A11:G11","v":"COSTA RICA"},null,null,null,0,false,false,false,null,null,null,0,false,false,false,null,null,null,0,false,false,false,null,null,null,0,false,false,false,null,null,null,0,false,false,false,null,null,null,0,false,false,false,null,null,null,0,false,false,false,null,null,null,0,false,false,false,null,null,null,0,false,false,false,null,null,null,0,false,false,false,null,null,null,0,false,false,false,null,null,null,0,false,false,false,null,null,null,0,false,false,false,null,null,null,0,false,false,false,null,null,null,0,false,false,false,null,null,null,0,false,false,false,null,null,null,0,false,false,false,null,null,null,0,false,false,false,null,null,null,0,false,false,false,null,null,null,0,false,false,false,null,null,null,0,false,false,false,null,null,null,0,false,false,false,null,null,null,0,false,false,false,null,null,null,0,false,false,false,null,null,null,0,false,false,false,null,null,null,0,false,false,false,null,null,null,0,false,false,false,null,null,null,0,false,false,false,null,null,null,0,false,false,false,null,null,null,0,false,false,false,null,null,null,0,false,false,false,null,null,null,0,false,false,false,null,null,null,0,false,false,false,null,null,null,0,false,false,false,null,null,null,0,false,false,false,null,null,null,0,false,false,false,null,null,null,0,false,false,false,null,null,null,0,false,false,false,null,null,null,0,false,false,false,null,null,null,0,false,false,false,null,null,null,0,false,false,false,null,null,null,0,false,false,false,null,null,null,0,false,false,false,null,null,null,0,false,false,false,null,null,null,0,false,false,false,null,null,null,0,false,false,false,null,null,null,0,false,false,false,null,null,null,0,false,false,false,null,null,null,0,false,false,false,null,null,null,0,false,false,false,null,null,null,0,false,false,false,null,null,null,0,false,false,false,null,null,null,0,false,false,false,null,null,null,0,false,false,false,null,null,null,0,false,false,false,null,null,null,0,false,false,false,null,null,null,0,false,false,false,null,null,null,0,false,false,false,null,null,null,0,false,false,false,null,null,null,0,false,false,false,null,null,null,0,false,false,false,null,null,null,0,false,false,false,null,null,null,0,false,false,false,null,null,null,0,false,false,false,null,null,null,0,false,false,false,null,null,null,0,false,false,false,null,null,null,0,false,false,false,null,null,null,0,false,false,false,null,null,null,0,false,false,false,null,null,null,0,false,false,false,null,null,null,0,false,false,false,null,null,null,0,false,false,false,null,null,null,0,false,false,false,null,null,null,0,false,false,false,null,null,null,0,false,false,false,null,null,null,0,false,false,false,null,null,null,0,false,false,false,null,null,null,0,false,false,false,null,null,null,0,false,false,false,null,null,null,0,false,false,false,null,null,null,0,false,false,false,null,null,null,0,false,false,false,null,null,null,0,false,false,false,null,null,null,0,false,false,false,null,null,null,0,false,false,false,null,null,null,0,false,false,false,null,null,null,0,false,false,false,null,null,null,0,false,false,false,null,null,null,0,false,false,false,null,null,null,0,false,false,false]
[{"$f":"'Phase Finale'!AH4:AN4","v":"ESPAGNE"},{"$f":"IF('Phase Finale'!AI3:AJ3=\"\",\"\",'Phase Finale'!AI3:AJ3)","v":""},{"$f":"IF('Phase Finale'!AI6:AJ6=\"\",\"\",'Phase Finale'!AI6:AJ6)","v":""},{"$f":"'Phase Finale'!AH5:AN5","v":"CROATIE"},null,null,null,0,false,false,false,null,null,null,0,false,false,false,null,null,null,0,false,false,false,null,null,null,0,false,false,false,null,null,null,0,false,false,false,null,null,null,0,false,false,false,null,null,null,0,false,false,false,null,null,null,0,false,false,false,null,null,null,0,false,false,false,null,null,null,0,false,false,false,null,null,null,0,false,false,false,null,null,null,0,false,false,false,null,null,null,0,false,false,false,null,null,null,0,false,false,false,null,null,null,0,false,false,false,null,null,null,0,false,false,false,null,null,null,0,false,false,false,null,null,null,0,false,false,false,null,null,null,0,false,false,false,null,null,null,0,false,false,false,null,null,null,0,false,false,false,null,null,null,0,false,false,false,null,null,null,0,false,false,false,null,null,null,0,false,false,false,null,null,null,0,false,false,false,null,null,null,0,false,false,false,null,null,null,0,false,false,false,null,null,null,0,false,false,false,null,null,null,0,false,false,false,null,null,null,0,false,false,false,null,null,null,0,false,false,false,null,null,null,0,false,false,false,null,null,null,0,false,false,false,null,null,null,0,false,false,false,null,null,null,0,false,false,false,null,null,null,0,false,false,false,null,null,null,0,false,false,false,null,null,null,0,false,false,false,null,null,null,0,false,false,false,null,null,null,0,false,false,false,null,null,null,0,false,false,false,null,null,null,0,false,false,false,null,null,null,0,false,false,false,null,null,null,0,false,false,false,null,null,null,0,false,false,false,null,null,null,0,false,false,false,null,null,null,0,false,false,false,null,null,null,0,false,false,false,null,null,null,0,false,false,false,null,null,null,0,false,false,false,null,null,null,0,false,false,false,null,null,null,0,false,false,false,null,null,null,0,false,false,false,null,null,null,0,false,false,false,null,null,null,0,false,false,false,null,null,null,0,false,false,false,null,null,null,0,false,false,false,null,null,null,0,false,false,false,null,null,null,0,false,false,false,null,null,null,0,false,false,false,null,null,null,0,false,false,false,null,null,null,0,false,false,false,null,null,null,0,false,false,false,null,null,null,0,false,false,false,null,null,null,0,false,false,false,null,null,null,0,false,false,false,null,null,null,0,false,false,false,null,null,null,0,false,false,false,null,null,null,0,false,false,false,null,null,null,0,false,false,false,null,null,null,0,false,false,false,null,null,null,0,false,false,false,null,null,null,0,false,false,false,null,null,null,0,false,false,false,null,null,null,0,false,false,false,null,null,null,0,false,false,false,null,null,null,0,false,false,false,null,null,null,0,false,false,false,null,null,null,0,false,false,false,null,null,null,0,false,false,false,null,null,null,0,false,false,false,null,null,null,0,false,false,false,null,null,null,0,false,false,false,null,null,null,0,false,false,false,null,null,null,0,false,false,false,null,null,null,0,false,false,false,null,null,null,0,false,false,false,null,null,null,0,false,false,false,null,null,null,0,false,false,false,null,null,null,0,false,false,false]
[{"$f":"'Phase Finale'!AH10:AN10","v":"URUGUAY"},{"$f":"IF('Phase Finale'!AI9:AJ9=\"\",\"\",'Phase Finale'!AI9:AJ9)","v":""},{"$f":"IF('Phase Finale'!AI12:AJ12=\"\",\"\",'Phase Finale'!AI12:AJ12)","v":""},{"$f":"'Phase Finale'!AH11:AN11","v":"GRECE"},null,null,null,0,false,false,false,null,null,null,0,false,false,false,null,null,null,0,false,false,false,null,null,null,0,false,false,false,null,null,null,0,false,false,false,null,null,null,0,false,false,false,null,null,null,0,false,false,false,null,null,null,0,false,false,false,null,null,null,0,false,false,false,null,null,null,0,false,false,false,null,null,null,0,false,false,false,null,null,null,0,false,false,false,null,null,null,0,false,false,false,null,null,null,0,false,false,false,null,null,null,0,false,false,false,null,null,null,0,false,false,false,null,null,null,0,false,false,false,null,null,null,0,false,false,false,null,null,null,0,false,false,false,null,null,null,0,false,false,false,null,null,null,0,false,false,false,null,null,null,0,false,false,false,null,null,null,0,false,false,false,null,null,null,0,false,false,false,null,null,null,0,false,false,false,null,null,null,0,false,false,false,null,null,null,0,false,false,false,null,null,null,0,false,false,false,null,null,null,0,false,false,false,null,null,null,0,false,false,false,null,null,null,0,false,false,false,null,null,null,0,false,false,false,null,null,null,0,false,false,false,null,null,null,0,false,false,false,null,null,null,0,false,false,false,null,null,null,0,false,false,false,null,null,null,0,false,false,false,null,null,null,0,false,false,false,null,null,null,0,false,false,false,null,null,null,0,false,false,false,null,null,null,0,false,false,false,null,null,null,0,false,false,false,null,null,null,0,false,false,false,null,null,null,0,false,false,false,null,null,null,0,false,false,false,null,null,null,0,false,false,false,null,null,null,0,false,false,false,null,null,null,0,false,false,false,null,null,null,0,false,false,false,null,null,null,0,false,false,false,null,null,null,0,false,false,false,null,null,null,0,false,false,false,null,null,null,0,false,false,false,null,null,null,0,false,false,false,null,null,null,0,false,false,false,null,null,null,0,false,false,false,null,null,null,0,false,false,false,null,null,null,0,false,false,false,null,null,null,0,false,false,false,null,null,null,0,false,false,false,null,null,null,0,false,false,false,null,null,null,0,false,false,false,null,null,null,0,false,false,false,null,null,null,0,false,false,false,null,null,null,0,false,false,false,null,null,null,0,false,false,false,null,null,null,0,false,false,false,null,null,null,0,false,false,false,null,null,null,0,false,false,false,null,null,null,0,false,false,false,null,null,null,0,false,false,false,null,null,null,0,false,false,false,null,null,null,0,false,false,false,null,null,null,0,false,false,false,null,null,null,0,false,false,false,null,null,null,0,false,false,false,null,null,null,0,false,false,false,null,null,null,0,false,false,false,null,null,null,0,false,false,false,null,null,null,0,false,false,false,null,null,null,0,false,false,false,null,null,null,0,false,false,false,null,null,null,0,false,false,false,null,null,null,0,false,false,false,null,null,null,0,false,false,false,null,null,null,0,false,false,false,null,null,null,0,false,false,false,null,null,null,0,false,false,false,null,null,null,0,false,false,false,null,null,null,0,false,false,false]
[{"$f":"'Phase Finale'!A16:G16","v":"SUISSE"},{"$f":"IF('Phase Finale'!B15:C15=\"\",\"\",'Phase Finale'!B15:C15)","v":""},{"$f":"IF('Phase Finale'!B18:C18=\"\",\"\",'Phase Finale'!B18:C18)","v":""},{"$f":"'Phase Finale'!A17:G17","v":"BOSNIE - HERZEGOVINE"},null,null,null,0,false,false,false,null,null,null,0,false,false,false,null,null,null,0,false,false,false,null,null,null,0,false,false,false,null,null,null,0,false,false,false,null,null,null,0,false,false,false,null,null,null,0,false,false,false,null,null,null,0,false,false,false,null,null,null,0,false,false,false,null,null,null,0,false,false,false,null,null,null,0,false,false,false,null,null,null,0,false,false,false,null,null,null,0,false,false,false,null,null,null,0,false,false,false,null,null,null,0,false,false,false,null,null,null,0,false,false,false,null,null,null,0,false,false,false,null,null,null,0,false,false,false,null,null,null,0,false,false,false,null,null,null,0,false,false,false,null,null,null,0,false,false,false,null,null,null,0,false,false,false,null,null,null,0,false,false,false,null,null,null,0,false,false,false,null,null,null,0,false,false,false,null,null,null,0,false,false,false,null,null,null,0,false,false,false,null,null,null,0,false,false,false,null,null,null,0,false,false,false,null,null,null,0,false,false,false,null,null,null,0,false,false,false,null,null,null,0,false,false,false,null,null,null,0,false,false,false,null,null,null,0,false,false,false,null,null,null,0,false,false,false,null,null,null,0,false,false,false,null,null,null,0,false,false,false,null,null,null,0,false,false,false,null,null,null,0,false,false,false,null,null,null,0,false,false,false,null,null,null,0,false,false,false,null,null,null,0,false,false,false,null,null,null,0,false,false,false,null,null,null,0,false,false,false,null,null,null,0,false,false,false,null,null,null,0,false,false,false,null,null,null,0,false,false,false,null,null,null,0,false,false,false,null,null,null,0,false,false,false,null,null,null,0,false,false,false,null,null,null,0,false,false,false,null,null,null,0,false,false,false,null,null,null,0,false,false,false,null,null,null,0,false,false,false,null,null,null,0,false,false,false,null,null,null,0,false,false,false,null,null,null,0,false,false,false,null,null,null,0,false,false,false,null,null,null,0,false,false,false,null,null,null,0,false,false,false,null,null,null,0,false,false,false,null,null,null,0,false,false,false,null,null,null,0,false,false,false,null,null,null,0,false,false,false,null,null,null,0,false,false,false,null,null,null,0,false,false,false,null,null,null,0,false,false,false,null,null,null,0,false,false,false,null,null,null,0,false,false,false,null,null,null,0,false,false,false,null,null,null,0,false,false,false,null,null,null,0,false,false,false,null,null,null,0,false,false,false,null,null,null,0,false,false,false,null,null,null,0,false,false,false,null,null,null,0,false,false,false,null,null,null,0,false,false,false,null,null,null,0,false,false,false,null,null,null,0,false,false,false,null,null,null,0,false,false,false,null,null,null,0,false,false,false,null,null,null,0,false,false,false,null,null,null,0,false,false,false,null,null,null,0,false,false,false,null,null,null,0,false,false,false,null,null,null,0,false,false,false,null,null,null,0,false,false,false,null,null,null,0,false,false,false,null,null,null,0,false,false,false,null,null,null,0,false,false,false]
[{"$f":"'Phase Finale'!A22:G22","v":"ALLEMAGNE"},{"$f":"IF('Phase Finale'!B21:C21=\"\",\"\",'Phase Finale'!B21:C21)","v":""},{"$f":"IF('Phase Finale'!B24:C24=\"\",\"\",'Phase Finale'!B24:C24)","v":""},{"$f":"'Phase Finale'!A23:G23","v":"ALGERIE"},null,null,null,0,false,false,false,null,null,null,0,false,false,false,null,null,null,0,false,false,false,null,null,null,0,false,false,false,null,null,null,0,false,false,false,null,null,null,0,false,false,false,null,null,null,0,false,false,false,null,null,null,0,false,false,false,null,null,null,0,false,false,false,null,null,null,0,false,false,false,null,null,null,0,false,false,false,null,null,null,0,false,false,false,null,null,null,0,false,false,false,null,null,null,0,false,false,false,null,null,null,0,false,false,false,null,null,null,0,false,false,false,null,null,null,0,false,false,false,null,null,null,0,false,false,false,null,null,null,0,false,false,false,null,null,null,0,false,false,false,null,null,null,0,false,false,false,null,null,null,0,false,false,false,null,null,null,0,false,false,false,null,null,null,0,false,false,false,null,null,null,0,false,false,false,null,null,null,0,false,false,false,null,null,null,0,false,false,false,null,null,null,0,false,false,false,null,null,null,0,false,false,false,null,null,null,0,false,false,false,null,null,null,0,false,false,false,null,null,null,0,false,false,false,null,null,null,0,false,false,false,null,null,null,0,false,false,false,null,null,null,0,false,false,false,null,null,null,0,false,false,false,null,null,null,0,false,false,false,null,null,null,0,false,false,false,null,null,null,0,false,false,false,null,null,null,0,false,false,false,null,null,null,0,false,false,false,null,null,null,0,false,false,false,null,null,null,0,false,false,false,null,null,null,0,false,false,false,null,null,null,0,false,false,false,null,null,null,0,false,false,false,null,null,null,0,false,false,false,null,null,null,0,false,false,false,null,null,null,0,false,false,false,null,null,null,0,false,false,false,null,null,null,0,false,false,false,null,null,null,0,false,false,false,null,null,null,0,false,false,false,null,null,null,0,false,false,false,null,null,null,0,false,false,false,null,null,null,0,false,false,false,null,null,null,0,false,false,false,null,null,null,0,false,false,false,null,null,null,0,false,false,false,null,null,null,0,false,false,false,null,null,null,0,false,false,false,null,null,null,0,false,false,false,null,null,null,0,false,false,false,null,null,null,0,false,false,false,null,null,null,0,false,false,false,null,null,null,0,false,false,false,null,null,null,0,false,false,false,null,null,null,0,false,false,false,null,null,null,0,false,false,false,null,null,null,0,false,false,false,null,null,null,0,false,false,false,null,null,null,0,false,false,false,null,null,null,0,false,false,false,null,null,null,0,false,false,false,null,null,null,0,false,false,false,null,null,null,0,false,false,false,null,null,null,0,false,false,false,null,null,null,0,false,false,false,null,null,null,0,false,false,false,null,null,null,0,false,false,false,null,null,null,0,false,false,false,null,null,null,0,false,false,false,null,null,null,0,false,false,false,null,null,null,0,false,false,false,null,null,null,0,false,false,false,null,null,null,0,false,false,false,null,null,null,0,false,false,false,null,null,null,0,false,false,false,null,null,null,0,false,false,false,null,null,null,0,false,false,false]
[{"$f":"'Phase Finale'!AH16:AN16","v":"ARGENTINE"},{"$f":"IF('Phase Finale'!AI15:AJ15=\"\",\"\",'Phase Finale'!AI15:AJ15)","v":""},{"$f":"IF('Phase Finale'!AI18:AJ18=\"\",\"\",'Phase Finale'!AI18:AJ18)","v":""},{"$f":"'Phase Finale'!AH17:AN17","v":"EQUATEUR"},null,null,null,0,false,false,false,null,null,null,0,false,false,false,null,null,null,0,false,false,false,null,null,null,0,false,false,false,null,null,null,0,false,false,false,null,null,null,0,false,false,false,null,null,null,0,false,false,false,null,null,null,0,false,false,false,null,null,null,0,false,false,false,null,null,null,0,false,false,false,null,null,null,0,false,false,false,null,null,null,0,false,false,false,null,null,null,0,false,false,false,null,null,null,0,false,false,false,null,null,null,0,false,false,false,null,null,null,0,false,false,false,null,null,null,0,false,false,false,null,null,null,0,false,false,false,null,null,null,0,false,false,false,null,null,null,0,false,false,false,null,null,null,0,false,false,false,null,null,null,0,false,false,false,null,null,null,0,false,false,false,null,null,null,0,false,false,false,null,null,null,0,false,false,false,null,null,null,0,false,false,false,null,null,null,0,false,false,false,null,null,null,0,false,false,false,null,null,null,0,false,false,false,null,null,null,0,false,false,false,null,null,null,0,false,false,false,null,null,null,0,false,false,false,null,null,null,0,false,false,false,null,null,null,0,false,false,false,null,null,null,0,false,false,false,null,null,null,0,false,false,false,null,null,null,0,false,false,false,null,null,null,0,false,false,false,null,null,null,0,false,false,false,null,null,null,0,false,false,false,null,null,null,0,false,false,false,null,null,null,0,false,false,false,null,null,null,0,false,false,false,null,null,null,0,false,false,false,null,null,null,0,false,false,false,null,null,null,0,false,false,false,null,null,null,0,false,false,false,null,null,null,0,false,false,false,null,null,null,0,false,false,false,null,null,null,0,false,false,false,null,null,null,0,false,false,false,null,null,null,0,false,false,false,null,null,null,0,false,false,false,null,null,null,0,false,false,false,null,null,null,0,false,false,false,null,null,null,0,false,false,false,null,null,null,0,false,false,false,null,null,null,0,false,false,false,null,null,null,0,false,false,false,null,null,null,0,false,false,false,null,null,null,0,false,false,false,null,null,null,0,false,false,false,null,null,null,0,false,false,false,null,null,null,0,false,false,false,null,null,null,0,false,false,false,null,null,null,0,false,false,false,null,null,null,0,false,false,false,null,null,null,0,false,false,false,null,null,null,0,false,false,false,null,null,null,0,false,false,false,null,null,null,0,false,false,false,null,null,null,0,false,false,false,null,null,null,0,false,false,false,null,null,null,0,false,false,false,null,null,null,0,false,false,false,null,null,null,0,false,false,false,null,null,null,0,false,false,false,null,null,null,0,false,false,false,null,null,null,0,false,false,false,null,null,null,0,false,false,false,null,null,null,0,false,false,false,null,null,null,0,false,false,false,null,null,null,0,false,false,false,null,null,null,0,false,false,false,null,null,null,0,false,false,false,null,null,null,0,false,false,false,null,null,null,0,false,false,false,null,null,null,0,false,false,false,null,null,null,0,false,false,false,null,null,null,0,false,false,false]
[{"$f":"'Phase Finale'!AH22:AN22","v":"BELGIQUE"},{"$f":"IF('Phase Finale'!AI21:AJ21=\"\",\"\",'Phase Finale'!AI21:AJ21)","v":""},{"$f":"IF('Phase Finale'!AI24:AJ24=\"\",\"\",'Phase Finale'!AI24:AJ24)","v":""},{"$f":"'Phase Finale'!AH23:AN23","v":"PORTUGAL"},null,null,null,0,false,false,false,null,null,null,0,false,false,false,null,null,null,0,false,false,false,null,null,null,0,false,false,false,null,null,null,0,false,false,false,null,null,null,0,false,false,false,null,null,null,0,false,false,false,null,null,null,0,false,false,false,null,null,null,0,false,false,false,null,null,null,0,false,false,false,null,null,null,0,false,false,false,null,null,null,0,false,false,false,null,null,null,0,false,false,false,null,null,null,0,false,false,false,null,null,null,0,false,false,false,null,null,null,0,false,false,false,null,null,null,0,false,false,false,null,null,null,0,false,false,false,null,null,null,0,false,false,false,null,null,null,0,false,false,false,null,null,null,0,false,false,false,null,null,null,0,false,false,false,null,null,null,0,false,false,false,null,null,null,0,false,false,false,null,null,null,0,false,false,false,null,null,null,0,false,false,false,null,null,null,0,false,false,false,null,null,null,0,false,false,false,null,null,null,0,false,false,false,null,null,null,0,false,false,false,null,null,null,0,false,false,false,null,null,null,0,false,false,false,null,null,null,0,false,false,false,null,null,null,0,false,false,false,null,null,null,0,false,false,false,null,null,null,0,false,false,false,null,null,null,0,false,false,false,null,null,null,0,false,false,false,null,null,null,0,false,false,false,null,null,null,0,false,false,false,null,null,null,0,false,false,false,null,null,null,0,false,false,false,null,null,null,0,false,false,false,null,null,null,0,false,false,false,null,null,null,0,false,false,false,null,null,null,0,false,false,false,null,null,null,0,false,false,false,null,null,null,0,false,false,false,null,null,null,0,false,false,false,null,null,null,0,false,false,false,null,null,null,0,false,false,false,null,null,null,0,false,false,false,null,null,null,0,false,false,false,null,null,null,0,false,false,false,null,null,null,0,false,false,false,null,null,null,0,false,false,false,null,null,null,0,false,false,false,null,null,null,0,false,false,false,null,null,null,0,false,false,false,null,null,null,0,false,false,false,null,null,null,0,false,false,false,null,null,null,0,false,false,false,null,null,null,0,false,false,false,null,null,null,0,false,false,false,null,null,null,0,false,false,false,null,null,null,0,false,false,false,null,null,null,0,false,false,false,null,null,null,0,false,false,false,null,null,null,0,false,false,false,null,null,null,0,false,false,false,null,null,null,0,false,false,false,null,null,null,0,false,false,false,null,null,null,0,false,false,false,null,null,null,0,false,false,false,null,null,null,0,false,false,false,null,null,null,0,false,false,false,null,null,null,0,false,false,false,null,null,null,0,false,false,false,null,null,null,0,false,false,false,null,null,null,0,false,false,false,null,null,null,0,false,false,false,null,null,null,0,false,false,false,null,null,null,0,false,false,false,null,null,null,0,false,false,false,null,null,null,0,false,false,false,null,null,null,0,false,false,false,null,null,null,0,false,false,false,null,null,null,0,false,false,false,null,null,null,0,false,false,false,null,null,null,0,false,false,false]
[{"$f":"IF('Phase Finale'!I19:O19=\"\",\"\",'Phase Finale'!I19:O19)","v":""},{"$f":"IF('Phase Finale'!J18:K18=\"\",\"\",'Phase Finale'!J18:K18)","v":""},{"$f":"IF('Phase Finale'!J21:K21=\"\",\"\",'Phase Finale'!J21:K21)","v":""},{"$f":"IF('Phase Finale'!I20:O20=\"\",\"\",'Phase Finale'!I20:O20)","v":""},null,null,null,0,false,false,false,null,null,null,0,false,false,false,null,null,null,0,false,false,false,null,null,null,0,false,false,false,null,null,null,0,false,false,false,null,null,null,0,false,false,false,null,null,null,0,false,false,false,null,null,null,0,false,false,false,null,null,null,0,false,false,false,null,null,null,0,false,false,false,null,null,null,0,false,false,false,null,null,null,0,false,false,false,null,null,null,0,false,false,false,null,null,null,0,false,false,false,null,null,null,0,false,false,false,null,null,null,0,false,false,false,null,null,null,0,false,false,false,null,null,null,0,false,false,false,null,null,null,0,false,false,false,null,null,null,0,false,false,false,null,null,null,0,false,false,false,null,null,null,0,false,false,false,null,null,null,0,false,false,false,null,null,null,0,false,false,false,null,null,null,0,false,false,false,null,null,null,0,false,false,false,null,null,null,0,false,false,false,null,null,null,0,false,false,false,null,null,null,0,false,false,false,null,null,null,0,false,false,false,null,null,null,0,false,false,false,null,null,null,0,false,false,false,null,null,null,0,false,false,false,null,null,null,0,false,false,false,null,null,null,0,false,false,false,null,null,null,0,false,false,false,null,null,null,0,false,false,false,null,null,null,0,false,false,false,null,null,null,0,false,false,false,null,null,null,0,false,false,false,null,null,null,0,false,false,false,null,null,null,0,false,false,false,null,null,null,0,false,false,false,null,null,null,0,false,false,false,null,null,null,0,false,false,false,null,null,null,0,false,false,false,null,null,null,0,false,false,false,null,null,null,0,false,false,false,null,null,null,0,false,false,false,null,null,null,0,false,false,false,null,null,null,0,false,false,false,null,null,null,0,false,false,false,null,null,null,0,false,false,false,null,null,null,0,false,false,false,null,null,null,0,false,false,false,null,null,null,0,false,false,false,null,null,null,0,false,false,false,null,null,null,0,false,false,false,null,null,null,0,false,false,false,null,null,null,0,false,false,false,null,null,null,0,false,false,false,null,null,null,0,false,false,false,null,null,null,0,false,false,false,null,null,null,0,false,false,false,null,null,null,0,false,false,false,null,null,null,0,false,false,false,null,null,null,0,false,false,false,null,null,null,0,false,false,false,null,null,null,0,false,false,false,null,null,null,0,false,false,false,null,null,null,0,false,false,false,null,null,null,0,false,false,false,null,null,null,0,false,false,false,null,null,null,0,false,false,false,null,null,null,0,false,false,false,null,null,null,0,false,false,false,null,null,null,0,false,false,false,null,null,null,0,false,false,false,null,null,null,0,false,false,false,null,null,null,0,false,false,false,null,null,null,0,false,false,false,null,null,null,0,false,false,false,null,null,null,0,false,false,false,null,null,null,0,false,false,false,null,null,null,0,false,false,false,null,null,null,0,false,false,false,null,null,null,0,false,false,false,null,null,null,0,false,false,false,null,null,null,0,false,false,false,null,null,null,0,false,false,false]
[{"$f":"IF('Phase Finale'!I7:O7=\"\",\"\",'Phase Finale'!I7:O7)","v":""},{"$f":"IF('Phase Finale'!J6:K6=\"\",\"\",'Phase Finale'!J6:K6)","v":""},{"$f":"IF('Phase Finale'!J9:K9=\"\",\"\",'Phase Finale'!J9:K9)","v":""},{"$f":"IF('Phase Finale'!I8:O8=\"\",\"\",'Phase Finale'!I8:O8)","v":""},null,null,null,0,false,false,false,null,null,null,0,false,false,false,null,null,null,0,false,false,false,null,null,null,0,false,false,false,null,null,null,0,false,false,false,null,null,null,0,false,false,false,null,null,null,0,false,false,false,null,null,null,0,false,false,false,null,null,null,0,false,false,false,null,null,null,0,false,false,false,null,null,null,0,false,false,false,null,null,null,0,false,false,false,null,null,null,0,false,false,false,null,null,null,0,false,false,false,null,null,null,0,false,false,false,null,null,null,0,false,false,false,null,null,null,0,false,false,false,null,null,null,0,false,false,false,null,null,null,0,false,false,false,null,null,null,0,false,false,false,null,null,null,0,false,false,false,null,null,null,0,false,false,false,null,null,null,0,false,false,false,null,null,null,0,false,false,false,null,null,null,0,false,false,false,null,null,null,0,false,false,false,null,null,null,0,false,false,false,null,null,null,0,false,false,false,null,null,null,0,false,false,false,null,null,null,0,false,false,false,null,null,null,0,false,false,false,null,null,null,0,false,false,false,null,null,null,0,false,false,false,null,null,null,0,false,false,false,null,null,null,0,false,false,false,null,null,null,0,false,false,false,null,null,null,0,false,false,false,null,null,null,0,false,false,false,null,null,null,0,false,false,false,null,null,null,0,false,false,false,null,null,null,0,false,false,false,null,null,null,0,false,false,false,null,null,null,0,false,false,false,null,null,null,0,false,false,false,null,null,null,0,false,false,false,null,null,null,0,false,false,false,null,null,null,0,false,false,false,null,null,null,0,false,false,false,null,null,null,0,false,false,false,null,null,null,0,false,false,false,null,null,null,0,false,false,false,null,null,null,0,false,false,false,null,null,null,0,false,false,false,null,null,null,0,false,false,false,null,null,null,0,false,false,false,null,null,null,0,false,false,false,null,null,null,0,false,false,false,null,null,null,0,false,false,false,null,null,null,0,false,false,false,null,null,null,0,false,false,false,null,null,null,0,false,false,false,null,null,null,0,false,false,false,null,null,null,0,false,false,false,null,null,null,0,false,false,false,null,null,null,0,false,false,false,null,null,null,0,false,false,false,null,null,null,0,false,false,false,null,null,null,0,false,false,false,null,null,null,0,false,false,false,null,null,null,0,false,false,false,null,null,null,0,false,false,false,null,null,null,0,false,false,false,null,null,null,0,false,false,false,null,null,null,0,false,false,false,null,null,null,0,false,false,false,null,null,null,0,false,false,false,null,null,null,0,false,false,false,null,null,null,0,false,false,false,null,null,null,0,false,false,false,null,null,null,0,false,false,false,null,null,null,0,false,false,false,null,null,null,0,false,false,false,null,null,null,0,false,false,false,null,null,null,0,false,false,false,null,null,null,0,false,false,false,null,null,null,0,false,false,false,null,null,null,0,false,false,false,null,null,null,0,false,false,false,null,null,null,0,false,false,false,null,null,null,0,false,false,false]
[{"$f":"IF('Phase Finale'!Z19:AF19=\"\",\"\",'Phase Finale'!Z19:AF19)","v":""},{"$f":"IF('Phase Finale'!AA18:AB18=\"\",\"\",'Phase Finale'!AA18:AB18)","v":""},{"$f":"IF('Phase Finale'!AA21:AB21=\"\",\"\",'Phase Finale'!AA21:AB21)","v":""},{"$f":"IF('Phase Finale'!Z20:AF20=\"\",\"\",'Phase Finale'!Z20:AF20)","v":""},null,null,null,0,false,false,false,null,null,null,0,false,false,false,null,null,null,0,false,false,false,null,null,null,0,false,false,false,null,null,null,0,false,false,false,null,null,null,0,false,false,false,null,null,null,0,false,false,false,null,null,null,0,false,false,false,null,null,null,0,false,false,false,null,null,null,0,false,false,false,null,null,null,0,false,false,false,null,null,null,0,false,false,false,null,null,null,0,false,false,false,null,null,null,0,false,false,false,null,null,null,0,false,false,false,null,null,null,0,false,false,false,null,null,null,0,false,false,false,null,null,null,0,false,false,false,null,null,null,0,false,false,false,null,null,null,0,false,false,false,null,null,null,0,false,false,false,null,null,null,0,false,false,false,null,null,null,0,false,false,false,null,null,null,0,false,false,false,null,null,null,0,false,false,false,null,null,null,0,false,false,false,null,null,null,0,false,false,false,null,null,null,0,false,false,false,null,null,null,0,false,false,false,null,null,null,0,false,false,false,null,null,null,0,false,false,false,null,null,null,0,false,false,false,null,null,null,0,false,false,false,null,null,null,0,false,false,false,null,null,null,0,false,false,false,null,null,null,0,false,false,false,null,null,null,0,false,false,false,null,null,null,0,false,false,false,null,null,null,0,false,false,false,null,null,null,0,false,false,false,null,null,null,0,false,false,false,null,null,null,0,false,false,false,null,null,null,0,false,false,false,null,null,null,0,false,false,false,null,null,null,0,false,false,false,null,null,null,0,false,false,false,null,null,null,0,false,false,false,null,null,null,0,false,false,false,null,null,null,0,false,false,false,null,null,null,0,false,false,false,null,null,null,0,false,false,false,null,null,null,0,false,false,false,null,null,null,0,false,false,false,null,null,null,0,false,false,false,null,null,null,0,false,false,false,null,null,null,0,false,false,false,null,null,null,0,false,false,false,null,null,null,0,false,false,false,null,null,null,0,false,false,false,null,null,null,0,false,false,false,null,null,null,0,false,false,false,null,null,null,0,false,false,false,null,null,null,0,false,false,false,null,null,null,0,false,false,false,null,null,null,0,false,false,false,null,null,null,0,false,false,false,null,null,null,0,false,false,false,null,null,null,0,false,false,false,null,null,null,0,false,false,false,null,null,null,0,false,false,false,null,null,null,0,false,false,false,null,null,null,0,false,false,false,null,null,null,0,false,false,false,null,null,null,0,false,false,false,null,null,null,0,false,false,false,null,null,null,0,false,false,false,null,null,null,0,false,false,false,null,null,null,0,false,false,false,null,null,null,0,false,false,false,null,null,null,0,false,false,false,null,null,null,0,false,false,false,null,null,null,0,false,false,false,null,null,null,0,false,false,false,null,null,null,0,false,false,false,null,null,null,0,false,false,false,null,null,null,0,false,false,false,null,null,null,0,false,false,false,null,null,null,0,false,false,false,null,null,null,0,false,false,false,null,null,null,0,false,false,false]
[{"$f":"IF('Phase Finale'!Z7:AF7=\"\",\"\",'Phase Finale'!Z7:AF7)","v":""},{"$f":"IF('Phase Finale'!AA6:AB6=\"\",\"\",'Phase Finale'!AA6:AB6)","v":""},{"$f":"IF('Phase Finale'!AA9:AB9=\"\",\"\",'Phase Finale'!AA9:AB9)","v":""},{"$f":"IF('Phase Finale'!Z8:AF8=\"\",\"\",'Phase Finale'!Z8:AF8)","v":""},null,null,null,0,false,false,false,null,null,null,0,false,false,false,null,null,null,0,false,false,false,null,null,null,0,false,false,false,null,null,null,0,false,false,false,null,null,null,0,false,false,false,null,null,null,0,false,false,false,null,null,null,0,false,false,false,null,null,null,0,false,false,false,null,null,null,0,false,false,false,null,null,null,0,false,false,false,null,null,null,0,false,false,false,null,null,null,0,false,false,false,null,null,null,0,false,false,false,null,null,null,0,false,false,false,null,null,null,0,false,false,false,null,null,null,0,false,false,false,null,null,null,0,false,false,false,null,null,null,0,false,false,false,null,null,null,0,false,false,false,null,null,null,0,false,false,false,null,null,null,0,false,false,false,null,null,null,0,false,false,false,null,null,null,0,false,false,false,null,null,null,0,false,false,false,null,null,null,0,false,false,false,null,null,null,0,false,false,false,null,null,null,0,false,false,false,null,null,null,0,false,false,false,null,null,null,0,false,false,false,null,null,null,0,false,false,false,null,null,null,0,false,false,false,null,null,null,0,false,false,false,null,null,null,0,false,false,false,null,null,null,0,false,false,false,null,null,null,0,false,false,false,null,null,null,0,false,false,false,null,null,null,0,false,false,false,null,null,null,0,false,false,false,null,null,null,0,false,false,false,null,null,null,0,false,false,false,null,null,null,0,false,false,false,null,null,null,0,false,false,false,null,null,null,0,false,false,false,null,null,null,0,false,false,false,null,null,null,0,false,false,false,null,null,null,0,false,false,false,null,null,null,0,false,false,false,null,null,null,0,false,false,false,null,null,null,0,false,false,false,null,null,null,0,false,false,false,null,null,null,0,false,false,false,null,null,null,0,false,false,false,null,null,null,0,false,false,false,null,null,null,0,false,false,false,null,null,null,0,false,false,false,null,null,null,0,false,false,false,null,null,null,0,false,false,false,null,null,null,0,false,false,false,null,null,null,0,false,false,false,null,null,null,0,false,false,false,null,null,null,0,false,false,false,null,null,null,0,false,false,false,null,null,null,0,false,false,false,null,null,null,0,false,false,false,null,null,null,0,false,false,false,null,null,null,0,false,false,false,null,null,null,0,false,false,false,null,null,null,0,false,false,false,null,null,null,0,false,false,false,null,null,null,0,false,false,false,null,null,null,0,false,false,false,null,null,null,0,false,false,false,null,null,null,0,false,false,false,null,null,null,0,false,false,false,null,null,null,0,false,false,false,null,null,null,0,false,false,false,null,null,null,0,false,false,false,null,null,null,0,false,false,false,null,null,null,0,false,false,false,null,null,null,0,false,false,false,null,null,null,0,false,false,false,null,null,null,0,false,false,false,null,null,null,0,false,false,false,null,null,null,0,false,false,false,null,null,null,0,false,false,false,null,null,null,0,false,false,false,null,null,null,0,false,false,false,null,null,null,0,false,false,false,null,null,null,0,false,false,false]
[{"$f":"IF('Phase Finale'!L13:R13=\"\",\"\",'Phase Finale'!L13:R13)","v":""},{"$f":"IF('Phase Finale'!M12:N12=\"\",\"\",'Phase Finale'!M12:N12)","v":""},{"$f":"IF('Phase Finale'!M15:N15=\"\",\"\",'Phase Finale'!M15:N15)","v":""},{"$f":"IF('Phase Finale'!L14:R14=\"\",\"\",'Phase Finale'!L14:R14)","v":""},null,null,null,0,false,false,false,null,null,null,0,false,false,false,null,null,null,0,false,false,false,null,null,null,0,false,false,false,null,null,null,0,false,false,false,null,null,null,0,false,false,false,null,null,null,0,false,false,false,null,null,null,0,false,false,false,null,null,null,0,false,false,false,null,null,null,0,false,false,false,null,null,null,0,false,false,false,null,null,null,0,false,false,false,null,null,null,0,false,false,false,null,null,null,0,false,false,false,null,null,null,0,false,false,false,null,null,null,0,false,false,false,null,null,null,0,false,false,false,null,null,null,0,false,false,false,null,null,null,0,false,false,false,null,null,null,0,false,false,false,null,null,null,0,false,false,false,null,null,null,0,false,false,false,null,null,null,0,false,false,false,null,null,null,0,false,false,false,null,null,null,0,false,false,false,null,null,null,0,false,false,false,null,null,null,0,false,false,false,null,null,null,0,false,false,false,null,null,null,0,false,false,false,null,null,null,0,false,false,false,null,null,null,0,false,false,false,null,null,null,0,false,false,false,null,null,null,0,false,false,false,null,null,null,0,false,false,false,null,null,null,0,false,false,false,null,null,null,0,false,false,false,null,null,null,0,false,false,false,null,null,null,0,false,false,false,null,null,null,0,false,false,false,null,null,null,0,false,false,false,null,null,null,0,false,false,false,null,null,null,0,false,false,false,null,null,null,0,false,false,false,null,null,null,0,false,false,false,null,null,null,0,false,false,false,null,null,null,0,false,false,false,null,null,null,0,false,false,false,null,null,null,0,false,false,false,null,null,null,0,false,false,false,null,null,null,0,false,false,false,null,null,null,0,false,false,false,null,null,null,0,false,false,false,null,null,null,0,false,false,false,null,null,null,0,false,false,false,null,null,null,0,false,false,false,null,null,null,0,false,false,false,null,null,null,0,false,false,false,null,null,null,0,false,false,false,null,null,null,0,false,false,false,null,null,null,0,false,false,false,null,null,null,0,false,false,false,null,null,null,0,false,false,false,null,null,null,0,false,false,false,null,null,null,0,false,false,false,null,null,null,0,false,false,false,null,null,null,0,false,false,false,null,null,null,0,false,false,false,null,null,null,0,false,false,false,null,null,null,0,false,false,false,null,null,null,0,false,false,false,null,null,null,0,false,false,false,null,null,null,0,false,false,false,null,null,null,0,false,false,false,null,null,null,0,false,false,false,null,null,null,0,false,false,false,null,null,null,0,false,false,false,null,null,null,0,false,false,false,null,null,null,0,false,false,false,null,null,null,0,false,false,false,null,null,null,0,false,false,false,null,null,null,0,false,false,false,null,null,null,0,false,false,false,null,null,null,0,false,false,false,null,null,null,0,false,false,false,null,null,null,0,false,false,false,null,null,null,0,false,false,false,null,null,null,0,false,false,false,null,null,null,0,false,false,false,null,null,null,0,false,false,false,null,null,null,0,false,false,false]
[{"$f":"IF('Phase Finale'!W13:AC13=\"\",\"\",'Phase Finale'!W13:AC13)","v":""},{"$f":"IF('Phase Finale'!X12:Y12=\"\",\"\",'Phase Finale'!X12:Y12)","v":""},{"$f":"IF('Phase Finale'!X15:Y15=\"\",\"\",'Phase Finale'!X15:Y15)","v":""},{"$f":"IF('Phase Finale'!W14:AC14=\"\",\"\",'Phase Finale'!W14:AC14)","v":""},null,null,null,0,false,false,false,null,null,null,0,false,false,false,null,null,null,0,false,false,false,null,null,null,0,false,false,false,null,null,null,0,false,false,false,null,null,null,0,false,false,false,null,null,null,0,false,false,false,null,null,null,0,false,false,false,null,null,null,0,false,false,false,null,null,null,0,false,false,false,null,null,null,0,false,false,false,null,null,null,0,false,false,false,null,null,null,0,false,false,false,null,null,null,0,false,false,false,null,null,null,0,false,false,false,null,null,null,0,false,false,false,null,null,null,0,false,false,false,null,null,null,0,false,false,false,null,null,null,0,false,false,false,null,null,null,0,false,false,false,null,null,null,0,false,false,false,null,null,null,0,false,false,false,null,null,null,0,false,false,false,null,null,null,0,false,false,false,null,null,null,0,false,false,false,null,null,null,0,false,false,false,null,null,null,0,false,false,false,null,null,null,0,false,false,false,null,null,null,0,false,false,false,null,null,null,0,false,false,false,null,null,null,0,false,false,false,null,null,null,0,false,false,false,null,null,null,0,false,false,false,null,null,null,0,false,false,false,null,null,null,0,false,false,false,null,null,null,0,false,false,false,null,null,null,0,false,false,false,null,null,null,0,false,false,false,null,null,null,0,false,false,false,null,null,null,0,false,false,false,null,null,null,0,false,false,false,null,null,null,0,false,false,false,null,null,null,0,false,false,false,null,null,null,0,false,false,false,null,null,null,0,false,false,false,null,null,null,0,false,false,false,null,null,null,0,false,false,false,null,null,null,0,false,false,false,null,null,null,0,false,false,false,null,null,null,0,false,false,false,null,null,null,0,false,false,false,null,null,null,0,false,false,false,null,null,null,0,false,false,false,null,null,null,0,false,false,false,null,null,null,0,false,false,false,null,null,null,0,false,false,false,null,null,null,0,false,false,false,null,null,null,0,false,false,false,null,null,null,0,false,false,false,null,null,null,0,false,false,false,null,null,null,0,false,false,false,null,null,null,0,false,false,false,null,null,null,0,false,false,false,null,null,null,0,false,false,false,null,null,null,0,false,false,false,null,null,null,0,false,false,false,null,null,null,0,false,false,false,null,null,null,0,false,false,false,null,null,null,0,false,false,false,null,null,null,0,false,false,false,null,null,null,0,false,false,false,null,null,null,0,false,false,false,null,null,null,0,false,false,false,null,null,null,0,false,false,false,null,null,null,0,false,false,false,null,null,null,0,false,false,false,null,null,null,0,false,false,false,null,null,null,0,false,false,false,null,null,null,0,false,false,false,null,null,null,0,false,false,false,null,null,null,0,false,false,false,null,null,null,0,false,false,false,null,null,null,0,false,false,false,null,null,null,0,false,false,false,null,null,null,0,false,false,false,null,null,null,0,false,false,false,null,null,null,0,false,false,false,null,null,null,0,false,false,false,null,null,null,0,false,false,false,null,null,null,0,false,false,false]
[{"$f":"IF('Phase Finale'!Q3:X3=\"\",\"\",'Phase Finale'!Q3:X3)","v":""},{"$f":"IF('Phase Finale'!R2:S2=\"\",\"\",'Phase Finale'!R2:S2)","v":""},{"$f":"IF('Phase Finale'!R5:S5=\"\",\"\",'Phase Finale'!R5:S5)","v":""},{"$f":"IF('Phase Finale'!Q4:X4=\"\",\"\",'Phase Finale'!Q4:X4)","v":""},null,null,null,0,false,false,false,null,null,null,0,false,false,false,null,null,null,0,false,false,false,null,null,null,0,false,false,false,null,null,null,0,false,false,false,null,null,null,0,false,false,false,null,null,null,0,false,false,false,null,null,null,0,false,false,false,null,null,null,0,false,false,false,null,null,null,0,false,false,false,null,null,null,0,false,false,false,null,null,null,0,false,false,false,null,null,null,0,false,false,false,null,null,null,0,false,false,false,null,null,null,0,false,false,false,null,null,null,0,false,false,false,null,null,null,0,false,false,false,null,null,null,0,false,false,false,null,null,null,0,false,false,false,null,null,null,0,false,false,false,null,null,null,0,false,false,false,null,null,null,0,false,false,false,null,null,null,0,false,false,false,null,null,null,0,false,false,false,null,null,null,0,false,false,false,null,null,null,0,false,false,false,null,null,null,0,false,false,false,null,null,null,0,false,false,false,null,null,null,0,false,false,false,null,null,null,0,false,false,false,null,null,null,0,false,false,false,null,null,null,0,false,false,false,null,null,null,0,false,false,false,null,null,null,0,false,false,false,null,null,null,0,false,false,false,null,null,null,0,false,false,false,null,null,null,0,false,false,false,null,null,null,0,false,false,false,null,null,null,0,false,false,false,null,null,null,0,false,false,false,null,null,null,0,false,false,false,null,null,null,0,false,false,false,null,null,null,0,false,false,false,null,null,null,0,false,false,false,null,null,null,0,false,false,false,null,null,null,0,false,false,false,null,null,null,0,false,false,false,null,null,null,0,false,false,false,null,null,null,0,false,false,false,null,null,null,0,false,false,false,null,null,null,0,false,false,false,null,null,null,0,false,false,false,null,null,null,0,false,false,false,null,null,null,0,false,false,false,null,null,null,0,false,false,false,null,null,null,0,false,false,false,null,null,null,0,false,false,false,null,null,null,0,false,false,false,null,null,null,0,false,false,false,null,null,null,0,false,false,false,null,null,null,0,false,false,false,null,null,null,0,false,false,false,null,null,null,0,false,false,false,null,null,null,0,false,false,false,null,null,null,0,false,false,false,null,null,null,0,false,false,false,null,null,null,0,false,false,false,null,null,null,0,false,false,false,null,null,null,0,false,false,false,null,null,null,0,false,false,false,null,null,null,0,false,false,false,null,null,null,0,false,false,false,null,null,null,0,false,false,false,null,null,null,0,false,false,false,null,null,null,0,false,false,false,null,null,null,0,false,false,false,null,null,null,0,false,false,false,null,null,null,0,false,false,false,null,null,null,0,false,false,false,null,null,null,0,false,false,false,null,null,null,0,false,false,false,null,null,null,0,false,false,false,null,null,null,0,false,false,false,null,null,null,0,false,false,false,null,null,null,0,false,false,false,null,null,null,0,false,false,false,null,null,null,0,false,false,false,null,null,null,0,false,false,false,null,null,null,0,false,false,false,null,null,null,0,false,false,false]
[{"$f":"IF('Phase Finale'!Q23:X23=\"\",\"\",'Phase Finale'!Q23:X23)","v":""},{"$f":"IF('Phase Finale'!R22:S22=\"\",\"\",'Phase Finale'!R22:S22)","v":""},{"$f":"IF('Phase Finale'!R25:S25=\"\",\"\",'Phase Finale'!R25:S25)","v":""},{"$f":"IF('Phase Finale'!Q24:X24=\"\",\"\",'Phase Finale'!Q24:X24)","v":""},null,null,null,0,false,false,false,null,null,null,0,false,false,false,null,null,null,0,false,false,false,null,null,null,0,false,false,false,null,null,null,0,false,false,false,null,null,null,0,false,false,false,null,null,null,0,false,false,false,null,null,null,0,false,false,false,null,null,null,0,false,false,false,null,null,null,0,false,false,false,null,null,null,0,false,false,false,null,null,null,0,false,false,false,null,null,null,0,false,false,false,null,null,null,0,false,false,false,null,null,null,0,false,false,false,null,null,null,0,false,false,false,null,null,null,0,false,false,false,null,null,null,0,false,false,false,null,null,null,0,false,false,false,null,null,null,0,false,false,false,null,null,null,0,false,false,false,null,null,null,0,false,false,false,null,null,null,0,false,false,false,null,null,null,0,false,false,false,null,null,null,0,false,false,false,null,null,null,0,false,false,false,null,null,null,0,false,false,false,null,null,null,0,false,false,false,null,null,null,0,false,false,false,null,null,null,0,false,false,false,null,null,null,0,false,false,false,null,null,null,0,false,false,false,null,null,null,0,false,false,false,null,null,null,0,false,false,false,null,null,null,0,false,false,false,null,null,null,0,false,false,false,null,null,null,0,false,false,false,null,null,null,0,false,false,false,null,null,null,0,false,false,false,null,null,null,0,false,false,false,null,null,null,0,false,false,false,null,null,null,0,false,false,false,null,null,null,0,false,false,false,null,null,null,0,false,false,false,null,null,null,0,false,false,false,null,null,null,0,false,false,false,null,null,null,0,false,false,false,null,null,null,0,false,false,false,null,null,null,0,false,false,false,null,null,null,0,false,false,false,null,null,null,0,false,false,false,null,null,null,0,false,false,false,null,null,null,0,false,false,false,null,null,null,0,false,false,false,null,null,null,0,false,false,false,null,null,null,0,false,false,false,null,null,null,0,false,false,false,null,null,null,0,false,false,false,null,null,null,0,false,false,false,null,null,null,0,false,false,false,null,null,null,0,false,false,false,null,null,null,0,false,false,false,null,null,null,0,false,false,false,null,null,null,0,false,false,false,null,null,null,0,false,false,false,null,null,null,0,false,false,false,null,null,null,0,false,false,false,null,null,null,0,false,false,false,null,null,null,0,false,false,false,null,null,null,0,false,false,false,null,null,null,0,false,false,false,null,null,null,0,false,false,false,null,null,null,0,false,false,false,null,null,null,0,false,false,false,null,null,null,0,false,false,false,null,null,null,0,false,false,false,null,null,null,0,false,false,false,null,null,null,0,false,false,false,null,null,null,0,false,false,false,null,null,null,0,false,false,false,null,null,null,0,false,false,false,null,null,null,0,false,false,false,null,null,null,0,false,false,false,null,null,null,0,false,false,false,null,null,null,0,false,false,false,null,null,null,0,false,false,false,null,null,null,0,false,false,false,null,null,null,0,false,false,false,null,null,null,0,false,false,false,null,null,null,0,false,false,false]

{"sheet":"Classement Pronostics","index":4,"n_rows":91,"n_cols":28,"rows_kept":91,"cut":false,"hidden":false,"merged":[[0,0,2,10],[3,3,32,3],[3,7,32,7]]}
["CLASSEMENT   pronostics"]
[null,null,null,null,null,null,null,null,null,null,null,null,null,null,1,{"$f":"RANK(T2,$T$2:$T$91)","v":1},{"$f":"IF(Pronostics!E1=\"\",\"\",Pronostics!E1)","v":"VIDE 1"},null,{"$f":"IF(Pronostics!E1=\"\",\"\",Pronostics!H3)","v":0},{"$f":"IF(ISERROR(SUM(S2+U2)),U2,SUM(S2+U2))","v":8.9999999999999993E-3},8.9999999999999993E-3,null,null,null,1,{"$f":"VLOOKUP(O2,$P$2:$Q$91,2,0)","v":"VIDE 1"},{"$f":"VLOOKUP(Z2,$Q$2:$S$91,3,0)","v":0},{"$f":"RANK(AA2,$AA$2:$AA$91)","v":1}]
[null,null,null,null,null,null,null,null,null,null,null,null,null,null,2,{"$f":"RANK(T3,$T$2:$T$91)","v":2},{"$f":"IF(Pronostics!L1=\"\",\"\",Pronostics!L1)","v":"VIDE 2"},null,{"$f":"IF(Pronostics!L1=\"\",\"\",Pronostics!O3)","v":0},{"$f":"IF(ISERROR(SUM(S3+U3)),U3,SUM(S3+U3))","v":8.8999999999999999E-3},8.8999999999999999E-3,null,null,null,2,{"$f":"VLOOKUP(O3,$P$2:$Q$91,2,0)","v":"VIDE 2"},{"$f":"VLOOKUP(Z3,$Q$2:$S$91,3,0)","v":0},{"$f":"RANK(AA3,$AA$2:$AA$91)","v":1}]
[1,{"$f":"VLOOKUP(O2,$P$2:$Q$91,2,0)","v":"VIDE 1"},{"$f":"VLOOKUP(B4,$Q$2:$S$91,3,0)","v":0},null,{"$f":"IF(AA32=AA31,AB31,AB32)","v":1},{"$f":"VLOOKUP(O32,$P$2:$Q$91,2,0)","v":"VIDE 31"},{"$f":"VLOOKUP(F4,$Q$2:$S$91,3,0)","v":0},null,{"$f":"IF(AA62=AA61,AB61,AB62)","v":1},{"$f":"VLOOKUP(O62,$P$2:$Q$91,2,0)","v":"VIDE 61"},{"$f":"VLOOKUP(J4,$Q$2:$S$91,3,0)","v":0},null,null,null,3,3,{"$f":"IF(Pronostics!S1=\"\",\"\",Pronostics!S1)","v":"VIDE 3"},null,{"$f":"IF(Pronostics!S1=\"\",\"\",Pronostics!V3)","v":0},8.8000000000000005E-3,8.8000000000000005E-3,null,null,null,3,"VIDE 3",0,1]
[{"$f":"IF(AA3=AA2,AB2,AB3)","v":1},{"$f":"VLOOKUP(O3,$P$2:$Q$91,2,0)","v":"VIDE 2"},{"$f":"VLOOKUP(B5,$Q$2:$S$91,3,0)","v":0},null,{"$f":"IF(AA33=AA32,AB32,AB33)","v":1},{"$f":"VLOOKUP(O33,$P$2:$Q$91,2,0)","v":"VIDE 32"},{"$f":"VLOOKUP(F5,$Q$2:$S$91,3,0)","v":0},null,{"$f":"IF(AA63=AA62,AB62,AB63)","v":1},{"$f":"VLOOKUP(O63,$P$2:$Q$91,2,0)","v":"VIDE 62"},{"$f":"VLOOKUP(J5,$Q$2:$S$91,3,0)","v":0},null,null,null,4,4,{"$f":"IF(Pronostics!Z1=\"\",\"\",Pronostics!Z1)","v":"VIDE 4"},null,{"$f":"IF(Pronostics!Z1=\"\",\"\",Pronostics!AC3)","v":0},8.6999999999999994E-3,8.6999999999999994E-3,null,null,null,4,"VIDE 4",0,1]
[{"$f":"IF(AA4=AA3,AB3,AB4)","v":1},"VIDE 3",0,null,1,"VIDE 33",0,null,1,"VIDE 63",0,null,null,null,5,5,{"$f":"IF(Pronostics!AG1=\"\",\"\",Pronostics!AG1)","v":"VIDE 5"},null,{"$f":"IF(Pronostics!AG1=\"\",\"\",Pronostics!AJ3)","v":0},8.6E-3,8.6E-3,null,null,null,5,"VIDE 5",0,1]
[1,"VIDE 4",0,null,1,"VIDE 34",0,null,1,"VIDE 64",0,null,null,null,6,6,{"$f":"IF(Pronostics!AN1=\"\",\"\",Pronostics!AN1)","v":"VIDE 6"},null,{"$f":"IF(Pronostics!AN1=\"\",\"\",Pronostics!AQ3)","v":0},8.5000000000000006E-3,8.5000000000000006E-3,null,null,null,6,"VIDE 6",0,1]
[1,"VIDE 5",0,null,1,"VIDE 35",0,null,1,"VIDE 65",0,null,null,null,7,7,{"$f":"IF(Pronostics!AU1=\"\",\"\",Pronostics!AU1)","v":"VIDE 7"},null,{"$f":"IF(Pronostics!AU1=\"\",\"\",Pronostics!AX3)","v":0},8.3999999999999995E-3,8.3999999999999995E-3,null,null,null,7,"VIDE 7",0,1]
[1,"VIDE 6",0,null,1,"VIDE 36",0,null,1,"VIDE 66",0,null,null,null,8,8,{"$f":"IF(Pronostics!BB1=\"\",\"\",Pronostics!BB1)","v":"VIDE 8"},null,{"$f":"IF(Pronostics!BB1=\"\",\"\",Pronostics!BE3)","v":0},8.3000000000000001E-3,8.3000000000000001E-3,null,null,null,8,"VIDE 8",0,1]
[1,"VIDE 7",0,null,1,"VIDE 37",0,null,1,"VIDE 67",0,null,null,null,9,9,{"$f":"IF(Pronostics!BI1=\"\",\"\",Pronostics!BI1)","v":"VIDE 9"},null,{"$f":"IF(Pronostics!BI1=\"\",\"\",Pronostics!BL3)","v":0},8.2000000000000007E-3,8.2000000000000007E-3,null,null,null,9,"VIDE 9",0,1]
[1,"VIDE 8",0,null,1,"VIDE 38",0,null,1,"VIDE 68",0,null,null,null,10,10,{"$f":"IF(Pronostics!BP1=\"\",\"\",Pronostics!BP1)","v":"VIDE 10"},null,{"$f":"IF(Pronostics!BP1=\"\",\"\",Pronostics!BS3)","v":0},8.0999999999999996E-3,8.0999999999999996E-3,null,null,null,10,"VIDE 10",0,1]
[1,"VIDE 9",0,null,1,"VIDE 39",0,null,1,"VIDE 69",0,null,null,null,11,11,{"$f":"IF(Pronostics!BW1=\"\",\"\",Pronostics!BW1)","v":"VIDE 11"},null,{"$f":"IF(Pronostics!BW1=\"\",\"\",Pronostics!BZ3)","v":0},8.0000000000000002E-3,8.0000000000000002E-3,null,null,null,11,"VIDE 11",0,1]
[1,"VIDE 10",0,null,1,"VIDE 40",0,null,1,"VIDE 70",0,null,null,null,12,12,{"$f":"IF(Pronostics!CD1=\"\",\"\",Pronostics!CD1)","v":"VIDE 12"},null,{"$f":"IF(Pronostics!CD1=\"\",\"\",Pronostics!CG3)","v":0},7.9000000000000008E-3,7.9000000000000008E-3,null,null,null,12,"VIDE 12",0,1]
[1,"VIDE 11",0,null,1,"VIDE 41",0,null,1,"VIDE 71",0,null,null,null,13,13,{"$f":"IF(Pronostics!CK1=\"\",\"\",Pronostics!CK1)","v":"VIDE 13"},null,{"$f":"IF(Pronostics!CK1=\"\",\"\",Pronostics!CN3)","v":0},7.7999999999999996E-3,7.7999999999999996E-3,null,null,null,13,"VIDE 13",0,1]
[1,"VIDE 12",0,null,1,"VIDE 42",0,null,1,"VIDE 72",0,null,null,null,14,14,{"$f":"IF(Pronostics!CR1=\"\",\"\",Pronostics!CR1)","v":"VIDE 14"},null,{"$f":"IF(Pronostics!CR1=\"\",\"\",Pronostics!CU3)","v":0},7.7000000000000002E-3,7.7000000000000002E-3,null,null,null,14,"VIDE 14",0,1]
[1,"VIDE 13",0,null,1,"VIDE 43",0,null,1,"VIDE 73",0,null,null,null,15,15,{"$f":"IF(Pronostics!CY1=\"\",\"\",Pronostics!CY1)","v":"VIDE 15"},null,{"$f":"IF(Pronostics!CY1=\"\",\"\",Pronostics!DB3)","v":0},7.6E-3,7.6E-3,null,null,null,15,"VIDE 15",0,1]
[1,"VIDE 14",0,null,1,"VIDE 44",0,null,1,"VIDE 74",0,null,null,null,16,16,{"$f":"IF(Pronostics!DF1=\"\",\"\",Pronostics!DF1)","v":"VIDE 16"},null,{"$f":"IF(Pronostics!DF1=\"\",\"\",Pronostics!DI3)","v":0},7.4999999999999997E-3,7.4999999999999997E-3,null,null,null,16,"VIDE 16",0,1]
[1,"VIDE 15",0,null,1,"VIDE 45",0,null,1,"VIDE 75",0,null,null,null,17,17,{"$f":"IF(Pronostics!DM1=\"\",\"\",Pronostics!DM1)","v":"VIDE 17"},null,{"$f":"IF(Pronostics!DM1=\"\",\"\",Pronostics!DP3)","v":0},7.4000000000000003E-3,7.4000000000000003E-3,null,null,null,17,"VIDE 17",0,1]
[1,"VIDE 16",0,null,1,"VIDE 46",0,null,1,"VIDE 76",0,null,null,null,18,18,{"$f":"IF(Pronostics!DT1=\"\",\"\",Pronostics!DT1)","v":"VIDE 18"},null,{"$f":"IF(Pronostics!DT1=\"\",\"\",Pronostics!DW3)","v":0},7.3000000000000001E-3,7.3000000000000001E-3,null,null,null,18,"VIDE 18",0,1]
[1,"VIDE 17",0,null,1,"VIDE 47",0,null,1,"VIDE 77",0,null,null,null,19,19,{"$f":"IF(Pronostics!EA1=\"\",\"\",Pronostics!EA1)","v":"VIDE 19"},null,{"$f":"IF(Pronostics!EA1=\"\",\"\",Pronostics!ED3)","v":0},7.1999999999999998E-3,7.1999999999999998E-3,null,null,null,19,"VIDE 19",0,1]
[1,"VIDE 18",0,null,1,"VIDE 48",0,null,1,"VIDE 78",0,null,null,null,20,20,{"$f":"IF(Pronostics!EH1=\"\",\"\",Pronostics!EH1)","v":"VIDE 20"},null,{"$f":"IF(Pronostics!EH1=\"\",\"\",Pronostics!EK3)","v":0},7.1000000000000004E-3,7.1000000000000004E-3,null,null,null,20,"VIDE 20",0,1]
[1,"VIDE 19",0,null,1,"VIDE 49",0,null,1,"VIDE 79",0,null,null,null,21,21,{"$f":"IF(Pronostics!EO1=\"\",\"\",Pronostics!EO1)","v":"VIDE 21"},null,{"$f":"IF(Pronostics!EO1=\"\",\"\",Pronostics!ER3)","v":0},7.0000000000000001E-3,7.0000000000000001E-3,null,null,null,21,"VIDE 21",0,1]
[1,"VIDE 20",0,null,1,"VIDE 50",0,null,1,"VIDE 80",0,null,null,null,22,22,{"$f":"IF(Pronostics!EV1=\"\",\"\",Pronostics!EV1)","v":"VIDE 22"},null,{"$f":"IF(Pronostics!EV1=\"\",\"\",Pronostics!EY3)","v":0},6.8999999999999999E-3,6.8999999999999999E-3,null,null,null,22,"VIDE 22",0,1]
[1,"VIDE 21",0,null,1,"VIDE 51",0,null,1,"VIDE 81",0,null,null,null,23,23,{"$f":"IF(Pronostics!FC1=\"\",\"\",Pronostics!FC1)","v":"VIDE 23"},null,{"$f":"IF(Pronostics!FC1=\"\",\"\",Pronostics!FF3)","v":0},6.7999999999999996E-3,6.7999999999999996E-3,null,null,null,23,"VIDE 23",0,1]
[1,"VIDE 22",0,null,1,"VIDE 52",0,null,1,"VIDE 82",0,null,null,null,24,24,{"$f":"IF(Pronostics!FJ1=\"\",\"\",Pronostics!FJ1)","v":"VIDE 24"},null,{"$f":"IF(Pronostics!FJ1=\"\",\"\",Pronostics!FM3)","v":0},6.7000000000000002E-3,6.7000000000000002E-3,null,null,null,24,"VIDE 24",0,1]
[1,"VIDE 23",0,null,1,"VIDE 53",0,null,1,"VIDE 83",0,null,null,null,25,25,{"$f":"IF(Pronostics!FQ1=\"\",\"\",Pronostics!FQ1)","v":"VIDE 25"},null,{"$f":"IF(Pronostics!FQ1=\"\",\"\",Pronostics!FT3)","v":0},6.6E-3,6.6E-3,null,null,null,25,"VIDE 25",0,1]
[1,"VIDE 24",0,null,1,"VIDE 54",0,null,1,"VIDE 84",0,null,null,null,26,26,{"$f":"IF(Pronostics!FX1=\"\",\"\",Pronostics!FX1)","v":"VIDE 26"},null,{"$f":"IF(Pronostics!FX1=\"\",\"\",Pronostics!GA3)","v":0},6.4999999999999997E-3,6.4999999999999997E-3,null,null,null,26,"VIDE 26",0,1]
[1,"VIDE 25",0,null,1,"VIDE 55",0,null,1,"VIDE 85",0,null,null,null,27,27,{"$f":"IF(Pronostics!GE1=\"\",\"\",Pronostics!GE1)","v":"VIDE 27"},null,{"$f":"IF(Pronostics!GE1=\"\",\"\",Pronostics!GH3)","v":0},6.4000000000000003E-3,6.4000000000000003E-3,null,null,null,27,"VIDE 27",0,1]
[1,"VIDE 26",0,null,1,"VIDE 56",0,null,1,"VIDE 86",0,null,null,null,28,28,{"$f":"IF(Pronostics!GL1=\"\",\"\",Pronostics!GL1)","v":"VIDE 28"},null,{"$f":"IF(Pronostics!GL1=\"\",\"\",Pronostics!GO3)","v":0},6.3E-3,6.3E-3,null,null,null,28,"VIDE 28",0,1]
[1,"VIDE 27",0,null,1,"VIDE 57",0,null,1,"VIDE 87",0,null,null,null,29,29,{"$f":"IF(Pronostics!GS1=\"\",\"\",Pronostics!GS1)","v":"VIDE 29"},null,{"$f":"IF(Pronostics!GS1=\"\",\"\",Pronostics!GV3)","v":0},6.1999999999999998E-3,6.1999999999999998E-3,null,null,null,29,"VIDE 29",0,1]
[1,"VIDE 28",0,null,1,"VIDE 58",0,null,1,"VIDE 88",0,null,null,null,30,30,{"$f":"IF(Pronostics!GZ1=\"\",\"\",Pronostics!GZ1)","v":"VIDE 30"},null,{"$f":"IF(Pronostics!GZ1=\"\",\"\",Pronostics!HC3)","v":0},6.1000000000000004E-3,6.1000000000000004E-3,null,null,null,30,"VIDE 30",0,1]
[1,"VIDE 29",0,null,1,"VIDE 59",0,null,1,"VIDE 89",0,null,null,null,31,31,{"$f":"IF(Pronostics!HG1=\"\",\"\",Pronostics!HG1)","v":"VIDE 31"},null,{"$f":"IF(Pronostics!HG1=\"\",\"\",Pronostics!HJ3)","v":0},6.0000000000000001E-3,6.0000000000000001E-3,null,null,null,31,"VIDE 31",0,1]
[1,"VIDE 30",0,null,1,"VIDE 60",0,null,1,"VIDE 90",0,null,null,null,32,32,{"$f":"IF(Pronostics!HN1=\"\",\"\",Pronostics!HN1)","v":"VIDE 32"},null,{"$f":"IF(Pronostics!HN1=\"\",\"\",Pronostics!HQ3)","v":0},5.8999999999999999E-3,5.8999999999999999E-3,null,null,null,32,"VIDE 32",0,1]
[null,null,null,null,null,null,null,null,null,null,null,null,null,null,33,33,{"$f":"IF(Pronostics!HU1=\"\",\"\",Pronostics!HU1)","v":"VIDE 33"},null,{"$f":"IF(Pronostics!HU1=\"\",\"\",Pronostics!HX3)","v":0},5.7999999999999996E-3,5.7999999999999996E-3,null,null,null,33,"VIDE 33",0,1]
[null,null,null,null,null,null,null,null,null,null,null,null,null,null,34,34,{"$f":"IF(Pronostics!IB1=\"\",\"\",Pronostics!IB1)","v":"VIDE 34"},null,{"$f":"IF(Pronostics!IB1=\"\",\"\",Pronostics!IE3)","v":0},5.7000000000000002E-3,5.7000000000000002E-3,null,null,null,34,"VIDE 34",0,1]
[null,null,null,null,null,null,null,null,null,null,null,null,null,null,35,35,{"$f":"IF(Pronostics!II1=\"\",\"\",Pronostics!II1)","v":"VIDE 35"},null,{"$f":"IF(Pronostics!II1=\"\",\"\",Pronostics!IL3)","v":0},5.5999999999999999E-3,5.5999999999999999E-3,null,null,null,35,"VIDE 35",0,1]
[null,null,null,null,null,null,null,null,null,null,null,null,null,null,36,36,{"$f":"IF(Pronostics!IP1=\"\",\"\",Pronostics!IP1)","v":"VIDE 36"},null,{"$f":"IF(Pronostics!IP1=\"\",\"\",Pronostics!IS3)","v":0},5.4999999999999997E-3,5.4999999999999997E-3,null,null,null,36,"VIDE 36",0,1]
[null,null,null,null,null,null,null,null,null,null,null,null,null,null,37,37,{"$f":"IF(Pronostics!IW1=\"\",\"\",Pronostics!IW1)","v":"VIDE 37"},null,{"$f":"IF(Pronostics!IW1=\"\",\"\",Pronostics!IZ3)","v":0},5.4000000000000003E-3,5.4000000000000003E-3,null,null,null,37,"VIDE 37",0,1]
[null,null,null,null,null,null,null,null,null,null,null,null,null,null,38,38,{"$f":"IF(Pronostics!JD1=\"\",\"\",Pronostics!JD1)","v":"VIDE 38"},null,{"$f":"IF(Pronostics!JD1=\"\",\"\",Pronostics!JG3)","v":0},5.3E-3,5.3E-3,null,null,null,38,"VIDE 38",0,1]
[null,null,null,null,null,null,null,null,null,null,null,null,null,null,39,39,{"$f":"IF(Pronostics!JK1=\"\",\"\",Pronostics!JK1)","v":"VIDE 39"},null,{"$f":"IF(Pronostics!JK1=\"\",\"\",Pronostics!JN3)","v":0},5.1999999999999998E-3,5.1999999999999998E-3,null,null,null,39,"VIDE 39",0,1]
[null,null,null,null,null,null,null,null,null,null,null,null,null,null,40,40,{"$f":"IF(Pronostics!JR1=\"\",\"\",Pronostics!JR1)","v":"VIDE 40"},null,{"$f":"IF(Pronostics!JR1=\"\",\"\",Pronostics!JU3)","v":0},5.1000000000000004E-3,5.1000000000000004E-3,null,null,null,40,"VIDE 40",0,1]
[null,null,null,null,null,null,null,null,null,null,null,null,null,null,41,41,{"$f":"IF(Pronostics!JY1=\"\",\"\",Pronostics!JY1)","v":"VIDE 41"},null,{"$f":"IF(Pronostics!JY1=\"\",\"\",Pronostics!KB3)","v":0},5.0000000000000001E-3,5.0000000000000001E-3,null,null,null,41,"VIDE 41",0,1]
[null,null,null,null,null,null,null,null,null,null,null,null,null,null,42,42,{"$f":"IF(Pronostics!KF1=\"\",\"\",Pronostics!KF1)","v":"VIDE 42"},null,{"$f":"IF(Pronostics!KF1=\"\",\"\",Pronostics!KI3)","v":0},4.8999999999999998E-3,4.8999999999999998E-3,null,null,null,42,"VIDE 42",0,1]
[null,null,null,null,null,null,null,null,null,null,null,null,null,null,43,43,{"$f":"IF(Pronostics!KM1=\"\",\"\",Pronostics!KM1)","v":"VIDE 43"},null,{"$f":"IF(Pronostics!KM1=\"\",\"\",Pronostics!KP3)","v":0},4.7999999999999996E-3,4.7999999999999996E-3,null,null,null,43,"VIDE 43",0,1]
[null,null,null,null,null,null,null,null,null,null,null,null,null,null,44,44,{"$f":"IF(Pronostics!KT1=\"\",\"\",Pronostics!KT1)","v":"VIDE 44"},null,{"$f":"IF(Pronostics!KT1=\"\",\"\",Pronostics!KW3)","v":0},4.7000000000000002E-3,4.7000000000000002E-3,null,null,null,44,"VIDE 44",0,1]
[null,null,null,null,null,null,null,null,null,null,null,null,null,null,45,45,{"$f":"IF(Pronostics!LA1=\"\",\"\",Pronostics!LA1)","v":"VIDE 45"},null,{"$f":"IF(Pronostics!LA1=\"\",\"\",Pronostics!LD3)","v":0},4.5999999999999999E-3,4.5999999999999999E-3,null,null,null,45,"VIDE 45",0,1]
[null,null,null,null,null,null,null,null,null,null,null,null,null,null,46,46,{"$f":"IF(Pronostics!LH1=\"\",\"\",Pronostics!LH1)","v":"VIDE 46"},null,{"$f":"IF(Pronostics!LH1=\"\",\"\",Pronostics!LK3)","v":0},4.4999999999999997E-3,4.4999999999999997E-3,null,null,null,46,"VIDE 46",0,1]
[null,null,null,null,null,null,null,null,null,null,null,null,null,null,47,47,{"$f":"IF(Pronostics!LO1=\"\",\"\",Pronostics!LO1)","v":"VIDE 47"},null,{"$f":"IF(Pronostics!LO1=\"\",\"\",Pronostics!LR3)","v":0},4.4000000000000003E-3,4.4000000000000003E-3,null,null,null,47,"VIDE 47",0,1]
[null,null,null,null,null,null,null,null,null,null,null,null,null,null,48,48,{"$f":"IF(Pronostics!LV1=\"\",\"\",Pronostics!LV1)","v":"VIDE 48"},null,{"$f":"IF(Pronostics!LV1=\"\",\"\",Pronostics!LY3)","v":0},4.3E-3,4.3E-3,null,null,null,48,"VIDE 48",0,1]
[null,null,null,null,null,null,null,null,null,null,null,null,null,null,49,49,{"$f":"IF(Pronostics!MC1=\"\",\"\",Pronostics!MC1)","v":"VIDE 49"},null,{"$f":"IF(Pronostics!MC1=\"\",\"\",Pronostics!MF3)","v":0},4.1999999999999997E-3,4.1999999999999997E-3,null,null,null,49,"VIDE 49",0,1]
[null,null,null,null,null,null,null,null,null,null,null,null,null,null,50,50,{"$f":"IF(Pronostics!MJ1=\"\",\"\",Pronostics!MJ1)","v":"VIDE 50"},null,{"$f":"IF(Pronostics!MJ1=\"\",\"\",Pronostics!MM3)","v":0},4.1000000000000003E-3,4.1000000000000003E-3,null,null,null,50,"VIDE 50",0,1]
[null,null,null,null,null,null,null,null,null,null,null,null,null,null,51,51,{"$f":"IF(Pronostics!MQ1=\"\",\"\",Pronostics!MQ1)","v":"VIDE 51"},null,{"$f":"IF(Pronostics!MQ1=\"\",\"\",Pronostics!MT3)","v":0},4.0000000000000001E-3,4.0000000000000001E-3,null,null,null,51,"VIDE 51",0,1]
[null,null,null,null,null,null,null,null,null,null,null,null,null,null,52,52,{"$f":"IF(Pronostics!MX1=\"\",\"\",Pronostics!MX1)","v":"VIDE 52"},null,{"$f":"IF(Pronostics!MX1=\"\",\"\",Pronostics!NA3)","v":0},3.8999999999999998E-3,3.8999999999999998E-3,null,null,null,52,"VIDE 52",0,1]
[null,null,null,null,null,null,null,null,null,null,null,null,null,null,53,53,{"$f":"IF(Pronostics!NE1=\"\",\"\",Pronostics!NE1)","v":"VIDE 53"},null,{"$f":"IF(Pronostics!NE1=\"\",\"\",Pronostics!NH3)","v":0},3.8E-3,3.8E-3,null,null,null,53,"VIDE 53",0,1]
[null,null,null,null,null,null,null,null,null,null,null,null,null,null,54,54,{"$f":"IF(Pronostics!NL1=\"\",\"\",Pronostics!NL1)","v":"VIDE 54"},null,{"$f":"IF(Pronostics!NL1=\"\",\"\",Pronostics!NO3)","v":0},3.7000000000000002E-3,3.7000000000000002E-3,null,null,null,54,"VIDE 54",0,1]
[null,null,null,null,null,null,null,null,null,null,null,null,null,null,55,55,{"$f":"IF(Pronostics!NS1=\"\",\"\",Pronostics!NS1)","v":"VIDE 55"},null,{"$f":"IF(Pronostics!NS1=\"\",\"\",Pronostics!NV3)","v":0},3.5999999999999999E-3,3.5999999999999999E-3,null,null,null,55,"VIDE 55",0,1]
[null,null,null,null,null,null,null,null,null,null,null,null,null,null,56,56,{"$f":"IF(Pronostics!NZ1=\"\",\"\",Pronostics!NZ1)","v":"VIDE 56"},null,{"$f":"IF(Pronostics!NZ1=\"\",\"\",Pronostics!OC3)","v":0},3.5000000000000001E-3,3.5000000000000001E-3,null,null,null,56,"VIDE 56",0,1]
[null,null,null,null,null,null,null,null,null,null,null,null,null,null,57,57,{"$f":"IF(Pronostics!OG1=\"\",\"\",Pronostics!OG1)","v":"VIDE 57"},null,{"$f":"IF(Pronostics!OG1=\"\",\"\",Pronostics!OJ3)","v":0},3.3999999999999998E-3,3.3999999999999998E-3,null,null,null,57,"VIDE 57",0,1]
[null,null,null,null,null,null,null,null,null,null,null,null,null,null,58,58,{"$f":"IF(Pronostics!ON1=\"\",\"\",Pronostics!ON1)","v":"VIDE 58"},null,{"$f":"IF(Pronostics!ON1=\"\",\"\",Pronostics!OQ3)","v":0},3.3E-3,3.3E-3,null,null,null,58,"VIDE 58",0,1]
[null,null,null,null,null,null,null,null,null,null,null,null,null,null,59,59,{"$f":"IF(Pronostics!OU1=\"\",\"\",Pronostics!OU1)","v":"VIDE 59"},null,{"$f":"IF(Pronostics!OU1=\"\",\"\",Pronostics!OX3)","v":0},3.2000000000000002E-3,3.2000000000000002E-3,null,null,null,59,"VIDE 59",0,1]
[null,null,null,null,null,null,null,null,null,null,null,null,null,null,60,60,{"$f":"IF(Pronostics!PB1=\"\",\"\",Pronostics!PB1)","v":"VIDE 60"},null,{"$f":"IF(Pronostics!PB1=\"\",\"\",Pronostics!PE3)","v":0},3.0999999999999999E-3,3.0999999999999999E-3,null,null,null,60,"VIDE 60",0,1]
[null,null,null,null,null,null,null,null,null,null,null,null,null,null,61,61,{"$f":"IF(Pronostics!PI1=\"\",\"\",Pronostics!PI1)","v":"VIDE 61"},null,{"$f":"IF(Pronostics!PI1=\"\",\"\",Pronostics!PL3)","v":0},3.0000000000000001E-3,3.0000000000000001E-3,null,null,null,61,"VIDE 61",0,1]
[null,null,null,null,null,null,null,null,null,null,null,null,null,null,62,62,{"$f":"IF(Pronostics!PP1=\"\",\"\",Pronostics!PP1)","v":"VIDE 62"},null,{"$f":"IF(Pronostics!PP1=\"\",\"\",Pronostics!PS3)","v":0},2.8999999999999998E-3,2.8999999999999998E-3,null,null,null,62,"VIDE 62",0,1]
[null,null,null,null,null,null,null,null,null,null,null,null,null,null,63,63,{"$f":"IF(Pronostics!PW1=\"\",\"\",Pronostics!PW1)","v":"VIDE 63"},null,{"$f":"IF(Pronostics!PW1=\"\",\"\",Pronostics!PZ3)","v":0},2.8E-3,2.8E-3,null,null,null,63,"VIDE 63",0,1]
[null,null,null,null,null,null,null,null,null,null,null,null,null,null,64,64,{"$f":"IF(Pronostics!QD1=\"\",\"\",Pronostics!QD1)","v":"VIDE 64"},null,{"$f":"IF(Pronostics!QD1=\"\",\"\",Pronostics!QG3)","v":0},2.7000000000000001E-3,2.7000000000000001E-3,null,null,null,64,"VIDE 64",0,1]
[null,null,null,null,null,null,null,null,null,null,null,null,null,null,65,65,{"$f":"IF(Pronostics!QK1=\"\",\"\",Pronostics!QK1)","v":"VIDE 65"},null,{"$f":"IF(Pronostics!QK1=\"\",\"\",Pronostics!QN3)","v":0},2.5999999999999999E-3,2.5999999999999999E-3,null,null,null,65,"VIDE 65",0,1]
[null,null,null,null,null,null,null,null,null,null,null,null,null,null,66,{"$f":"RANK(T67,$T$2:$T$91)","v":66},{"$f":"IF(Pronostics!QR1=\"\",\"\",Pronostics!QR1)","v":"VIDE 66"},null,{"$f":"IF(Pronostics!QR1=\"\",\"\",Pronostics!QU3)","v":0},{"$f":"IF(ISERROR(SUM(S67+U67)),U67,SUM(S67+U67))","v":2.5000000000000001E-3},2.5000000000000001E-3,null,null,null,66,{"$f":"VLOOKUP(O67,$P$2:$Q$91,2,0)","v":"VIDE 66"},{"$f":"VLOOKUP(Z67,$Q$2:$S$91,3,0)","v":0},{"$f":"RANK(AA67,$AA$2:$AA$91)","v":1}]
[null,null,null,null,null,null,null,null,null,null,null,null,null,null,67,67,{"$f":"IF(Pronostics!QY1=\"\",\"\",Pronostics!QY1)","v":"VIDE 67"},null,{"$f":"IF(Pronostics!QY1=\"\",\"\",Pronostics!RB3)","v":0},2.3999999999999998E-3,2.3999999999999998E-3,null,null,null,67,"VIDE 67",0,1]
[null,null,null,null,null,null,null,null,null,null,null,null,null,null,68,68,{"$f":"IF(Pronostics!RF1=\"\",\"\",Pronostics!RF1)","v":"VIDE 68"},null,{"$f":"IF(Pronostics!RF1=\"\",\"\",Pronostics!RI3)","v":0},2.3E-3,2.3E-3,null,null,null,68,"VIDE 68",0,1]
[null,null,null,null,null,null,null,null,null,null,null,null,null,null,69,69,{"$f":"IF(Pronostics!RM1=\"\",\"\",Pronostics!RM1)","v":"VIDE 69"},null,{"$f":"IF(Pronostics!RM1=\"\",\"\",Pronostics!RP3)","v":0},2.2000000000000001E-3,2.2000000000000001E-3,null,null,null,69,"VIDE 69",0,1]
[null,null,null,null,null,null,null,null,null,null,null,null,null,null,70,70,{"$f":"IF(Pronostics!RT1=\"\",\"\",Pronostics!RT1)","v":"VIDE 70"},null,{"$f":"IF(Pronostics!RT1=\"\",\"\",Pronostics!RW3)","v":0},2.0999999999999999E-3,2.0999999999999999E-3,null,null,null,70,"VIDE 70",0,1]
[null,null,null,null,null,null,null,null,null,null,null,null,null,null,71,71,{"$f":"IF(Pronostics!SA1=\"\",\"\",Pronostics!SA1)","v":"VIDE 71"},null,{"$f":"IF(Pronostics!SA1=\"\",\"\",Pronostics!SD3)","v":0},2E-3,2E-3,null,null,null,71,"VIDE 71",0,1]
[null,null,null,null,null,null,null,null,null,null,null,null,null,null,72,72,{"$f":"IF(Pronostics!SH1=\"\",\"\",Pronostics!SH1)","v":"VIDE 72"},null,{"$f":"IF(Pronostics!SH1=\"\",\"\",Pronostics!SK3)","v":0},1.9E-3,1.9E-3,null,null,null,72,"VIDE 72",0,1]
[null,null,null,null,null,null,null,null,null,null,null,null,null,null,73,73,{"$f":"IF(Pronostics!SO1=\"\",\"\",Pronostics!SO1)","v":"VIDE 73"},null,{"$f":"IF(Pronostics!SO1=\"\",\"\",Pronostics!SR3)","v":0},1.8E-3,1.8E-3,null,null,null,73,"VIDE 73",0,1]
[null,null,null,null,null,null,null,null,null,null,null,null,null,null,74,74,{"$f":"IF(Pronostics!SV1=\"\",\"\",Pronostics!SV1)","v":"VIDE 74"},null,{"$f":"IF(Pronostics!SV1=\"\",\"\",Pronostics!SY3)","v":0},1.6999999999999999E-3,1.6999999999999999E-3,null,null,null,74,"VIDE 74",0,1]
[null,null,null,null,null,null,null,null,null,null,null,null,null,null,75,75,{"$f":"IF(Pronostics!TC1=\"\",\"\",Pronostics!TC1)","v":"VIDE 75"},null,{"$f":"IF(Pronostics!TC1=\"\",\"\",Pronostics!TF3)","v":0},1.6000000000000001E-3,1.6000000000000001E-3,null,null,null,75,"VIDE 75",0,1]
[null,null,null,null,null,null,null,null,null,null,null,null,null,null,76,76,{"$f":"IF(Pronostics!TJ1=\"\",\"\",Pronostics!TJ1)","v":"VIDE 76"},null,{"$f":"IF(Pronostics!TJ1=\"\",\"\",Pronostics!TM3)","v":0},1.5E-3,1.5E-3,null,null,null,76,"VIDE 76",0,1]
[null,null,null,null,null,null,null,null,null,null,null,null,null,null,77,77,{"$f":"IF(Pronostics!TQ1=\"\",\"\",Pronostics!TQ1)","v":"VIDE 77"},null,{"$f":"IF(Pronostics!TQ1=\"\",\"\",Pronostics!TT3)","v":0},1.4E-3,1.4E-3,null,null,null,77,"VIDE 77",0,1]
[null,null,null,null,null,null,null,null,null,null,null,null,null,null,78,78,{"$f":"IF(Pronostics!TX1=\"\",\"\",Pronostics!TX1)","v":"VIDE 78"},null,{"$f":"IF(Pronostics!TX1=\"\",\"\",Pronostics!UA3)","v":0},1.2999999999999999E-3,1.2999999999999999E-3,null,null,null,78,"VIDE 78",0,1]
[null,null,null,null,null,null,null,null,null,null,null,null,null,null,79,79,{"$f":"IF(Pronostics!UE1=\"\",\"\",Pronostics!UE1)","v":"VIDE 79"},null,{"$f":"IF(Pronostics!UE1=\"\",\"\",Pronostics!UH3)","v":0},1.1999999999999999E-3,1.1999999999999999E-3,null,null,null,79,"VIDE 79",0,1]
[null,null,null,null,null,null,null,null,null,null,null,null,null,null,80,80,{"$f":"IF(Pronostics!UL1=\"\",\"\",Pronostics!UL1)","v":"VIDE 80"},null,{"$f":"IF(Pronostics!UL1=\"\",\"\",Pronostics!UO3)","v":0},1.1000000000000001E-3,1.1000000000000001E-3,null,null,null,80,"VIDE 80",0,1]
[null,null,null,null,null,null,null,null,null,null,null,null,null,null,81,81,{"$f":"IF(Pronostics!US1=\"\",\"\",Pronostics!US1)","v":"VIDE 81"},null,{"$f":"IF(Pronostics!US1=\"\",\"\",Pronostics!UV3)","v":0},1E-3,1E-3,null,null,null,81,"VIDE 81",0,1]
[null,null,null,null,null,null,null,null,null,null,null,null,null,null,82,82,{"$f":"IF(Pronostics!UZ1=\"\",\"\",Pronostics!UZ1)","v":"VIDE 82"},null,{"$f":"IF(Pronostics!UZ1=\"\",\"\",Pronostics!VC3)","v":0},8.9999999999999998E-4,8.9999999999999998E-4,null,null,null,82,"VIDE 82",0,1]
[null,null,null,null,null,null,null,null,null,null,null,null,null,null,83,83,{"$f":"IF(Pronostics!VG1=\"\",\"\",Pronostics!VG1)","v":"VIDE 83"},null,{"$f":"IF(Pronostics!VG1=\"\",\"\",Pronostics!VJ3)","v":0},8.0000000000000004E-4,8.0000000000000004E-4,null,null,null,83,"VIDE 83",0,1]
[null,null,null,null,null,null,null,null,null,null,null,null,null,null,84,84,{"$f":"IF(Pronostics!VN1=\"\",\"\",Pronostics!VN1)","v":"VIDE 84"},null,{"$f":"IF(Pronostics!VN1=\"\",\"\",Pronostics!VQ3)","v":0},6.9999999999999999E-4,6.9999999999999999E-4,null,null,null,84,"VIDE 84",0,1]
[null,null,null,null,null,null,null,null,null,null,null,null,null,null,85,85,{"$f":"IF(Pronostics!VU1=\"\",\"\",Pronostics!VU1)","v":"VIDE 85"},null,{"$f":"IF(Pronostics!VU1=\"\",\"\",Pronostics!VX3)","v":0},5.9999999999999995E-4,5.9999999999999995E-4,null,null,null,85,"VIDE 85",0,1]
[null,null,null,null,null,null,null,null,null,null,null,null,null,null,86,86,{"$f":"IF(Pronostics!WB1=\"\",\"\",Pronostics!WB1)","v":"VIDE 86"},null,{"$f":"IF(Pronostics!WB1=\"\",\"\",Pronostics!WE3)","v":0},5.0000000000000001E-4,5.0000000000000001E-4,null,null,null,86,"VIDE 86",0,1]
[null,null,null,null,null,null,null,null,null,null,null,null,null,null,87,87,{"$f":"IF(Pronostics!WI1=\"\",\"\",Pronostics!WI1)","v":"VIDE 87"},null,{"$f":"IF(Pronostics!WI1=\"\",\"\",Pronostics!WL3)","v":0},4.0000000000000002E-4,4.0000000000000002E-4,null,null,null,87,"VIDE 87",0,1]
[null,null,null,null,null,null,null,null,null,null,null,null,null,null,88,88,{"$f":"IF(Pronostics!WP1=\"\",\"\",Pronostics!WP1)","v":"VIDE 88"},null,{"$f":"IF(Pronostics!WP1=\"\",\"\",Pronostics!WS3)","v":0},2.9999999999999997E-4,2.9999999999999997E-4,null,null,null,88,"VIDE 88",0,1]
[null,null,null,null,null,null,null,null,null,null,null,null,null,null,89,89,{"$f":"IF(Pronostics!WW1=\"\",\"\",Pronostics!WW1)","v":"VIDE 89"},null,{"$f":"IF(Pronostics!WW1=\"\",\"\",Pronostics!WZ3)","v":0},2.0000000000000001E-4,2.0000000000000001E-4,null,null,null,89,"VIDE 89",0,1]
[null,null,null,null,null,null,null,null,null,null,null,null,null,null,90,90,{"$f":"IF(Pronostics!XD1=\"\",\"\",Pronostics!XD1)","v":"VIDE 90"},null,{"$f":"IF(Pronostics!XD1=\"\",\"\",Pronostics!XG3)","v":0},1E-4,1E-4,null,null,null,90,"VIDE 90",0,1]